Workbook

Sheet User Interface
A1: Mistrade Range Finder
B3: User Input Field:
B4: Product ID | D4: FESX
B7: EURO STOXX 50® Index Futures
A9: Product | B9: Name | G9: Mistrades
A10: FESX | B10: EURO STOXX 50® Index Futures | G10: A deviation from the reference price shall be deemed significant if the price of the mistrade transaction deviates from the reference price by more than the higher value between the mistrade range floor or 20 percent of the PCP for the corresponding futures contract, unless another regulation has been made for an individual product. The floor value for the mistrade range will be determined on a product level as the higher value between 10 percent of the corresponding outright futures mistrade range calculated using the price change percentile methodology and an absolute value of four ticks.

Sheet FX Options (hidden)
A1: Product ID | B1: Name | C1: For expirations | D1: Reference prices up to | G1: Mistrade Range | J1: For expirations | K1: Bid prices | N1: Mistrade Range
A2: AUCO | B2: Options on AUD/USD Futures | C2: M1 – M6: | D2: 0.01 | E2: 0.15 | G2: 0.001 | H2: 0.1 | I2: 0.015 | J2: M7-M12: | K2: 0.01 | L2: 0.15 | N2: 0.002 | O2: 0.2 | P2: 0.03 | R2: =_xlfn.XLOOKUP(A2,'Product List'!A:A,'Product List'!A:A) -> AUCO
A3: EACO | B3: Options on EUR/AUD Futures | C3: M1 – M6: | D3: 0.01 | E3: 0.15 | G3: 0.001 | H3: 0.1 | I3: 0.015 | J3: M7-M12: | K3: 0.01 | L3: 0.15 | N3: 0.002 | O3: 0.2 | P3: 0.03 | R3: =_xlfn.XLOOKUP(A3,'Product List'!A:A,'Product List'!A:A) -> EACO
A4: EFCO | B4: Options on EUR/CHF Futures | C4: M1 – M6: | D4: 0.01 | E4: 0.15 | G4: 0.001 | H4: 0.1 | I4: 0.015 | J4: M7-M12: | K4: 0.01 | L4: 0.15 | N4: 0.002 | O4: 0.2 | P4: 0.03 | R4: =_xlfn.XLOOKUP(A4,'Product List'!A:A,'Product List'!A:A) -> EFCO
A5: EPCO | B5: Options on EUR/GBP Futures | C5: M1 – M6: | D5: 0.01 | E5: 0.15 | G5: 0.001 | H5: 0.1 | I5: 0.015 | J5: M7-M12: | K5: 0.01 | L5: 0.15 | N5: 0.002 | O5: 0.2 | P5: 0.03 | R5: =_xlfn.XLOOKUP(A5,'Product List'!A:A,'Product List'!A:A) -> EPCO
A6: EUCO | B6: Options on EUR/USD Futures | C6: M1 – M6: | D6: 0.01 | E6: 0.15 | G6: 0.001 | H6: 0.1 | I6: 0.015 | J6: M7-M12: | K6: 0.01 | L6: 0.15 | N6: 0.002 | O6: 0.2 | P6: 0.03 | R6: =_xlfn.XLOOKUP(A6,'Product List'!A:A,'Product List'!A:A) -> EUCO
A7: PFCO | B7: Options on GBP/CHF Futures | C7: M1 – M6: | D7: 0.01 | E7: 0.15 | G7: 0.001 | H7: 0.1 | I7: 0.015 | J7: M7-M12: | K7: 0.01 | L7: 0.15 | N7: 0.002 | O7: 0.2 | P7: 0.03 | R7: =_xlfn.XLOOKUP(A7,'Product List'!A:A,'Product List'!A:A) -> PFCO
A8: PUCO | B8: Options on GBP/USD Futures | C8: M1 – M6: | D8: 0.01 | E8: 0.15 | G8: 0.001 | H8: 0.1 | I8: 0.015 | J8: M7-M12: | K8: 0.01 | L8: 0.15 | N8: 0.002 | O8: 0.2 | P8: 0.03 | R8: =_xlfn.XLOOKUP(A8,'Product List'!A:A,'Product List'!A:A) -> PUCO
A9: NUCO | B9: Options on NZD/USD Futures | C9: M1 – M6: | D9: 0.01 | E9: 0.15 | G9: 0.001 | H9: 0.1 | I9: 0.015 | J9: M7-M12: | K9: 0.01 | L9: 0.15 | N9: 0.002 | O9: 0.2 | P9: 0.03 | R9: =_xlfn.XLOOKUP(A9,'Product List'!A:A,'Product List'!A:A) -> NUCO
A10: UFCO | B10: Options on USD/CHF Futures | C10: M1 – M6: | D10: 0.01 | E10: 0.15 | G10: 0.001 | H10: 0.1 | I10: 0.015 | J10: M7-M12: | K10: 0.01 | L10: 0.15 | N10: 0.002 | O10: 0.2 | P10: 0.03 | R10: =_xlfn.XLOOKUP(A10,'Product List'!A:A,'Product List'!A:A) -> UFCO
A11: AYCO | B11: Options on AUD/JPY Futures | C11: M1 – M6: | D11: 1 | E11: 10 | G11: 0.1 | H11: 0.1 | I11: 1 | J11: M7-M12: | K11: 1 | L11: 10 | N11: 0.2 | O11: 0.2 | P11: 2 | R11: =_xlfn.XLOOKUP(A11,'Product List'!A:A,'Product List'!A:A) -> AYCO
A12: EYCO | B12: Options on EUR/JPY Futures | C12: M1 – M6: | D12: 1 | E12: 10 | G12: 0.1 | H12: 0.1 | I12: 1 | J12: M7-M12: | K12: 1 | L12: 10 | N12: 0.2 | O12: 0.2 | P12: 2 | R12: =_xlfn.XLOOKUP(A12,'Product List'!A:A,'Product List'!A:A) -> EYCO
A13: UYCO | B13: Options on USD/JPY Futures | C13: M1 – M6: | D13: 1 | E13: 10 | G13: 0.1 | H13: 0.1 | I13: 1 | J13: M7-M12: | K13: 1 | L13: 10 | N13: 0.2 | O13: 0.2 | P13: 2 | R13: =_xlfn.XLOOKUP(A13,'Product List'!A:A,'Product List'!A:A) -> UYCO

Sheet Other Options (hidden)
A1: ID | B1: Name | C1: Product Group | D1: Spread Class | E1: Expiries with LP Schmes | F1: Reference prices up to | L1: Mistrade Range | R1: Mistrade range is doubled for the following expiration (and above): | V1: no of existing rows | W1: max_EXP with LP Schmes | Y1: EXP | AB1: Product ISIN | AC1: Underl ISIN | AF1: Expiration + x | AG1: 2023-03-27 | AH1: 2023-04-03 | AI1: 2023-04-11 | AJ1: 2023-04-17 | AK1: 2023-05-02 | AL1: 2023-05-08
A2: OTUK | B2: =_xlfn.XLOOKUP(A2,'Product List'!$A:$A,'Product List'!$D:$D) -> FTSE 100 Index Options | C2: =_xlfn.XLOOKUP(A2,'Product List'!$A:$A,'Product List'!$F:$F) -> INDEX OPTIONS | D2: =_xlfn.XLOOKUP(A2,'MMPM1-AMM'!E:E,'MMPM1-AMM'!K:K,_xlfn.XLOOKUP(A2,'MMPM1-PMM'!E:E,'MMPM1-PMM'!J:J)) -> OTUK | E2: =_xlfn.XLOOKUP(A2,'MMPM1-AMM'!E:E,'MMPM1-AMM'!Q:Q,_xlfn.XLOOKUP(A2,'MMPM1-PMM'!E:E,'MMPM1-PMM'!P:P)) -> 7 | F2: =SUMIFS(MMPM2!H:H,MMPM2!C:C,U2,MMPM2!E:E,1,MMPM2!G:G,1) -> 20 | G2: =SUMIFS(MMPM2!H:H,MMPM2!C:C,U2,MMPM2!E:E,1,MMPM2!G:G,2) -> 200 | L2: =SUMIFS(MMPM2!I:I,MMPM2!C:C,U2,MMPM2!E:E,1,MMPM2!G:G,1) -> 3 | M2: =SUMIFS(MMPM2!I:I,MMPM2!C:C,U2,MMPM2!E:E,1,MMPM2!G:G,2) -> 0.15 | N2: =SUMIFS(MMPM2!I:I,MMPM2!C:C,U2,MMPM2!E:E,1,MMPM2!G:G,3) -> 30 | R2: =IF(D2="OVS","",IF(V2=3, "Not applicable",W2-1)) -> Not applicable | S2: =IF(D2="OVS","",IF(V2=3, "No doubling of mistrade range",W2-1)) -> No doubling of mistrade range | U2: =IFERROR(_xlfn.XLOOKUP(A2,'MMPM1-PMM'!E:E,'MMPM1-PMM'!J:J),_xlfn.XLOOKUP(A2,'MMPM1-AMM'!E:E,'MMPM1-AMM'!K:K)) -> OTUK | V2: =IFERROR(_xlfn.XLOOKUP(A2,'MMPM1-AMM'!E:E,'MMPM1-AMM'!T:T),_xlfn.XLOOKUP(A2,'MMPM1-PMM'!E:E,'MMPM1-PMM'!S:S)) -> 3 | W2: =IFERROR(_xlfn.XLOOKUP(A2,'MMPM1-AMM'!E:E,'MMPM1-AMM'!U:U),_xlfn.XLOOKUP(A2,'MMPM1-PMM'!E:E,'MMPM1-PMM'!T:T)) -> 7 | Y2: =W2=E2 -> TRUE | AB2: =_xlfn.XLOOKUP(A2,productlist[PRODUCT_ID],productlist[PRODUCT_ISIN]) -> DE000A2QNKJ3 | AC2: =_xlfn.XLOOKUP(A2,productlist[PRODUCT_ID],productlist[UNDERLYING_ISIN]) -> GB0001383545
A3: OMHC | B3: =_xlfn.XLOOKUP(A3,'Product List'!$A:$A,'Product List'!$D:$D) -> MSCI China Hong Kong Listed Large Cap Index Options | C3: =_xlfn.XLOOKUP(A3,'Product List'!$A:$A,'Product List'!$F:$F) -> INDEX OPTIONS | D3: =_xlfn.XLOOKUP(A3,'MMPM1-AMM'!E:E,'MMPM1-AMM'!K:K,_xlfn.XLOOKUP(A3,'MMPM1-PMM'!E:E,'MMPM1-PMM'!J:J)) -> MSCI-3 | E3: =_xlfn.XLOOKUP(A3,'MMPM1-AMM'!E:E,'MMPM1-AMM'!Q:Q,_xlfn.XLOOKUP(A3,'MMPM1-PMM'!E:E,'MMPM1-PMM'!P:P)) -> 6 | F3: =SUMIFS(MMPM2!H:H,MMPM2!C:C,U3,MMPM2!E:E,1,MMPM2!G:G,1) -> 40 | G3: =SUMIFS(MMPM2!H:H,MMPM2!C:C,U3,MMPM2!E:E,1,MMPM2!G:G,2) -> 400 | L3: =SUMIFS(MMPM2!I:I,MMPM2!C:C,U3,MMPM2!E:E,1,MMPM2!G:G,1) -> 8 | M3: =SUMIFS(MMPM2!I:I,MMPM2!C:C,U3,MMPM2!E:E,1,MMPM2!G:G,2) -> 0.2 | N3: =SUMIFS(MMPM2!I:I,MMPM2!C:C,U3,MMPM2!E:E,1,MMPM2!G:G,3) -> 80 | R3: Not applicable | S3: =IF(D3="OVS","",IF(V3=3, "No doubling of mistrade range",W3-1)) -> No doubling of mistrade range | U3: =IFERROR(_xlfn.XLOOKUP(A3,'MMPM1-PMM'!E:E,'MMPM1-PMM'!J:J),_xlfn.XLOOKUP(A3,'MMPM1-AMM'!E:E,'MMPM1-AMM'!K:K)) -> MSCI-3 | V3: =IFERROR(_xlfn.XLOOKUP(A3,'MMPM1-AMM'!E:E,'MMPM1-AMM'!T:T),_xlfn.XLOOKUP(A3,'MMPM1-PMM'!E:E,'MMPM1-PMM'!S:S)) -> 3 | W3: =IFERROR(_xlfn.XLOOKUP(A3,'MMPM1-AMM'!E:E,'MMPM1-AMM'!U:U),_xlfn.XLOOKUP(A3,'MMPM1-PMM'!E:E,'MMPM1-PMM'!T:T)) -> 6 | Y3: =W3=E3 -> TRUE | AB3: =_xlfn.XLOOKUP(A3,productlist[PRODUCT_ID],productlist[PRODUCT_ISIN]) -> DE000A3CN7W2 | AC3: =_xlfn.XLOOKUP(A3,productlist[PRODUCT_ID],productlist[UNDERLYING_ISIN]) -> GB00BNZFTJ23
A4: OMHS | B4: =_xlfn.XLOOKUP(A4,'Product List'!$A:$A,'Product List'!$D:$D) -> MSCI Hong Kong Listed Large Cap Index Options | C4: =_xlfn.XLOOKUP(A4,'Product List'!$A:$A,'Product List'!$F:$F) -> INDEX OPTIONS | D4: =_xlfn.XLOOKUP(A4,'MMPM1-AMM'!E:E,'MMPM1-AMM'!K:K,_xlfn.XLOOKUP(A4,'MMPM1-PMM'!E:E,'MMPM1-PMM'!J:J)) -> MSCI-3 | E4: =_xlfn.XLOOKUP(A4,'MMPM1-AMM'!E:E,'MMPM1-AMM'!Q:Q,_xlfn.XLOOKUP(A4,'MMPM1-PMM'!E:E,'MMPM1-PMM'!P:P)) -> 6 | F4: =SUMIFS(MMPM2!H:H,MMPM2!C:C,U4,MMPM2!E:E,1,MMPM2!G:G,1) -> 40 | G4: =SUMIFS(MMPM2!H:H,MMPM2!C:C,U4,MMPM2!E:E,1,MMPM2!G:G,2) -> 400 | L4: =SUMIFS(MMPM2!I:I,MMPM2!C:C,U4,MMPM2!E:E,1,MMPM2!G:G,1) -> 8 | M4: =SUMIFS(MMPM2!I:I,MMPM2!C:C,U4,MMPM2!E:E,1,MMPM2!G:G,2) -> 0.2 | N4: =SUMIFS(MMPM2!I:I,MMPM2!C:C,U4,MMPM2!E:E,1,MMPM2!G:G,3) -> 80 | R4: Not applicable | S4: No doubling of mistrade range | U4: =IFERROR(_xlfn.XLOOKUP(A4,'MMPM1-PMM'!E:E,'MMPM1-PMM'!J:J),_xlfn.XLOOKUP(A4,'MMPM1-AMM'!E:E,'MMPM1-AMM'!K:K)) -> MSCI-3 | V4: =IFERROR(_xlfn.XLOOKUP(A4,'MMPM1-AMM'!E:E,'MMPM1-AMM'!T:T),_xlfn.XLOOKUP(A4,'MMPM1-PMM'!E:E,'MMPM1-PMM'!S:S)) -> 3 | W4: =IFERROR(_xlfn.XLOOKUP(A4,'MMPM1-AMM'!E:E,'MMPM1-AMM'!U:U),_xlfn.XLOOKUP(A4,'MMPM1-PMM'!E:E,'MMPM1-PMM'!T:T)) -> 6 | Y4: TRUE | AB4: =_xlfn.XLOOKUP(A4,productlist[PRODUCT_ID],productlist[PRODUCT_ISIN]) -> DE000A3CN8E8 | AC4: =_xlfn.XLOOKUP(A4,productlist[PRODUCT_ID],productlist[UNDERLYING_ISIN]) -> GB00BNZFV415
A5: BRNT | B5: =_xlfn.XLOOKUP(A5,'Product List'!$A:$A,'Product List'!$D:$D) -> WisdomTree Brent Crude Oil Options | C5: =_xlfn.XLOOKUP(A5,'Product List'!$A:$A,'Product List'!$F:$F) -> OPTIONS ON EXCHANGE-TRADED COMMODITIES SECURITIES | D5: =_xlfn.XLOOKUP(A5,'MMPM1-AMM'!E:E,'MMPM1-AMM'!K:K,_xlfn.XLOOKUP(A5,'MMPM1-PMM'!E:E,'MMPM1-PMM'!J:J)) -> CO-ETF1 | E5: =_xlfn.XLOOKUP(A5,'MMPM1-AMM'!E:E,'MMPM1-AMM'!Q:Q,_xlfn.XLOOKUP(A5,'MMPM1-PMM'!E:E,'MMPM1-PMM'!P:P)) -> 6 | F5: =SUMIFS(MMPM2!H:H,MMPM2!C:C,U5,MMPM2!E:E,1,MMPM2!G:G,1) -> 2 | G5: =SUMIFS(MMPM2!H:H,MMPM2!C:C,U5,MMPM2!E:E,1,MMPM2!G:G,2) -> 20 | L5: =SUMIFS(MMPM2!I:I,MMPM2!C:C,U5,MMPM2!E:E,1,MMPM2!G:G,1) -> 0.2 | M5: =SUMIFS(MMPM2!I:I,MMPM2!C:C,U5,MMPM2!E:E,1,MMPM2!G:G,2) -> 0.1 | N5: =SUMIFS(MMPM2!I:I,MMPM2!C:C,U5,MMPM2!E:E,1,MMPM2!G:G,3) -> 2 | R5: Not applicable | S5: No doubling of mistrade range | U5: =IFERROR(_xlfn.XLOOKUP(A5,'MMPM1-PMM'!E:E,'MMPM1-PMM'!J:J),_xlfn.XLOOKUP(A5,'MMPM1-AMM'!E:E,'MMPM1-AMM'!K:K)) -> CO-ETF1 | V5: =IFERROR(_xlfn.XLOOKUP(A5,'MMPM1-AMM'!E:E,'MMPM1-AMM'!T:T),_xlfn.XLOOKUP(A5,'MMPM1-PMM'!E:E,'MMPM1-PMM'!S:S)) -> 3 | W5: =IFERROR(_xlfn.XLOOKUP(A5,'MMPM1-AMM'!E:E,'MMPM1-AMM'!U:U),_xlfn.XLOOKUP(A5,'MMPM1-PMM'!E:E,'MMPM1-PMM'!T:T)) -> 6 | Y5: TRUE | AB5: =_xlfn.XLOOKUP(A5,productlist[PRODUCT_ID],productlist[PRODUCT_ISIN]) -> JE00B78CGV99 | AC5: =_xlfn.XLOOKUP(A5,productlist[PRODUCT_ID],productlist[UNDERLYING_ISIN]) -> JE00B78CGV99
A6: COPA | B6: =_xlfn.XLOOKUP(A6,'Product List'!$A:$A,'Product List'!$D:$D) -> WisdomTree Copper Options | C6: =_xlfn.XLOOKUP(A6,'Product List'!$A:$A,'Product List'!$F:$F) -> OPTIONS ON EXCHANGE-TRADED COMMODITIES SECURITIES | D6: =_xlfn.XLOOKUP(A6,'MMPM1-AMM'!E:E,'MMPM1-AMM'!K:K,_xlfn.XLOOKUP(A6,'MMPM1-PMM'!E:E,'MMPM1-PMM'!J:J)) -> CO-ETF1 | E6: =_xlfn.XLOOKUP(A6,'MMPM1-AMM'!E:E,'MMPM1-AMM'!Q:Q,_xlfn.XLOOKUP(A6,'MMPM1-PMM'!E:E,'MMPM1-PMM'!P:P)) -> 6 | F6: =SUMIFS(MMPM2!H:H,MMPM2!C:C,U6,MMPM2!E:E,1,MMPM2!G:G,1) -> 2 | G6: =SUMIFS(MMPM2!H:H,MMPM2!C:C,U6,MMPM2!E:E,1,MMPM2!G:G,2) -> 20 | L6: =SUMIFS(MMPM2!I:I,MMPM2!C:C,U6,MMPM2!E:E,1,MMPM2!G:G,1) -> 0.2 | M6: =SUMIFS(MMPM2!I:I,MMPM2!C:C,U6,MMPM2!E:E,1,MMPM2!G:G,2) -> 0.1 | N6: =SUMIFS(MMPM2!I:I,MMPM2!C:C,U6,MMPM2!E:E,1,MMPM2!G:G,3) -> 2 | R6: Not applicable | S6: No doubling of mistrade range | U6: =IFERROR(_xlfn.XLOOKUP(A6,'MMPM1-PMM'!E:E,'MMPM1-PMM'!J:J),_xlfn.XLOOKUP(A6,'MMPM1-AMM'!E:E,'MMPM1-AMM'!K:K)) -> CO-ETF1 | V6: =IFERROR(_xlfn.XLOOKUP(A6,'MMPM1-AMM'!E:E,'MMPM1-AMM'!T:T),_xlfn.XLOOKUP(A6,'MMPM1-PMM'!E:E,'MMPM1-PMM'!S:S)) -> 3 | W6: =IFERROR(_xlfn.XLOOKUP(A6,'MMPM1-AMM'!E:E,'MMPM1-AMM'!U:U),_xlfn.XLOOKUP(A6,'MMPM1-PMM'!E:E,'MMPM1-PMM'!T:T)) -> 6 | Y6: TRUE | AB6: =_xlfn.XLOOKUP(A6,productlist[PRODUCT_ID],productlist[PRODUCT_ISIN]) -> GB00B15KXQ89 | AC6: =_xlfn.XLOOKUP(A6,productlist[PRODUCT_ID],productlist[UNDERLYING_ISIN]) -> GB00B15KXQ89
A7: NICK | B7: =_xlfn.XLOOKUP(A7,'Product List'!$A:$A,'Product List'!$D:$D) -> WisdomTree Nickel Options | C7: =_xlfn.XLOOKUP(A7,'Product List'!$A:$A,'Product List'!$F:$F) -> OPTIONS ON EXCHANGE-TRADED COMMODITIES SECURITIES | D7: =_xlfn.XLOOKUP(A7,'MMPM1-AMM'!E:E,'MMPM1-AMM'!K:K,_xlfn.XLOOKUP(A7,'MMPM1-PMM'!E:E,'MMPM1-PMM'!J:J)) -> CO-ETF1 | E7: =_xlfn.XLOOKUP(A7,'MMPM1-AMM'!E:E,'MMPM1-AMM'!Q:Q,_xlfn.XLOOKUP(A7,'MMPM1-PMM'!E:E,'MMPM1-PMM'!P:P)) -> 6 | F7: =SUMIFS(MMPM2!H:H,MMPM2!C:C,U7,MMPM2!E:E,1,MMPM2!G:G,1) -> 2 | G7: =SUMIFS(MMPM2!H:H,MMPM2!C:C,U7,MMPM2!E:E,1,MMPM2!G:G,2) -> 20 | L7: =SUMIFS(MMPM2!I:I,MMPM2!C:C,U7,MMPM2!E:E,1,MMPM2!G:G,1) -> 0.2 | M7: =SUMIFS(MMPM2!I:I,MMPM2!C:C,U7,MMPM2!E:E,1,MMPM2!G:G,2) -> 0.1 | N7: =SUMIFS(MMPM2!I:I,MMPM2!C:C,U7,MMPM2!E:E,1,MMPM2!G:G,3) -> 2 | R7: Not applicable | S7: No doubling of mistrade range | U7: =IFERROR(_xlfn.XLOOKUP(A7,'MMPM1-PMM'!E:E,'MMPM1-PMM'!J:J),_xlfn.XLOOKUP(A7,'MMPM1-AMM'!E:E,'MMPM1-AMM'!K:K)) -> CO-ETF1 | V7: =IFERROR(_xlfn.XLOOKUP(A7,'MMPM1-AMM'!E:E,'MMPM1-AMM'!T:T),_xlfn.XLOOKUP(A7,'MMPM1-PMM'!E:E,'MMPM1-PMM'!S:S)) -> 3 | W7: =IFERROR(_xlfn.XLOOKUP(A7,'MMPM1-AMM'!E:E,'MMPM1-AMM'!U:U),_xlfn.XLOOKUP(A7,'MMPM1-PMM'!E:E,'MMPM1-PMM'!T:T)) -> 6 | Y7: TRUE | AB7: =_xlfn.XLOOKUP(A7,productlist[PRODUCT_ID],productlist[PRODUCT_ISIN]) -> GB00B15KY211 | AC7: =_xlfn.XLOOKUP(A7,productlist[PRODUCT_ID],productlist[UNDERLYING_ISIN]) -> GB00B15KY211
A8: CNDX | B8: =_xlfn.XLOOKUP(A8,'Product List'!$A:$A,'Product List'!$D:$D) -> iShares NASDAQ 100 UCITS Options | C8: =_xlfn.XLOOKUP(A8,'Product List'!$A:$A,'Product List'!$F:$F) -> EXTF-OPTIONS | D8: =_xlfn.XLOOKUP(A8,'MMPM1-AMM'!E:E,'MMPM1-AMM'!K:K,_xlfn.XLOOKUP(A8,'MMPM1-PMM'!E:E,'MMPM1-PMM'!J:J)) -> ETF3 | E8: =_xlfn.XLOOKUP(A8,'MMPM1-AMM'!E:E,'MMPM1-AMM'!Q:Q,_xlfn.XLOOKUP(A8,'MMPM1-PMM'!E:E,'MMPM1-PMM'!P:P)) -> 6 | F8: =SUMIFS(MMPM2!H:H,MMPM2!C:C,U8,MMPM2!E:E,1,MMPM2!G:G,1) -> 10 | G8: =SUMIFS(MMPM2!H:H,MMPM2!C:C,U8,MMPM2!E:E,1,MMPM2!G:G,2) -> 50 | L8: =SUMIFS(MMPM2!I:I,MMPM2!C:C,U8,MMPM2!E:E,1,MMPM2!G:G,1) -> 1.5 | M8: =SUMIFS(MMPM2!I:I,MMPM2!C:C,U8,MMPM2!E:E,1,MMPM2!G:G,2) -> 0.15 | N8: =SUMIFS(MMPM2!I:I,MMPM2!C:C,U8,MMPM2!E:E,1,MMPM2!G:G,3) -> 7.5 | R8: Not applicable | S8: No doubling of mistrade range | U8: =IFERROR(_xlfn.XLOOKUP(A8,'MMPM1-PMM'!E:E,'MMPM1-PMM'!J:J),_xlfn.XLOOKUP(A8,'MMPM1-AMM'!E:E,'MMPM1-AMM'!K:K)) -> ETF3 | V8: =IFERROR(_xlfn.XLOOKUP(A8,'MMPM1-AMM'!E:E,'MMPM1-AMM'!T:T),_xlfn.XLOOKUP(A8,'MMPM1-PMM'!E:E,'MMPM1-PMM'!S:S)) -> 3 | W8: =IFERROR(_xlfn.XLOOKUP(A8,'MMPM1-AMM'!E:E,'MMPM1-AMM'!U:U),_xlfn.XLOOKUP(A8,'MMPM1-PMM'!E:E,'MMPM1-PMM'!T:T)) -> 6 | Y8: TRUE | AB8: =_xlfn.XLOOKUP(A8,productlist[PRODUCT_ID],productlist[PRODUCT_ISIN]) -> IE00B53SZB19 | AC8: =_xlfn.XLOOKUP(A8,productlist[PRODUCT_ID],productlist[UNDERLYING_ISIN]) -> IE00B53SZB19
A9: ICOM | B9: =_xlfn.XLOOKUP(A9,'Product List'!$A:$A,'Product List'!$D:$D) -> iShares Diversified Commodity Swap UCITS Options | C9: =_xlfn.XLOOKUP(A9,'Product List'!$A:$A,'Product List'!$F:$F) -> EXTF-OPTIONS | D9: =_xlfn.XLOOKUP(A9,'MMPM1-AMM'!E:E,'MMPM1-AMM'!K:K,_xlfn.XLOOKUP(A9,'MMPM1-PMM'!E:E,'MMPM1-PMM'!J:J)) -> CO-ETF1 | E9: =_xlfn.XLOOKUP(A9,'MMPM1-AMM'!E:E,'MMPM1-AMM'!Q:Q,_xlfn.XLOOKUP(A9,'MMPM1-PMM'!E:E,'MMPM1-PMM'!P:P)) -> 6 | F9: =SUMIFS(MMPM2!H:H,MMPM2!C:C,U9,MMPM2!E:E,1,MMPM2!G:G,1) -> 2 | G9: =SUMIFS(MMPM2!H:H,MMPM2!C:C,U9,MMPM2!E:E,1,MMPM2!G:G,2) -> 20 | L9: =SUMIFS(MMPM2!I:I,MMPM2!C:C,U9,MMPM2!E:E,1,MMPM2!G:G,1) -> 0.2 | M9: =SUMIFS(MMPM2!I:I,MMPM2!C:C,U9,MMPM2!E:E,1,MMPM2!G:G,2) -> 0.1 | N9: =SUMIFS(MMPM2!I:I,MMPM2!C:C,U9,MMPM2!E:E,1,MMPM2!G:G,3) -> 2 | R9: Not applicable | S9: No doubling of mistrade range | U9: =IFERROR(_xlfn.XLOOKUP(A9,'MMPM1-PMM'!E:E,'MMPM1-PMM'!J:J),_xlfn.XLOOKUP(A9,'MMPM1-AMM'!E:E,'MMPM1-AMM'!K:K)) -> CO-ETF1 | V9: =IFERROR(_xlfn.XLOOKUP(A9,'MMPM1-AMM'!E:E,'MMPM1-AMM'!T:T),_xlfn.XLOOKUP(A9,'MMPM1-PMM'!E:E,'MMPM1-PMM'!S:S)) -> 3 | W9: =IFERROR(_xlfn.XLOOKUP(A9,'MMPM1-AMM'!E:E,'MMPM1-AMM'!U:U),_xlfn.XLOOKUP(A9,'MMPM1-PMM'!E:E,'MMPM1-PMM'!T:T)) -> 6 | Y9: TRUE | AB9: =_xlfn.XLOOKUP(A9,productlist[PRODUCT_ID],productlist[PRODUCT_ISIN]) -> IE00BDFL4P12 | AC9: =_xlfn.XLOOKUP(A9,productlist[PRODUCT_ID],productlist[UNDERLYING_ISIN]) -> IE00BDFL4P12
A10: 4BRZ | B10: =_xlfn.XLOOKUP(A10,'Product List'!$A:$A,'Product List'!$D:$D) -> iShares MSCI Brazil (DE) Options | C10: =_xlfn.XLOOKUP(A10,'Product List'!$A:$A,'Product List'!$F:$F) -> EXTF-OPTIONS | D10: =_xlfn.XLOOKUP(A10,'MMPM1-AMM'!E:E,'MMPM1-AMM'!K:K,_xlfn.XLOOKUP(A10,'MMPM1-PMM'!E:E,'MMPM1-PMM'!J:J)) -> ETF5 | E10: =_xlfn.XLOOKUP(A10,'MMPM1-AMM'!E:E,'MMPM1-AMM'!Q:Q,_xlfn.XLOOKUP(A10,'MMPM1-PMM'!E:E,'MMPM1-PMM'!P:P)) -> 6 | F10: =SUMIFS(MMPM2!H:H,MMPM2!C:C,U10,MMPM2!E:E,1,MMPM2!G:G,1) -> 1 | G10: =SUMIFS(MMPM2!H:H,MMPM2!C:C,U10,MMPM2!E:E,1,MMPM2!G:G,2) -> 5 | L10: =SUMIFS(MMPM2!I:I,MMPM2!C:C,U10,MMPM2!E:E,1,MMPM2!G:G,1) -> 0.25 | M10: =SUMIFS(MMPM2!I:I,MMPM2!C:C,U10,MMPM2!E:E,1,MMPM2!G:G,2) -> 0.25 | N10: =SUMIFS(MMPM2!I:I,MMPM2!C:C,U10,MMPM2!E:E,1,MMPM2!G:G,3) -> 1.25 | R10: Not applicable | S10: No doubling of mistrade range | U10: =IFERROR(_xlfn.XLOOKUP(A10,'MMPM1-PMM'!E:E,'MMPM1-PMM'!J:J),_xlfn.XLOOKUP(A10,'MMPM1-AMM'!E:E,'MMPM1-AMM'!K:K)) -> ETF5 | V10: =IFERROR(_xlfn.XLOOKUP(A10,'MMPM1-AMM'!E:E,'MMPM1-AMM'!T:T),_xlfn.XLOOKUP(A10,'MMPM1-PMM'!E:E,'MMPM1-PMM'!S:S)) -> 3 | W10: =IFERROR(_xlfn.XLOOKUP(A10,'MMPM1-AMM'!E:E,'MMPM1-AMM'!U:U),_xlfn.XLOOKUP(A10,'MMPM1-PMM'!E:E,'MMPM1-PMM'!T:T)) -> 6 | Y10: TRUE | AB10: =_xlfn.XLOOKUP(A10,productlist[PRODUCT_ID],productlist[PRODUCT_ISIN]) -> DE000A0Q4R85 | AC10: =_xlfn.XLOOKUP(A10,productlist[PRODUCT_ID],productlist[UNDERLYING_ISIN]) -> DE000A0Q4R85
A11: CSPX | B11: =_xlfn.XLOOKUP(A11,'Product List'!$A:$A,'Product List'!$D:$D) -> iShares Core S&P 500 UCITS Options | C11: =_xlfn.XLOOKUP(A11,'Product List'!$A:$A,'Product List'!$F:$F) -> EXTF-OPTIONS | D11: =_xlfn.XLOOKUP(A11,'MMPM1-AMM'!E:E,'MMPM1-AMM'!K:K,_xlfn.XLOOKUP(A11,'MMPM1-PMM'!E:E,'MMPM1-PMM'!J:J)) -> ETF3 | E11: =_xlfn.XLOOKUP(A11,'MMPM1-AMM'!E:E,'MMPM1-AMM'!Q:Q,_xlfn.XLOOKUP(A11,'MMPM1-PMM'!E:E,'MMPM1-PMM'!P:P)) -> 6 | F11: =SUMIFS(MMPM2!H:H,MMPM2!C:C,U11,MMPM2!E:E,1,MMPM2!G:G,1) -> 10 | G11: =SUMIFS(MMPM2!H:H,MMPM2!C:C,U11,MMPM2!E:E,1,MMPM2!G:G,2) -> 50 | L11: =SUMIFS(MMPM2!I:I,MMPM2!C:C,U11,MMPM2!E:E,1,MMPM2!G:G,1) -> 1.5 | M11: =SUMIFS(MMPM2!I:I,MMPM2!C:C,U11,MMPM2!E:E,1,MMPM2!G:G,2) -> 0.15 | N11: =SUMIFS(MMPM2!I:I,MMPM2!C:C,U11,MMPM2!E:E,1,MMPM2!G:G,3) -> 7.5 | R11: Not applicable | S11: No doubling of mistrade range | U11: =IFERROR(_xlfn.XLOOKUP(A11,'MMPM1-PMM'!E:E,'MMPM1-PMM'!J:J),_xlfn.XLOOKUP(A11,'MMPM1-AMM'!E:E,'MMPM1-AMM'!K:K)) -> ETF3 | V11: =IFERROR(_xlfn.XLOOKUP(A11,'MMPM1-AMM'!E:E,'MMPM1-AMM'!T:T),_xlfn.XLOOKUP(A11,'MMPM1-PMM'!E:E,'MMPM1-PMM'!S:S)) -> 3 | W11: =IFERROR(_xlfn.XLOOKUP(A11,'MMPM1-AMM'!E:E,'MMPM1-AMM'!U:U),_xlfn.XLOOKUP(A11,'MMPM1-PMM'!E:E,'MMPM1-PMM'!T:T)) -> 6 | Y11: TRUE | AB11: =_xlfn.XLOOKUP(A11,productlist[PRODUCT_ID],productlist[PRODUCT_ISIN]) -> IE00B5BMR087 | AC11: =_xlfn.XLOOKUP(A11,productlist[PRODUCT_ID],productlist[UNDERLYING_ISIN]) -> IE00B5BMR087
A12: DBX1 | B12: =_xlfn.XLOOKUP(A12,'Product List'!$A:$A,'Product List'!$D:$D) -> Xtrackers MSCI Emerging Markets UCITS Options | C12: =_xlfn.XLOOKUP(A12,'Product List'!$A:$A,'Product List'!$F:$F) -> EXTF-OPTIONS | D12: =_xlfn.XLOOKUP(A12,'MMPM1-AMM'!E:E,'MMPM1-AMM'!K:K,_xlfn.XLOOKUP(A12,'MMPM1-PMM'!E:E,'MMPM1-PMM'!J:J)) -> ETF1 | E12: =_xlfn.XLOOKUP(A12,'MMPM1-AMM'!E:E,'MMPM1-AMM'!Q:Q,_xlfn.XLOOKUP(A12,'MMPM1-PMM'!E:E,'MMPM1-PMM'!P:P)) -> 6 | F12: =SUMIFS(MMPM2!H:H,MMPM2!C:C,U12,MMPM2!E:E,1,MMPM2!G:G,1) -> 1 | G12: =SUMIFS(MMPM2!H:H,MMPM2!C:C,U12,MMPM2!E:E,1,MMPM2!G:G,2) -> 5 | L12: =SUMIFS(MMPM2!I:I,MMPM2!C:C,U12,MMPM2!E:E,1,MMPM2!G:G,1) -> 0.15 | M12: =SUMIFS(MMPM2!I:I,MMPM2!C:C,U12,MMPM2!E:E,1,MMPM2!G:G,2) -> 0.15 | N12: =SUMIFS(MMPM2!I:I,MMPM2!C:C,U12,MMPM2!E:E,1,MMPM2!G:G,3) -> 0.75 | R12: Not applicable | S12: No doubling of mistrade range | U12: =IFERROR(_xlfn.XLOOKUP(A12,'MMPM1-PMM'!E:E,'MMPM1-PMM'!J:J),_xlfn.XLOOKUP(A12,'MMPM1-AMM'!E:E,'MMPM1-AMM'!K:K)) -> ETF1 | V12: =IFERROR(_xlfn.XLOOKUP(A12,'MMPM1-AMM'!E:E,'MMPM1-AMM'!T:T),_xlfn.XLOOKUP(A12,'MMPM1-PMM'!E:E,'MMPM1-PMM'!S:S)) -> 3 | W12: =IFERROR(_xlfn.XLOOKUP(A12,'MMPM1-AMM'!E:E,'MMPM1-AMM'!U:U),_xlfn.XLOOKUP(A12,'MMPM1-PMM'!E:E,'MMPM1-PMM'!T:T)) -> 6 | Y12: TRUE | AB12: =_xlfn.XLOOKUP(A12,productlist[PRODUCT_ID],productlist[PRODUCT_ISIN]) -> LU0292107645 | AC12: =_xlfn.XLOOKUP(A12,productlist[PRODUCT_ID],productlist[UNDERLYING_ISIN]) -> LU0292107645
A13: DBXA | B13: =_xlfn.XLOOKUP(A13,'Product List'!$A:$A,'Product List'!$D:$D) -> Xtrackers MSCI Europe UCITS Options | C13: =_xlfn.XLOOKUP(A13,'Product List'!$A:$A,'Product List'!$F:$F) -> EXTF-OPTIONS | D13: =_xlfn.XLOOKUP(A13,'MMPM1-AMM'!E:E,'MMPM1-AMM'!K:K,_xlfn.XLOOKUP(A13,'MMPM1-PMM'!E:E,'MMPM1-PMM'!J:J)) -> ETF1 | E13: =_xlfn.XLOOKUP(A13,'MMPM1-AMM'!E:E,'MMPM1-AMM'!Q:Q,_xlfn.XLOOKUP(A13,'MMPM1-PMM'!E:E,'MMPM1-PMM'!P:P)) -> 6 | F13: =SUMIFS(MMPM2!H:H,MMPM2!C:C,U13,MMPM2!E:E,1,MMPM2!G:G,1) -> 1 | G13: =SUMIFS(MMPM2!H:H,MMPM2!C:C,U13,MMPM2!E:E,1,MMPM2!G:G,2) -> 5 | L13: =SUMIFS(MMPM2!I:I,MMPM2!C:C,U13,MMPM2!E:E,1,MMPM2!G:G,1) -> 0.15 | M13: =SUMIFS(MMPM2!I:I,MMPM2!C:C,U13,MMPM2!E:E,1,MMPM2!G:G,2) -> 0.15 | N13: =SUMIFS(MMPM2!I:I,MMPM2!C:C,U13,MMPM2!E:E,1,MMPM2!G:G,3) -> 0.75 | R13: Not applicable | S13: No doubling of mistrade range | U13: =IFERROR(_xlfn.XLOOKUP(A13,'MMPM1-PMM'!E:E,'MMPM1-PMM'!J:J),_xlfn.XLOOKUP(A13,'MMPM1-AMM'!E:E,'MMPM1-AMM'!K:K)) -> ETF1 | V13: =IFERROR(_xlfn.XLOOKUP(A13,'MMPM1-AMM'!E:E,'MMPM1-AMM'!T:T),_xlfn.XLOOKUP(A13,'MMPM1-PMM'!E:E,'MMPM1-PMM'!S:S)) -> 3 | W13: =IFERROR(_xlfn.XLOOKUP(A13,'MMPM1-AMM'!E:E,'MMPM1-AMM'!U:U),_xlfn.XLOOKUP(A13,'MMPM1-PMM'!E:E,'MMPM1-PMM'!T:T)) -> 6 | Y13: TRUE | AB13: =_xlfn.XLOOKUP(A13,productlist[PRODUCT_ID],productlist[PRODUCT_ISIN]) -> LU0274209237 | AC13: =_xlfn.XLOOKUP(A13,productlist[PRODUCT_ID],productlist[UNDERLYING_ISIN]) -> LU0274209237
A14: DBXW | B14: =_xlfn.XLOOKUP(A14,'Product List'!$A:$A,'Product List'!$D:$D) -> Xtrackers MSCI World Swap UCITS Options | C14: =_xlfn.XLOOKUP(A14,'Product List'!$A:$A,'Product List'!$F:$F) -> EXTF-OPTIONS | D14: =_xlfn.XLOOKUP(A14,'MMPM1-AMM'!E:E,'MMPM1-AMM'!K:K,_xlfn.XLOOKUP(A14,'MMPM1-PMM'!E:E,'MMPM1-PMM'!J:J)) -> ETF1 | E14: =_xlfn.XLOOKUP(A14,'MMPM1-AMM'!E:E,'MMPM1-AMM'!Q:Q,_xlfn.XLOOKUP(A14,'MMPM1-PMM'!E:E,'MMPM1-PMM'!P:P)) -> 6 | F14: =SUMIFS(MMPM2!H:H,MMPM2!C:C,U14,MMPM2!E:E,1,MMPM2!G:G,1) -> 1 | G14: =SUMIFS(MMPM2!H:H,MMPM2!C:C,U14,MMPM2!E:E,1,MMPM2!G:G,2) -> 5 | L14: =SUMIFS(MMPM2!I:I,MMPM2!C:C,U14,MMPM2!E:E,1,MMPM2!G:G,1) -> 0.15 | M14: =SUMIFS(MMPM2!I:I,MMPM2!C:C,U14,MMPM2!E:E,1,MMPM2!G:G,2) -> 0.15 | N14: =SUMIFS(MMPM2!I:I,MMPM2!C:C,U14,MMPM2!E:E,1,MMPM2!G:G,3) -> 0.75 | R14: Not applicable | S14: No doubling of mistrade range | U14: =IFERROR(_xlfn.XLOOKUP(A14,'MMPM1-PMM'!E:E,'MMPM1-PMM'!J:J),_xlfn.XLOOKUP(A14,'MMPM1-AMM'!E:E,'MMPM1-AMM'!K:K)) -> ETF1 | V14: =IFERROR(_xlfn.XLOOKUP(A14,'MMPM1-AMM'!E:E,'MMPM1-AMM'!T:T),_xlfn.XLOOKUP(A14,'MMPM1-PMM'!E:E,'MMPM1-PMM'!S:S)) -> 3 | W14: =IFERROR(_xlfn.XLOOKUP(A14,'MMPM1-AMM'!E:E,'MMPM1-AMM'!U:U),_xlfn.XLOOKUP(A14,'MMPM1-PMM'!E:E,'MMPM1-PMM'!T:T)) -> 6 | Y14: TRUE | AB14: =_xlfn.XLOOKUP(A14,productlist[PRODUCT_ID],productlist[PRODUCT_ISIN]) -> LU0274208692 | AC14: =_xlfn.XLOOKUP(A14,productlist[PRODUCT_ID],productlist[UNDERLYING_ISIN]) -> LU0274208692
A15: EEMB | B15: =_xlfn.XLOOKUP(A15,'Product List'!$A:$A,'Product List'!$D:$D) -> iShares J.P. Morgan USD Emerging Market Bond UCITS Options [european] | C15: =_xlfn.XLOOKUP(A15,'Product List'!$A:$A,'Product List'!$F:$F) -> EXTF-OPTIONS | D15: =_xlfn.XLOOKUP(A15,'MMPM1-AMM'!E:E,'MMPM1-AMM'!K:K,_xlfn.XLOOKUP(A15,'MMPM1-PMM'!E:E,'MMPM1-PMM'!J:J)) -> FI-ETF | E15: =_xlfn.XLOOKUP(A15,'MMPM1-AMM'!E:E,'MMPM1-AMM'!Q:Q,_xlfn.XLOOKUP(A15,'MMPM1-PMM'!E:E,'MMPM1-PMM'!P:P)) -> 3 | F15: =SUMIFS(MMPM2!H:H,MMPM2!C:C,U15,MMPM2!E:E,1,MMPM2!G:G,1) -> 1.5 | G15: =SUMIFS(MMPM2!H:H,MMPM2!C:C,U15,MMPM2!E:E,1,MMPM2!G:G,2) -> 15 | L15: =SUMIFS(MMPM2!I:I,MMPM2!C:C,U15,MMPM2!E:E,1,MMPM2!G:G,1) -> 0.35 | M15: =SUMIFS(MMPM2!I:I,MMPM2!C:C,U15,MMPM2!E:E,1,MMPM2!G:G,2) -> 0.2 | N15: =SUMIFS(MMPM2!I:I,MMPM2!C:C,U15,MMPM2!E:E,1,MMPM2!G:G,3) -> 3 | R15: Not applicable | S15: No doubling of mistrade range | U15: =IFERROR(_xlfn.XLOOKUP(A15,'MMPM1-PMM'!E:E,'MMPM1-PMM'!J:J),_xlfn.XLOOKUP(A15,'MMPM1-AMM'!E:E,'MMPM1-AMM'!K:K)) -> FI-ETF | V15: =IFERROR(_xlfn.XLOOKUP(A15,'MMPM1-AMM'!E:E,'MMPM1-AMM'!T:T),_xlfn.XLOOKUP(A15,'MMPM1-PMM'!E:E,'MMPM1-PMM'!S:S)) -> 3 | W15: =IFERROR(_xlfn.XLOOKUP(A15,'MMPM1-AMM'!E:E,'MMPM1-AMM'!U:U),_xlfn.XLOOKUP(A15,'MMPM1-PMM'!E:E,'MMPM1-PMM'!T:T)) -> 3 | Y15: TRUE | AB15: =_xlfn.XLOOKUP(A15,productlist[PRODUCT_ID],productlist[PRODUCT_ISIN]) -> DE000A2BNDB7 | AC15: =_xlfn.XLOOKUP(A15,productlist[PRODUCT_ID],productlist[UNDERLYING_ISIN]) -> IE00B2NPKV68
A16: EHYU | B16: =_xlfn.XLOOKUP(A16,'Product List'!$A:$A,'Product List'!$D:$D) -> iShares USD High Yield Corporate Bond UCITS Options [european] | C16: =_xlfn.XLOOKUP(A16,'Product List'!$A:$A,'Product List'!$F:$F) -> EXTF-OPTIONS | D16: =_xlfn.XLOOKUP(A16,'MMPM1-AMM'!E:E,'MMPM1-AMM'!K:K,_xlfn.XLOOKUP(A16,'MMPM1-PMM'!E:E,'MMPM1-PMM'!J:J)) -> FI-ETF | E16: =_xlfn.XLOOKUP(A16,'MMPM1-AMM'!E:E,'MMPM1-AMM'!Q:Q,_xlfn.XLOOKUP(A16,'MMPM1-PMM'!E:E,'MMPM1-PMM'!P:P)) -> 3 | F16: =SUMIFS(MMPM2!H:H,MMPM2!C:C,U16,MMPM2!E:E,1,MMPM2!G:G,1) -> 1.5 | G16: =SUMIFS(MMPM2!H:H,MMPM2!C:C,U16,MMPM2!E:E,1,MMPM2!G:G,2) -> 15 | L16: =SUMIFS(MMPM2!I:I,MMPM2!C:C,U16,MMPM2!E:E,1,MMPM2!G:G,1) -> 0.35 | M16: =SUMIFS(MMPM2!I:I,MMPM2!C:C,U16,MMPM2!E:E,1,MMPM2!G:G,2) -> 0.2 | N16: =SUMIFS(MMPM2!I:I,MMPM2!C:C,U16,MMPM2!E:E,1,MMPM2!G:G,3) -> 3 | R16: Not applicable | S16: No doubling of mistrade range | U16: =IFERROR(_xlfn.XLOOKUP(A16,'MMPM1-PMM'!E:E,'MMPM1-PMM'!J:J),_xlfn.XLOOKUP(A16,'MMPM1-AMM'!E:E,'MMPM1-AMM'!K:K)) -> FI-ETF | V16: =IFERROR(_xlfn.XLOOKUP(A16,'MMPM1-AMM'!E:E,'MMPM1-AMM'!T:T),_xlfn.XLOOKUP(A16,'MMPM1-PMM'!E:E,'MMPM1-PMM'!S:S)) -> 3 | W16: =IFERROR(_xlfn.XLOOKUP(A16,'MMPM1-AMM'!E:E,'MMPM1-AMM'!U:U),_xlfn.XLOOKUP(A16,'MMPM1-PMM'!E:E,'MMPM1-PMM'!T:T)) -> 3 | Y16: TRUE | AB16: =_xlfn.XLOOKUP(A16,productlist[PRODUCT_ID],productlist[PRODUCT_ISIN]) -> DE000A26R3M9 | AC16: =_xlfn.XLOOKUP(A16,productlist[PRODUCT_ID],productlist[UNDERLYING_ISIN]) -> IE00B4PY7Y77
A17: ELQD | B17: =_xlfn.XLOOKUP(A17,'Product List'!$A:$A,'Product List'!$D:$D) -> iShares USD Corporate Bond UCITS Options [european] | C17: =_xlfn.XLOOKUP(A17,'Product List'!$A:$A,'Product List'!$F:$F) -> EXTF-OPTIONS | D17: =_xlfn.XLOOKUP(A17,'MMPM1-AMM'!E:E,'MMPM1-AMM'!K:K,_xlfn.XLOOKUP(A17,'MMPM1-PMM'!E:E,'MMPM1-PMM'!J:J)) -> FI-ETF | E17: =_xlfn.XLOOKUP(A17,'MMPM1-AMM'!E:E,'MMPM1-AMM'!Q:Q,_xlfn.XLOOKUP(A17,'MMPM1-PMM'!E:E,'MMPM1-PMM'!P:P)) -> 3 | F17: =SUMIFS(MMPM2!H:H,MMPM2!C:C,U17,MMPM2!E:E,1,MMPM2!G:G,1) -> 1.5 | G17: =SUMIFS(MMPM2!H:H,MMPM2!C:C,U17,MMPM2!E:E,1,MMPM2!G:G,2) -> 15 | L17: =SUMIFS(MMPM2!I:I,MMPM2!C:C,U17,MMPM2!E:E,1,MMPM2!G:G,1) -> 0.35 | M17: =SUMIFS(MMPM2!I:I,MMPM2!C:C,U17,MMPM2!E:E,1,MMPM2!G:G,2) -> 0.2 | N17: =SUMIFS(MMPM2!I:I,MMPM2!C:C,U17,MMPM2!E:E,1,MMPM2!G:G,3) -> 3 | R17: Not applicable | S17: No doubling of mistrade range | U17: =IFERROR(_xlfn.XLOOKUP(A17,'MMPM1-PMM'!E:E,'MMPM1-PMM'!J:J),_xlfn.XLOOKUP(A17,'MMPM1-AMM'!E:E,'MMPM1-AMM'!K:K)) -> FI-ETF | V17: =IFERROR(_xlfn.XLOOKUP(A17,'MMPM1-AMM'!E:E,'MMPM1-AMM'!T:T),_xlfn.XLOOKUP(A17,'MMPM1-PMM'!E:E,'MMPM1-PMM'!S:S)) -> 3 | W17: =IFERROR(_xlfn.XLOOKUP(A17,'MMPM1-AMM'!E:E,'MMPM1-AMM'!U:U),_xlfn.XLOOKUP(A17,'MMPM1-PMM'!E:E,'MMPM1-PMM'!T:T)) -> 3 | Y17: TRUE | AB17: =_xlfn.XLOOKUP(A17,productlist[PRODUCT_ID],productlist[PRODUCT_ISIN]) -> DE000A26R3N7 | AC17: =_xlfn.XLOOKUP(A17,productlist[PRODUCT_ID],productlist[UNDERLYING_ISIN]) -> IE0032895942
A18: EUN2 | B18: =_xlfn.XLOOKUP(A18,'Product List'!$A:$A,'Product List'!$D:$D) -> iShares Core EURO STOXX 50® UCITS Options | C18: =_xlfn.XLOOKUP(A18,'Product List'!$A:$A,'Product List'!$F:$F) -> EXTF-OPTIONS | D18: =_xlfn.XLOOKUP(A18,'MMPM1-AMM'!E:E,'MMPM1-AMM'!K:K,_xlfn.XLOOKUP(A18,'MMPM1-PMM'!E:E,'MMPM1-PMM'!J:J)) -> ETF1 | E18: =_xlfn.XLOOKUP(A18,'MMPM1-AMM'!E:E,'MMPM1-AMM'!Q:Q,_xlfn.XLOOKUP(A18,'MMPM1-PMM'!E:E,'MMPM1-PMM'!P:P)) -> 6 | F18: =SUMIFS(MMPM2!H:H,MMPM2!C:C,U18,MMPM2!E:E,1,MMPM2!G:G,1) -> 1 | G18: =SUMIFS(MMPM2!H:H,MMPM2!C:C,U18,MMPM2!E:E,1,MMPM2!G:G,2) -> 5 | L18: =SUMIFS(MMPM2!I:I,MMPM2!C:C,U18,MMPM2!E:E,1,MMPM2!G:G,1) -> 0.15 | M18: =SUMIFS(MMPM2!I:I,MMPM2!C:C,U18,MMPM2!E:E,1,MMPM2!G:G,2) -> 0.15 | N18: =SUMIFS(MMPM2!I:I,MMPM2!C:C,U18,MMPM2!E:E,1,MMPM2!G:G,3) -> 0.75 | R18: Not applicable | S18: No doubling of mistrade range | U18: =IFERROR(_xlfn.XLOOKUP(A18,'MMPM1-PMM'!E:E,'MMPM1-PMM'!J:J),_xlfn.XLOOKUP(A18,'MMPM1-AMM'!E:E,'MMPM1-AMM'!K:K)) -> ETF1 | V18: =IFERROR(_xlfn.XLOOKUP(A18,'MMPM1-AMM'!E:E,'MMPM1-AMM'!T:T),_xlfn.XLOOKUP(A18,'MMPM1-PMM'!E:E,'MMPM1-PMM'!S:S)) -> 3 | W18: =IFERROR(_xlfn.XLOOKUP(A18,'MMPM1-AMM'!E:E,'MMPM1-AMM'!U:U),_xlfn.XLOOKUP(A18,'MMPM1-PMM'!E:E,'MMPM1-PMM'!T:T)) -> 6 | Y18: TRUE | AB18: =_xlfn.XLOOKUP(A18,productlist[PRODUCT_ID],productlist[PRODUCT_ISIN]) -> IE0008471009 | AC18: =_xlfn.XLOOKUP(A18,productlist[PRODUCT_ID],productlist[UNDERLYING_ISIN]) -> IE0008471009
A19: EXS1 | B19: =_xlfn.XLOOKUP(A19,'Product List'!$A:$A,'Product List'!$D:$D) -> iShares Core DAX® UCITS (DE) Options | C19: =_xlfn.XLOOKUP(A19,'Product List'!$A:$A,'Product List'!$F:$F) -> EXTF-OPTIONS | D19: =_xlfn.XLOOKUP(A19,'MMPM1-AMM'!E:E,'MMPM1-AMM'!K:K,_xlfn.XLOOKUP(A19,'MMPM1-PMM'!E:E,'MMPM1-PMM'!J:J)) -> ETF2 | E19: =_xlfn.XLOOKUP(A19,'MMPM1-AMM'!E:E,'MMPM1-AMM'!Q:Q,_xlfn.XLOOKUP(A19,'MMPM1-PMM'!E:E,'MMPM1-PMM'!P:P)) -> 6 | F19: =SUMIFS(MMPM2!H:H,MMPM2!C:C,U19,MMPM2!E:E,1,MMPM2!G:G,1) -> 1.5 | G19: =SUMIFS(MMPM2!H:H,MMPM2!C:C,U19,MMPM2!E:E,1,MMPM2!G:G,2) -> 15 | L19: =SUMIFS(MMPM2!I:I,MMPM2!C:C,U19,MMPM2!E:E,1,MMPM2!G:G,1) -> 0.25 | M19: =SUMIFS(MMPM2!I:I,MMPM2!C:C,U19,MMPM2!E:E,1,MMPM2!G:G,2) -> 0.15 | N19: =SUMIFS(MMPM2!I:I,MMPM2!C:C,U19,MMPM2!E:E,1,MMPM2!G:G,3) -> 2.25 | R19: Not applicable | S19: No doubling of mistrade range | U19: =IFERROR(_xlfn.XLOOKUP(A19,'MMPM1-PMM'!E:E,'MMPM1-PMM'!J:J),_xlfn.XLOOKUP(A19,'MMPM1-AMM'!E:E,'MMPM1-AMM'!K:K)) -> ETF2 | V19: =IFERROR(_xlfn.XLOOKUP(A19,'MMPM1-AMM'!E:E,'MMPM1-AMM'!T:T),_xlfn.XLOOKUP(A19,'MMPM1-PMM'!E:E,'MMPM1-PMM'!S:S)) -> 3 | W19: =IFERROR(_xlfn.XLOOKUP(A19,'MMPM1-AMM'!E:E,'MMPM1-AMM'!U:U),_xlfn.XLOOKUP(A19,'MMPM1-PMM'!E:E,'MMPM1-PMM'!T:T)) -> 6 | Y19: TRUE | AB19: =_xlfn.XLOOKUP(A19,productlist[PRODUCT_ID],productlist[PRODUCT_ISIN]) -> DE0005933931 | AC19: =_xlfn.XLOOKUP(A19,productlist[PRODUCT_ID],productlist[UNDERLYING_ISIN]) -> DE0005933931
A20: EXSA | B20: =_xlfn.XLOOKUP(A20,'Product List'!$A:$A,'Product List'!$D:$D) -> iShares STOXX® Europe 600 UCITS (DE) Options | C20: =_xlfn.XLOOKUP(A20,'Product List'!$A:$A,'Product List'!$F:$F) -> EXTF-OPTIONS | D20: =_xlfn.XLOOKUP(A20,'MMPM1-AMM'!E:E,'MMPM1-AMM'!K:K,_xlfn.XLOOKUP(A20,'MMPM1-PMM'!E:E,'MMPM1-PMM'!J:J)) -> ETF1 | E20: =_xlfn.XLOOKUP(A20,'MMPM1-AMM'!E:E,'MMPM1-AMM'!Q:Q,_xlfn.XLOOKUP(A20,'MMPM1-PMM'!E:E,'MMPM1-PMM'!P:P)) -> 6 | F20: =SUMIFS(MMPM2!H:H,MMPM2!C:C,U20,MMPM2!E:E,1,MMPM2!G:G,1) -> 1 | G20: =SUMIFS(MMPM2!H:H,MMPM2!C:C,U20,MMPM2!E:E,1,MMPM2!G:G,2) -> 5 | L20: =SUMIFS(MMPM2!I:I,MMPM2!C:C,U20,MMPM2!E:E,1,MMPM2!G:G,1) -> 0.15 | M20: =SUMIFS(MMPM2!I:I,MMPM2!C:C,U20,MMPM2!E:E,1,MMPM2!G:G,2) -> 0.15 | N20: =SUMIFS(MMPM2!I:I,MMPM2!C:C,U20,MMPM2!E:E,1,MMPM2!G:G,3) -> 0.75 | R20: Not applicable | S20: No doubling of mistrade range | U20: =IFERROR(_xlfn.XLOOKUP(A20,'MMPM1-PMM'!E:E,'MMPM1-PMM'!J:J),_xlfn.XLOOKUP(A20,'MMPM1-AMM'!E:E,'MMPM1-AMM'!K:K)) -> ETF1 | V20: =IFERROR(_xlfn.XLOOKUP(A20,'MMPM1-AMM'!E:E,'MMPM1-AMM'!T:T),_xlfn.XLOOKUP(A20,'MMPM1-PMM'!E:E,'MMPM1-PMM'!S:S)) -> 3 | W20: =IFERROR(_xlfn.XLOOKUP(A20,'MMPM1-AMM'!E:E,'MMPM1-AMM'!U:U),_xlfn.XLOOKUP(A20,'MMPM1-PMM'!E:E,'MMPM1-PMM'!T:T)) -> 6 | Y20: TRUE | AB20: =_xlfn.XLOOKUP(A20,productlist[PRODUCT_ID],productlist[PRODUCT_ISIN]) -> DE0002635307 | AC20: =_xlfn.XLOOKUP(A20,productlist[PRODUCT_ID],productlist[UNDERLYING_ISIN]) -> DE0002635307
A21: EXX1 | B21: =_xlfn.XLOOKUP(A21,'Product List'!$A:$A,'Product List'!$D:$D) -> iShares EURO STOXX® Banks 30-15 UCITS (DE) Options | C21: =_xlfn.XLOOKUP(A21,'Product List'!$A:$A,'Product List'!$F:$F) -> EXTF-OPTIONS | D21: =_xlfn.XLOOKUP(A21,'MMPM1-AMM'!E:E,'MMPM1-AMM'!K:K,_xlfn.XLOOKUP(A21,'MMPM1-PMM'!E:E,'MMPM1-PMM'!J:J)) -> ETF1 | E21: =_xlfn.XLOOKUP(A21,'MMPM1-AMM'!E:E,'MMPM1-AMM'!Q:Q,_xlfn.XLOOKUP(A21,'MMPM1-PMM'!E:E,'MMPM1-PMM'!P:P)) -> 6 | F21: =SUMIFS(MMPM2!H:H,MMPM2!C:C,U21,MMPM2!E:E,1,MMPM2!G:G,1) -> 1 | G21: =SUMIFS(MMPM2!H:H,MMPM2!C:C,U21,MMPM2!E:E,1,MMPM2!G:G,2) -> 5 | L21: =SUMIFS(MMPM2!I:I,MMPM2!C:C,U21,MMPM2!E:E,1,MMPM2!G:G,1) -> 0.15 | M21: =SUMIFS(MMPM2!I:I,MMPM2!C:C,U21,MMPM2!E:E,1,MMPM2!G:G,2) -> 0.15 | N21: =SUMIFS(MMPM2!I:I,MMPM2!C:C,U21,MMPM2!E:E,1,MMPM2!G:G,3) -> 0.75 | R21: Not applicable | S21: No doubling of mistrade range | U21: =IFERROR(_xlfn.XLOOKUP(A21,'MMPM1-PMM'!E:E,'MMPM1-PMM'!J:J),_xlfn.XLOOKUP(A21,'MMPM1-AMM'!E:E,'MMPM1-AMM'!K:K)) -> ETF1 | V21: =IFERROR(_xlfn.XLOOKUP(A21,'MMPM1-AMM'!E:E,'MMPM1-AMM'!T:T),_xlfn.XLOOKUP(A21,'MMPM1-PMM'!E:E,'MMPM1-PMM'!S:S)) -> 3 | W21: =IFERROR(_xlfn.XLOOKUP(A21,'MMPM1-AMM'!E:E,'MMPM1-AMM'!U:U),_xlfn.XLOOKUP(A21,'MMPM1-PMM'!E:E,'MMPM1-PMM'!T:T)) -> 6 | Y21: TRUE | AB21: =_xlfn.XLOOKUP(A21,productlist[PRODUCT_ID],productlist[PRODUCT_ISIN]) -> DE0006289309 | AC21: =_xlfn.XLOOKUP(A21,productlist[PRODUCT_ID],productlist[UNDERLYING_ISIN]) -> DE0006289309
A22: IDEM | B22: =_xlfn.XLOOKUP(A22,'Product List'!$A:$A,'Product List'!$D:$D) -> iShares MSCI Emerging Markets UCITS Options | C22: =_xlfn.XLOOKUP(A22,'Product List'!$A:$A,'Product List'!$F:$F) -> EXTF-OPTIONS | D22: =_xlfn.XLOOKUP(A22,'MMPM1-AMM'!E:E,'MMPM1-AMM'!K:K,_xlfn.XLOOKUP(A22,'MMPM1-PMM'!E:E,'MMPM1-PMM'!J:J)) -> ETF6 | E22: =_xlfn.XLOOKUP(A22,'MMPM1-AMM'!E:E,'MMPM1-AMM'!Q:Q,_xlfn.XLOOKUP(A22,'MMPM1-PMM'!E:E,'MMPM1-PMM'!P:P)) -> 6 | F22: =SUMIFS(MMPM2!H:H,MMPM2!C:C,U22,MMPM2!E:E,1,MMPM2!G:G,1) -> 1 | G22: =SUMIFS(MMPM2!H:H,MMPM2!C:C,U22,MMPM2!E:E,1,MMPM2!G:G,2) -> 5 | L22: =SUMIFS(MMPM2!I:I,MMPM2!C:C,U22,MMPM2!E:E,1,MMPM2!G:G,1) -> 0.2 | M22: =SUMIFS(MMPM2!I:I,MMPM2!C:C,U22,MMPM2!E:E,1,MMPM2!G:G,2) -> 0.2 | N22: =SUMIFS(MMPM2!I:I,MMPM2!C:C,U22,MMPM2!E:E,1,MMPM2!G:G,3) -> 1 | R22: Not applicable | S22: No doubling of mistrade range | U22: =IFERROR(_xlfn.XLOOKUP(A22,'MMPM1-PMM'!E:E,'MMPM1-PMM'!J:J),_xlfn.XLOOKUP(A22,'MMPM1-AMM'!E:E,'MMPM1-AMM'!K:K)) -> ETF6 | V22: =IFERROR(_xlfn.XLOOKUP(A22,'MMPM1-AMM'!E:E,'MMPM1-AMM'!T:T),_xlfn.XLOOKUP(A22,'MMPM1-PMM'!E:E,'MMPM1-PMM'!S:S)) -> 3 | W22: =IFERROR(_xlfn.XLOOKUP(A22,'MMPM1-AMM'!E:E,'MMPM1-AMM'!U:U),_xlfn.XLOOKUP(A22,'MMPM1-PMM'!E:E,'MMPM1-PMM'!T:T)) -> 6 | Y22: TRUE | AB22: =_xlfn.XLOOKUP(A22,productlist[PRODUCT_ID],productlist[PRODUCT_ISIN]) -> IE00B0M63177 | AC22: =_xlfn.XLOOKUP(A22,productlist[PRODUCT_ID],productlist[UNDERLYING_ISIN]) -> IE00B0M63177
A23: IGLN | B23: =_xlfn.XLOOKUP(A23,'Product List'!$A:$A,'Product List'!$D:$D) -> iShares Physical Gold Options | C23: =_xlfn.XLOOKUP(A23,'Product List'!$A:$A,'Product List'!$F:$F) -> OPTIONS ON EXCHANGE-TRADED COMMODITIES SECURITIES | D23: =_xlfn.XLOOKUP(A23,'MMPM1-AMM'!E:E,'MMPM1-AMM'!K:K,_xlfn.XLOOKUP(A23,'MMPM1-PMM'!E:E,'MMPM1-PMM'!J:J)) -> CO-ETF1 | E23: =_xlfn.XLOOKUP(A23,'MMPM1-AMM'!E:E,'MMPM1-AMM'!Q:Q,_xlfn.XLOOKUP(A23,'MMPM1-PMM'!E:E,'MMPM1-PMM'!P:P)) -> 6 | F23: =SUMIFS(MMPM2!H:H,MMPM2!C:C,U23,MMPM2!E:E,1,MMPM2!G:G,1) -> 2 | G23: =SUMIFS(MMPM2!H:H,MMPM2!C:C,U23,MMPM2!E:E,1,MMPM2!G:G,2) -> 20 | L23: =SUMIFS(MMPM2!I:I,MMPM2!C:C,U23,MMPM2!E:E,1,MMPM2!G:G,1) -> 0.2 | M23: =SUMIFS(MMPM2!I:I,MMPM2!C:C,U23,MMPM2!E:E,1,MMPM2!G:G,2) -> 0.1 | N23: =SUMIFS(MMPM2!I:I,MMPM2!C:C,U23,MMPM2!E:E,1,MMPM2!G:G,3) -> 2 | R23: Not applicable | S23: No doubling of mistrade range | U23: =IFERROR(_xlfn.XLOOKUP(A23,'MMPM1-PMM'!E:E,'MMPM1-PMM'!J:J),_xlfn.XLOOKUP(A23,'MMPM1-AMM'!E:E,'MMPM1-AMM'!K:K)) -> CO-ETF1 | V23: =IFERROR(_xlfn.XLOOKUP(A23,'MMPM1-AMM'!E:E,'MMPM1-AMM'!T:T),_xlfn.XLOOKUP(A23,'MMPM1-PMM'!E:E,'MMPM1-PMM'!S:S)) -> 3 | W23: =IFERROR(_xlfn.XLOOKUP(A23,'MMPM1-AMM'!E:E,'MMPM1-AMM'!U:U),_xlfn.XLOOKUP(A23,'MMPM1-PMM'!E:E,'MMPM1-PMM'!T:T)) -> 6 | Y23: TRUE | AB23: =_xlfn.XLOOKUP(A23,productlist[PRODUCT_ID],productlist[PRODUCT_ISIN]) -> IE00B4ND3602 | AC23: =_xlfn.XLOOKUP(A23,productlist[PRODUCT_ID],productlist[UNDERLYING_ISIN]) -> IE00B4ND3602
A24: IPRP | B24: =_xlfn.XLOOKUP(A24,'Product List'!$A:$A,'Product List'!$D:$D) -> iShares European Property Yield Options | C24: =_xlfn.XLOOKUP(A24,'Product List'!$A:$A,'Product List'!$F:$F) -> EXTF-OPTIONS | D24: =_xlfn.XLOOKUP(A24,'MMPM1-AMM'!E:E,'MMPM1-AMM'!K:K,_xlfn.XLOOKUP(A24,'MMPM1-PMM'!E:E,'MMPM1-PMM'!J:J)) -> ETF1 | E24: =_xlfn.XLOOKUP(A24,'MMPM1-AMM'!E:E,'MMPM1-AMM'!Q:Q,_xlfn.XLOOKUP(A24,'MMPM1-PMM'!E:E,'MMPM1-PMM'!P:P)) -> 6 | F24: =SUMIFS(MMPM2!H:H,MMPM2!C:C,U24,MMPM2!E:E,1,MMPM2!G:G,1) -> 1 | G24: =SUMIFS(MMPM2!H:H,MMPM2!C:C,U24,MMPM2!E:E,1,MMPM2!G:G,2) -> 5 | L24: =SUMIFS(MMPM2!I:I,MMPM2!C:C,U24,MMPM2!E:E,1,MMPM2!G:G,1) -> 0.15 | M24: =SUMIFS(MMPM2!I:I,MMPM2!C:C,U24,MMPM2!E:E,1,MMPM2!G:G,2) -> 0.15 | N24: =SUMIFS(MMPM2!I:I,MMPM2!C:C,U24,MMPM2!E:E,1,MMPM2!G:G,3) -> 0.75 | R24: Not applicable | S24: No doubling of mistrade range | U24: =IFERROR(_xlfn.XLOOKUP(A24,'MMPM1-PMM'!E:E,'MMPM1-PMM'!J:J),_xlfn.XLOOKUP(A24,'MMPM1-AMM'!E:E,'MMPM1-AMM'!K:K)) -> ETF1 | V24: =IFERROR(_xlfn.XLOOKUP(A24,'MMPM1-AMM'!E:E,'MMPM1-AMM'!T:T),_xlfn.XLOOKUP(A24,'MMPM1-PMM'!E:E,'MMPM1-PMM'!S:S)) -> 3 | W24: =IFERROR(_xlfn.XLOOKUP(A24,'MMPM1-AMM'!E:E,'MMPM1-AMM'!U:U),_xlfn.XLOOKUP(A24,'MMPM1-PMM'!E:E,'MMPM1-PMM'!T:T)) -> 6 | Y24: TRUE | AB24: =_xlfn.XLOOKUP(A24,productlist[PRODUCT_ID],productlist[PRODUCT_ISIN]) -> IE00B0M63284 | AC24: =_xlfn.XLOOKUP(A24,productlist[PRODUCT_ID],productlist[UNDERLYING_ISIN]) -> IE00B0M63284
A25: IQQY | B25: =_xlfn.XLOOKUP(A25,'Product List'!$A:$A,'Product List'!$D:$D) -> iShares Core MSCI Europe UCITS Options | C25: =_xlfn.XLOOKUP(A25,'Product List'!$A:$A,'Product List'!$F:$F) -> EXTF-OPTIONS | D25: =_xlfn.XLOOKUP(A25,'MMPM1-AMM'!E:E,'MMPM1-AMM'!K:K,_xlfn.XLOOKUP(A25,'MMPM1-PMM'!E:E,'MMPM1-PMM'!J:J)) -> ETF1 | E25: =_xlfn.XLOOKUP(A25,'MMPM1-AMM'!E:E,'MMPM1-AMM'!Q:Q,_xlfn.XLOOKUP(A25,'MMPM1-PMM'!E:E,'MMPM1-PMM'!P:P)) -> 6 | F25: =SUMIFS(MMPM2!H:H,MMPM2!C:C,U25,MMPM2!E:E,1,MMPM2!G:G,1) -> 1 | G25: =SUMIFS(MMPM2!H:H,MMPM2!C:C,U25,MMPM2!E:E,1,MMPM2!G:G,2) -> 5 | L25: =SUMIFS(MMPM2!I:I,MMPM2!C:C,U25,MMPM2!E:E,1,MMPM2!G:G,1) -> 0.15 | M25: =SUMIFS(MMPM2!I:I,MMPM2!C:C,U25,MMPM2!E:E,1,MMPM2!G:G,2) -> 0.15 | N25: =SUMIFS(MMPM2!I:I,MMPM2!C:C,U25,MMPM2!E:E,1,MMPM2!G:G,3) -> 0.75 | R25: Not applicable | S25: No doubling of mistrade range | U25: =IFERROR(_xlfn.XLOOKUP(A25,'MMPM1-PMM'!E:E,'MMPM1-PMM'!J:J),_xlfn.XLOOKUP(A25,'MMPM1-AMM'!E:E,'MMPM1-AMM'!K:K)) -> ETF1 | V25: =IFERROR(_xlfn.XLOOKUP(A25,'MMPM1-AMM'!E:E,'MMPM1-AMM'!T:T),_xlfn.XLOOKUP(A25,'MMPM1-PMM'!E:E,'MMPM1-PMM'!S:S)) -> 3 | W25: =IFERROR(_xlfn.XLOOKUP(A25,'MMPM1-AMM'!E:E,'MMPM1-AMM'!U:U),_xlfn.XLOOKUP(A25,'MMPM1-PMM'!E:E,'MMPM1-PMM'!T:T)) -> 6 | Y25: TRUE | AB25: =_xlfn.XLOOKUP(A25,productlist[PRODUCT_ID],productlist[PRODUCT_ISIN]) -> IE00B1YZSC51 | AC25: =_xlfn.XLOOKUP(A25,productlist[PRODUCT_ID],productlist[UNDERLYING_ISIN]) -> IE00B1YZSC51
A26: ISF | B26: =_xlfn.XLOOKUP(A26,'Product List'!$A:$A,'Product List'!$D:$D) -> iShares Core FTSE 100 UCITS Options | C26: =_xlfn.XLOOKUP(A26,'Product List'!$A:$A,'Product List'!$F:$F) -> EXTF-OPTIONS | D26: =_xlfn.XLOOKUP(A26,'MMPM1-AMM'!E:E,'MMPM1-AMM'!K:K,_xlfn.XLOOKUP(A26,'MMPM1-PMM'!E:E,'MMPM1-PMM'!J:J)) -> ETF4 | E26: =_xlfn.XLOOKUP(A26,'MMPM1-AMM'!E:E,'MMPM1-AMM'!Q:Q,_xlfn.XLOOKUP(A26,'MMPM1-PMM'!E:E,'MMPM1-PMM'!P:P)) -> 6 | F26: =SUMIFS(MMPM2!H:H,MMPM2!C:C,U26,MMPM2!E:E,1,MMPM2!G:G,1) -> 40 | G26: =SUMIFS(MMPM2!H:H,MMPM2!C:C,U26,MMPM2!E:E,1,MMPM2!G:G,2) -> 200 | L26: =SUMIFS(MMPM2!I:I,MMPM2!C:C,U26,MMPM2!E:E,1,MMPM2!G:G,1) -> 8 | M26: =SUMIFS(MMPM2!I:I,MMPM2!C:C,U26,MMPM2!E:E,1,MMPM2!G:G,2) -> 0.2 | N26: =SUMIFS(MMPM2!I:I,MMPM2!C:C,U26,MMPM2!E:E,1,MMPM2!G:G,3) -> 40 | R26: Not applicable | S26: No doubling of mistrade range | U26: =IFERROR(_xlfn.XLOOKUP(A26,'MMPM1-PMM'!E:E,'MMPM1-PMM'!J:J),_xlfn.XLOOKUP(A26,'MMPM1-AMM'!E:E,'MMPM1-AMM'!K:K)) -> ETF4 | V26: =IFERROR(_xlfn.XLOOKUP(A26,'MMPM1-AMM'!E:E,'MMPM1-AMM'!T:T),_xlfn.XLOOKUP(A26,'MMPM1-PMM'!E:E,'MMPM1-PMM'!S:S)) -> 3 | W26: =IFERROR(_xlfn.XLOOKUP(A26,'MMPM1-AMM'!E:E,'MMPM1-AMM'!U:U),_xlfn.XLOOKUP(A26,'MMPM1-PMM'!E:E,'MMPM1-PMM'!T:T)) -> 6 | Y26: TRUE | AB26: =_xlfn.XLOOKUP(A26,productlist[PRODUCT_ID],productlist[PRODUCT_ISIN]) -> IE0005042456 | AC26: =_xlfn.XLOOKUP(A26,productlist[PRODUCT_ID],productlist[UNDERLYING_ISIN]) -> IE0005042456
A27: ISLN | B27: =_xlfn.XLOOKUP(A27,'Product List'!$A:$A,'Product List'!$D:$D) -> iShares Physical Silver Options | C27: =_xlfn.XLOOKUP(A27,'Product List'!$A:$A,'Product List'!$F:$F) -> OPTIONS ON EXCHANGE-TRADED COMMODITIES SECURITIES | D27: =_xlfn.XLOOKUP(A27,'MMPM1-AMM'!E:E,'MMPM1-AMM'!K:K,_xlfn.XLOOKUP(A27,'MMPM1-PMM'!E:E,'MMPM1-PMM'!J:J)) -> CO-ETF1 | E27: =_xlfn.XLOOKUP(A27,'MMPM1-AMM'!E:E,'MMPM1-AMM'!Q:Q,_xlfn.XLOOKUP(A27,'MMPM1-PMM'!E:E,'MMPM1-PMM'!P:P)) -> 6 | F27: =SUMIFS(MMPM2!H:H,MMPM2!C:C,U27,MMPM2!E:E,1,MMPM2!G:G,1) -> 2 | G27: =SUMIFS(MMPM2!H:H,MMPM2!C:C,U27,MMPM2!E:E,1,MMPM2!G:G,2) -> 20 | L27: =SUMIFS(MMPM2!I:I,MMPM2!C:C,U27,MMPM2!E:E,1,MMPM2!G:G,1) -> 0.2 | M27: =SUMIFS(MMPM2!I:I,MMPM2!C:C,U27,MMPM2!E:E,1,MMPM2!G:G,2) -> 0.1 | N27: =SUMIFS(MMPM2!I:I,MMPM2!C:C,U27,MMPM2!E:E,1,MMPM2!G:G,3) -> 2 | R27: Not applicable | S27: No doubling of mistrade range | U27: =IFERROR(_xlfn.XLOOKUP(A27,'MMPM1-PMM'!E:E,'MMPM1-PMM'!J:J),_xlfn.XLOOKUP(A27,'MMPM1-AMM'!E:E,'MMPM1-AMM'!K:K)) -> CO-ETF1 | V27: =IFERROR(_xlfn.XLOOKUP(A27,'MMPM1-AMM'!E:E,'MMPM1-AMM'!T:T),_xlfn.XLOOKUP(A27,'MMPM1-PMM'!E:E,'MMPM1-PMM'!S:S)) -> 3 | W27: =IFERROR(_xlfn.XLOOKUP(A27,'MMPM1-AMM'!E:E,'MMPM1-AMM'!U:U),_xlfn.XLOOKUP(A27,'MMPM1-PMM'!E:E,'MMPM1-PMM'!T:T)) -> 6 | Y27: TRUE | AB27: =_xlfn.XLOOKUP(A27,productlist[PRODUCT_ID],productlist[PRODUCT_ISIN]) -> IE00B4NCWG09 | AC27: =_xlfn.XLOOKUP(A27,productlist[PRODUCT_ID],productlist[UNDERLYING_ISIN]) -> IE00B4NCWG09
A28: IUES | B28: =_xlfn.XLOOKUP(A28,'Product List'!$A:$A,'Product List'!$D:$D) -> iShares S&P 500 Energy Options | C28: =_xlfn.XLOOKUP(A28,'Product List'!$A:$A,'Product List'!$F:$F) -> EXTF-OPTIONS | D28: =_xlfn.XLOOKUP(A28,'MMPM1-AMM'!E:E,'MMPM1-AMM'!K:K,_xlfn.XLOOKUP(A28,'MMPM1-PMM'!E:E,'MMPM1-PMM'!J:J)) -> ETF6 | E28: =_xlfn.XLOOKUP(A28,'MMPM1-AMM'!E:E,'MMPM1-AMM'!Q:Q,_xlfn.XLOOKUP(A28,'MMPM1-PMM'!E:E,'MMPM1-PMM'!P:P)) -> 6 | F28: =SUMIFS(MMPM2!H:H,MMPM2!C:C,U28,MMPM2!E:E,1,MMPM2!G:G,1) -> 1 | G28: =SUMIFS(MMPM2!H:H,MMPM2!C:C,U28,MMPM2!E:E,1,MMPM2!G:G,2) -> 5 | L28: =SUMIFS(MMPM2!I:I,MMPM2!C:C,U28,MMPM2!E:E,1,MMPM2!G:G,1) -> 0.2 | M28: =SUMIFS(MMPM2!I:I,MMPM2!C:C,U28,MMPM2!E:E,1,MMPM2!G:G,2) -> 0.2 | N28: =SUMIFS(MMPM2!I:I,MMPM2!C:C,U28,MMPM2!E:E,1,MMPM2!G:G,3) -> 1 | R28: Not applicable | S28: No doubling of mistrade range | U28: =IFERROR(_xlfn.XLOOKUP(A28,'MMPM1-PMM'!E:E,'MMPM1-PMM'!J:J),_xlfn.XLOOKUP(A28,'MMPM1-AMM'!E:E,'MMPM1-AMM'!K:K)) -> ETF6 | V28: =IFERROR(_xlfn.XLOOKUP(A28,'MMPM1-AMM'!E:E,'MMPM1-AMM'!T:T),_xlfn.XLOOKUP(A28,'MMPM1-PMM'!E:E,'MMPM1-PMM'!S:S)) -> 3 | W28: =IFERROR(_xlfn.XLOOKUP(A28,'MMPM1-AMM'!E:E,'MMPM1-AMM'!U:U),_xlfn.XLOOKUP(A28,'MMPM1-PMM'!E:E,'MMPM1-PMM'!T:T)) -> 6 | Y28: TRUE | AB28: =_xlfn.XLOOKUP(A28,productlist[PRODUCT_ID],productlist[PRODUCT_ISIN]) -> IE00B42NKQ00 | AC28: =_xlfn.XLOOKUP(A28,productlist[PRODUCT_ID],productlist[UNDERLYING_ISIN]) -> IE00B42NKQ00
A29: IUFS | B29: =_xlfn.XLOOKUP(A29,'Product List'!$A:$A,'Product List'!$D:$D) -> iShares S&P 500 Financials Options | C29: =_xlfn.XLOOKUP(A29,'Product List'!$A:$A,'Product List'!$F:$F) -> EXTF-OPTIONS | D29: =_xlfn.XLOOKUP(A29,'MMPM1-AMM'!E:E,'MMPM1-AMM'!K:K,_xlfn.XLOOKUP(A29,'MMPM1-PMM'!E:E,'MMPM1-PMM'!J:J)) -> ETF6 | E29: =_xlfn.XLOOKUP(A29,'MMPM1-AMM'!E:E,'MMPM1-AMM'!Q:Q,_xlfn.XLOOKUP(A29,'MMPM1-PMM'!E:E,'MMPM1-PMM'!P:P)) -> 6 | F29: =SUMIFS(MMPM2!H:H,MMPM2!C:C,U29,MMPM2!E:E,1,MMPM2!G:G,1) -> 1 | G29: =SUMIFS(MMPM2!H:H,MMPM2!C:C,U29,MMPM2!E:E,1,MMPM2!G:G,2) -> 5 | L29: =SUMIFS(MMPM2!I:I,MMPM2!C:C,U29,MMPM2!E:E,1,MMPM2!G:G,1) -> 0.2 | M29: =SUMIFS(MMPM2!I:I,MMPM2!C:C,U29,MMPM2!E:E,1,MMPM2!G:G,2) -> 0.2 | N29: =SUMIFS(MMPM2!I:I,MMPM2!C:C,U29,MMPM2!E:E,1,MMPM2!G:G,3) -> 1 | R29: Not applicable | S29: No doubling of mistrade range | U29: =IFERROR(_xlfn.XLOOKUP(A29,'MMPM1-PMM'!E:E,'MMPM1-PMM'!J:J),_xlfn.XLOOKUP(A29,'MMPM1-AMM'!E:E,'MMPM1-AMM'!K:K)) -> ETF6 | V29: =IFERROR(_xlfn.XLOOKUP(A29,'MMPM1-AMM'!E:E,'MMPM1-AMM'!T:T),_xlfn.XLOOKUP(A29,'MMPM1-PMM'!E:E,'MMPM1-PMM'!S:S)) -> 3 | W29: =IFERROR(_xlfn.XLOOKUP(A29,'MMPM1-AMM'!E:E,'MMPM1-AMM'!U:U),_xlfn.XLOOKUP(A29,'MMPM1-PMM'!E:E,'MMPM1-PMM'!T:T)) -> 6 | Y29: TRUE | AB29: =_xlfn.XLOOKUP(A29,productlist[PRODUCT_ID],productlist[PRODUCT_ISIN]) -> IE00B4JNQZ49 | AC29: =_xlfn.XLOOKUP(A29,productlist[PRODUCT_ID],productlist[UNDERLYING_ISIN]) -> IE00B4JNQZ49
A30: IUHC | B30: =_xlfn.XLOOKUP(A30,'Product List'!$A:$A,'Product List'!$D:$D) -> iShares S&P 500 Health Care Options | C30: =_xlfn.XLOOKUP(A30,'Product List'!$A:$A,'Product List'!$F:$F) -> EXTF-OPTIONS | D30: =_xlfn.XLOOKUP(A30,'MMPM1-AMM'!E:E,'MMPM1-AMM'!K:K,_xlfn.XLOOKUP(A30,'MMPM1-PMM'!E:E,'MMPM1-PMM'!J:J)) -> ETF5 | E30: =_xlfn.XLOOKUP(A30,'MMPM1-AMM'!E:E,'MMPM1-AMM'!Q:Q,_xlfn.XLOOKUP(A30,'MMPM1-PMM'!E:E,'MMPM1-PMM'!P:P)) -> 6 | F30: =SUMIFS(MMPM2!H:H,MMPM2!C:C,U30,MMPM2!E:E,1,MMPM2!G:G,1) -> 1 | G30: =SUMIFS(MMPM2!H:H,MMPM2!C:C,U30,MMPM2!E:E,1,MMPM2!G:G,2) -> 5 | L30: =SUMIFS(MMPM2!I:I,MMPM2!C:C,U30,MMPM2!E:E,1,MMPM2!G:G,1) -> 0.25 | M30: =SUMIFS(MMPM2!I:I,MMPM2!C:C,U30,MMPM2!E:E,1,MMPM2!G:G,2) -> 0.25 | N30: =SUMIFS(MMPM2!I:I,MMPM2!C:C,U30,MMPM2!E:E,1,MMPM2!G:G,3) -> 1.25 | R30: Not applicable | S30: No doubling of mistrade range | U30: =IFERROR(_xlfn.XLOOKUP(A30,'MMPM1-PMM'!E:E,'MMPM1-PMM'!J:J),_xlfn.XLOOKUP(A30,'MMPM1-AMM'!E:E,'MMPM1-AMM'!K:K)) -> ETF5 | V30: =IFERROR(_xlfn.XLOOKUP(A30,'MMPM1-AMM'!E:E,'MMPM1-AMM'!T:T),_xlfn.XLOOKUP(A30,'MMPM1-PMM'!E:E,'MMPM1-PMM'!S:S)) -> 3 | W30: =IFERROR(_xlfn.XLOOKUP(A30,'MMPM1-AMM'!E:E,'MMPM1-AMM'!U:U),_xlfn.XLOOKUP(A30,'MMPM1-PMM'!E:E,'MMPM1-PMM'!T:T)) -> 6 | Y30: TRUE | AB30: =_xlfn.XLOOKUP(A30,productlist[PRODUCT_ID],productlist[PRODUCT_ISIN]) -> IE00B43HR379 | AC30: =_xlfn.XLOOKUP(A30,productlist[PRODUCT_ID],productlist[UNDERLYING_ISIN]) -> IE00B43HR379
A31: IUIT | B31: =_xlfn.XLOOKUP(A31,'Product List'!$A:$A,'Product List'!$D:$D) -> iShares S&P 500 IT Options | C31: =_xlfn.XLOOKUP(A31,'Product List'!$A:$A,'Product List'!$F:$F) -> EXTF-OPTIONS | D31: =_xlfn.XLOOKUP(A31,'MMPM1-AMM'!E:E,'MMPM1-AMM'!K:K,_xlfn.XLOOKUP(A31,'MMPM1-PMM'!E:E,'MMPM1-PMM'!J:J)) -> ETF6 | E31: =_xlfn.XLOOKUP(A31,'MMPM1-AMM'!E:E,'MMPM1-AMM'!Q:Q,_xlfn.XLOOKUP(A31,'MMPM1-PMM'!E:E,'MMPM1-PMM'!P:P)) -> 6 | F31: =SUMIFS(MMPM2!H:H,MMPM2!C:C,U31,MMPM2!E:E,1,MMPM2!G:G,1) -> 1 | G31: =SUMIFS(MMPM2!H:H,MMPM2!C:C,U31,MMPM2!E:E,1,MMPM2!G:G,2) -> 5 | L31: =SUMIFS(MMPM2!I:I,MMPM2!C:C,U31,MMPM2!E:E,1,MMPM2!G:G,1) -> 0.2 | M31: =SUMIFS(MMPM2!I:I,MMPM2!C:C,U31,MMPM2!E:E,1,MMPM2!G:G,2) -> 0.2 | N31: =SUMIFS(MMPM2!I:I,MMPM2!C:C,U31,MMPM2!E:E,1,MMPM2!G:G,3) -> 1 | R31: Not applicable | S31: No doubling of mistrade range | U31: =IFERROR(_xlfn.XLOOKUP(A31,'MMPM1-PMM'!E:E,'MMPM1-PMM'!J:J),_xlfn.XLOOKUP(A31,'MMPM1-AMM'!E:E,'MMPM1-AMM'!K:K)) -> ETF6 | V31: =IFERROR(_xlfn.XLOOKUP(A31,'MMPM1-AMM'!E:E,'MMPM1-AMM'!T:T),_xlfn.XLOOKUP(A31,'MMPM1-PMM'!E:E,'MMPM1-PMM'!S:S)) -> 3 | W31: =IFERROR(_xlfn.XLOOKUP(A31,'MMPM1-AMM'!E:E,'MMPM1-AMM'!U:U),_xlfn.XLOOKUP(A31,'MMPM1-PMM'!E:E,'MMPM1-PMM'!T:T)) -> 6 | Y31: TRUE | AB31: =_xlfn.XLOOKUP(A31,productlist[PRODUCT_ID],productlist[PRODUCT_ISIN]) -> IE00B3WJKG14 | AC31: =_xlfn.XLOOKUP(A31,productlist[PRODUCT_ID],productlist[UNDERLYING_ISIN]) -> IE00B3WJKG14
A32: IUUS | B32: =_xlfn.XLOOKUP(A32,'Product List'!$A:$A,'Product List'!$D:$D) -> iShares S&P 500 Utilities Options | C32: =_xlfn.XLOOKUP(A32,'Product List'!$A:$A,'Product List'!$F:$F) -> EXTF-OPTIONS | D32: =_xlfn.XLOOKUP(A32,'MMPM1-AMM'!E:E,'MMPM1-AMM'!K:K,_xlfn.XLOOKUP(A32,'MMPM1-PMM'!E:E,'MMPM1-PMM'!J:J)) -> ETF6 | E32: =_xlfn.XLOOKUP(A32,'MMPM1-AMM'!E:E,'MMPM1-AMM'!Q:Q,_xlfn.XLOOKUP(A32,'MMPM1-PMM'!E:E,'MMPM1-PMM'!P:P)) -> 6 | F32: =SUMIFS(MMPM2!H:H,MMPM2!C:C,U32,MMPM2!E:E,1,MMPM2!G:G,1) -> 1 | G32: =SUMIFS(MMPM2!H:H,MMPM2!C:C,U32,MMPM2!E:E,1,MMPM2!G:G,2) -> 5 | L32: =SUMIFS(MMPM2!I:I,MMPM2!C:C,U32,MMPM2!E:E,1,MMPM2!G:G,1) -> 0.2 | M32: =SUMIFS(MMPM2!I:I,MMPM2!C:C,U32,MMPM2!E:E,1,MMPM2!G:G,2) -> 0.2 | N32: =SUMIFS(MMPM2!I:I,MMPM2!C:C,U32,MMPM2!E:E,1,MMPM2!G:G,3) -> 1 | R32: Not applicable | S32: No doubling of mistrade range | U32: =IFERROR(_xlfn.XLOOKUP(A32,'MMPM1-PMM'!E:E,'MMPM1-PMM'!J:J),_xlfn.XLOOKUP(A32,'MMPM1-AMM'!E:E,'MMPM1-AMM'!K:K)) -> ETF6 | V32: =IFERROR(_xlfn.XLOOKUP(A32,'MMPM1-AMM'!E:E,'MMPM1-AMM'!T:T),_xlfn.XLOOKUP(A32,'MMPM1-PMM'!E:E,'MMPM1-PMM'!S:S)) -> 3 | W32: =IFERROR(_xlfn.XLOOKUP(A32,'MMPM1-AMM'!E:E,'MMPM1-AMM'!U:U),_xlfn.XLOOKUP(A32,'MMPM1-PMM'!E:E,'MMPM1-PMM'!T:T)) -> 6 | Y32: TRUE | AB32: =_xlfn.XLOOKUP(A32,productlist[PRODUCT_ID],productlist[PRODUCT_ISIN]) -> IE00B4KBBD01 | AC32: =_xlfn.XLOOKUP(A32,productlist[PRODUCT_ID],productlist[UNDERLYING_ISIN]) -> IE00B4KBBD01
A33: IWDA | B33: =_xlfn.XLOOKUP(A33,'Product List'!$A:$A,'Product List'!$D:$D) -> iShares Core MSCI World UCITS Options | C33: =_xlfn.XLOOKUP(A33,'Product List'!$A:$A,'Product List'!$F:$F) -> EXTF-OPTIONS | D33: =_xlfn.XLOOKUP(A33,'MMPM1-AMM'!E:E,'MMPM1-AMM'!K:K,_xlfn.XLOOKUP(A33,'MMPM1-PMM'!E:E,'MMPM1-PMM'!J:J)) -> ETF1 | E33: =_xlfn.XLOOKUP(A33,'MMPM1-AMM'!E:E,'MMPM1-AMM'!Q:Q,_xlfn.XLOOKUP(A33,'MMPM1-PMM'!E:E,'MMPM1-PMM'!P:P)) -> 6 | F33: =SUMIFS(MMPM2!H:H,MMPM2!C:C,U33,MMPM2!E:E,1,MMPM2!G:G,1) -> 1 | G33: =SUMIFS(MMPM2!H:H,MMPM2!C:C,U33,MMPM2!E:E,1,MMPM2!G:G,2) -> 5 | L33: =SUMIFS(MMPM2!I:I,MMPM2!C:C,U33,MMPM2!E:E,1,MMPM2!G:G,1) -> 0.15 | M33: =SUMIFS(MMPM2!I:I,MMPM2!C:C,U33,MMPM2!E:E,1,MMPM2!G:G,2) -> 0.15 | N33: =SUMIFS(MMPM2!I:I,MMPM2!C:C,U33,MMPM2!E:E,1,MMPM2!G:G,3) -> 0.75 | R33: Not applicable | S33: No doubling of mistrade range | U33: =IFERROR(_xlfn.XLOOKUP(A33,'MMPM1-PMM'!E:E,'MMPM1-PMM'!J:J),_xlfn.XLOOKUP(A33,'MMPM1-AMM'!E:E,'MMPM1-AMM'!K:K)) -> ETF1 | V33: =IFERROR(_xlfn.XLOOKUP(A33,'MMPM1-AMM'!E:E,'MMPM1-AMM'!T:T),_xlfn.XLOOKUP(A33,'MMPM1-PMM'!E:E,'MMPM1-PMM'!S:S)) -> 3 | W33: =IFERROR(_xlfn.XLOOKUP(A33,'MMPM1-AMM'!E:E,'MMPM1-AMM'!U:U),_xlfn.XLOOKUP(A33,'MMPM1-PMM'!E:E,'MMPM1-PMM'!T:T)) -> 6 | Y33: TRUE | AB33: =_xlfn.XLOOKUP(A33,productlist[PRODUCT_ID],productlist[PRODUCT_ISIN]) -> IE00B4L5Y983 | AC33: =_xlfn.XLOOKUP(A33,productlist[PRODUCT_ID],productlist[UNDERLYING_ISIN]) -> IE00B4L5Y983
A34: MIDD | B34: =_xlfn.XLOOKUP(A34,'Product List'!$A:$A,'Product List'!$D:$D) -> iShares FTSE 250 Options | C34: =_xlfn.XLOOKUP(A34,'Product List'!$A:$A,'Product List'!$F:$F) -> EXTF-OPTIONS | D34: =_xlfn.XLOOKUP(A34,'MMPM1-AMM'!E:E,'MMPM1-AMM'!K:K,_xlfn.XLOOKUP(A34,'MMPM1-PMM'!E:E,'MMPM1-PMM'!J:J)) -> ETF7 | E34: =_xlfn.XLOOKUP(A34,'MMPM1-AMM'!E:E,'MMPM1-AMM'!Q:Q,_xlfn.XLOOKUP(A34,'MMPM1-PMM'!E:E,'MMPM1-PMM'!P:P)) -> 6 | F34: =SUMIFS(MMPM2!H:H,MMPM2!C:C,U34,MMPM2!E:E,1,MMPM2!G:G,1) -> 40 | G34: =SUMIFS(MMPM2!H:H,MMPM2!C:C,U34,MMPM2!E:E,1,MMPM2!G:G,2) -> 200 | L34: =SUMIFS(MMPM2!I:I,MMPM2!C:C,U34,MMPM2!E:E,1,MMPM2!G:G,1) -> 10 | M34: =SUMIFS(MMPM2!I:I,MMPM2!C:C,U34,MMPM2!E:E,1,MMPM2!G:G,2) -> 0.25 | N34: =SUMIFS(MMPM2!I:I,MMPM2!C:C,U34,MMPM2!E:E,1,MMPM2!G:G,3) -> 50 | R34: Not applicable | S34: No doubling of mistrade range | U34: =IFERROR(_xlfn.XLOOKUP(A34,'MMPM1-PMM'!E:E,'MMPM1-PMM'!J:J),_xlfn.XLOOKUP(A34,'MMPM1-AMM'!E:E,'MMPM1-AMM'!K:K)) -> ETF7 | V34: =IFERROR(_xlfn.XLOOKUP(A34,'MMPM1-AMM'!E:E,'MMPM1-AMM'!T:T),_xlfn.XLOOKUP(A34,'MMPM1-PMM'!E:E,'MMPM1-PMM'!S:S)) -> 3 | W34: =IFERROR(_xlfn.XLOOKUP(A34,'MMPM1-AMM'!E:E,'MMPM1-AMM'!U:U),_xlfn.XLOOKUP(A34,'MMPM1-PMM'!E:E,'MMPM1-PMM'!T:T)) -> 6 | Y34: TRUE | AB34: =_xlfn.XLOOKUP(A34,productlist[PRODUCT_ID],productlist[PRODUCT_ISIN]) -> IE00B00FV128 | AC34: =_xlfn.XLOOKUP(A34,productlist[PRODUCT_ID],productlist[UNDERLYING_ISIN]) -> IE00B00FV128
A35: OATX | B35: =_xlfn.XLOOKUP(A35,'Product List'!$A:$A,'Product List'!$D:$D) -> ATX® Options | C35: =_xlfn.XLOOKUP(A35,'Product List'!$A:$A,'Product List'!$F:$F) -> INDEX OPTIONS | D35: =_xlfn.XLOOKUP(A35,'MMPM1-AMM'!E:E,'MMPM1-AMM'!K:K,_xlfn.XLOOKUP(A35,'MMPM1-PMM'!E:E,'MMPM1-PMM'!J:J)) -> OATX | E35: =_xlfn.XLOOKUP(A35,'MMPM1-AMM'!E:E,'MMPM1-AMM'!Q:Q,_xlfn.XLOOKUP(A35,'MMPM1-PMM'!E:E,'MMPM1-PMM'!P:P)) -> 6 | F35: =SUMIFS(MMPM2!H:H,MMPM2!C:C,U35,MMPM2!E:E,1,MMPM2!G:G,1) -> 40 | G35: =SUMIFS(MMPM2!H:H,MMPM2!C:C,U35,MMPM2!E:E,1,MMPM2!G:G,2) -> 400 | L35: =SUMIFS(MMPM2!I:I,MMPM2!C:C,U35,MMPM2!E:E,1,MMPM2!G:G,1) -> 12 | M35: =SUMIFS(MMPM2!I:I,MMPM2!C:C,U35,MMPM2!E:E,1,MMPM2!G:G,2) -> 0.3 | N35: =SUMIFS(MMPM2!I:I,MMPM2!C:C,U35,MMPM2!E:E,1,MMPM2!G:G,3) -> 120 | R35: Not applicable | S35: No doubling of mistrade range | U35: =IFERROR(_xlfn.XLOOKUP(A35,'MMPM1-PMM'!E:E,'MMPM1-PMM'!J:J),_xlfn.XLOOKUP(A35,'MMPM1-AMM'!E:E,'MMPM1-AMM'!K:K)) -> OATX | V35: =IFERROR(_xlfn.XLOOKUP(A35,'MMPM1-AMM'!E:E,'MMPM1-AMM'!T:T),_xlfn.XLOOKUP(A35,'MMPM1-PMM'!E:E,'MMPM1-PMM'!S:S)) -> 3 | W35: =IFERROR(_xlfn.XLOOKUP(A35,'MMPM1-AMM'!E:E,'MMPM1-AMM'!U:U),_xlfn.XLOOKUP(A35,'MMPM1-PMM'!E:E,'MMPM1-PMM'!T:T)) -> 6 | Y35: TRUE | AB35: =_xlfn.XLOOKUP(A35,productlist[PRODUCT_ID],productlist[PRODUCT_ISIN]) -> DE000A1YD5P8 | AC35: =_xlfn.XLOOKUP(A35,productlist[PRODUCT_ID],productlist[UNDERLYING_ISIN]) -> AT0000999982
A36: OCCO | B36: =_xlfn.XLOOKUP(A36,'Product List'!$A:$A,'Product List'!$D:$D) -> Bloomberg Commodity Options | C36: =_xlfn.XLOOKUP(A36,'Product List'!$A:$A,'Product List'!$F:$F) -> COMMODITY INDEX OPTIONS | D36: =_xlfn.XLOOKUP(A36,'MMPM1-AMM'!E:E,'MMPM1-AMM'!K:K,_xlfn.XLOOKUP(A36,'MMPM1-PMM'!E:E,'MMPM1-PMM'!J:J)) -> OCCO | E36: =_xlfn.XLOOKUP(A36,'MMPM1-AMM'!E:E,'MMPM1-AMM'!Q:Q,_xlfn.XLOOKUP(A36,'MMPM1-PMM'!E:E,'MMPM1-PMM'!P:P)) -> 4 | F36: =SUMIFS(MMPM2!H:H,MMPM2!C:C,U36,MMPM2!E:E,1,MMPM2!G:G,1) -> 5.3 | G36: =SUMIFS(MMPM2!H:H,MMPM2!C:C,U36,MMPM2!E:E,1,MMPM2!G:G,2) -> 53.3 | L36: =SUMIFS(MMPM2!I:I,MMPM2!C:C,U36,MMPM2!E:E,1,MMPM2!G:G,1) -> 0.8 | M36: =SUMIFS(MMPM2!I:I,MMPM2!C:C,U36,MMPM2!E:E,1,MMPM2!G:G,2) -> 0.15 | N36: =SUMIFS(MMPM2!I:I,MMPM2!C:C,U36,MMPM2!E:E,1,MMPM2!G:G,3) -> 8 | R36: Not applicable | S36: No doubling of mistrade range | U36: =IFERROR(_xlfn.XLOOKUP(A36,'MMPM1-PMM'!E:E,'MMPM1-PMM'!J:J),_xlfn.XLOOKUP(A36,'MMPM1-AMM'!E:E,'MMPM1-AMM'!K:K)) -> OCCO | V36: =IFERROR(_xlfn.XLOOKUP(A36,'MMPM1-AMM'!E:E,'MMPM1-AMM'!T:T),_xlfn.XLOOKUP(A36,'MMPM1-PMM'!E:E,'MMPM1-PMM'!S:S)) -> 3 | W36: =IFERROR(_xlfn.XLOOKUP(A36,'MMPM1-AMM'!E:E,'MMPM1-AMM'!U:U),_xlfn.XLOOKUP(A36,'MMPM1-PMM'!E:E,'MMPM1-PMM'!T:T)) -> 4 | Y36: TRUE | AB36: =_xlfn.XLOOKUP(A36,productlist[PRODUCT_ID],productlist[PRODUCT_ISIN]) -> DE000A0YK546 | AC36: =_xlfn.XLOOKUP(A36,productlist[PRODUCT_ID],productlist[UNDERLYING_ISIN]) -> 
A37: OCEE | B37: =_xlfn.XLOOKUP(A37,'Product List'!$A:$A,'Product List'!$D:$D) -> CECE® EUR Index Options | C37: =_xlfn.XLOOKUP(A37,'Product List'!$A:$A,'Product List'!$F:$F) -> INDEX OPTIONS | D37: =_xlfn.XLOOKUP(A37,'MMPM1-AMM'!E:E,'MMPM1-AMM'!K:K,_xlfn.XLOOKUP(A37,'MMPM1-PMM'!E:E,'MMPM1-PMM'!J:J)) -> OCEE | E37: =_xlfn.XLOOKUP(A37,'MMPM1-AMM'!E:E,'MMPM1-AMM'!Q:Q,_xlfn.XLOOKUP(A37,'MMPM1-PMM'!E:E,'MMPM1-PMM'!P:P)) -> 6 | F37: =SUMIFS(MMPM2!H:H,MMPM2!C:C,U37,MMPM2!E:E,1,MMPM2!G:G,1) -> 40 | G37: =SUMIFS(MMPM2!H:H,MMPM2!C:C,U37,MMPM2!E:E,1,MMPM2!G:G,2) -> 400 | L37: =SUMIFS(MMPM2!I:I,MMPM2!C:C,U37,MMPM2!E:E,1,MMPM2!G:G,1) -> 12 | M37: =SUMIFS(MMPM2!I:I,MMPM2!C:C,U37,MMPM2!E:E,1,MMPM2!G:G,2) -> 0.3 | N37: =SUMIFS(MMPM2!I:I,MMPM2!C:C,U37,MMPM2!E:E,1,MMPM2!G:G,3) -> 120 | R37: Not applicable | S37: No doubling of mistrade range | U37: =IFERROR(_xlfn.XLOOKUP(A37,'MMPM1-PMM'!E:E,'MMPM1-PMM'!J:J),_xlfn.XLOOKUP(A37,'MMPM1-AMM'!E:E,'MMPM1-AMM'!K:K)) -> OCEE | V37: =IFERROR(_xlfn.XLOOKUP(A37,'MMPM1-AMM'!E:E,'MMPM1-AMM'!T:T),_xlfn.XLOOKUP(A37,'MMPM1-PMM'!E:E,'MMPM1-PMM'!S:S)) -> 3 | W37: =IFERROR(_xlfn.XLOOKUP(A37,'MMPM1-AMM'!E:E,'MMPM1-AMM'!U:U),_xlfn.XLOOKUP(A37,'MMPM1-PMM'!E:E,'MMPM1-PMM'!T:T)) -> 6 | Y37: TRUE | AB37: =_xlfn.XLOOKUP(A37,productlist[PRODUCT_ID],productlist[PRODUCT_ISIN]) -> DE000A1YD5R4 | AC37: =_xlfn.XLOOKUP(A37,productlist[PRODUCT_ID],productlist[UNDERLYING_ISIN]) -> AT0000726476
A38: OCRU | B38: =_xlfn.XLOOKUP(A38,'Product List'!$A:$A,'Product List'!$D:$D) -> WisdomTree WTI Crude Oil Options | C38: =_xlfn.XLOOKUP(A38,'Product List'!$A:$A,'Product List'!$F:$F) -> OPTIONS ON EXCHANGE-TRADED COMMODITIES SECURITIES | D38: =_xlfn.XLOOKUP(A38,'MMPM1-AMM'!E:E,'MMPM1-AMM'!K:K,_xlfn.XLOOKUP(A38,'MMPM1-PMM'!E:E,'MMPM1-PMM'!J:J)) -> CO-ETF1 | E38: =_xlfn.XLOOKUP(A38,'MMPM1-AMM'!E:E,'MMPM1-AMM'!Q:Q,_xlfn.XLOOKUP(A38,'MMPM1-PMM'!E:E,'MMPM1-PMM'!P:P)) -> 6 | F38: =SUMIFS(MMPM2!H:H,MMPM2!C:C,U38,MMPM2!E:E,1,MMPM2!G:G,1) -> 2 | G38: =SUMIFS(MMPM2!H:H,MMPM2!C:C,U38,MMPM2!E:E,1,MMPM2!G:G,2) -> 20 | L38: =SUMIFS(MMPM2!I:I,MMPM2!C:C,U38,MMPM2!E:E,1,MMPM2!G:G,1) -> 0.2 | M38: =SUMIFS(MMPM2!I:I,MMPM2!C:C,U38,MMPM2!E:E,1,MMPM2!G:G,2) -> 0.1 | N38: =SUMIFS(MMPM2!I:I,MMPM2!C:C,U38,MMPM2!E:E,1,MMPM2!G:G,3) -> 2 | R38: Not applicable | S38: No doubling of mistrade range | U38: =IFERROR(_xlfn.XLOOKUP(A38,'MMPM1-PMM'!E:E,'MMPM1-PMM'!J:J),_xlfn.XLOOKUP(A38,'MMPM1-AMM'!E:E,'MMPM1-AMM'!K:K)) -> CO-ETF1 | V38: =IFERROR(_xlfn.XLOOKUP(A38,'MMPM1-AMM'!E:E,'MMPM1-AMM'!T:T),_xlfn.XLOOKUP(A38,'MMPM1-PMM'!E:E,'MMPM1-PMM'!S:S)) -> 3 | W38: =IFERROR(_xlfn.XLOOKUP(A38,'MMPM1-AMM'!E:E,'MMPM1-AMM'!U:U),_xlfn.XLOOKUP(A38,'MMPM1-PMM'!E:E,'MMPM1-PMM'!T:T)) -> 6 | Y38: TRUE | AB38: =_xlfn.XLOOKUP(A38,productlist[PRODUCT_ID],productlist[PRODUCT_ISIN]) -> DE000A1KQSK2 | AC38: =_xlfn.XLOOKUP(A38,productlist[PRODUCT_ID],productlist[UNDERLYING_ISIN]) -> GB00B15KXV33
A39: ODAX | B39: =_xlfn.XLOOKUP(A39,'Product List'!$A:$A,'Product List'!$D:$D) -> DAX® Options | C39: =_xlfn.XLOOKUP(A39,'Product List'!$A:$A,'Product List'!$F:$F) -> INDEX OPTIONS | D39: =_xlfn.XLOOKUP(A39,'MMPM1-AMM'!E:E,'MMPM1-AMM'!K:K,_xlfn.XLOOKUP(A39,'MMPM1-PMM'!E:E,'MMPM1-PMM'!J:J)) -> ODAX | E39: =_xlfn.XLOOKUP(A39,'MMPM1-AMM'!E:E,'MMPM1-AMM'!Q:Q,_xlfn.XLOOKUP(A39,'MMPM1-PMM'!E:E,'MMPM1-PMM'!P:P)) -> 10 | F39: =SUMIFS(MMPM2!H:H,MMPM2!C:C,U39,MMPM2!E:E,1,MMPM2!G:G,1) -> 25 | G39: =SUMIFS(MMPM2!H:H,MMPM2!C:C,U39,MMPM2!E:E,1,MMPM2!G:G,2) -> 300 | I39: 25 | J39: 300 | L39: =SUMIFS(MMPM2!I:I,MMPM2!C:C,U39,MMPM2!E:E,1,MMPM2!G:G,1) -> 2 | M39: =SUMIFS(MMPM2!I:I,MMPM2!C:C,U39,MMPM2!E:E,1,MMPM2!G:G,2) -> 0.08 | N39: =SUMIFS(MMPM2!I:I,MMPM2!C:C,U39,MMPM2!E:E,1,MMPM2!G:G,3) -> 24 | O39: 4 | P39: 0.16 | Q39: 48 | R39: =AF39 -> 13 | S39: 9 | U39: =IFERROR(_xlfn.XLOOKUP(A39,'MMPM1-PMM'!E:E,'MMPM1-PMM'!J:J),_xlfn.XLOOKUP(A39,'MMPM1-AMM'!E:E,'MMPM1-AMM'!K:K)) -> ODAX | V39: =IFERROR(_xlfn.XLOOKUP(A39,'MMPM1-AMM'!E:E,'MMPM1-AMM'!T:T),_xlfn.XLOOKUP(A39,'MMPM1-PMM'!E:E,'MMPM1-PMM'!S:S)) -> 6 | W39: =IFERROR(_xlfn.XLOOKUP(A39,'MMPM1-AMM'!E:E,'MMPM1-AMM'!U:U),_xlfn.XLOOKUP(A39,'MMPM1-PMM'!E:E,'MMPM1-PMM'!T:T)) -> 10 | Y39: TRUE | AB39: =_xlfn.XLOOKUP(A39,productlist[PRODUCT_ID],productlist[PRODUCT_ISIN]) -> DE0008469495 | AC39: =_xlfn.XLOOKUP(A39,productlist[PRODUCT_ID],productlist[UNDERLYING_ISIN]) -> DE0008469008 | AE39: =W39-1 -> 9 | AF39: =IF(TODAY()<$AH$1,AE39+AG39,IF(TODAY()<$AI$1,AE39+AH39,IF(TODAY()<$AJ$1,AE39+AI39,IF(TODAY()>=$AJ$1,AE39+4)))) -> 13 | AG39: 1 | AH39: 2 | AI39: 3 | AJ39: 4
A40: ODIV | B40: =_xlfn.XLOOKUP(A40,'Product List'!$A:$A,'Product List'!$D:$D) -> DivDAX® Options | C40: =_xlfn.XLOOKUP(A40,'Product List'!$A:$A,'Product List'!$F:$F) -> INDEX OPTIONS | D40: =_xlfn.XLOOKUP(A40,'MMPM1-AMM'!E:E,'MMPM1-AMM'!K:K,_xlfn.XLOOKUP(A40,'MMPM1-PMM'!E:E,'MMPM1-PMM'!J:J)) -> ODIV | E40: =_xlfn.XLOOKUP(A40,'MMPM1-AMM'!E:E,'MMPM1-AMM'!Q:Q,_xlfn.XLOOKUP(A40,'MMPM1-PMM'!E:E,'MMPM1-PMM'!P:P)) -> 7 | F40: =SUMIFS(MMPM2!H:H,MMPM2!C:C,U40,MMPM2!E:E,1,MMPM2!G:G,1) -> 5.3 | G40: =SUMIFS(MMPM2!H:H,MMPM2!C:C,U40,MMPM2!E:E,1,MMPM2!G:G,2) -> 53.3 | L40: =SUMIFS(MMPM2!I:I,MMPM2!C:C,U40,MMPM2!E:E,1,MMPM2!G:G,1) -> 0.8 | M40: =SUMIFS(MMPM2!I:I,MMPM2!C:C,U40,MMPM2!E:E,1,MMPM2!G:G,2) -> 0.15 | N40: =SUMIFS(MMPM2!I:I,MMPM2!C:C,U40,MMPM2!E:E,1,MMPM2!G:G,3) -> 8 | R40: Not applicable | S40: No doubling of mistrade range | U40: =IFERROR(_xlfn.XLOOKUP(A40,'MMPM1-PMM'!E:E,'MMPM1-PMM'!J:J),_xlfn.XLOOKUP(A40,'MMPM1-AMM'!E:E,'MMPM1-AMM'!K:K)) -> ODIV | V40: =IFERROR(_xlfn.XLOOKUP(A40,'MMPM1-AMM'!E:E,'MMPM1-AMM'!T:T),_xlfn.XLOOKUP(A40,'MMPM1-PMM'!E:E,'MMPM1-PMM'!S:S)) -> 3 | W40: =IFERROR(_xlfn.XLOOKUP(A40,'MMPM1-AMM'!E:E,'MMPM1-AMM'!U:U),_xlfn.XLOOKUP(A40,'MMPM1-PMM'!E:E,'MMPM1-PMM'!T:T)) -> 7 | Y40: TRUE | AB40: =_xlfn.XLOOKUP(A40,productlist[PRODUCT_ID],productlist[PRODUCT_ISIN]) -> DE000A0SNKX4 | AC40: =_xlfn.XLOOKUP(A40,productlist[PRODUCT_ID],productlist[UNDERLYING_ISIN]) -> DE000A0C33C3
A41: ODTL | B41: =_xlfn.XLOOKUP(A41,'Product List'!$A:$A,'Product List'!$D:$D) -> iShares USD Treasury Bond 20+yr UCITS Options | C41: =_xlfn.XLOOKUP(A41,'Product List'!$A:$A,'Product List'!$F:$F) -> EXTF-OPTIONS | D41: =_xlfn.XLOOKUP(A41,'MMPM1-AMM'!E:E,'MMPM1-AMM'!K:K,_xlfn.XLOOKUP(A41,'MMPM1-PMM'!E:E,'MMPM1-PMM'!J:J)) -> FI-ETF | E41: =_xlfn.XLOOKUP(A41,'MMPM1-AMM'!E:E,'MMPM1-AMM'!Q:Q,_xlfn.XLOOKUP(A41,'MMPM1-PMM'!E:E,'MMPM1-PMM'!P:P)) -> 3 | F41: =SUMIFS(MMPM2!H:H,MMPM2!C:C,U41,MMPM2!E:E,1,MMPM2!G:G,1) -> 1.5 | G41: =SUMIFS(MMPM2!H:H,MMPM2!C:C,U41,MMPM2!E:E,1,MMPM2!G:G,2) -> 15 | L41: =SUMIFS(MMPM2!I:I,MMPM2!C:C,U41,MMPM2!E:E,1,MMPM2!G:G,1) -> 0.35 | M41: =SUMIFS(MMPM2!I:I,MMPM2!C:C,U41,MMPM2!E:E,1,MMPM2!G:G,2) -> 0.2 | N41: =SUMIFS(MMPM2!I:I,MMPM2!C:C,U41,MMPM2!E:E,1,MMPM2!G:G,3) -> 3 | R41: Not applicable | S41: No doubling of mistrade range | U41: =IFERROR(_xlfn.XLOOKUP(A41,'MMPM1-PMM'!E:E,'MMPM1-PMM'!J:J),_xlfn.XLOOKUP(A41,'MMPM1-AMM'!E:E,'MMPM1-AMM'!K:K)) -> FI-ETF | V41: =IFERROR(_xlfn.XLOOKUP(A41,'MMPM1-AMM'!E:E,'MMPM1-AMM'!T:T),_xlfn.XLOOKUP(A41,'MMPM1-PMM'!E:E,'MMPM1-PMM'!S:S)) -> 3 | W41: =IFERROR(_xlfn.XLOOKUP(A41,'MMPM1-AMM'!E:E,'MMPM1-AMM'!U:U),_xlfn.XLOOKUP(A41,'MMPM1-PMM'!E:E,'MMPM1-PMM'!T:T)) -> 3 | Y41: TRUE | AB41: =_xlfn.XLOOKUP(A41,productlist[PRODUCT_ID],productlist[PRODUCT_ISIN]) -> DE000A26RY50 | AC41: =_xlfn.XLOOKUP(A41,productlist[PRODUCT_ID],productlist[UNDERLYING_ISIN]) -> IE00BSKRJZ44
A42: OEAC | B42: =_xlfn.XLOOKUP(A42,'Product List'!$A:$A,'Product List'!$D:$D) -> iShares EUR Corporate Bond UCITS Options | C42: =_xlfn.XLOOKUP(A42,'Product List'!$A:$A,'Product List'!$F:$F) -> EXTF-OPTIONS | D42: =_xlfn.XLOOKUP(A42,'MMPM1-AMM'!E:E,'MMPM1-AMM'!K:K,_xlfn.XLOOKUP(A42,'MMPM1-PMM'!E:E,'MMPM1-PMM'!J:J)) -> FI-ETF | E42: =_xlfn.XLOOKUP(A42,'MMPM1-AMM'!E:E,'MMPM1-AMM'!Q:Q,_xlfn.XLOOKUP(A42,'MMPM1-PMM'!E:E,'MMPM1-PMM'!P:P)) -> 3 | F42: =SUMIFS(MMPM2!H:H,MMPM2!C:C,U42,MMPM2!E:E,1,MMPM2!G:G,1) -> 1.5 | G42: =SUMIFS(MMPM2!H:H,MMPM2!C:C,U42,MMPM2!E:E,1,MMPM2!G:G,2) -> 15 | L42: =SUMIFS(MMPM2!I:I,MMPM2!C:C,U42,MMPM2!E:E,1,MMPM2!G:G,1) -> 0.35 | M42: =SUMIFS(MMPM2!I:I,MMPM2!C:C,U42,MMPM2!E:E,1,MMPM2!G:G,2) -> 0.2 | N42: =SUMIFS(MMPM2!I:I,MMPM2!C:C,U42,MMPM2!E:E,1,MMPM2!G:G,3) -> 3 | R42: Not applicable | S42: No doubling of mistrade range | U42: =IFERROR(_xlfn.XLOOKUP(A42,'MMPM1-PMM'!E:E,'MMPM1-PMM'!J:J),_xlfn.XLOOKUP(A42,'MMPM1-AMM'!E:E,'MMPM1-AMM'!K:K)) -> FI-ETF | V42: =IFERROR(_xlfn.XLOOKUP(A42,'MMPM1-AMM'!E:E,'MMPM1-AMM'!T:T),_xlfn.XLOOKUP(A42,'MMPM1-PMM'!E:E,'MMPM1-PMM'!S:S)) -> 3 | W42: =IFERROR(_xlfn.XLOOKUP(A42,'MMPM1-AMM'!E:E,'MMPM1-AMM'!U:U),_xlfn.XLOOKUP(A42,'MMPM1-PMM'!E:E,'MMPM1-PMM'!T:T)) -> 3 | Y42: TRUE | AB42: =_xlfn.XLOOKUP(A42,productlist[PRODUCT_ID],productlist[PRODUCT_ISIN]) -> DE000A2BNDA9 | AC42: =_xlfn.XLOOKUP(A42,productlist[PRODUCT_ID],productlist[UNDERLYING_ISIN]) -> IE00B3F81R35
A43: OEDV | B43: =_xlfn.XLOOKUP(A43,'Product List'!$A:$A,'Product List'!$D:$D) -> EURO STOXX® Select Dividend 30 Index Options | C43: =_xlfn.XLOOKUP(A43,'Product List'!$A:$A,'Product List'!$F:$F) -> INDEX OPTIONS | D43: =_xlfn.XLOOKUP(A43,'MMPM1-AMM'!E:E,'MMPM1-AMM'!K:K,_xlfn.XLOOKUP(A43,'MMPM1-PMM'!E:E,'MMPM1-PMM'!J:J)) -> OEDV | E43: =_xlfn.XLOOKUP(A43,'MMPM1-AMM'!E:E,'MMPM1-AMM'!Q:Q,_xlfn.XLOOKUP(A43,'MMPM1-PMM'!E:E,'MMPM1-PMM'!P:P)) -> 6 | F43: =SUMIFS(MMPM2!H:H,MMPM2!C:C,U43,MMPM2!E:E,1,MMPM2!G:G,1) -> 5.3 | G43: =SUMIFS(MMPM2!H:H,MMPM2!C:C,U43,MMPM2!E:E,1,MMPM2!G:G,2) -> 53.3 | L43: =SUMIFS(MMPM2!I:I,MMPM2!C:C,U43,MMPM2!E:E,1,MMPM2!G:G,1) -> 1.1 | M43: =SUMIFS(MMPM2!I:I,MMPM2!C:C,U43,MMPM2!E:E,1,MMPM2!G:G,2) -> 0.2 | N43: =SUMIFS(MMPM2!I:I,MMPM2!C:C,U43,MMPM2!E:E,1,MMPM2!G:G,3) -> 10.7 | R43: Not applicable | S43: No doubling of mistrade range | U43: =IFERROR(_xlfn.XLOOKUP(A43,'MMPM1-PMM'!E:E,'MMPM1-PMM'!J:J),_xlfn.XLOOKUP(A43,'MMPM1-AMM'!E:E,'MMPM1-AMM'!K:K)) -> OEDV | V43: =IFERROR(_xlfn.XLOOKUP(A43,'MMPM1-AMM'!E:E,'MMPM1-AMM'!T:T),_xlfn.XLOOKUP(A43,'MMPM1-PMM'!E:E,'MMPM1-PMM'!S:S)) -> 3 | W43: =IFERROR(_xlfn.XLOOKUP(A43,'MMPM1-AMM'!E:E,'MMPM1-AMM'!U:U),_xlfn.XLOOKUP(A43,'MMPM1-PMM'!E:E,'MMPM1-PMM'!T:T)) -> 6 | Y43: TRUE | AB43: =_xlfn.XLOOKUP(A43,productlist[PRODUCT_ID],productlist[PRODUCT_ISIN]) -> DE000A0ME676 | AC43: =_xlfn.XLOOKUP(A43,productlist[PRODUCT_ID],productlist[UNDERLYING_ISIN]) -> CH0020751589
A44: OEMB | B44: =_xlfn.XLOOKUP(A44,'Product List'!$A:$A,'Product List'!$D:$D) -> iShares J.P. Morgan USD Emerging Market Bond UCITS Options [american] | C44: =_xlfn.XLOOKUP(A44,'Product List'!$A:$A,'Product List'!$F:$F) -> EXTF-OPTIONS | D44: =_xlfn.XLOOKUP(A44,'MMPM1-AMM'!E:E,'MMPM1-AMM'!K:K,_xlfn.XLOOKUP(A44,'MMPM1-PMM'!E:E,'MMPM1-PMM'!J:J)) -> FI-ETF | E44: =_xlfn.XLOOKUP(A44,'MMPM1-AMM'!E:E,'MMPM1-AMM'!Q:Q,_xlfn.XLOOKUP(A44,'MMPM1-PMM'!E:E,'MMPM1-PMM'!P:P)) -> 3 | F44: =SUMIFS(MMPM2!H:H,MMPM2!C:C,U44,MMPM2!E:E,1,MMPM2!G:G,1) -> 1.5 | G44: =SUMIFS(MMPM2!H:H,MMPM2!C:C,U44,MMPM2!E:E,1,MMPM2!G:G,2) -> 15 | L44: =SUMIFS(MMPM2!I:I,MMPM2!C:C,U44,MMPM2!E:E,1,MMPM2!G:G,1) -> 0.35 | M44: =SUMIFS(MMPM2!I:I,MMPM2!C:C,U44,MMPM2!E:E,1,MMPM2!G:G,2) -> 0.2 | N44: =SUMIFS(MMPM2!I:I,MMPM2!C:C,U44,MMPM2!E:E,1,MMPM2!G:G,3) -> 3 | R44: Not applicable | S44: No doubling of mistrade range | U44: =IFERROR(_xlfn.XLOOKUP(A44,'MMPM1-PMM'!E:E,'MMPM1-PMM'!J:J),_xlfn.XLOOKUP(A44,'MMPM1-AMM'!E:E,'MMPM1-AMM'!K:K)) -> FI-ETF | V44: =IFERROR(_xlfn.XLOOKUP(A44,'MMPM1-AMM'!E:E,'MMPM1-AMM'!T:T),_xlfn.XLOOKUP(A44,'MMPM1-PMM'!E:E,'MMPM1-PMM'!S:S)) -> 3 | W44: =IFERROR(_xlfn.XLOOKUP(A44,'MMPM1-AMM'!E:E,'MMPM1-AMM'!U:U),_xlfn.XLOOKUP(A44,'MMPM1-PMM'!E:E,'MMPM1-PMM'!T:T)) -> 3 | Y44: TRUE | AB44: =_xlfn.XLOOKUP(A44,productlist[PRODUCT_ID],productlist[PRODUCT_ISIN]) -> DE000A2G9QK2 | AC44: =_xlfn.XLOOKUP(A44,productlist[PRODUCT_ID],productlist[UNDERLYING_ISIN]) -> IE00B2NPKV68
A45: OESA | B45: =_xlfn.XLOOKUP(A45,'Product List'!$A:$A,'Product List'!$D:$D) -> EURO STOXX® Automobiles & Parts Options | C45: =_xlfn.XLOOKUP(A45,'Product List'!$A:$A,'Product List'!$F:$F) -> INDEX OPTIONS | D45: =_xlfn.XLOOKUP(A45,'MMPM1-AMM'!E:E,'MMPM1-AMM'!K:K,_xlfn.XLOOKUP(A45,'MMPM1-PMM'!E:E,'MMPM1-PMM'!J:J)) -> STXSO1 | E45: =_xlfn.XLOOKUP(A45,'MMPM1-AMM'!E:E,'MMPM1-AMM'!Q:Q,_xlfn.XLOOKUP(A45,'MMPM1-PMM'!E:E,'MMPM1-PMM'!P:P)) -> 5 | F45: =SUMIFS(MMPM2!H:H,MMPM2!C:C,U45,MMPM2!E:E,1,MMPM2!G:G,1) -> 8.3 | G45: =SUMIFS(MMPM2!H:H,MMPM2!C:C,U45,MMPM2!E:E,1,MMPM2!G:G,2) -> 53.3 | L45: =SUMIFS(MMPM2!I:I,MMPM2!C:C,U45,MMPM2!E:E,1,MMPM2!G:G,1) -> 0.8 | M45: =SUMIFS(MMPM2!I:I,MMPM2!C:C,U45,MMPM2!E:E,1,MMPM2!G:G,2) -> 0.15 | N45: =SUMIFS(MMPM2!I:I,MMPM2!C:C,U45,MMPM2!E:E,1,MMPM2!G:G,3) -> 8 | R45: Not applicable | S45: No doubling of mistrade range | U45: =IFERROR(_xlfn.XLOOKUP(A45,'MMPM1-PMM'!E:E,'MMPM1-PMM'!J:J),_xlfn.XLOOKUP(A45,'MMPM1-AMM'!E:E,'MMPM1-AMM'!K:K)) -> STXSO1 | V45: =IFERROR(_xlfn.XLOOKUP(A45,'MMPM1-AMM'!E:E,'MMPM1-AMM'!T:T),_xlfn.XLOOKUP(A45,'MMPM1-PMM'!E:E,'MMPM1-PMM'!S:S)) -> 3 | W45: =IFERROR(_xlfn.XLOOKUP(A45,'MMPM1-AMM'!E:E,'MMPM1-AMM'!U:U),_xlfn.XLOOKUP(A45,'MMPM1-PMM'!E:E,'MMPM1-PMM'!T:T)) -> 5 | Y45: TRUE | AB45: =_xlfn.XLOOKUP(A45,productlist[PRODUCT_ID],productlist[PRODUCT_ISIN]) -> DE0005303572 | AC45: =_xlfn.XLOOKUP(A45,productlist[PRODUCT_ID],productlist[UNDERLYING_ISIN]) -> EU0009658301
A46: OESB | B46: =_xlfn.XLOOKUP(A46,'Product List'!$A:$A,'Product List'!$D:$D) -> EURO STOXX® Banks Options | C46: =_xlfn.XLOOKUP(A46,'Product List'!$A:$A,'Product List'!$F:$F) -> INDEX OPTIONS | D46: =_xlfn.XLOOKUP(A46,'MMPM1-AMM'!E:E,'MMPM1-AMM'!K:K,_xlfn.XLOOKUP(A46,'MMPM1-PMM'!E:E,'MMPM1-PMM'!J:J)) -> STXSO1 | E46: =_xlfn.XLOOKUP(A46,'MMPM1-AMM'!E:E,'MMPM1-AMM'!Q:Q,_xlfn.XLOOKUP(A46,'MMPM1-PMM'!E:E,'MMPM1-PMM'!P:P)) -> 5 | F46: =SUMIFS(MMPM2!H:H,MMPM2!C:C,U46,MMPM2!E:E,1,MMPM2!G:G,1) -> 8.3 | G46: =SUMIFS(MMPM2!H:H,MMPM2!C:C,U46,MMPM2!E:E,1,MMPM2!G:G,2) -> 53.3 | L46: =SUMIFS(MMPM2!I:I,MMPM2!C:C,U46,MMPM2!E:E,1,MMPM2!G:G,1) -> 0.8 | M46: =SUMIFS(MMPM2!I:I,MMPM2!C:C,U46,MMPM2!E:E,1,MMPM2!G:G,2) -> 0.15 | N46: =SUMIFS(MMPM2!I:I,MMPM2!C:C,U46,MMPM2!E:E,1,MMPM2!G:G,3) -> 8 | R46: Not applicable | S46: No doubling of mistrade range | U46: =IFERROR(_xlfn.XLOOKUP(A46,'MMPM1-PMM'!E:E,'MMPM1-PMM'!J:J),_xlfn.XLOOKUP(A46,'MMPM1-AMM'!E:E,'MMPM1-AMM'!K:K)) -> STXSO1 | V46: =IFERROR(_xlfn.XLOOKUP(A46,'MMPM1-AMM'!E:E,'MMPM1-AMM'!T:T),_xlfn.XLOOKUP(A46,'MMPM1-PMM'!E:E,'MMPM1-PMM'!S:S)) -> 3 | W46: =IFERROR(_xlfn.XLOOKUP(A46,'MMPM1-AMM'!E:E,'MMPM1-AMM'!U:U),_xlfn.XLOOKUP(A46,'MMPM1-PMM'!E:E,'MMPM1-PMM'!T:T)) -> 5 | Y46: TRUE | AB46: =_xlfn.XLOOKUP(A46,productlist[PRODUCT_ID],productlist[PRODUCT_ISIN]) -> DE0007923518 | AC46: =_xlfn.XLOOKUP(A46,productlist[PRODUCT_ID],productlist[UNDERLYING_ISIN]) -> EU0009658426
A47: OESC | B47: =_xlfn.XLOOKUP(A47,'Product List'!$A:$A,'Product List'!$D:$D) -> EURO STOXX® Chemicals Options | C47: =_xlfn.XLOOKUP(A47,'Product List'!$A:$A,'Product List'!$F:$F) -> INDEX OPTIONS | D47: =_xlfn.XLOOKUP(A47,'MMPM1-AMM'!E:E,'MMPM1-AMM'!K:K,_xlfn.XLOOKUP(A47,'MMPM1-PMM'!E:E,'MMPM1-PMM'!J:J)) -> STXSO1 | E47: =_xlfn.XLOOKUP(A47,'MMPM1-AMM'!E:E,'MMPM1-AMM'!Q:Q,_xlfn.XLOOKUP(A47,'MMPM1-PMM'!E:E,'MMPM1-PMM'!P:P)) -> 5 | F47: =SUMIFS(MMPM2!H:H,MMPM2!C:C,U47,MMPM2!E:E,1,MMPM2!G:G,1) -> 8.3 | G47: =SUMIFS(MMPM2!H:H,MMPM2!C:C,U47,MMPM2!E:E,1,MMPM2!G:G,2) -> 53.3 | L47: =SUMIFS(MMPM2!I:I,MMPM2!C:C,U47,MMPM2!E:E,1,MMPM2!G:G,1) -> 0.8 | M47: =SUMIFS(MMPM2!I:I,MMPM2!C:C,U47,MMPM2!E:E,1,MMPM2!G:G,2) -> 0.15 | N47: =SUMIFS(MMPM2!I:I,MMPM2!C:C,U47,MMPM2!E:E,1,MMPM2!G:G,3) -> 8 | R47: Not applicable | S47: No doubling of mistrade range | U47: =IFERROR(_xlfn.XLOOKUP(A47,'MMPM1-PMM'!E:E,'MMPM1-PMM'!J:J),_xlfn.XLOOKUP(A47,'MMPM1-AMM'!E:E,'MMPM1-AMM'!K:K)) -> STXSO1 | V47: =IFERROR(_xlfn.XLOOKUP(A47,'MMPM1-AMM'!E:E,'MMPM1-AMM'!T:T),_xlfn.XLOOKUP(A47,'MMPM1-PMM'!E:E,'MMPM1-PMM'!S:S)) -> 3 | W47: =IFERROR(_xlfn.XLOOKUP(A47,'MMPM1-AMM'!E:E,'MMPM1-AMM'!U:U),_xlfn.XLOOKUP(A47,'MMPM1-PMM'!E:E,'MMPM1-PMM'!T:T)) -> 5 | Y47: TRUE | AB47: =_xlfn.XLOOKUP(A47,productlist[PRODUCT_ID],productlist[PRODUCT_ISIN]) -> DE0002271111 | AC47: =_xlfn.XLOOKUP(A47,productlist[PRODUCT_ID],productlist[UNDERLYING_ISIN]) -> EU0009658228
A48: OESE | B48: =_xlfn.XLOOKUP(A48,'Product List'!$A:$A,'Product List'!$D:$D) -> EURO STOXX® Oil & Gas Options | C48: =_xlfn.XLOOKUP(A48,'Product List'!$A:$A,'Product List'!$F:$F) -> INDEX OPTIONS | D48: =_xlfn.XLOOKUP(A48,'MMPM1-AMM'!E:E,'MMPM1-AMM'!K:K,_xlfn.XLOOKUP(A48,'MMPM1-PMM'!E:E,'MMPM1-PMM'!J:J)) -> STXSO1 | E48: =_xlfn.XLOOKUP(A48,'MMPM1-AMM'!E:E,'MMPM1-AMM'!Q:Q,_xlfn.XLOOKUP(A48,'MMPM1-PMM'!E:E,'MMPM1-PMM'!P:P)) -> 5 | F48: =SUMIFS(MMPM2!H:H,MMPM2!C:C,U48,MMPM2!E:E,1,MMPM2!G:G,1) -> 8.3 | G48: =SUMIFS(MMPM2!H:H,MMPM2!C:C,U48,MMPM2!E:E,1,MMPM2!G:G,2) -> 53.3 | L48: =SUMIFS(MMPM2!I:I,MMPM2!C:C,U48,MMPM2!E:E,1,MMPM2!G:G,1) -> 0.8 | M48: =SUMIFS(MMPM2!I:I,MMPM2!C:C,U48,MMPM2!E:E,1,MMPM2!G:G,2) -> 0.15 | N48: =SUMIFS(MMPM2!I:I,MMPM2!C:C,U48,MMPM2!E:E,1,MMPM2!G:G,3) -> 8 | R48: Not applicable | S48: No doubling of mistrade range | U48: =IFERROR(_xlfn.XLOOKUP(A48,'MMPM1-PMM'!E:E,'MMPM1-PMM'!J:J),_xlfn.XLOOKUP(A48,'MMPM1-AMM'!E:E,'MMPM1-AMM'!K:K)) -> STXSO1 | V48: =IFERROR(_xlfn.XLOOKUP(A48,'MMPM1-AMM'!E:E,'MMPM1-AMM'!T:T),_xlfn.XLOOKUP(A48,'MMPM1-PMM'!E:E,'MMPM1-PMM'!S:S)) -> 3 | W48: =IFERROR(_xlfn.XLOOKUP(A48,'MMPM1-AMM'!E:E,'MMPM1-AMM'!U:U),_xlfn.XLOOKUP(A48,'MMPM1-PMM'!E:E,'MMPM1-PMM'!T:T)) -> 5 | Y48: TRUE | AB48: =_xlfn.XLOOKUP(A48,productlist[PRODUCT_ID],productlist[PRODUCT_ISIN]) -> DE0005303556 | AC48: =_xlfn.XLOOKUP(A48,productlist[PRODUCT_ID],productlist[UNDERLYING_ISIN]) -> EU0009658400
A49: OESF | B49: =_xlfn.XLOOKUP(A49,'Product List'!$A:$A,'Product List'!$D:$D) -> EURO STOXX® Financial Services Options | C49: =_xlfn.XLOOKUP(A49,'Product List'!$A:$A,'Product List'!$F:$F) -> INDEX OPTIONS | D49: =_xlfn.XLOOKUP(A49,'MMPM1-AMM'!E:E,'MMPM1-AMM'!K:K,_xlfn.XLOOKUP(A49,'MMPM1-PMM'!E:E,'MMPM1-PMM'!J:J)) -> STXSO1 | E49: =_xlfn.XLOOKUP(A49,'MMPM1-AMM'!E:E,'MMPM1-AMM'!Q:Q,_xlfn.XLOOKUP(A49,'MMPM1-PMM'!E:E,'MMPM1-PMM'!P:P)) -> 5 | F49: =SUMIFS(MMPM2!H:H,MMPM2!C:C,U49,MMPM2!E:E,1,MMPM2!G:G,1) -> 8.3 | G49: =SUMIFS(MMPM2!H:H,MMPM2!C:C,U49,MMPM2!E:E,1,MMPM2!G:G,2) -> 53.3 | L49: =SUMIFS(MMPM2!I:I,MMPM2!C:C,U49,MMPM2!E:E,1,MMPM2!G:G,1) -> 0.8 | M49: =SUMIFS(MMPM2!I:I,MMPM2!C:C,U49,MMPM2!E:E,1,MMPM2!G:G,2) -> 0.15 | N49: =SUMIFS(MMPM2!I:I,MMPM2!C:C,U49,MMPM2!E:E,1,MMPM2!G:G,3) -> 8 | R49: Not applicable | S49: No doubling of mistrade range | U49: =IFERROR(_xlfn.XLOOKUP(A49,'MMPM1-PMM'!E:E,'MMPM1-PMM'!J:J),_xlfn.XLOOKUP(A49,'MMPM1-AMM'!E:E,'MMPM1-AMM'!K:K)) -> STXSO1 | V49: =IFERROR(_xlfn.XLOOKUP(A49,'MMPM1-AMM'!E:E,'MMPM1-AMM'!T:T),_xlfn.XLOOKUP(A49,'MMPM1-PMM'!E:E,'MMPM1-PMM'!S:S)) -> 3 | W49: =IFERROR(_xlfn.XLOOKUP(A49,'MMPM1-AMM'!E:E,'MMPM1-AMM'!U:U),_xlfn.XLOOKUP(A49,'MMPM1-PMM'!E:E,'MMPM1-PMM'!T:T)) -> 5 | Y49: TRUE | AB49: =_xlfn.XLOOKUP(A49,productlist[PRODUCT_ID],productlist[PRODUCT_ISIN]) -> DE0007200719 | AC49: =_xlfn.XLOOKUP(A49,productlist[PRODUCT_ID],productlist[UNDERLYING_ISIN]) -> EU0009658467
A50: OESG | B50: =_xlfn.XLOOKUP(A50,'Product List'!$A:$A,'Product List'!$D:$D) -> EURO STOXX® Industrial Goods & Services Options | C50: =_xlfn.XLOOKUP(A50,'Product List'!$A:$A,'Product List'!$F:$F) -> INDEX OPTIONS | D50: =_xlfn.XLOOKUP(A50,'MMPM1-AMM'!E:E,'MMPM1-AMM'!K:K,_xlfn.XLOOKUP(A50,'MMPM1-PMM'!E:E,'MMPM1-PMM'!J:J)) -> STXSO1 | E50: =_xlfn.XLOOKUP(A50,'MMPM1-AMM'!E:E,'MMPM1-AMM'!Q:Q,_xlfn.XLOOKUP(A50,'MMPM1-PMM'!E:E,'MMPM1-PMM'!P:P)) -> 5 | F50: =SUMIFS(MMPM2!H:H,MMPM2!C:C,U50,MMPM2!E:E,1,MMPM2!G:G,1) -> 8.3 | G50: =SUMIFS(MMPM2!H:H,MMPM2!C:C,U50,MMPM2!E:E,1,MMPM2!G:G,2) -> 53.3 | L50: =SUMIFS(MMPM2!I:I,MMPM2!C:C,U50,MMPM2!E:E,1,MMPM2!G:G,1) -> 0.8 | M50: =SUMIFS(MMPM2!I:I,MMPM2!C:C,U50,MMPM2!E:E,1,MMPM2!G:G,2) -> 0.15 | N50: =SUMIFS(MMPM2!I:I,MMPM2!C:C,U50,MMPM2!E:E,1,MMPM2!G:G,3) -> 8 | R50: Not applicable | S50: No doubling of mistrade range | U50: =IFERROR(_xlfn.XLOOKUP(A50,'MMPM1-PMM'!E:E,'MMPM1-PMM'!J:J),_xlfn.XLOOKUP(A50,'MMPM1-AMM'!E:E,'MMPM1-AMM'!K:K)) -> STXSO1 | V50: =IFERROR(_xlfn.XLOOKUP(A50,'MMPM1-AMM'!E:E,'MMPM1-AMM'!T:T),_xlfn.XLOOKUP(A50,'MMPM1-PMM'!E:E,'MMPM1-PMM'!S:S)) -> 3 | W50: =IFERROR(_xlfn.XLOOKUP(A50,'MMPM1-AMM'!E:E,'MMPM1-AMM'!U:U),_xlfn.XLOOKUP(A50,'MMPM1-PMM'!E:E,'MMPM1-PMM'!T:T)) -> 5 | Y50: TRUE | AB50: =_xlfn.XLOOKUP(A50,productlist[PRODUCT_ID],productlist[PRODUCT_ISIN]) -> DE0002271079 | AC50: =_xlfn.XLOOKUP(A50,productlist[PRODUCT_ID],productlist[UNDERLYING_ISIN]) -> EU0009658525
A51: OESH | B51: =_xlfn.XLOOKUP(A51,'Product List'!$A:$A,'Product List'!$D:$D) -> EURO STOXX® Health Care Options | C51: =_xlfn.XLOOKUP(A51,'Product List'!$A:$A,'Product List'!$F:$F) -> INDEX OPTIONS | D51: =_xlfn.XLOOKUP(A51,'MMPM1-AMM'!E:E,'MMPM1-AMM'!K:K,_xlfn.XLOOKUP(A51,'MMPM1-PMM'!E:E,'MMPM1-PMM'!J:J)) -> STXSO2 | E51: =_xlfn.XLOOKUP(A51,'MMPM1-AMM'!E:E,'MMPM1-AMM'!Q:Q,_xlfn.XLOOKUP(A51,'MMPM1-PMM'!E:E,'MMPM1-PMM'!P:P)) -> 5 | F51: =SUMIFS(MMPM2!H:H,MMPM2!C:C,U51,MMPM2!E:E,1,MMPM2!G:G,1) -> 8.3 | G51: =SUMIFS(MMPM2!H:H,MMPM2!C:C,U51,MMPM2!E:E,1,MMPM2!G:G,2) -> 53.3 | L51: =SUMIFS(MMPM2!I:I,MMPM2!C:C,U51,MMPM2!E:E,1,MMPM2!G:G,1) -> 2.5 | M51: =SUMIFS(MMPM2!I:I,MMPM2!C:C,U51,MMPM2!E:E,1,MMPM2!G:G,2) -> 0.3 | N51: =SUMIFS(MMPM2!I:I,MMPM2!C:C,U51,MMPM2!E:E,1,MMPM2!G:G,3) -> 16.1 | R51: Not applicable | S51: No doubling of mistrade range | U51: =IFERROR(_xlfn.XLOOKUP(A51,'MMPM1-PMM'!E:E,'MMPM1-PMM'!J:J),_xlfn.XLOOKUP(A51,'MMPM1-AMM'!E:E,'MMPM1-AMM'!K:K)) -> STXSO2 | V51: =IFERROR(_xlfn.XLOOKUP(A51,'MMPM1-AMM'!E:E,'MMPM1-AMM'!T:T),_xlfn.XLOOKUP(A51,'MMPM1-PMM'!E:E,'MMPM1-PMM'!S:S)) -> 3 | W51: =IFERROR(_xlfn.XLOOKUP(A51,'MMPM1-AMM'!E:E,'MMPM1-AMM'!U:U),_xlfn.XLOOKUP(A51,'MMPM1-PMM'!E:E,'MMPM1-PMM'!T:T)) -> 4 | Y51: FALSE | AB51: =_xlfn.XLOOKUP(A51,productlist[PRODUCT_ID],productlist[PRODUCT_ISIN]) -> DE0007923526 | AC51: =_xlfn.XLOOKUP(A51,productlist[PRODUCT_ID],productlist[UNDERLYING_ISIN]) -> EU0009658343
A52: OESI | B52: =_xlfn.XLOOKUP(A52,'Product List'!$A:$A,'Product List'!$D:$D) -> EURO STOXX® Insurance Options | C52: =_xlfn.XLOOKUP(A52,'Product List'!$A:$A,'Product List'!$F:$F) -> INDEX OPTIONS | D52: =_xlfn.XLOOKUP(A52,'MMPM1-AMM'!E:E,'MMPM1-AMM'!K:K,_xlfn.XLOOKUP(A52,'MMPM1-PMM'!E:E,'MMPM1-PMM'!J:J)) -> STXSO2 | E52: =_xlfn.XLOOKUP(A52,'MMPM1-AMM'!E:E,'MMPM1-AMM'!Q:Q,_xlfn.XLOOKUP(A52,'MMPM1-PMM'!E:E,'MMPM1-PMM'!P:P)) -> 5 | F52: =SUMIFS(MMPM2!H:H,MMPM2!C:C,U52,MMPM2!E:E,1,MMPM2!G:G,1) -> 8.3 | G52: =SUMIFS(MMPM2!H:H,MMPM2!C:C,U52,MMPM2!E:E,1,MMPM2!G:G,2) -> 53.3 | L52: =SUMIFS(MMPM2!I:I,MMPM2!C:C,U52,MMPM2!E:E,1,MMPM2!G:G,1) -> 2.5 | M52: =SUMIFS(MMPM2!I:I,MMPM2!C:C,U52,MMPM2!E:E,1,MMPM2!G:G,2) -> 0.3 | N52: =SUMIFS(MMPM2!I:I,MMPM2!C:C,U52,MMPM2!E:E,1,MMPM2!G:G,3) -> 16.1 | R52: Not applicable | S52: No doubling of mistrade range | U52: =IFERROR(_xlfn.XLOOKUP(A52,'MMPM1-PMM'!E:E,'MMPM1-PMM'!J:J),_xlfn.XLOOKUP(A52,'MMPM1-AMM'!E:E,'MMPM1-AMM'!K:K)) -> STXSO2 | V52: =IFERROR(_xlfn.XLOOKUP(A52,'MMPM1-AMM'!E:E,'MMPM1-AMM'!T:T),_xlfn.XLOOKUP(A52,'MMPM1-PMM'!E:E,'MMPM1-PMM'!S:S)) -> 3 | W52: =IFERROR(_xlfn.XLOOKUP(A52,'MMPM1-AMM'!E:E,'MMPM1-AMM'!U:U),_xlfn.XLOOKUP(A52,'MMPM1-PMM'!E:E,'MMPM1-PMM'!T:T)) -> 4 | Y52: FALSE | AB52: =_xlfn.XLOOKUP(A52,productlist[PRODUCT_ID],productlist[PRODUCT_ISIN]) -> DE0005303564 | AC52: =_xlfn.XLOOKUP(A52,productlist[PRODUCT_ID],productlist[UNDERLYING_ISIN]) -> EU0009658442
A53: OESJ | B53: =_xlfn.XLOOKUP(A53,'Product List'!$A:$A,'Product List'!$D:$D) -> EURO STOXX® Energy Options | C53: =_xlfn.XLOOKUP(A53,'Product List'!$A:$A,'Product List'!$F:$F) -> INDEX OPTIONS | D53: =_xlfn.XLOOKUP(A53,'MMPM1-AMM'!E:E,'MMPM1-AMM'!K:K,_xlfn.XLOOKUP(A53,'MMPM1-PMM'!E:E,'MMPM1-PMM'!J:J)) -> STXSO1 | E53: =_xlfn.XLOOKUP(A53,'MMPM1-AMM'!E:E,'MMPM1-AMM'!Q:Q,_xlfn.XLOOKUP(A53,'MMPM1-PMM'!E:E,'MMPM1-PMM'!P:P)) -> 5 | F53: =SUMIFS(MMPM2!H:H,MMPM2!C:C,U53,MMPM2!E:E,1,MMPM2!G:G,1) -> 8.3 | G53: =SUMIFS(MMPM2!H:H,MMPM2!C:C,U53,MMPM2!E:E,1,MMPM2!G:G,2) -> 53.3 | L53: =SUMIFS(MMPM2!I:I,MMPM2!C:C,U53,MMPM2!E:E,1,MMPM2!G:G,1) -> 0.8 | M53: =SUMIFS(MMPM2!I:I,MMPM2!C:C,U53,MMPM2!E:E,1,MMPM2!G:G,2) -> 0.15 | N53: =SUMIFS(MMPM2!I:I,MMPM2!C:C,U53,MMPM2!E:E,1,MMPM2!G:G,3) -> 8 | R53: Not applicable | S53: No doubling of mistrade range | U53: =IFERROR(_xlfn.XLOOKUP(A53,'MMPM1-PMM'!E:E,'MMPM1-PMM'!J:J),_xlfn.XLOOKUP(A53,'MMPM1-AMM'!E:E,'MMPM1-AMM'!K:K)) -> STXSO1 | V53: =IFERROR(_xlfn.XLOOKUP(A53,'MMPM1-AMM'!E:E,'MMPM1-AMM'!T:T),_xlfn.XLOOKUP(A53,'MMPM1-PMM'!E:E,'MMPM1-PMM'!S:S)) -> 3 | W53: =IFERROR(_xlfn.XLOOKUP(A53,'MMPM1-AMM'!E:E,'MMPM1-AMM'!U:U),_xlfn.XLOOKUP(A53,'MMPM1-PMM'!E:E,'MMPM1-PMM'!T:T)) -> 5 | Y53: TRUE | AB53: =_xlfn.XLOOKUP(A53,productlist[PRODUCT_ID],productlist[PRODUCT_ISIN]) -> DE000A2QBEV6 | AC53: =_xlfn.XLOOKUP(A53,productlist[PRODUCT_ID],productlist[UNDERLYING_ISIN]) -> CH0462353894
A54: OESK | B54: =_xlfn.XLOOKUP(A54,'Product List'!$A:$A,'Product List'!$D:$D) -> EURO STOXX® Consumer Products & Services Options | C54: =_xlfn.XLOOKUP(A54,'Product List'!$A:$A,'Product List'!$F:$F) -> INDEX OPTIONS | D54: =_xlfn.XLOOKUP(A54,'MMPM1-AMM'!E:E,'MMPM1-AMM'!K:K,_xlfn.XLOOKUP(A54,'MMPM1-PMM'!E:E,'MMPM1-PMM'!J:J)) -> STXSO1 | E54: =_xlfn.XLOOKUP(A54,'MMPM1-AMM'!E:E,'MMPM1-AMM'!Q:Q,_xlfn.XLOOKUP(A54,'MMPM1-PMM'!E:E,'MMPM1-PMM'!P:P)) -> 5 | F54: =SUMIFS(MMPM2!H:H,MMPM2!C:C,U54,MMPM2!E:E,1,MMPM2!G:G,1) -> 8.3 | G54: =SUMIFS(MMPM2!H:H,MMPM2!C:C,U54,MMPM2!E:E,1,MMPM2!G:G,2) -> 53.3 | L54: =SUMIFS(MMPM2!I:I,MMPM2!C:C,U54,MMPM2!E:E,1,MMPM2!G:G,1) -> 0.8 | M54: =SUMIFS(MMPM2!I:I,MMPM2!C:C,U54,MMPM2!E:E,1,MMPM2!G:G,2) -> 0.15 | N54: =SUMIFS(MMPM2!I:I,MMPM2!C:C,U54,MMPM2!E:E,1,MMPM2!G:G,3) -> 8 | R54: =IF(D54="OVS","",IF(V54=3, "Not applicable",W54-1)) -> Not applicable | S54: No doubling of mistrade range | U54: =IFERROR(_xlfn.XLOOKUP(A54,'MMPM1-PMM'!E:E,'MMPM1-PMM'!J:J),_xlfn.XLOOKUP(A54,'MMPM1-AMM'!E:E,'MMPM1-AMM'!K:K)) -> STXSO1 | V54: =IFERROR(_xlfn.XLOOKUP(A54,'MMPM1-AMM'!E:E,'MMPM1-AMM'!T:T),_xlfn.XLOOKUP(A54,'MMPM1-PMM'!E:E,'MMPM1-PMM'!S:S)) -> 3 | W54: =IFERROR(_xlfn.XLOOKUP(A54,'MMPM1-AMM'!E:E,'MMPM1-AMM'!U:U),_xlfn.XLOOKUP(A54,'MMPM1-PMM'!E:E,'MMPM1-PMM'!T:T)) -> 5 | Y54: TRUE | AB54: =_xlfn.XLOOKUP(A54,productlist[PRODUCT_ID],productlist[PRODUCT_ISIN]) -> DE000A2QBEW4 | AC54: =_xlfn.XLOOKUP(A54,productlist[PRODUCT_ID],productlist[UNDERLYING_ISIN]) -> CH0462353654
A55: OESL | B55: =_xlfn.XLOOKUP(A55,'Product List'!$A:$A,'Product List'!$D:$D) -> EURO STOXX® Real Estate Options | C55: =_xlfn.XLOOKUP(A55,'Product List'!$A:$A,'Product List'!$F:$F) -> INDEX OPTIONS | D55: =_xlfn.XLOOKUP(A55,'MMPM1-AMM'!E:E,'MMPM1-AMM'!K:K,_xlfn.XLOOKUP(A55,'MMPM1-PMM'!E:E,'MMPM1-PMM'!J:J)) -> STXSO1 | E55: =_xlfn.XLOOKUP(A55,'MMPM1-AMM'!E:E,'MMPM1-AMM'!Q:Q,_xlfn.XLOOKUP(A55,'MMPM1-PMM'!E:E,'MMPM1-PMM'!P:P)) -> 5 | F55: =SUMIFS(MMPM2!H:H,MMPM2!C:C,U55,MMPM2!E:E,1,MMPM2!G:G,1) -> 8.3 | G55: =SUMIFS(MMPM2!H:H,MMPM2!C:C,U55,MMPM2!E:E,1,MMPM2!G:G,2) -> 53.3 | L55: =SUMIFS(MMPM2!I:I,MMPM2!C:C,U55,MMPM2!E:E,1,MMPM2!G:G,1) -> 0.8 | M55: =SUMIFS(MMPM2!I:I,MMPM2!C:C,U55,MMPM2!E:E,1,MMPM2!G:G,2) -> 0.15 | N55: =SUMIFS(MMPM2!I:I,MMPM2!C:C,U55,MMPM2!E:E,1,MMPM2!G:G,3) -> 8 | R55: Not applicable | S55: =IF(D55="OVS","",IF(V55=3, "No doubling of mistrade range",W55-1)) -> No doubling of mistrade range | U55: =IFERROR(_xlfn.XLOOKUP(A55,'MMPM1-PMM'!E:E,'MMPM1-PMM'!J:J),_xlfn.XLOOKUP(A55,'MMPM1-AMM'!E:E,'MMPM1-AMM'!K:K)) -> STXSO1 | V55: =IFERROR(_xlfn.XLOOKUP(A55,'MMPM1-AMM'!E:E,'MMPM1-AMM'!T:T),_xlfn.XLOOKUP(A55,'MMPM1-PMM'!E:E,'MMPM1-PMM'!S:S)) -> 3 | W55: =IFERROR(_xlfn.XLOOKUP(A55,'MMPM1-AMM'!E:E,'MMPM1-AMM'!U:U),_xlfn.XLOOKUP(A55,'MMPM1-PMM'!E:E,'MMPM1-PMM'!T:T)) -> 5 | Y55: =W55=E55 -> TRUE | AB55: =_xlfn.XLOOKUP(A55,productlist[PRODUCT_ID],productlist[PRODUCT_ISIN]) -> DE000A0V8N51 | AC55: =_xlfn.XLOOKUP(A55,productlist[PRODUCT_ID],productlist[UNDERLYING_ISIN]) -> CH0043274445
A56: OESM | B56: =_xlfn.XLOOKUP(A56,'Product List'!$A:$A,'Product List'!$D:$D) -> EURO STOXX® Media Options | C56: =_xlfn.XLOOKUP(A56,'Product List'!$A:$A,'Product List'!$F:$F) -> INDEX OPTIONS | D56: =_xlfn.XLOOKUP(A56,'MMPM1-AMM'!E:E,'MMPM1-AMM'!K:K,_xlfn.XLOOKUP(A56,'MMPM1-PMM'!E:E,'MMPM1-PMM'!J:J)) -> STXSO1 | E56: =_xlfn.XLOOKUP(A56,'MMPM1-AMM'!E:E,'MMPM1-AMM'!Q:Q,_xlfn.XLOOKUP(A56,'MMPM1-PMM'!E:E,'MMPM1-PMM'!P:P)) -> 5 | F56: =SUMIFS(MMPM2!H:H,MMPM2!C:C,U56,MMPM2!E:E,1,MMPM2!G:G,1) -> 8.3 | G56: =SUMIFS(MMPM2!H:H,MMPM2!C:C,U56,MMPM2!E:E,1,MMPM2!G:G,2) -> 53.3 | L56: =SUMIFS(MMPM2!I:I,MMPM2!C:C,U56,MMPM2!E:E,1,MMPM2!G:G,1) -> 0.8 | M56: =SUMIFS(MMPM2!I:I,MMPM2!C:C,U56,MMPM2!E:E,1,MMPM2!G:G,2) -> 0.15 | N56: =SUMIFS(MMPM2!I:I,MMPM2!C:C,U56,MMPM2!E:E,1,MMPM2!G:G,3) -> 8 | R56: Not applicable | S56: No doubling of mistrade range | U56: =IFERROR(_xlfn.XLOOKUP(A56,'MMPM1-PMM'!E:E,'MMPM1-PMM'!J:J),_xlfn.XLOOKUP(A56,'MMPM1-AMM'!E:E,'MMPM1-AMM'!K:K)) -> STXSO1 | V56: =IFERROR(_xlfn.XLOOKUP(A56,'MMPM1-AMM'!E:E,'MMPM1-AMM'!T:T),_xlfn.XLOOKUP(A56,'MMPM1-PMM'!E:E,'MMPM1-PMM'!S:S)) -> 3 | W56: =IFERROR(_xlfn.XLOOKUP(A56,'MMPM1-AMM'!E:E,'MMPM1-AMM'!U:U),_xlfn.XLOOKUP(A56,'MMPM1-PMM'!E:E,'MMPM1-PMM'!T:T)) -> 5 | Y56: TRUE | AB56: =_xlfn.XLOOKUP(A56,productlist[PRODUCT_ID],productlist[PRODUCT_ISIN]) -> DE0007200693 | AC56: =_xlfn.XLOOKUP(A56,productlist[PRODUCT_ID],productlist[UNDERLYING_ISIN]) -> EU0009658269
A57: OESN | B57: =_xlfn.XLOOKUP(A57,'Product List'!$A:$A,'Product List'!$D:$D) -> EURO STOXX® Construction & Materials Options | C57: =_xlfn.XLOOKUP(A57,'Product List'!$A:$A,'Product List'!$F:$F) -> INDEX OPTIONS | D57: =_xlfn.XLOOKUP(A57,'MMPM1-AMM'!E:E,'MMPM1-AMM'!K:K,_xlfn.XLOOKUP(A57,'MMPM1-PMM'!E:E,'MMPM1-PMM'!J:J)) -> STXSO1 | E57: =_xlfn.XLOOKUP(A57,'MMPM1-AMM'!E:E,'MMPM1-AMM'!Q:Q,_xlfn.XLOOKUP(A57,'MMPM1-PMM'!E:E,'MMPM1-PMM'!P:P)) -> 5 | F57: =SUMIFS(MMPM2!H:H,MMPM2!C:C,U57,MMPM2!E:E,1,MMPM2!G:G,1) -> 8.3 | G57: =SUMIFS(MMPM2!H:H,MMPM2!C:C,U57,MMPM2!E:E,1,MMPM2!G:G,2) -> 53.3 | L57: =SUMIFS(MMPM2!I:I,MMPM2!C:C,U57,MMPM2!E:E,1,MMPM2!G:G,1) -> 0.8 | M57: =SUMIFS(MMPM2!I:I,MMPM2!C:C,U57,MMPM2!E:E,1,MMPM2!G:G,2) -> 0.15 | N57: =SUMIFS(MMPM2!I:I,MMPM2!C:C,U57,MMPM2!E:E,1,MMPM2!G:G,3) -> 8 | R57: Not applicable | S57: No doubling of mistrade range | U57: =IFERROR(_xlfn.XLOOKUP(A57,'MMPM1-PMM'!E:E,'MMPM1-PMM'!J:J),_xlfn.XLOOKUP(A57,'MMPM1-AMM'!E:E,'MMPM1-AMM'!K:K)) -> STXSO1 | V57: =IFERROR(_xlfn.XLOOKUP(A57,'MMPM1-AMM'!E:E,'MMPM1-AMM'!T:T),_xlfn.XLOOKUP(A57,'MMPM1-PMM'!E:E,'MMPM1-PMM'!S:S)) -> 3 | W57: =IFERROR(_xlfn.XLOOKUP(A57,'MMPM1-AMM'!E:E,'MMPM1-AMM'!U:U),_xlfn.XLOOKUP(A57,'MMPM1-PMM'!E:E,'MMPM1-PMM'!T:T)) -> 5 | Y57: TRUE | AB57: =_xlfn.XLOOKUP(A57,productlist[PRODUCT_ID],productlist[PRODUCT_ISIN]) -> DE0002271103 | AC57: =_xlfn.XLOOKUP(A57,productlist[PRODUCT_ID],productlist[UNDERLYING_ISIN]) -> EU0009658509
A58: OESO | B58: =_xlfn.XLOOKUP(A58,'Product List'!$A:$A,'Product List'!$D:$D) -> EURO STOXX® Food & Beverage Options | C58: =_xlfn.XLOOKUP(A58,'Product List'!$A:$A,'Product List'!$F:$F) -> INDEX OPTIONS | D58: =_xlfn.XLOOKUP(A58,'MMPM1-AMM'!E:E,'MMPM1-AMM'!K:K,_xlfn.XLOOKUP(A58,'MMPM1-PMM'!E:E,'MMPM1-PMM'!J:J)) -> STXSO1 | E58: =_xlfn.XLOOKUP(A58,'MMPM1-AMM'!E:E,'MMPM1-AMM'!Q:Q,_xlfn.XLOOKUP(A58,'MMPM1-PMM'!E:E,'MMPM1-PMM'!P:P)) -> 5 | F58: =SUMIFS(MMPM2!H:H,MMPM2!C:C,U58,MMPM2!E:E,1,MMPM2!G:G,1) -> 8.3 | G58: =SUMIFS(MMPM2!H:H,MMPM2!C:C,U58,MMPM2!E:E,1,MMPM2!G:G,2) -> 53.3 | L58: =SUMIFS(MMPM2!I:I,MMPM2!C:C,U58,MMPM2!E:E,1,MMPM2!G:G,1) -> 0.8 | M58: =SUMIFS(MMPM2!I:I,MMPM2!C:C,U58,MMPM2!E:E,1,MMPM2!G:G,2) -> 0.15 | N58: =SUMIFS(MMPM2!I:I,MMPM2!C:C,U58,MMPM2!E:E,1,MMPM2!G:G,3) -> 8 | R58: Not applicable | S58: No doubling of mistrade range | U58: =IFERROR(_xlfn.XLOOKUP(A58,'MMPM1-PMM'!E:E,'MMPM1-PMM'!J:J),_xlfn.XLOOKUP(A58,'MMPM1-AMM'!E:E,'MMPM1-AMM'!K:K)) -> STXSO1 | V58: =IFERROR(_xlfn.XLOOKUP(A58,'MMPM1-AMM'!E:E,'MMPM1-AMM'!T:T),_xlfn.XLOOKUP(A58,'MMPM1-PMM'!E:E,'MMPM1-PMM'!S:S)) -> 3 | W58: =IFERROR(_xlfn.XLOOKUP(A58,'MMPM1-AMM'!E:E,'MMPM1-AMM'!U:U),_xlfn.XLOOKUP(A58,'MMPM1-PMM'!E:E,'MMPM1-PMM'!T:T)) -> 5 | Y58: TRUE | AB58: =_xlfn.XLOOKUP(A58,productlist[PRODUCT_ID],productlist[PRODUCT_ISIN]) -> DE0002271087 | AC58: =_xlfn.XLOOKUP(A58,productlist[PRODUCT_ID],productlist[UNDERLYING_ISIN]) -> EU0009658368
A59: OESP | B59: =_xlfn.XLOOKUP(A59,'Product List'!$A:$A,'Product List'!$D:$D) -> EURO STOXX® Personal Care, Drug & Grocery Stores Options | C59: =_xlfn.XLOOKUP(A59,'Product List'!$A:$A,'Product List'!$F:$F) -> INDEX OPTIONS | D59: =_xlfn.XLOOKUP(A59,'MMPM1-AMM'!E:E,'MMPM1-AMM'!K:K,_xlfn.XLOOKUP(A59,'MMPM1-PMM'!E:E,'MMPM1-PMM'!J:J)) -> STXSO1 | E59: =_xlfn.XLOOKUP(A59,'MMPM1-AMM'!E:E,'MMPM1-AMM'!Q:Q,_xlfn.XLOOKUP(A59,'MMPM1-PMM'!E:E,'MMPM1-PMM'!P:P)) -> 5 | F59: =SUMIFS(MMPM2!H:H,MMPM2!C:C,U59,MMPM2!E:E,1,MMPM2!G:G,1) -> 8.3 | G59: =SUMIFS(MMPM2!H:H,MMPM2!C:C,U59,MMPM2!E:E,1,MMPM2!G:G,2) -> 53.3 | L59: =SUMIFS(MMPM2!I:I,MMPM2!C:C,U59,MMPM2!E:E,1,MMPM2!G:G,1) -> 0.8 | M59: =SUMIFS(MMPM2!I:I,MMPM2!C:C,U59,MMPM2!E:E,1,MMPM2!G:G,2) -> 0.15 | N59: =SUMIFS(MMPM2!I:I,MMPM2!C:C,U59,MMPM2!E:E,1,MMPM2!G:G,3) -> 8 | R59: Not applicable | S59: No doubling of mistrade range | U59: =IFERROR(_xlfn.XLOOKUP(A59,'MMPM1-PMM'!E:E,'MMPM1-PMM'!J:J),_xlfn.XLOOKUP(A59,'MMPM1-AMM'!E:E,'MMPM1-AMM'!K:K)) -> STXSO1 | V59: =IFERROR(_xlfn.XLOOKUP(A59,'MMPM1-AMM'!E:E,'MMPM1-AMM'!T:T),_xlfn.XLOOKUP(A59,'MMPM1-PMM'!E:E,'MMPM1-PMM'!S:S)) -> 3 | W59: =IFERROR(_xlfn.XLOOKUP(A59,'MMPM1-AMM'!E:E,'MMPM1-AMM'!U:U),_xlfn.XLOOKUP(A59,'MMPM1-PMM'!E:E,'MMPM1-PMM'!T:T)) -> 5 | Y59: TRUE | AB59: =_xlfn.XLOOKUP(A59,productlist[PRODUCT_ID],productlist[PRODUCT_ISIN]) -> DE000A2QBEX2 | AC59: =_xlfn.XLOOKUP(A59,productlist[PRODUCT_ID],productlist[UNDERLYING_ISIN]) -> CH0462354173
A60: OESR | B60: =_xlfn.XLOOKUP(A60,'Product List'!$A:$A,'Product List'!$D:$D) -> EURO STOXX® Retail Options | C60: =_xlfn.XLOOKUP(A60,'Product List'!$A:$A,'Product List'!$F:$F) -> INDEX OPTIONS | D60: =_xlfn.XLOOKUP(A60,'MMPM1-AMM'!E:E,'MMPM1-AMM'!K:K,_xlfn.XLOOKUP(A60,'MMPM1-PMM'!E:E,'MMPM1-PMM'!J:J)) -> STXSO1 | E60: =_xlfn.XLOOKUP(A60,'MMPM1-AMM'!E:E,'MMPM1-AMM'!Q:Q,_xlfn.XLOOKUP(A60,'MMPM1-PMM'!E:E,'MMPM1-PMM'!P:P)) -> 5 | F60: =SUMIFS(MMPM2!H:H,MMPM2!C:C,U60,MMPM2!E:E,1,MMPM2!G:G,1) -> 8.3 | G60: =SUMIFS(MMPM2!H:H,MMPM2!C:C,U60,MMPM2!E:E,1,MMPM2!G:G,2) -> 53.3 | L60: =SUMIFS(MMPM2!I:I,MMPM2!C:C,U60,MMPM2!E:E,1,MMPM2!G:G,1) -> 0.8 | M60: =SUMIFS(MMPM2!I:I,MMPM2!C:C,U60,MMPM2!E:E,1,MMPM2!G:G,2) -> 0.15 | N60: =SUMIFS(MMPM2!I:I,MMPM2!C:C,U60,MMPM2!E:E,1,MMPM2!G:G,3) -> 8 | R60: Not applicable | S60: No doubling of mistrade range | U60: =IFERROR(_xlfn.XLOOKUP(A60,'MMPM1-PMM'!E:E,'MMPM1-PMM'!J:J),_xlfn.XLOOKUP(A60,'MMPM1-AMM'!E:E,'MMPM1-AMM'!K:K)) -> STXSO1 | V60: =IFERROR(_xlfn.XLOOKUP(A60,'MMPM1-AMM'!E:E,'MMPM1-AMM'!T:T),_xlfn.XLOOKUP(A60,'MMPM1-PMM'!E:E,'MMPM1-PMM'!S:S)) -> 3 | W60: =IFERROR(_xlfn.XLOOKUP(A60,'MMPM1-AMM'!E:E,'MMPM1-AMM'!U:U),_xlfn.XLOOKUP(A60,'MMPM1-PMM'!E:E,'MMPM1-PMM'!T:T)) -> 5 | Y60: TRUE | AB60: =_xlfn.XLOOKUP(A60,productlist[PRODUCT_ID],productlist[PRODUCT_ISIN]) -> DE0002271046 | AC60: =_xlfn.XLOOKUP(A60,productlist[PRODUCT_ID],productlist[UNDERLYING_ISIN]) -> CH0019113023
A61: OESS | B61: =_xlfn.XLOOKUP(A61,'Product List'!$A:$A,'Product List'!$D:$D) -> EURO STOXX® Basic Resources Options | C61: =_xlfn.XLOOKUP(A61,'Product List'!$A:$A,'Product List'!$F:$F) -> INDEX OPTIONS | D61: =_xlfn.XLOOKUP(A61,'MMPM1-AMM'!E:E,'MMPM1-AMM'!K:K,_xlfn.XLOOKUP(A61,'MMPM1-PMM'!E:E,'MMPM1-PMM'!J:J)) -> STXSO1 | E61: =_xlfn.XLOOKUP(A61,'MMPM1-AMM'!E:E,'MMPM1-AMM'!Q:Q,_xlfn.XLOOKUP(A61,'MMPM1-PMM'!E:E,'MMPM1-PMM'!P:P)) -> 5 | F61: =SUMIFS(MMPM2!H:H,MMPM2!C:C,U61,MMPM2!E:E,1,MMPM2!G:G,1) -> 8.3 | G61: =SUMIFS(MMPM2!H:H,MMPM2!C:C,U61,MMPM2!E:E,1,MMPM2!G:G,2) -> 53.3 | L61: =SUMIFS(MMPM2!I:I,MMPM2!C:C,U61,MMPM2!E:E,1,MMPM2!G:G,1) -> 0.8 | M61: =SUMIFS(MMPM2!I:I,MMPM2!C:C,U61,MMPM2!E:E,1,MMPM2!G:G,2) -> 0.15 | N61: =SUMIFS(MMPM2!I:I,MMPM2!C:C,U61,MMPM2!E:E,1,MMPM2!G:G,3) -> 8 | R61: Not applicable | S61: No doubling of mistrade range | U61: =IFERROR(_xlfn.XLOOKUP(A61,'MMPM1-PMM'!E:E,'MMPM1-PMM'!J:J),_xlfn.XLOOKUP(A61,'MMPM1-AMM'!E:E,'MMPM1-AMM'!K:K)) -> STXSO1 | V61: =IFERROR(_xlfn.XLOOKUP(A61,'MMPM1-AMM'!E:E,'MMPM1-AMM'!T:T),_xlfn.XLOOKUP(A61,'MMPM1-PMM'!E:E,'MMPM1-PMM'!S:S)) -> 3 | W61: =IFERROR(_xlfn.XLOOKUP(A61,'MMPM1-AMM'!E:E,'MMPM1-AMM'!U:U),_xlfn.XLOOKUP(A61,'MMPM1-PMM'!E:E,'MMPM1-PMM'!T:T)) -> 5 | Y61: TRUE | AB61: =_xlfn.XLOOKUP(A61,productlist[PRODUCT_ID],productlist[PRODUCT_ISIN]) -> DE0002271129 | AC61: =_xlfn.XLOOKUP(A61,productlist[PRODUCT_ID],productlist[UNDERLYING_ISIN]) -> EU0009658244
A62: OEST | B62: =_xlfn.XLOOKUP(A62,'Product List'!$A:$A,'Product List'!$D:$D) -> EURO STOXX® Telecommunications Options | C62: =_xlfn.XLOOKUP(A62,'Product List'!$A:$A,'Product List'!$F:$F) -> INDEX OPTIONS | D62: =_xlfn.XLOOKUP(A62,'MMPM1-AMM'!E:E,'MMPM1-AMM'!K:K,_xlfn.XLOOKUP(A62,'MMPM1-PMM'!E:E,'MMPM1-PMM'!J:J)) -> STXSO1 | E62: =_xlfn.XLOOKUP(A62,'MMPM1-AMM'!E:E,'MMPM1-AMM'!Q:Q,_xlfn.XLOOKUP(A62,'MMPM1-PMM'!E:E,'MMPM1-PMM'!P:P)) -> 5 | F62: =SUMIFS(MMPM2!H:H,MMPM2!C:C,U62,MMPM2!E:E,1,MMPM2!G:G,1) -> 8.3 | G62: =SUMIFS(MMPM2!H:H,MMPM2!C:C,U62,MMPM2!E:E,1,MMPM2!G:G,2) -> 53.3 | L62: =SUMIFS(MMPM2!I:I,MMPM2!C:C,U62,MMPM2!E:E,1,MMPM2!G:G,1) -> 0.8 | M62: =SUMIFS(MMPM2!I:I,MMPM2!C:C,U62,MMPM2!E:E,1,MMPM2!G:G,2) -> 0.15 | N62: =SUMIFS(MMPM2!I:I,MMPM2!C:C,U62,MMPM2!E:E,1,MMPM2!G:G,3) -> 8 | R62: Not applicable | S62: No doubling of mistrade range | U62: =IFERROR(_xlfn.XLOOKUP(A62,'MMPM1-PMM'!E:E,'MMPM1-PMM'!J:J),_xlfn.XLOOKUP(A62,'MMPM1-AMM'!E:E,'MMPM1-AMM'!K:K)) -> STXSO1 | V62: =IFERROR(_xlfn.XLOOKUP(A62,'MMPM1-AMM'!E:E,'MMPM1-AMM'!T:T),_xlfn.XLOOKUP(A62,'MMPM1-PMM'!E:E,'MMPM1-PMM'!S:S)) -> 3 | W62: =IFERROR(_xlfn.XLOOKUP(A62,'MMPM1-AMM'!E:E,'MMPM1-AMM'!U:U),_xlfn.XLOOKUP(A62,'MMPM1-PMM'!E:E,'MMPM1-PMM'!T:T)) -> 5 | Y62: TRUE | AB62: =_xlfn.XLOOKUP(A62,productlist[PRODUCT_ID],productlist[PRODUCT_ISIN]) -> DE0007923542 | AC62: =_xlfn.XLOOKUP(A62,productlist[PRODUCT_ID],productlist[UNDERLYING_ISIN]) -> EU0009658566
A63: OESU | B63: =_xlfn.XLOOKUP(A63,'Product List'!$A:$A,'Product List'!$D:$D) -> EURO STOXX® Utilities Options | C63: =_xlfn.XLOOKUP(A63,'Product List'!$A:$A,'Product List'!$F:$F) -> INDEX OPTIONS | D63: =_xlfn.XLOOKUP(A63,'MMPM1-AMM'!E:E,'MMPM1-AMM'!K:K,_xlfn.XLOOKUP(A63,'MMPM1-PMM'!E:E,'MMPM1-PMM'!J:J)) -> STXSO1 | E63: =_xlfn.XLOOKUP(A63,'MMPM1-AMM'!E:E,'MMPM1-AMM'!Q:Q,_xlfn.XLOOKUP(A63,'MMPM1-PMM'!E:E,'MMPM1-PMM'!P:P)) -> 5 | F63: =SUMIFS(MMPM2!H:H,MMPM2!C:C,U63,MMPM2!E:E,1,MMPM2!G:G,1) -> 8.3 | G63: =SUMIFS(MMPM2!H:H,MMPM2!C:C,U63,MMPM2!E:E,1,MMPM2!G:G,2) -> 53.3 | L63: =SUMIFS(MMPM2!I:I,MMPM2!C:C,U63,MMPM2!E:E,1,MMPM2!G:G,1) -> 0.8 | M63: =SUMIFS(MMPM2!I:I,MMPM2!C:C,U63,MMPM2!E:E,1,MMPM2!G:G,2) -> 0.15 | N63: =SUMIFS(MMPM2!I:I,MMPM2!C:C,U63,MMPM2!E:E,1,MMPM2!G:G,3) -> 8 | R63: Not applicable | S63: No doubling of mistrade range | U63: =IFERROR(_xlfn.XLOOKUP(A63,'MMPM1-PMM'!E:E,'MMPM1-PMM'!J:J),_xlfn.XLOOKUP(A63,'MMPM1-AMM'!E:E,'MMPM1-AMM'!K:K)) -> STXSO1 | V63: =IFERROR(_xlfn.XLOOKUP(A63,'MMPM1-AMM'!E:E,'MMPM1-AMM'!T:T),_xlfn.XLOOKUP(A63,'MMPM1-PMM'!E:E,'MMPM1-PMM'!S:S)) -> 3 | W63: =IFERROR(_xlfn.XLOOKUP(A63,'MMPM1-AMM'!E:E,'MMPM1-AMM'!U:U),_xlfn.XLOOKUP(A63,'MMPM1-PMM'!E:E,'MMPM1-PMM'!T:T)) -> 5 | Y63: TRUE | AB63: =_xlfn.XLOOKUP(A63,productlist[PRODUCT_ID],productlist[PRODUCT_ISIN]) -> DE0007200685 | AC63: =_xlfn.XLOOKUP(A63,productlist[PRODUCT_ID],productlist[UNDERLYING_ISIN]) -> EU0009658582
A64: OESV | B64: =_xlfn.XLOOKUP(A64,'Product List'!$A:$A,'Product List'!$D:$D) -> EURO STOXX® Travel & Leisure Options | C64: =_xlfn.XLOOKUP(A64,'Product List'!$A:$A,'Product List'!$F:$F) -> INDEX OPTIONS | D64: =_xlfn.XLOOKUP(A64,'MMPM1-AMM'!E:E,'MMPM1-AMM'!K:K,_xlfn.XLOOKUP(A64,'MMPM1-PMM'!E:E,'MMPM1-PMM'!J:J)) -> STXSO1 | E64: =_xlfn.XLOOKUP(A64,'MMPM1-AMM'!E:E,'MMPM1-AMM'!Q:Q,_xlfn.XLOOKUP(A64,'MMPM1-PMM'!E:E,'MMPM1-PMM'!P:P)) -> 5 | F64: =SUMIFS(MMPM2!H:H,MMPM2!C:C,U64,MMPM2!E:E,1,MMPM2!G:G,1) -> 8.3 | G64: =SUMIFS(MMPM2!H:H,MMPM2!C:C,U64,MMPM2!E:E,1,MMPM2!G:G,2) -> 53.3 | L64: =SUMIFS(MMPM2!I:I,MMPM2!C:C,U64,MMPM2!E:E,1,MMPM2!G:G,1) -> 0.8 | M64: =SUMIFS(MMPM2!I:I,MMPM2!C:C,U64,MMPM2!E:E,1,MMPM2!G:G,2) -> 0.15 | N64: =SUMIFS(MMPM2!I:I,MMPM2!C:C,U64,MMPM2!E:E,1,MMPM2!G:G,3) -> 8 | R64: Not applicable | S64: No doubling of mistrade range | U64: =IFERROR(_xlfn.XLOOKUP(A64,'MMPM1-PMM'!E:E,'MMPM1-PMM'!J:J),_xlfn.XLOOKUP(A64,'MMPM1-AMM'!E:E,'MMPM1-AMM'!K:K)) -> STXSO1 | V64: =IFERROR(_xlfn.XLOOKUP(A64,'MMPM1-AMM'!E:E,'MMPM1-AMM'!T:T),_xlfn.XLOOKUP(A64,'MMPM1-PMM'!E:E,'MMPM1-PMM'!S:S)) -> 3 | W64: =IFERROR(_xlfn.XLOOKUP(A64,'MMPM1-AMM'!E:E,'MMPM1-AMM'!U:U),_xlfn.XLOOKUP(A64,'MMPM1-PMM'!E:E,'MMPM1-PMM'!T:T)) -> 5 | Y64: TRUE | AB64: =_xlfn.XLOOKUP(A64,productlist[PRODUCT_ID],productlist[PRODUCT_ISIN]) -> DE0002271095 | AC64: =_xlfn.XLOOKUP(A64,productlist[PRODUCT_ID],productlist[UNDERLYING_ISIN]) -> CH0019113122
A65: OESW | B65: =_xlfn.XLOOKUP(A65,'Product List'!$A:$A,'Product List'!$D:$D) -> EURO STOXX® Food, Beverage & Tobacco Options | C65: =_xlfn.XLOOKUP(A65,'Product List'!$A:$A,'Product List'!$F:$F) -> INDEX OPTIONS | D65: =_xlfn.XLOOKUP(A65,'MMPM1-AMM'!E:E,'MMPM1-AMM'!K:K,_xlfn.XLOOKUP(A65,'MMPM1-PMM'!E:E,'MMPM1-PMM'!J:J)) -> STXSO1 | E65: =_xlfn.XLOOKUP(A65,'MMPM1-AMM'!E:E,'MMPM1-AMM'!Q:Q,_xlfn.XLOOKUP(A65,'MMPM1-PMM'!E:E,'MMPM1-PMM'!P:P)) -> 5 | F65: =SUMIFS(MMPM2!H:H,MMPM2!C:C,U65,MMPM2!E:E,1,MMPM2!G:G,1) -> 8.3 | G65: =SUMIFS(MMPM2!H:H,MMPM2!C:C,U65,MMPM2!E:E,1,MMPM2!G:G,2) -> 53.3 | L65: =SUMIFS(MMPM2!I:I,MMPM2!C:C,U65,MMPM2!E:E,1,MMPM2!G:G,1) -> 0.8 | M65: =SUMIFS(MMPM2!I:I,MMPM2!C:C,U65,MMPM2!E:E,1,MMPM2!G:G,2) -> 0.15 | N65: =SUMIFS(MMPM2!I:I,MMPM2!C:C,U65,MMPM2!E:E,1,MMPM2!G:G,3) -> 8 | R65: Not applicable | S65: No doubling of mistrade range | U65: =IFERROR(_xlfn.XLOOKUP(A65,'MMPM1-PMM'!E:E,'MMPM1-PMM'!J:J),_xlfn.XLOOKUP(A65,'MMPM1-AMM'!E:E,'MMPM1-AMM'!K:K)) -> STXSO1 | V65: =IFERROR(_xlfn.XLOOKUP(A65,'MMPM1-AMM'!E:E,'MMPM1-AMM'!T:T),_xlfn.XLOOKUP(A65,'MMPM1-PMM'!E:E,'MMPM1-PMM'!S:S)) -> 3 | W65: =IFERROR(_xlfn.XLOOKUP(A65,'MMPM1-AMM'!E:E,'MMPM1-AMM'!U:U),_xlfn.XLOOKUP(A65,'MMPM1-PMM'!E:E,'MMPM1-PMM'!T:T)) -> 5 | Y65: TRUE | AB65: =_xlfn.XLOOKUP(A65,productlist[PRODUCT_ID],productlist[PRODUCT_ISIN]) -> DE000A2QBEU8 | AC65: =_xlfn.XLOOKUP(A65,productlist[PRODUCT_ID],productlist[UNDERLYING_ISIN]) -> CH0462354033
A66: OESX | B66: =_xlfn.XLOOKUP(A66,'Product List'!$A:$A,'Product List'!$D:$D) -> EURO STOXX 50® Index Options | C66: =_xlfn.XLOOKUP(A66,'Product List'!$A:$A,'Product List'!$F:$F) -> INDEX OPTIONS | D66: =_xlfn.XLOOKUP(A66,'MMPM1-AMM'!E:E,'MMPM1-AMM'!K:K,_xlfn.XLOOKUP(A66,'MMPM1-PMM'!E:E,'MMPM1-PMM'!J:J)) -> OESX | E66: =_xlfn.XLOOKUP(A66,'MMPM1-AMM'!E:E,'MMPM1-AMM'!Q:Q,_xlfn.XLOOKUP(A66,'MMPM1-PMM'!E:E,'MMPM1-PMM'!P:P)) -> 17 | F66: =SUMIFS(MMPM2!H:H,MMPM2!C:C,U66,MMPM2!E:E,1,MMPM2!G:G,1) -> 15 | G66: =SUMIFS(MMPM2!H:H,MMPM2!C:C,U66,MMPM2!E:E,1,MMPM2!G:G,2) -> 225 | I66: 15 | J66: 225 | L66: =SUMIFS(MMPM2!I:I,MMPM2!C:C,U66,MMPM2!E:E,1,MMPM2!G:G,1) -> 1.2 | M66: =SUMIFS(MMPM2!I:I,MMPM2!C:C,U66,MMPM2!E:E,1,MMPM2!G:G,2) -> 0.08 | N66: =SUMIFS(MMPM2!I:I,MMPM2!C:C,U66,MMPM2!E:E,1,MMPM2!G:G,3) -> 18 | O66: 2.4 | P66: 0.16 | Q66: 36 | R66: =AF66 -> 25 | S66: 16 | U66: =IFERROR(_xlfn.XLOOKUP(A66,'MMPM1-PMM'!E:E,'MMPM1-PMM'!J:J),_xlfn.XLOOKUP(A66,'MMPM1-AMM'!E:E,'MMPM1-AMM'!K:K)) -> OESX | V66: =IFERROR(_xlfn.XLOOKUP(A66,'MMPM1-AMM'!E:E,'MMPM1-AMM'!T:T),_xlfn.XLOOKUP(A66,'MMPM1-PMM'!E:E,'MMPM1-PMM'!S:S)) -> 6 | W66: =IFERROR(_xlfn.XLOOKUP(A66,'MMPM1-AMM'!E:E,'MMPM1-AMM'!U:U),_xlfn.XLOOKUP(A66,'MMPM1-PMM'!E:E,'MMPM1-PMM'!T:T)) -> 17 | Y66: TRUE | AB66: =_xlfn.XLOOKUP(A66,productlist[PRODUCT_ID],productlist[PRODUCT_ISIN]) -> DE0009652396 | AC66: =_xlfn.XLOOKUP(A66,productlist[PRODUCT_ID],productlist[UNDERLYING_ISIN]) -> EU0009658145 | AE66: =W66-1 -> 16 | AF66: =IF(TODAY()<$AH$1,AE66+AG66,IF(TODAY()<$AI$1,AE66+AH66,IF(TODAY()<$AJ$1,AE66+AI66,IF(TODAY()<AK1,AE66+AJ66,IF(TODAY()<AL1,AE66+AK66,IF(TODAY()>=AL1,AE66+AL66)))))) -> 25 | AG66: 2 | AH66: 4 | AI66: 5 | AJ66: 6 | AK66: 8 | AL66: 9
A67: OESY | B67: =_xlfn.XLOOKUP(A67,'Product List'!$A:$A,'Product List'!$D:$D) -> EURO STOXX® Technology Options | C67: =_xlfn.XLOOKUP(A67,'Product List'!$A:$A,'Product List'!$F:$F) -> INDEX OPTIONS | D67: =_xlfn.XLOOKUP(A67,'MMPM1-AMM'!E:E,'MMPM1-AMM'!K:K,_xlfn.XLOOKUP(A67,'MMPM1-PMM'!E:E,'MMPM1-PMM'!J:J)) -> STXSO1 | E67: =_xlfn.XLOOKUP(A67,'MMPM1-AMM'!E:E,'MMPM1-AMM'!Q:Q,_xlfn.XLOOKUP(A67,'MMPM1-PMM'!E:E,'MMPM1-PMM'!P:P)) -> 5 | F67: =SUMIFS(MMPM2!H:H,MMPM2!C:C,U67,MMPM2!E:E,1,MMPM2!G:G,1) -> 8.3 | G67: =SUMIFS(MMPM2!H:H,MMPM2!C:C,U67,MMPM2!E:E,1,MMPM2!G:G,2) -> 53.3 | L67: =SUMIFS(MMPM2!I:I,MMPM2!C:C,U67,MMPM2!E:E,1,MMPM2!G:G,1) -> 0.8 | M67: =SUMIFS(MMPM2!I:I,MMPM2!C:C,U67,MMPM2!E:E,1,MMPM2!G:G,2) -> 0.15 | N67: =SUMIFS(MMPM2!I:I,MMPM2!C:C,U67,MMPM2!E:E,1,MMPM2!G:G,3) -> 8 | R67: Not applicable | S67: No doubling of mistrade range | U67: =IFERROR(_xlfn.XLOOKUP(A67,'MMPM1-PMM'!E:E,'MMPM1-PMM'!J:J),_xlfn.XLOOKUP(A67,'MMPM1-AMM'!E:E,'MMPM1-AMM'!K:K)) -> STXSO1 | V67: =IFERROR(_xlfn.XLOOKUP(A67,'MMPM1-AMM'!E:E,'MMPM1-AMM'!T:T),_xlfn.XLOOKUP(A67,'MMPM1-PMM'!E:E,'MMPM1-PMM'!S:S)) -> 3 | W67: =IFERROR(_xlfn.XLOOKUP(A67,'MMPM1-AMM'!E:E,'MMPM1-AMM'!U:U),_xlfn.XLOOKUP(A67,'MMPM1-PMM'!E:E,'MMPM1-PMM'!T:T)) -> 5 | Y67: TRUE | AB67: =_xlfn.XLOOKUP(A67,productlist[PRODUCT_ID],productlist[PRODUCT_ISIN]) -> DE0007923534 | AC67: =_xlfn.XLOOKUP(A67,productlist[PRODUCT_ID],productlist[UNDERLYING_ISIN]) -> EU0009658541
A68: OESZ | B68: =_xlfn.XLOOKUP(A68,'Product List'!$A:$A,'Product List'!$D:$D) -> EURO STOXX® Personal & Household Goods Options | C68: =_xlfn.XLOOKUP(A68,'Product List'!$A:$A,'Product List'!$F:$F) -> INDEX OPTIONS | D68: =_xlfn.XLOOKUP(A68,'MMPM1-AMM'!E:E,'MMPM1-AMM'!K:K,_xlfn.XLOOKUP(A68,'MMPM1-PMM'!E:E,'MMPM1-PMM'!J:J)) -> STXSO2 | E68: =_xlfn.XLOOKUP(A68,'MMPM1-AMM'!E:E,'MMPM1-AMM'!Q:Q,_xlfn.XLOOKUP(A68,'MMPM1-PMM'!E:E,'MMPM1-PMM'!P:P)) -> 5 | F68: =SUMIFS(MMPM2!H:H,MMPM2!C:C,U68,MMPM2!E:E,1,MMPM2!G:G,1) -> 8.3 | G68: =SUMIFS(MMPM2!H:H,MMPM2!C:C,U68,MMPM2!E:E,1,MMPM2!G:G,2) -> 53.3 | L68: =SUMIFS(MMPM2!I:I,MMPM2!C:C,U68,MMPM2!E:E,1,MMPM2!G:G,1) -> 2.5 | M68: =SUMIFS(MMPM2!I:I,MMPM2!C:C,U68,MMPM2!E:E,1,MMPM2!G:G,2) -> 0.3 | N68: =SUMIFS(MMPM2!I:I,MMPM2!C:C,U68,MMPM2!E:E,1,MMPM2!G:G,3) -> 16.1 | R68: Not applicable | S68: No doubling of mistrade range | U68: =IFERROR(_xlfn.XLOOKUP(A68,'MMPM1-PMM'!E:E,'MMPM1-PMM'!J:J),_xlfn.XLOOKUP(A68,'MMPM1-AMM'!E:E,'MMPM1-AMM'!K:K)) -> STXSO2 | V68: =IFERROR(_xlfn.XLOOKUP(A68,'MMPM1-AMM'!E:E,'MMPM1-AMM'!T:T),_xlfn.XLOOKUP(A68,'MMPM1-PMM'!E:E,'MMPM1-PMM'!S:S)) -> 3 | W68: =IFERROR(_xlfn.XLOOKUP(A68,'MMPM1-AMM'!E:E,'MMPM1-AMM'!U:U),_xlfn.XLOOKUP(A68,'MMPM1-PMM'!E:E,'MMPM1-PMM'!T:T)) -> 4 | Y68: FALSE | AB68: =_xlfn.XLOOKUP(A68,productlist[PRODUCT_ID],productlist[PRODUCT_ISIN]) -> DE0002271061 | AC68: =_xlfn.XLOOKUP(A68,productlist[PRODUCT_ID],productlist[UNDERLYING_ISIN]) -> CH0019112892
A69: OEXD | B69: =_xlfn.XLOOKUP(A69,'Product List'!$A:$A,'Product List'!$D:$D) -> EURO STOXX 50® Index Dividend Options | C69: =_xlfn.XLOOKUP(A69,'Product List'!$A:$A,'Product List'!$F:$F) -> INDEX DIVIDEND OPTIONS | D69: =_xlfn.XLOOKUP(A69,'MMPM1-AMM'!E:E,'MMPM1-AMM'!K:K,_xlfn.XLOOKUP(A69,'MMPM1-PMM'!E:E,'MMPM1-PMM'!J:J)) -> OEXD2 | E69: =_xlfn.XLOOKUP(A69,'MMPM1-AMM'!E:E,'MMPM1-AMM'!Q:Q,_xlfn.XLOOKUP(A69,'MMPM1-PMM'!E:E,'MMPM1-PMM'!P:P)) -> 5 | F69: =SUMIFS(MMPM2!H:H,MMPM2!C:C,U69,MMPM2!E:E,1,MMPM2!G:G,1) -> 4 | G69: =SUMIFS(MMPM2!H:H,MMPM2!C:C,U69,MMPM2!E:E,1,MMPM2!G:G,2) -> 20 | I69: 4 | J69: 20 | L69: =SUMIFS(MMPM2!I:I,MMPM2!C:C,U69,MMPM2!E:E,1,MMPM2!G:G,1) -> 2.4 | M69: =SUMIFS(MMPM2!I:I,MMPM2!C:C,U69,MMPM2!E:E,1,MMPM2!G:G,2) -> 0.6 | N69: =SUMIFS(MMPM2!I:I,MMPM2!C:C,U69,MMPM2!E:E,1,MMPM2!G:G,3) -> 10 | O69: 2 | P69: 0.5 | Q69: 10 | R69: 4 | S69: 4 | U69: =IFERROR(_xlfn.XLOOKUP(A69,'MMPM1-PMM'!E:E,'MMPM1-PMM'!J:J),_xlfn.XLOOKUP(A69,'MMPM1-AMM'!E:E,'MMPM1-AMM'!K:K)) -> OEXD1 | V69: =IFERROR(_xlfn.XLOOKUP(A69,'MMPM1-AMM'!E:E,'MMPM1-AMM'!T:T),_xlfn.XLOOKUP(A69,'MMPM1-PMM'!E:E,'MMPM1-PMM'!S:S)) -> 6 | W69: =IFERROR(_xlfn.XLOOKUP(A69,'MMPM1-AMM'!E:E,'MMPM1-AMM'!U:U),_xlfn.XLOOKUP(A69,'MMPM1-PMM'!E:E,'MMPM1-PMM'!T:T)) -> 5 | Y69: TRUE | AB69: =_xlfn.XLOOKUP(A69,productlist[PRODUCT_ID],productlist[PRODUCT_ISIN]) -> DE000A1DKML1 | AC69: =_xlfn.XLOOKUP(A69,productlist[PRODUCT_ID],productlist[UNDERLYING_ISIN]) ->  | AE69: 4
A70: OEXF | B70: =_xlfn.XLOOKUP(A70,'Product List'!$A:$A,'Product List'!$D:$D) -> EURO STOXX 50® ex Financials Index Options | C70: =_xlfn.XLOOKUP(A70,'Product List'!$A:$A,'Product List'!$F:$F) -> INDEX OPTIONS | D70: =_xlfn.XLOOKUP(A70,'MMPM1-AMM'!E:E,'MMPM1-AMM'!K:K,_xlfn.XLOOKUP(A70,'MMPM1-PMM'!E:E,'MMPM1-PMM'!J:J)) -> OEXF | E70: =_xlfn.XLOOKUP(A70,'MMPM1-AMM'!E:E,'MMPM1-AMM'!Q:Q,_xlfn.XLOOKUP(A70,'MMPM1-PMM'!E:E,'MMPM1-PMM'!P:P)) -> 8 | F70: =SUMIFS(MMPM2!H:H,MMPM2!C:C,U70,MMPM2!E:E,1,MMPM2!G:G,1) -> 5.3 | G70: =SUMIFS(MMPM2!H:H,MMPM2!C:C,U70,MMPM2!E:E,1,MMPM2!G:G,2) -> 53.3 | L70: =SUMIFS(MMPM2!I:I,MMPM2!C:C,U70,MMPM2!E:E,1,MMPM2!G:G,1) -> 1 | M70: =SUMIFS(MMPM2!I:I,MMPM2!C:C,U70,MMPM2!E:E,1,MMPM2!G:G,2) -> 0.2 | N70: =SUMIFS(MMPM2!I:I,MMPM2!C:C,U70,MMPM2!E:E,1,MMPM2!G:G,3) -> 11 | R70: Not applicable | S70: No doubling of mistrade range | U70: =IFERROR(_xlfn.XLOOKUP(A70,'MMPM1-PMM'!E:E,'MMPM1-PMM'!J:J),_xlfn.XLOOKUP(A70,'MMPM1-AMM'!E:E,'MMPM1-AMM'!K:K)) -> OEXF | V70: =IFERROR(_xlfn.XLOOKUP(A70,'MMPM1-AMM'!E:E,'MMPM1-AMM'!T:T),_xlfn.XLOOKUP(A70,'MMPM1-PMM'!E:E,'MMPM1-PMM'!S:S)) -> 3 | W70: =IFERROR(_xlfn.XLOOKUP(A70,'MMPM1-AMM'!E:E,'MMPM1-AMM'!U:U),_xlfn.XLOOKUP(A70,'MMPM1-PMM'!E:E,'MMPM1-PMM'!T:T)) -> 8 | Y70: TRUE | AB70: =_xlfn.XLOOKUP(A70,productlist[PRODUCT_ID],productlist[PRODUCT_ISIN]) -> DE000A1PHPN0 | AC70: =_xlfn.XLOOKUP(A70,productlist[PRODUCT_ID],productlist[UNDERLYING_ISIN]) -> CH0138312084
A71: OFOX | B71: =_xlfn.XLOOKUP(A71,'Product List'!$A:$A,'Product List'!$D:$D) -> OMXH25 Options | C71: =_xlfn.XLOOKUP(A71,'Product List'!$A:$A,'Product List'!$F:$F) -> INDEX OPTIONS | D71: =_xlfn.XLOOKUP(A71,'MMPM1-AMM'!E:E,'MMPM1-AMM'!K:K,_xlfn.XLOOKUP(A71,'MMPM1-PMM'!E:E,'MMPM1-PMM'!J:J)) -> OFOX | E71: =_xlfn.XLOOKUP(A71,'MMPM1-AMM'!E:E,'MMPM1-AMM'!Q:Q,_xlfn.XLOOKUP(A71,'MMPM1-PMM'!E:E,'MMPM1-PMM'!P:P)) -> 6 | F71: =SUMIFS(MMPM2!H:H,MMPM2!C:C,U71,MMPM2!E:E,1,MMPM2!G:G,1) -> 5.3 | G71: =SUMIFS(MMPM2!H:H,MMPM2!C:C,U71,MMPM2!E:E,1,MMPM2!G:G,2) -> 53.3 | L71: =SUMIFS(MMPM2!I:I,MMPM2!C:C,U71,MMPM2!E:E,1,MMPM2!G:G,1) -> 1 | M71: =SUMIFS(MMPM2!I:I,MMPM2!C:C,U71,MMPM2!E:E,1,MMPM2!G:G,2) -> 0.2 | N71: =SUMIFS(MMPM2!I:I,MMPM2!C:C,U71,MMPM2!E:E,1,MMPM2!G:G,3) -> 11 | R71: Not applicable | S71: No doubling of mistrade range | U71: =IFERROR(_xlfn.XLOOKUP(A71,'MMPM1-PMM'!E:E,'MMPM1-PMM'!J:J),_xlfn.XLOOKUP(A71,'MMPM1-AMM'!E:E,'MMPM1-AMM'!K:K)) -> OFOX | V71: =IFERROR(_xlfn.XLOOKUP(A71,'MMPM1-AMM'!E:E,'MMPM1-AMM'!T:T),_xlfn.XLOOKUP(A71,'MMPM1-PMM'!E:E,'MMPM1-PMM'!S:S)) -> 3 | W71: =IFERROR(_xlfn.XLOOKUP(A71,'MMPM1-AMM'!E:E,'MMPM1-AMM'!U:U),_xlfn.XLOOKUP(A71,'MMPM1-PMM'!E:E,'MMPM1-PMM'!T:T)) -> 6 | Y71: TRUE | AB71: =_xlfn.XLOOKUP(A71,productlist[PRODUCT_ID],productlist[PRODUCT_ISIN]) -> DE000A0G86Q2 | AC71: =_xlfn.XLOOKUP(A71,productlist[PRODUCT_ID],productlist[UNDERLYING_ISIN]) -> FI0008900212
A72: OGDV | B72: =_xlfn.XLOOKUP(A72,'Product List'!$A:$A,'Product List'!$D:$D) -> STOXX® Global Select Dividend 100 Index Options | C72: =_xlfn.XLOOKUP(A72,'Product List'!$A:$A,'Product List'!$F:$F) -> INDEX OPTIONS | D72: =_xlfn.XLOOKUP(A72,'MMPM1-AMM'!E:E,'MMPM1-AMM'!K:K,_xlfn.XLOOKUP(A72,'MMPM1-PMM'!E:E,'MMPM1-PMM'!J:J)) -> OGDV | E72: =_xlfn.XLOOKUP(A72,'MMPM1-AMM'!E:E,'MMPM1-AMM'!Q:Q,_xlfn.XLOOKUP(A72,'MMPM1-PMM'!E:E,'MMPM1-PMM'!P:P)) -> 6 | F72: =SUMIFS(MMPM2!H:H,MMPM2!C:C,U72,MMPM2!E:E,1,MMPM2!G:G,1) -> 5.3 | G72: =SUMIFS(MMPM2!H:H,MMPM2!C:C,U72,MMPM2!E:E,1,MMPM2!G:G,2) -> 53.3 | L72: =SUMIFS(MMPM2!I:I,MMPM2!C:C,U72,MMPM2!E:E,1,MMPM2!G:G,1) -> 0.8 | M72: =SUMIFS(MMPM2!I:I,MMPM2!C:C,U72,MMPM2!E:E,1,MMPM2!G:G,2) -> 0.15 | N72: =SUMIFS(MMPM2!I:I,MMPM2!C:C,U72,MMPM2!E:E,1,MMPM2!G:G,3) -> 8 | R72: Not applicable | S72: No doubling of mistrade range | U72: =IFERROR(_xlfn.XLOOKUP(A72,'MMPM1-PMM'!E:E,'MMPM1-PMM'!J:J),_xlfn.XLOOKUP(A72,'MMPM1-AMM'!E:E,'MMPM1-AMM'!K:K)) -> OGDV | V72: =IFERROR(_xlfn.XLOOKUP(A72,'MMPM1-AMM'!E:E,'MMPM1-AMM'!T:T),_xlfn.XLOOKUP(A72,'MMPM1-PMM'!E:E,'MMPM1-PMM'!S:S)) -> 3 | W72: =IFERROR(_xlfn.XLOOKUP(A72,'MMPM1-AMM'!E:E,'MMPM1-AMM'!U:U),_xlfn.XLOOKUP(A72,'MMPM1-PMM'!E:E,'MMPM1-PMM'!T:T)) -> 6 | Y72: TRUE | AB72: =_xlfn.XLOOKUP(A72,productlist[PRODUCT_ID],productlist[PRODUCT_ISIN]) -> DE000A160XN7 | AC72: =_xlfn.XLOOKUP(A72,productlist[PRODUCT_ID],productlist[UNDERLYING_ISIN]) -> US26063V1180
A73: OHYG | B73: =_xlfn.XLOOKUP(A73,'Product List'!$A:$A,'Product List'!$D:$D) -> iShares EUR High Yield Corporate Bond UCITS Options | C73: =_xlfn.XLOOKUP(A73,'Product List'!$A:$A,'Product List'!$F:$F) -> EXTF-OPTIONS | D73: =_xlfn.XLOOKUP(A73,'MMPM1-AMM'!E:E,'MMPM1-AMM'!K:K,_xlfn.XLOOKUP(A73,'MMPM1-PMM'!E:E,'MMPM1-PMM'!J:J)) -> FI-ETF | E73: =_xlfn.XLOOKUP(A73,'MMPM1-AMM'!E:E,'MMPM1-AMM'!Q:Q,_xlfn.XLOOKUP(A73,'MMPM1-PMM'!E:E,'MMPM1-PMM'!P:P)) -> 3 | F73: =SUMIFS(MMPM2!H:H,MMPM2!C:C,U73,MMPM2!E:E,1,MMPM2!G:G,1) -> 1.5 | G73: =SUMIFS(MMPM2!H:H,MMPM2!C:C,U73,MMPM2!E:E,1,MMPM2!G:G,2) -> 15 | L73: =SUMIFS(MMPM2!I:I,MMPM2!C:C,U73,MMPM2!E:E,1,MMPM2!G:G,1) -> 0.35 | M73: =SUMIFS(MMPM2!I:I,MMPM2!C:C,U73,MMPM2!E:E,1,MMPM2!G:G,2) -> 0.2 | N73: =SUMIFS(MMPM2!I:I,MMPM2!C:C,U73,MMPM2!E:E,1,MMPM2!G:G,3) -> 3 | R73: Not applicable | S73: No doubling of mistrade range | U73: =IFERROR(_xlfn.XLOOKUP(A73,'MMPM1-PMM'!E:E,'MMPM1-PMM'!J:J),_xlfn.XLOOKUP(A73,'MMPM1-AMM'!E:E,'MMPM1-AMM'!K:K)) -> FI-ETF | V73: =IFERROR(_xlfn.XLOOKUP(A73,'MMPM1-AMM'!E:E,'MMPM1-AMM'!T:T),_xlfn.XLOOKUP(A73,'MMPM1-PMM'!E:E,'MMPM1-PMM'!S:S)) -> 3 | W73: =IFERROR(_xlfn.XLOOKUP(A73,'MMPM1-AMM'!E:E,'MMPM1-AMM'!U:U),_xlfn.XLOOKUP(A73,'MMPM1-PMM'!E:E,'MMPM1-PMM'!T:T)) -> 3 | Y73: TRUE | AB73: =_xlfn.XLOOKUP(A73,productlist[PRODUCT_ID],productlist[PRODUCT_ISIN]) -> DE000A2BNC93 | AC73: =_xlfn.XLOOKUP(A73,productlist[PRODUCT_ID],productlist[UNDERLYING_ISIN]) -> IE00B66F4759
A74: OHYU | B74: =_xlfn.XLOOKUP(A74,'Product List'!$A:$A,'Product List'!$D:$D) -> iShares USD High Yield Corporate Bond UCITS Options [american] | C74: =_xlfn.XLOOKUP(A74,'Product List'!$A:$A,'Product List'!$F:$F) -> EXTF-OPTIONS | D74: =_xlfn.XLOOKUP(A74,'MMPM1-AMM'!E:E,'MMPM1-AMM'!K:K,_xlfn.XLOOKUP(A74,'MMPM1-PMM'!E:E,'MMPM1-PMM'!J:J)) -> FI-ETF | E74: =_xlfn.XLOOKUP(A74,'MMPM1-AMM'!E:E,'MMPM1-AMM'!Q:Q,_xlfn.XLOOKUP(A74,'MMPM1-PMM'!E:E,'MMPM1-PMM'!P:P)) -> 3 | F74: =SUMIFS(MMPM2!H:H,MMPM2!C:C,U74,MMPM2!E:E,1,MMPM2!G:G,1) -> 1.5 | G74: =SUMIFS(MMPM2!H:H,MMPM2!C:C,U74,MMPM2!E:E,1,MMPM2!G:G,2) -> 15 | L74: =SUMIFS(MMPM2!I:I,MMPM2!C:C,U74,MMPM2!E:E,1,MMPM2!G:G,1) -> 0.35 | M74: =SUMIFS(MMPM2!I:I,MMPM2!C:C,U74,MMPM2!E:E,1,MMPM2!G:G,2) -> 0.2 | N74: =SUMIFS(MMPM2!I:I,MMPM2!C:C,U74,MMPM2!E:E,1,MMPM2!G:G,3) -> 3 | R74: =IF(D74="OVS","",IF(V74=3, "Not applicable",W74-1)) -> Not applicable | S74: No doubling of mistrade range | U74: =IFERROR(_xlfn.XLOOKUP(A74,'MMPM1-PMM'!E:E,'MMPM1-PMM'!J:J),_xlfn.XLOOKUP(A74,'MMPM1-AMM'!E:E,'MMPM1-AMM'!K:K)) -> FI-ETF | V74: =IFERROR(_xlfn.XLOOKUP(A74,'MMPM1-AMM'!E:E,'MMPM1-AMM'!T:T),_xlfn.XLOOKUP(A74,'MMPM1-PMM'!E:E,'MMPM1-PMM'!S:S)) -> 3 | W74: =IFERROR(_xlfn.XLOOKUP(A74,'MMPM1-AMM'!E:E,'MMPM1-AMM'!U:U),_xlfn.XLOOKUP(A74,'MMPM1-PMM'!E:E,'MMPM1-PMM'!T:T)) -> 3 | Y74: TRUE | AB74: =_xlfn.XLOOKUP(A74,productlist[PRODUCT_ID],productlist[PRODUCT_ISIN]) -> DE000A2G9SQ5 | AC74: =_xlfn.XLOOKUP(A74,productlist[PRODUCT_ID],productlist[UNDERLYING_ISIN]) -> IE00B4PY7Y77
A75: OKS2 | B75: =_xlfn.XLOOKUP(A75,'Product List'!$A:$A,'Product List'!$D:$D) -> Eurex Daily Futures on KOSPI 200 Options | C75: =_xlfn.XLOOKUP(A75,'Product List'!$A:$A,'Product List'!$F:$F) -> KOSPI-OPTIONS | D75: =_xlfn.XLOOKUP(A75,'MMPM1-AMM'!E:E,'MMPM1-AMM'!K:K,_xlfn.XLOOKUP(A75,'MMPM1-PMM'!E:E,'MMPM1-PMM'!J:J)) -> OKS2 | E75: =_xlfn.XLOOKUP(A75,'MMPM1-AMM'!E:E,'MMPM1-AMM'!Q:Q,_xlfn.XLOOKUP(A75,'MMPM1-PMM'!E:E,'MMPM1-PMM'!P:P)) -> 2 | F75: =SUMIFS(MMPM2!H:H,MMPM2!C:C,U75,MMPM2!E:E,1,MMPM2!G:G,1) -> 1.5 | G75: =SUMIFS(MMPM2!H:H,MMPM2!C:C,U75,MMPM2!E:E,1,MMPM2!G:G,2) -> 20 | I75: 1.5 | J75: 20 | L75: =SUMIFS(MMPM2!I:I,MMPM2!C:C,U75,MMPM2!E:E,1,MMPM2!G:G,1) -> 0.15 | M75: =SUMIFS(MMPM2!I:I,MMPM2!C:C,U75,MMPM2!E:E,1,MMPM2!G:G,2) -> 0.1 | N75: =SUMIFS(MMPM2!I:I,MMPM2!C:C,U75,MMPM2!E:E,1,MMPM2!G:G,3) -> 2 | O75: 0.2 | P75: 0.15 | Q75: 3 | R75: 2 | S75: 2 | U75: =IFERROR(_xlfn.XLOOKUP(A75,'MMPM1-PMM'!E:E,'MMPM1-PMM'!J:J),_xlfn.XLOOKUP(A75,'MMPM1-AMM'!E:E,'MMPM1-AMM'!K:K)) -> OKS2 | V75: =IFERROR(_xlfn.XLOOKUP(A75,'MMPM1-AMM'!E:E,'MMPM1-AMM'!T:T),_xlfn.XLOOKUP(A75,'MMPM1-PMM'!E:E,'MMPM1-PMM'!S:S)) -> 6 | W75: =IFERROR(_xlfn.XLOOKUP(A75,'MMPM1-AMM'!E:E,'MMPM1-AMM'!U:U),_xlfn.XLOOKUP(A75,'MMPM1-PMM'!E:E,'MMPM1-PMM'!T:T)) -> 2 | Y75: TRUE | AB75: =_xlfn.XLOOKUP(A75,productlist[PRODUCT_ID],productlist[PRODUCT_ISIN]) -> DE000A1A4Q13 | AC75: =_xlfn.XLOOKUP(A75,productlist[PRODUCT_ID],productlist[UNDERLYING_ISIN]) -> XC0009664639 | AE75: 2
A76: OLCE | B76: =_xlfn.XLOOKUP(A76,'Product List'!$A:$A,'Product List'!$D:$D) -> EURO STOXX® Large Index Options | C76: =_xlfn.XLOOKUP(A76,'Product List'!$A:$A,'Product List'!$F:$F) -> INDEX OPTIONS | D76: =_xlfn.XLOOKUP(A76,'MMPM1-AMM'!E:E,'MMPM1-AMM'!K:K,_xlfn.XLOOKUP(A76,'MMPM1-PMM'!E:E,'MMPM1-PMM'!J:J)) -> BB-Size | E76: =_xlfn.XLOOKUP(A76,'MMPM1-AMM'!E:E,'MMPM1-AMM'!Q:Q,_xlfn.XLOOKUP(A76,'MMPM1-PMM'!E:E,'MMPM1-PMM'!P:P)) -> 6 | F76: =SUMIFS(MMPM2!H:H,MMPM2!C:C,U76,MMPM2!E:E,1,MMPM2!G:G,1) -> 5.3 | G76: =SUMIFS(MMPM2!H:H,MMPM2!C:C,U76,MMPM2!E:E,1,MMPM2!G:G,2) -> 53.3 | L76: =SUMIFS(MMPM2!I:I,MMPM2!C:C,U76,MMPM2!E:E,1,MMPM2!G:G,1) -> 0.8 | M76: =SUMIFS(MMPM2!I:I,MMPM2!C:C,U76,MMPM2!E:E,1,MMPM2!G:G,2) -> 0.15 | N76: =SUMIFS(MMPM2!I:I,MMPM2!C:C,U76,MMPM2!E:E,1,MMPM2!G:G,3) -> 8 | R76: =IF(D76="OVS","",IF(V76=3, "Not applicable",W76-1)) -> Not applicable | S76: No doubling of mistrade range | U76: =IFERROR(_xlfn.XLOOKUP(A76,'MMPM1-PMM'!E:E,'MMPM1-PMM'!J:J),_xlfn.XLOOKUP(A76,'MMPM1-AMM'!E:E,'MMPM1-AMM'!K:K)) -> BB-Size | V76: =IFERROR(_xlfn.XLOOKUP(A76,'MMPM1-AMM'!E:E,'MMPM1-AMM'!T:T),_xlfn.XLOOKUP(A76,'MMPM1-PMM'!E:E,'MMPM1-PMM'!S:S)) -> 3 | W76: =IFERROR(_xlfn.XLOOKUP(A76,'MMPM1-AMM'!E:E,'MMPM1-AMM'!U:U),_xlfn.XLOOKUP(A76,'MMPM1-PMM'!E:E,'MMPM1-PMM'!T:T)) -> 6 | Y76: TRUE | AB76: =_xlfn.XLOOKUP(A76,productlist[PRODUCT_ID],productlist[PRODUCT_ISIN]) -> DE000A1DKQQ1 | AC76: =_xlfn.XLOOKUP(A76,productlist[PRODUCT_ID],productlist[UNDERLYING_ISIN]) -> CH0009040632
A77: OLCP | B77: =_xlfn.XLOOKUP(A77,'Product List'!$A:$A,'Product List'!$D:$D) -> STOXX® Europe Large 200 Index Options | C77: =_xlfn.XLOOKUP(A77,'Product List'!$A:$A,'Product List'!$F:$F) -> INDEX OPTIONS | D77: =_xlfn.XLOOKUP(A77,'MMPM1-AMM'!E:E,'MMPM1-AMM'!K:K,_xlfn.XLOOKUP(A77,'MMPM1-PMM'!E:E,'MMPM1-PMM'!J:J)) -> BB-Size | E77: =_xlfn.XLOOKUP(A77,'MMPM1-AMM'!E:E,'MMPM1-AMM'!Q:Q,_xlfn.XLOOKUP(A77,'MMPM1-PMM'!E:E,'MMPM1-PMM'!P:P)) -> 6 | F77: =SUMIFS(MMPM2!H:H,MMPM2!C:C,U77,MMPM2!E:E,1,MMPM2!G:G,1) -> 5.3 | G77: =SUMIFS(MMPM2!H:H,MMPM2!C:C,U77,MMPM2!E:E,1,MMPM2!G:G,2) -> 53.3 | L77: =SUMIFS(MMPM2!I:I,MMPM2!C:C,U77,MMPM2!E:E,1,MMPM2!G:G,1) -> 0.8 | M77: =SUMIFS(MMPM2!I:I,MMPM2!C:C,U77,MMPM2!E:E,1,MMPM2!G:G,2) -> 0.15 | N77: =SUMIFS(MMPM2!I:I,MMPM2!C:C,U77,MMPM2!E:E,1,MMPM2!G:G,3) -> 8 | R77: Not applicable | S77: No doubling of mistrade range | U77: =IFERROR(_xlfn.XLOOKUP(A77,'MMPM1-PMM'!E:E,'MMPM1-PMM'!J:J),_xlfn.XLOOKUP(A77,'MMPM1-AMM'!E:E,'MMPM1-AMM'!K:K)) -> BB-Size | V77: =IFERROR(_xlfn.XLOOKUP(A77,'MMPM1-AMM'!E:E,'MMPM1-AMM'!T:T),_xlfn.XLOOKUP(A77,'MMPM1-PMM'!E:E,'MMPM1-PMM'!S:S)) -> 3 | W77: =IFERROR(_xlfn.XLOOKUP(A77,'MMPM1-AMM'!E:E,'MMPM1-AMM'!U:U),_xlfn.XLOOKUP(A77,'MMPM1-PMM'!E:E,'MMPM1-PMM'!T:T)) -> 6 | Y77: TRUE | AB77: =_xlfn.XLOOKUP(A77,productlist[PRODUCT_ID],productlist[PRODUCT_ISIN]) -> DE000A1DKQU3 | AC77: =_xlfn.XLOOKUP(A77,productlist[PRODUCT_ID],productlist[UNDERLYING_ISIN]) -> CH0009041895
A78: OMAC | B78: =_xlfn.XLOOKUP(A78,'Product List'!$A:$A,'Product List'!$D:$D) -> MSCI ACWI Index Options | C78: =_xlfn.XLOOKUP(A78,'Product List'!$A:$A,'Product List'!$F:$F) -> INDEX OPTIONS | D78: =_xlfn.XLOOKUP(A78,'MMPM1-AMM'!E:E,'MMPM1-AMM'!K:K,_xlfn.XLOOKUP(A78,'MMPM1-PMM'!E:E,'MMPM1-PMM'!J:J)) -> MSCI-1 | E78: =_xlfn.XLOOKUP(A78,'MMPM1-AMM'!E:E,'MMPM1-AMM'!Q:Q,_xlfn.XLOOKUP(A78,'MMPM1-PMM'!E:E,'MMPM1-PMM'!P:P)) -> 6 | F78: =SUMIFS(MMPM2!H:H,MMPM2!C:C,U78,MMPM2!E:E,1,MMPM2!G:G,1) -> 5.3 | G78: =SUMIFS(MMPM2!H:H,MMPM2!C:C,U78,MMPM2!E:E,1,MMPM2!G:G,2) -> 53.3 | L78: =SUMIFS(MMPM2!I:I,MMPM2!C:C,U78,MMPM2!E:E,1,MMPM2!G:G,1) -> 0.8 | M78: =SUMIFS(MMPM2!I:I,MMPM2!C:C,U78,MMPM2!E:E,1,MMPM2!G:G,2) -> 0.15 | N78: =SUMIFS(MMPM2!I:I,MMPM2!C:C,U78,MMPM2!E:E,1,MMPM2!G:G,3) -> 8 | R78: Not applicable | S78: No doubling of mistrade range | U78: =IFERROR(_xlfn.XLOOKUP(A78,'MMPM1-PMM'!E:E,'MMPM1-PMM'!J:J),_xlfn.XLOOKUP(A78,'MMPM1-AMM'!E:E,'MMPM1-AMM'!K:K)) -> MSCI-1 | V78: =IFERROR(_xlfn.XLOOKUP(A78,'MMPM1-AMM'!E:E,'MMPM1-AMM'!T:T),_xlfn.XLOOKUP(A78,'MMPM1-PMM'!E:E,'MMPM1-PMM'!S:S)) -> 3 | W78: =IFERROR(_xlfn.XLOOKUP(A78,'MMPM1-AMM'!E:E,'MMPM1-AMM'!U:U),_xlfn.XLOOKUP(A78,'MMPM1-PMM'!E:E,'MMPM1-PMM'!T:T)) -> 6 | Y78: TRUE | AB78: =_xlfn.XLOOKUP(A78,productlist[PRODUCT_ID],productlist[PRODUCT_ISIN]) -> DE000A2GG9A0 | AC78: =_xlfn.XLOOKUP(A78,productlist[PRODUCT_ID],productlist[UNDERLYING_ISIN]) -> GB00BP5FTG38
A79: OMAS | B79: =_xlfn.XLOOKUP(A79,'Product List'!$A:$A,'Product List'!$D:$D) -> MSCI AC Asia Pacific ex Japan Index Options | C79: =_xlfn.XLOOKUP(A79,'Product List'!$A:$A,'Product List'!$F:$F) -> INDEX OPTIONS | D79: =_xlfn.XLOOKUP(A79,'MMPM1-AMM'!E:E,'MMPM1-AMM'!K:K,_xlfn.XLOOKUP(A79,'MMPM1-PMM'!E:E,'MMPM1-PMM'!J:J)) -> MSCI-2 | E79: =_xlfn.XLOOKUP(A79,'MMPM1-AMM'!E:E,'MMPM1-AMM'!Q:Q,_xlfn.XLOOKUP(A79,'MMPM1-PMM'!E:E,'MMPM1-PMM'!P:P)) -> 6 | F79: =SUMIFS(MMPM2!H:H,MMPM2!C:C,U79,MMPM2!E:E,1,MMPM2!G:G,1) -> 13.3 | G79: =SUMIFS(MMPM2!H:H,MMPM2!C:C,U79,MMPM2!E:E,1,MMPM2!G:G,2) -> 133.3 | L79: =SUMIFS(MMPM2!I:I,MMPM2!C:C,U79,MMPM2!E:E,1,MMPM2!G:G,1) -> 2 | M79: =SUMIFS(MMPM2!I:I,MMPM2!C:C,U79,MMPM2!E:E,1,MMPM2!G:G,2) -> 0.15 | N79: =SUMIFS(MMPM2!I:I,MMPM2!C:C,U79,MMPM2!E:E,1,MMPM2!G:G,3) -> 20 | R79: Not applicable | S79: No doubling of mistrade range | U79: =IFERROR(_xlfn.XLOOKUP(A79,'MMPM1-PMM'!E:E,'MMPM1-PMM'!J:J),_xlfn.XLOOKUP(A79,'MMPM1-AMM'!E:E,'MMPM1-AMM'!K:K)) -> MSCI-2 | V79: =IFERROR(_xlfn.XLOOKUP(A79,'MMPM1-AMM'!E:E,'MMPM1-AMM'!T:T),_xlfn.XLOOKUP(A79,'MMPM1-PMM'!E:E,'MMPM1-PMM'!S:S)) -> 3 | W79: =IFERROR(_xlfn.XLOOKUP(A79,'MMPM1-AMM'!E:E,'MMPM1-AMM'!U:U),_xlfn.XLOOKUP(A79,'MMPM1-PMM'!E:E,'MMPM1-PMM'!T:T)) -> 6 | Y79: TRUE | AB79: =_xlfn.XLOOKUP(A79,productlist[PRODUCT_ID],productlist[PRODUCT_ISIN]) -> DE000A1RRXM1 | AC79: =_xlfn.XLOOKUP(A79,productlist[PRODUCT_ID],productlist[UNDERLYING_ISIN]) -> GB00BP5FSH79
A80: OMAW | B80: =_xlfn.XLOOKUP(A80,'Product List'!$A:$A,'Product List'!$D:$D) -> MSCI ACWI Price Index Options | C80: =_xlfn.XLOOKUP(A80,'Product List'!$A:$A,'Product List'!$F:$F) -> INDEX OPTIONS | D80: =_xlfn.XLOOKUP(A80,'MMPM1-AMM'!E:E,'MMPM1-AMM'!K:K,_xlfn.XLOOKUP(A80,'MMPM1-PMM'!E:E,'MMPM1-PMM'!J:J)) -> MSCI-2 | E80: =_xlfn.XLOOKUP(A80,'MMPM1-AMM'!E:E,'MMPM1-AMM'!Q:Q,_xlfn.XLOOKUP(A80,'MMPM1-PMM'!E:E,'MMPM1-PMM'!P:P)) -> 6 | F80: =SUMIFS(MMPM2!H:H,MMPM2!C:C,U80,MMPM2!E:E,1,MMPM2!G:G,1) -> 13.3 | G80: =SUMIFS(MMPM2!H:H,MMPM2!C:C,U80,MMPM2!E:E,1,MMPM2!G:G,2) -> 133.3 | L80: =SUMIFS(MMPM2!I:I,MMPM2!C:C,U80,MMPM2!E:E,1,MMPM2!G:G,1) -> 2 | M80: =SUMIFS(MMPM2!I:I,MMPM2!C:C,U80,MMPM2!E:E,1,MMPM2!G:G,2) -> 0.15 | N80: =SUMIFS(MMPM2!I:I,MMPM2!C:C,U80,MMPM2!E:E,1,MMPM2!G:G,3) -> 20 | R80: Not applicable | S80: No doubling of mistrade range | U80: =IFERROR(_xlfn.XLOOKUP(A80,'MMPM1-PMM'!E:E,'MMPM1-PMM'!J:J),_xlfn.XLOOKUP(A80,'MMPM1-AMM'!E:E,'MMPM1-AMM'!K:K)) -> MSCI-2 | V80: =IFERROR(_xlfn.XLOOKUP(A80,'MMPM1-AMM'!E:E,'MMPM1-AMM'!T:T),_xlfn.XLOOKUP(A80,'MMPM1-PMM'!E:E,'MMPM1-PMM'!S:S)) -> 3 | W80: =IFERROR(_xlfn.XLOOKUP(A80,'MMPM1-AMM'!E:E,'MMPM1-AMM'!U:U),_xlfn.XLOOKUP(A80,'MMPM1-PMM'!E:E,'MMPM1-PMM'!T:T)) -> 6 | Y80: TRUE | AB80: =_xlfn.XLOOKUP(A80,productlist[PRODUCT_ID],productlist[PRODUCT_ISIN]) -> DE000A2GG893 | AC80: =_xlfn.XLOOKUP(A80,productlist[PRODUCT_ID],productlist[UNDERLYING_ISIN]) -> GB00BP68BY37
A81: OMCE | B81: =_xlfn.XLOOKUP(A81,'Product List'!$A:$A,'Product List'!$D:$D) -> EURO STOXX® Mid Index Options | C81: =_xlfn.XLOOKUP(A81,'Product List'!$A:$A,'Product List'!$F:$F) -> INDEX OPTIONS | D81: =_xlfn.XLOOKUP(A81,'MMPM1-AMM'!E:E,'MMPM1-AMM'!K:K,_xlfn.XLOOKUP(A81,'MMPM1-PMM'!E:E,'MMPM1-PMM'!J:J)) -> BB-Size | E81: =_xlfn.XLOOKUP(A81,'MMPM1-AMM'!E:E,'MMPM1-AMM'!Q:Q,_xlfn.XLOOKUP(A81,'MMPM1-PMM'!E:E,'MMPM1-PMM'!P:P)) -> 6 | F81: =SUMIFS(MMPM2!H:H,MMPM2!C:C,U81,MMPM2!E:E,1,MMPM2!G:G,1) -> 5.3 | G81: =SUMIFS(MMPM2!H:H,MMPM2!C:C,U81,MMPM2!E:E,1,MMPM2!G:G,2) -> 53.3 | L81: =SUMIFS(MMPM2!I:I,MMPM2!C:C,U81,MMPM2!E:E,1,MMPM2!G:G,1) -> 0.8 | M81: =SUMIFS(MMPM2!I:I,MMPM2!C:C,U81,MMPM2!E:E,1,MMPM2!G:G,2) -> 0.15 | N81: =SUMIFS(MMPM2!I:I,MMPM2!C:C,U81,MMPM2!E:E,1,MMPM2!G:G,3) -> 8 | R81: Not applicable | S81: No doubling of mistrade range | U81: =IFERROR(_xlfn.XLOOKUP(A81,'MMPM1-PMM'!E:E,'MMPM1-PMM'!J:J),_xlfn.XLOOKUP(A81,'MMPM1-AMM'!E:E,'MMPM1-AMM'!K:K)) -> BB-Size | V81: =IFERROR(_xlfn.XLOOKUP(A81,'MMPM1-AMM'!E:E,'MMPM1-AMM'!T:T),_xlfn.XLOOKUP(A81,'MMPM1-PMM'!E:E,'MMPM1-PMM'!S:S)) -> 3 | W81: =IFERROR(_xlfn.XLOOKUP(A81,'MMPM1-AMM'!E:E,'MMPM1-AMM'!U:U),_xlfn.XLOOKUP(A81,'MMPM1-PMM'!E:E,'MMPM1-PMM'!T:T)) -> 6 | Y81: TRUE | AB81: =_xlfn.XLOOKUP(A81,productlist[PRODUCT_ID],productlist[PRODUCT_ISIN]) -> DE000A1DKQR9 | AC81: =_xlfn.XLOOKUP(A81,productlist[PRODUCT_ID],productlist[UNDERLYING_ISIN]) -> CH0009042240
A82: OMCP | B82: =_xlfn.XLOOKUP(A82,'Product List'!$A:$A,'Product List'!$D:$D) -> STOXX® Europe Mid 200 Index Options | C82: =_xlfn.XLOOKUP(A82,'Product List'!$A:$A,'Product List'!$F:$F) -> INDEX OPTIONS | D82: =_xlfn.XLOOKUP(A82,'MMPM1-AMM'!E:E,'MMPM1-AMM'!K:K,_xlfn.XLOOKUP(A82,'MMPM1-PMM'!E:E,'MMPM1-PMM'!J:J)) -> BB-Size | E82: =_xlfn.XLOOKUP(A82,'MMPM1-AMM'!E:E,'MMPM1-AMM'!Q:Q,_xlfn.XLOOKUP(A82,'MMPM1-PMM'!E:E,'MMPM1-PMM'!P:P)) -> 6 | F82: =SUMIFS(MMPM2!H:H,MMPM2!C:C,U82,MMPM2!E:E,1,MMPM2!G:G,1) -> 5.3 | G82: =SUMIFS(MMPM2!H:H,MMPM2!C:C,U82,MMPM2!E:E,1,MMPM2!G:G,2) -> 53.3 | L82: =SUMIFS(MMPM2!I:I,MMPM2!C:C,U82,MMPM2!E:E,1,MMPM2!G:G,1) -> 0.8 | M82: =SUMIFS(MMPM2!I:I,MMPM2!C:C,U82,MMPM2!E:E,1,MMPM2!G:G,2) -> 0.15 | N82: =SUMIFS(MMPM2!I:I,MMPM2!C:C,U82,MMPM2!E:E,1,MMPM2!G:G,3) -> 8 | R82: Not applicable | S82: No doubling of mistrade range | U82: =IFERROR(_xlfn.XLOOKUP(A82,'MMPM1-PMM'!E:E,'MMPM1-PMM'!J:J),_xlfn.XLOOKUP(A82,'MMPM1-AMM'!E:E,'MMPM1-AMM'!K:K)) -> BB-Size | V82: =IFERROR(_xlfn.XLOOKUP(A82,'MMPM1-AMM'!E:E,'MMPM1-AMM'!T:T),_xlfn.XLOOKUP(A82,'MMPM1-PMM'!E:E,'MMPM1-PMM'!S:S)) -> 3 | W82: =IFERROR(_xlfn.XLOOKUP(A82,'MMPM1-AMM'!E:E,'MMPM1-AMM'!U:U),_xlfn.XLOOKUP(A82,'MMPM1-PMM'!E:E,'MMPM1-PMM'!T:T)) -> 6 | Y82: TRUE | AB82: =_xlfn.XLOOKUP(A82,productlist[PRODUCT_ID],productlist[PRODUCT_ISIN]) -> DE000A1DKQV1 | AC82: =_xlfn.XLOOKUP(A82,productlist[PRODUCT_ID],productlist[UNDERLYING_ISIN]) -> CH0009107191
A83: OMEA | B83: =_xlfn.XLOOKUP(A83,'Product List'!$A:$A,'Product List'!$D:$D) -> MSCI Emerging Markets Asia Index Options | C83: =_xlfn.XLOOKUP(A83,'Product List'!$A:$A,'Product List'!$F:$F) -> INDEX OPTIONS | D83: =_xlfn.XLOOKUP(A83,'MMPM1-AMM'!E:E,'MMPM1-AMM'!K:K,_xlfn.XLOOKUP(A83,'MMPM1-PMM'!E:E,'MMPM1-PMM'!J:J)) -> MSCI-4 | E83: =_xlfn.XLOOKUP(A83,'MMPM1-AMM'!E:E,'MMPM1-AMM'!Q:Q,_xlfn.XLOOKUP(A83,'MMPM1-PMM'!E:E,'MMPM1-PMM'!P:P)) -> 6 | F83: =SUMIFS(MMPM2!H:H,MMPM2!C:C,U83,MMPM2!E:E,1,MMPM2!G:G,1) -> 15 | G83: =SUMIFS(MMPM2!H:H,MMPM2!C:C,U83,MMPM2!E:E,1,MMPM2!G:G,2) -> 187.5 | L83: =SUMIFS(MMPM2!I:I,MMPM2!C:C,U83,MMPM2!E:E,1,MMPM2!G:G,1) -> 3 | M83: =SUMIFS(MMPM2!I:I,MMPM2!C:C,U83,MMPM2!E:E,1,MMPM2!G:G,2) -> 0.2 | N83: =SUMIFS(MMPM2!I:I,MMPM2!C:C,U83,MMPM2!E:E,1,MMPM2!G:G,3) -> 37.5 | R83: Not applicable | S83: No doubling of mistrade range | U83: =IFERROR(_xlfn.XLOOKUP(A83,'MMPM1-PMM'!E:E,'MMPM1-PMM'!J:J),_xlfn.XLOOKUP(A83,'MMPM1-AMM'!E:E,'MMPM1-AMM'!K:K)) -> MSCI-4 | V83: =IFERROR(_xlfn.XLOOKUP(A83,'MMPM1-AMM'!E:E,'MMPM1-AMM'!T:T),_xlfn.XLOOKUP(A83,'MMPM1-PMM'!E:E,'MMPM1-PMM'!S:S)) -> 3 | W83: =IFERROR(_xlfn.XLOOKUP(A83,'MMPM1-AMM'!E:E,'MMPM1-AMM'!U:U),_xlfn.XLOOKUP(A83,'MMPM1-PMM'!E:E,'MMPM1-PMM'!T:T)) -> 6 | Y83: TRUE | AB83: =_xlfn.XLOOKUP(A83,productlist[PRODUCT_ID],productlist[PRODUCT_ISIN]) -> DE000A1XQ7B0 | AC83: =_xlfn.XLOOKUP(A83,productlist[PRODUCT_ID],productlist[UNDERLYING_ISIN]) -> GB00BP5FSL16
A84: OMEE | B84: =_xlfn.XLOOKUP(A84,'Product List'!$A:$A,'Product List'!$D:$D) -> MSCI Emerging Markets EMEA Index Options | C84: =_xlfn.XLOOKUP(A84,'Product List'!$A:$A,'Product List'!$F:$F) -> INDEX OPTIONS | D84: =_xlfn.XLOOKUP(A84,'MMPM1-AMM'!E:E,'MMPM1-AMM'!K:K,_xlfn.XLOOKUP(A84,'MMPM1-PMM'!E:E,'MMPM1-PMM'!J:J)) -> MSCI-4 | E84: =_xlfn.XLOOKUP(A84,'MMPM1-AMM'!E:E,'MMPM1-AMM'!Q:Q,_xlfn.XLOOKUP(A84,'MMPM1-PMM'!E:E,'MMPM1-PMM'!P:P)) -> 6 | F84: =SUMIFS(MMPM2!H:H,MMPM2!C:C,U84,MMPM2!E:E,1,MMPM2!G:G,1) -> 15 | G84: =SUMIFS(MMPM2!H:H,MMPM2!C:C,U84,MMPM2!E:E,1,MMPM2!G:G,2) -> 187.5 | L84: =SUMIFS(MMPM2!I:I,MMPM2!C:C,U84,MMPM2!E:E,1,MMPM2!G:G,1) -> 3 | M84: =SUMIFS(MMPM2!I:I,MMPM2!C:C,U84,MMPM2!E:E,1,MMPM2!G:G,2) -> 0.2 | N84: =SUMIFS(MMPM2!I:I,MMPM2!C:C,U84,MMPM2!E:E,1,MMPM2!G:G,3) -> 37.5 | R84: Not applicable | S84: No doubling of mistrade range | U84: =IFERROR(_xlfn.XLOOKUP(A84,'MMPM1-PMM'!E:E,'MMPM1-PMM'!J:J),_xlfn.XLOOKUP(A84,'MMPM1-AMM'!E:E,'MMPM1-AMM'!K:K)) -> MSCI-4 | V84: =IFERROR(_xlfn.XLOOKUP(A84,'MMPM1-AMM'!E:E,'MMPM1-AMM'!T:T),_xlfn.XLOOKUP(A84,'MMPM1-PMM'!E:E,'MMPM1-PMM'!S:S)) -> 3 | W84: =IFERROR(_xlfn.XLOOKUP(A84,'MMPM1-AMM'!E:E,'MMPM1-AMM'!U:U),_xlfn.XLOOKUP(A84,'MMPM1-PMM'!E:E,'MMPM1-PMM'!T:T)) -> 6 | Y84: TRUE | AB84: =_xlfn.XLOOKUP(A84,productlist[PRODUCT_ID],productlist[PRODUCT_ISIN]) -> DE000A1XQ7C8 | AC84: =_xlfn.XLOOKUP(A84,productlist[PRODUCT_ID],productlist[UNDERLYING_ISIN]) -> GB00BP5FSM23
A85: OMEF | B85: =_xlfn.XLOOKUP(A85,'Product List'!$A:$A,'Product List'!$D:$D) -> MSCI Emerging Markets Price Index Options | C85: =_xlfn.XLOOKUP(A85,'Product List'!$A:$A,'Product List'!$F:$F) -> INDEX OPTIONS | D85: =_xlfn.XLOOKUP(A85,'MMPM1-AMM'!E:E,'MMPM1-AMM'!K:K,_xlfn.XLOOKUP(A85,'MMPM1-PMM'!E:E,'MMPM1-PMM'!J:J)) -> MSCI-3 | E85: =_xlfn.XLOOKUP(A85,'MMPM1-AMM'!E:E,'MMPM1-AMM'!Q:Q,_xlfn.XLOOKUP(A85,'MMPM1-PMM'!E:E,'MMPM1-PMM'!P:P)) -> 6 | F85: =SUMIFS(MMPM2!H:H,MMPM2!C:C,U85,MMPM2!E:E,1,MMPM2!G:G,1) -> 40 | G85: =SUMIFS(MMPM2!H:H,MMPM2!C:C,U85,MMPM2!E:E,1,MMPM2!G:G,2) -> 400 | L85: =SUMIFS(MMPM2!I:I,MMPM2!C:C,U85,MMPM2!E:E,1,MMPM2!G:G,1) -> 8 | M85: =SUMIFS(MMPM2!I:I,MMPM2!C:C,U85,MMPM2!E:E,1,MMPM2!G:G,2) -> 0.2 | N85: =SUMIFS(MMPM2!I:I,MMPM2!C:C,U85,MMPM2!E:E,1,MMPM2!G:G,3) -> 80 | R85: Not applicable | S85: No doubling of mistrade range | U85: =IFERROR(_xlfn.XLOOKUP(A85,'MMPM1-PMM'!E:E,'MMPM1-PMM'!J:J),_xlfn.XLOOKUP(A85,'MMPM1-AMM'!E:E,'MMPM1-AMM'!K:K)) -> MSCI-3 | V85: =IFERROR(_xlfn.XLOOKUP(A85,'MMPM1-AMM'!E:E,'MMPM1-AMM'!T:T),_xlfn.XLOOKUP(A85,'MMPM1-PMM'!E:E,'MMPM1-PMM'!S:S)) -> 3 | W85: =IFERROR(_xlfn.XLOOKUP(A85,'MMPM1-AMM'!E:E,'MMPM1-AMM'!U:U),_xlfn.XLOOKUP(A85,'MMPM1-PMM'!E:E,'MMPM1-PMM'!T:T)) -> 6 | Y85: TRUE | AB85: =_xlfn.XLOOKUP(A85,productlist[PRODUCT_ID],productlist[PRODUCT_ISIN]) -> DE000A11Q380 | AC85: =_xlfn.XLOOKUP(A85,productlist[PRODUCT_ID],productlist[UNDERLYING_ISIN]) -> GB00BP5FTD07
A86: OMEG | B86: =_xlfn.XLOOKUP(A86,'Product List'!$A:$A,'Product List'!$D:$D) -> MSCI Europe Growth Index Options | C86: =_xlfn.XLOOKUP(A86,'Product List'!$A:$A,'Product List'!$F:$F) -> INDEX OPTIONS | D86: =_xlfn.XLOOKUP(A86,'MMPM1-AMM'!E:E,'MMPM1-AMM'!K:K,_xlfn.XLOOKUP(A86,'MMPM1-PMM'!E:E,'MMPM1-PMM'!J:J)) -> MSCI-1 | E86: =_xlfn.XLOOKUP(A86,'MMPM1-AMM'!E:E,'MMPM1-AMM'!Q:Q,_xlfn.XLOOKUP(A86,'MMPM1-PMM'!E:E,'MMPM1-PMM'!P:P)) -> 6 | F86: =SUMIFS(MMPM2!H:H,MMPM2!C:C,U86,MMPM2!E:E,1,MMPM2!G:G,1) -> 5.3 | G86: =SUMIFS(MMPM2!H:H,MMPM2!C:C,U86,MMPM2!E:E,1,MMPM2!G:G,2) -> 53.3 | L86: =SUMIFS(MMPM2!I:I,MMPM2!C:C,U86,MMPM2!E:E,1,MMPM2!G:G,1) -> 0.8 | M86: =SUMIFS(MMPM2!I:I,MMPM2!C:C,U86,MMPM2!E:E,1,MMPM2!G:G,2) -> 0.15 | N86: =SUMIFS(MMPM2!I:I,MMPM2!C:C,U86,MMPM2!E:E,1,MMPM2!G:G,3) -> 8 | R86: Not applicable | S86: No doubling of mistrade range | U86: =IFERROR(_xlfn.XLOOKUP(A86,'MMPM1-PMM'!E:E,'MMPM1-PMM'!J:J),_xlfn.XLOOKUP(A86,'MMPM1-AMM'!E:E,'MMPM1-AMM'!K:K)) -> MSCI-1 | V86: =IFERROR(_xlfn.XLOOKUP(A86,'MMPM1-AMM'!E:E,'MMPM1-AMM'!T:T),_xlfn.XLOOKUP(A86,'MMPM1-PMM'!E:E,'MMPM1-PMM'!S:S)) -> 3 | W86: =IFERROR(_xlfn.XLOOKUP(A86,'MMPM1-AMM'!E:E,'MMPM1-AMM'!U:U),_xlfn.XLOOKUP(A86,'MMPM1-PMM'!E:E,'MMPM1-PMM'!T:T)) -> 6 | Y86: TRUE | AB86: =_xlfn.XLOOKUP(A86,productlist[PRODUCT_ID],productlist[PRODUCT_ISIN]) -> DE000A1YDP29 | AC86: =_xlfn.XLOOKUP(A86,productlist[PRODUCT_ID],productlist[UNDERLYING_ISIN]) -> GB00BP5FT854
A87: OMEL | B87: =_xlfn.XLOOKUP(A87,'Product List'!$A:$A,'Product List'!$D:$D) -> MSCI Emerging Markets Latin America Index Options | C87: =_xlfn.XLOOKUP(A87,'Product List'!$A:$A,'Product List'!$F:$F) -> INDEX OPTIONS | D87: =_xlfn.XLOOKUP(A87,'MMPM1-AMM'!E:E,'MMPM1-AMM'!K:K,_xlfn.XLOOKUP(A87,'MMPM1-PMM'!E:E,'MMPM1-PMM'!J:J)) -> MSCI-3 | E87: =_xlfn.XLOOKUP(A87,'MMPM1-AMM'!E:E,'MMPM1-AMM'!Q:Q,_xlfn.XLOOKUP(A87,'MMPM1-PMM'!E:E,'MMPM1-PMM'!P:P)) -> 6 | F87: =SUMIFS(MMPM2!H:H,MMPM2!C:C,U87,MMPM2!E:E,1,MMPM2!G:G,1) -> 40 | G87: =SUMIFS(MMPM2!H:H,MMPM2!C:C,U87,MMPM2!E:E,1,MMPM2!G:G,2) -> 400 | L87: =SUMIFS(MMPM2!I:I,MMPM2!C:C,U87,MMPM2!E:E,1,MMPM2!G:G,1) -> 8 | M87: =SUMIFS(MMPM2!I:I,MMPM2!C:C,U87,MMPM2!E:E,1,MMPM2!G:G,2) -> 0.2 | N87: =SUMIFS(MMPM2!I:I,MMPM2!C:C,U87,MMPM2!E:E,1,MMPM2!G:G,3) -> 80 | R87: Not applicable | S87: No doubling of mistrade range | U87: =IFERROR(_xlfn.XLOOKUP(A87,'MMPM1-PMM'!E:E,'MMPM1-PMM'!J:J),_xlfn.XLOOKUP(A87,'MMPM1-AMM'!E:E,'MMPM1-AMM'!K:K)) -> MSCI-3 | V87: =IFERROR(_xlfn.XLOOKUP(A87,'MMPM1-AMM'!E:E,'MMPM1-AMM'!T:T),_xlfn.XLOOKUP(A87,'MMPM1-PMM'!E:E,'MMPM1-PMM'!S:S)) -> 3 | W87: =IFERROR(_xlfn.XLOOKUP(A87,'MMPM1-AMM'!E:E,'MMPM1-AMM'!U:U),_xlfn.XLOOKUP(A87,'MMPM1-PMM'!E:E,'MMPM1-PMM'!T:T)) -> 6 | Y87: TRUE | AB87: =_xlfn.XLOOKUP(A87,productlist[PRODUCT_ID],productlist[PRODUCT_ISIN]) -> DE000A1XQ7D6 | AC87: =_xlfn.XLOOKUP(A87,productlist[PRODUCT_ID],productlist[UNDERLYING_ISIN]) -> GB00BP5FSN30
A88: OMEM | B88: =_xlfn.XLOOKUP(A88,'Product List'!$A:$A,'Product List'!$D:$D) -> MSCI Emerging Markets Index Options | C88: =_xlfn.XLOOKUP(A88,'Product List'!$A:$A,'Product List'!$F:$F) -> INDEX OPTIONS | D88: =_xlfn.XLOOKUP(A88,'MMPM1-AMM'!E:E,'MMPM1-AMM'!K:K,_xlfn.XLOOKUP(A88,'MMPM1-PMM'!E:E,'MMPM1-PMM'!J:J)) -> MSCI-4 | E88: =_xlfn.XLOOKUP(A88,'MMPM1-AMM'!E:E,'MMPM1-AMM'!Q:Q,_xlfn.XLOOKUP(A88,'MMPM1-PMM'!E:E,'MMPM1-PMM'!P:P)) -> 6 | F88: =SUMIFS(MMPM2!H:H,MMPM2!C:C,U88,MMPM2!E:E,1,MMPM2!G:G,1) -> 15 | G88: =SUMIFS(MMPM2!H:H,MMPM2!C:C,U88,MMPM2!E:E,1,MMPM2!G:G,2) -> 187.5 | L88: =SUMIFS(MMPM2!I:I,MMPM2!C:C,U88,MMPM2!E:E,1,MMPM2!G:G,1) -> 3 | M88: =SUMIFS(MMPM2!I:I,MMPM2!C:C,U88,MMPM2!E:E,1,MMPM2!G:G,2) -> 0.2 | N88: =SUMIFS(MMPM2!I:I,MMPM2!C:C,U88,MMPM2!E:E,1,MMPM2!G:G,3) -> 37.5 | R88: Not applicable | S88: No doubling of mistrade range | U88: =IFERROR(_xlfn.XLOOKUP(A88,'MMPM1-PMM'!E:E,'MMPM1-PMM'!J:J),_xlfn.XLOOKUP(A88,'MMPM1-AMM'!E:E,'MMPM1-AMM'!K:K)) -> MSCI-4 | V88: =IFERROR(_xlfn.XLOOKUP(A88,'MMPM1-AMM'!E:E,'MMPM1-AMM'!T:T),_xlfn.XLOOKUP(A88,'MMPM1-PMM'!E:E,'MMPM1-PMM'!S:S)) -> 3 | W88: =IFERROR(_xlfn.XLOOKUP(A88,'MMPM1-AMM'!E:E,'MMPM1-AMM'!U:U),_xlfn.XLOOKUP(A88,'MMPM1-PMM'!E:E,'MMPM1-PMM'!T:T)) -> 6 | Y88: TRUE | AB88: =_xlfn.XLOOKUP(A88,productlist[PRODUCT_ID],productlist[PRODUCT_ISIN]) -> DE000A1XQ7A2 | AC88: =_xlfn.XLOOKUP(A88,productlist[PRODUCT_ID],productlist[UNDERLYING_ISIN]) -> GB00BP5FSK09
A89: OMEN | B89: =_xlfn.XLOOKUP(A89,'Product List'!$A:$A,'Product List'!$D:$D) -> MSCI Emerging Markets Index Options | C89: =_xlfn.XLOOKUP(A89,'Product List'!$A:$A,'Product List'!$F:$F) -> INDEX OPTIONS | D89: =_xlfn.XLOOKUP(A89,'MMPM1-AMM'!E:E,'MMPM1-AMM'!K:K,_xlfn.XLOOKUP(A89,'MMPM1-PMM'!E:E,'MMPM1-PMM'!J:J)) -> MSCI-4 | E89: =_xlfn.XLOOKUP(A89,'MMPM1-AMM'!E:E,'MMPM1-AMM'!Q:Q,_xlfn.XLOOKUP(A89,'MMPM1-PMM'!E:E,'MMPM1-PMM'!P:P)) -> 6 | F89: =SUMIFS(MMPM2!H:H,MMPM2!C:C,U89,MMPM2!E:E,1,MMPM2!G:G,1) -> 15 | G89: =SUMIFS(MMPM2!H:H,MMPM2!C:C,U89,MMPM2!E:E,1,MMPM2!G:G,2) -> 187.5 | L89: =SUMIFS(MMPM2!I:I,MMPM2!C:C,U89,MMPM2!E:E,1,MMPM2!G:G,1) -> 3 | M89: =SUMIFS(MMPM2!I:I,MMPM2!C:C,U89,MMPM2!E:E,1,MMPM2!G:G,2) -> 0.2 | N89: =SUMIFS(MMPM2!I:I,MMPM2!C:C,U89,MMPM2!E:E,1,MMPM2!G:G,3) -> 37.5 | R89: Not applicable | S89: No doubling of mistrade range | U89: =IFERROR(_xlfn.XLOOKUP(A89,'MMPM1-PMM'!E:E,'MMPM1-PMM'!J:J),_xlfn.XLOOKUP(A89,'MMPM1-AMM'!E:E,'MMPM1-AMM'!K:K)) -> MSCI-4 | V89: =IFERROR(_xlfn.XLOOKUP(A89,'MMPM1-AMM'!E:E,'MMPM1-AMM'!T:T),_xlfn.XLOOKUP(A89,'MMPM1-PMM'!E:E,'MMPM1-PMM'!S:S)) -> 3 | W89: =IFERROR(_xlfn.XLOOKUP(A89,'MMPM1-AMM'!E:E,'MMPM1-AMM'!U:U),_xlfn.XLOOKUP(A89,'MMPM1-PMM'!E:E,'MMPM1-PMM'!T:T)) -> 6 | Y89: TRUE | AB89: =_xlfn.XLOOKUP(A89,productlist[PRODUCT_ID],productlist[PRODUCT_ISIN]) -> DE000A11Q398 | AC89: =_xlfn.XLOOKUP(A89,productlist[PRODUCT_ID],productlist[UNDERLYING_ISIN]) -> GB00BP5FTF21
A90: OMEP | B90: =_xlfn.XLOOKUP(A90,'Product List'!$A:$A,'Product List'!$D:$D) -> MSCI Europe Price Index Options | C90: =_xlfn.XLOOKUP(A90,'Product List'!$A:$A,'Product List'!$F:$F) -> INDEX OPTIONS | D90: =_xlfn.XLOOKUP(A90,'MMPM1-AMM'!E:E,'MMPM1-AMM'!K:K,_xlfn.XLOOKUP(A90,'MMPM1-PMM'!E:E,'MMPM1-PMM'!J:J)) -> MSCI-1 | E90: =_xlfn.XLOOKUP(A90,'MMPM1-AMM'!E:E,'MMPM1-AMM'!Q:Q,_xlfn.XLOOKUP(A90,'MMPM1-PMM'!E:E,'MMPM1-PMM'!P:P)) -> 6 | F90: =SUMIFS(MMPM2!H:H,MMPM2!C:C,U90,MMPM2!E:E,1,MMPM2!G:G,1) -> 5.3 | G90: =SUMIFS(MMPM2!H:H,MMPM2!C:C,U90,MMPM2!E:E,1,MMPM2!G:G,2) -> 53.3 | L90: =SUMIFS(MMPM2!I:I,MMPM2!C:C,U90,MMPM2!E:E,1,MMPM2!G:G,1) -> 0.8 | M90: =SUMIFS(MMPM2!I:I,MMPM2!C:C,U90,MMPM2!E:E,1,MMPM2!G:G,2) -> 0.15 | N90: =SUMIFS(MMPM2!I:I,MMPM2!C:C,U90,MMPM2!E:E,1,MMPM2!G:G,3) -> 8 | R90: Not applicable | S90: No doubling of mistrade range | U90: =IFERROR(_xlfn.XLOOKUP(A90,'MMPM1-PMM'!E:E,'MMPM1-PMM'!J:J),_xlfn.XLOOKUP(A90,'MMPM1-AMM'!E:E,'MMPM1-AMM'!K:K)) -> MSCI-1 | V90: =IFERROR(_xlfn.XLOOKUP(A90,'MMPM1-AMM'!E:E,'MMPM1-AMM'!T:T),_xlfn.XLOOKUP(A90,'MMPM1-PMM'!E:E,'MMPM1-PMM'!S:S)) -> 3 | W90: =IFERROR(_xlfn.XLOOKUP(A90,'MMPM1-AMM'!E:E,'MMPM1-AMM'!U:U),_xlfn.XLOOKUP(A90,'MMPM1-PMM'!E:E,'MMPM1-PMM'!T:T)) -> 6 | Y90: TRUE | AB90: =_xlfn.XLOOKUP(A90,productlist[PRODUCT_ID],productlist[PRODUCT_ISIN]) -> DE000A11Q372 | AC90: =_xlfn.XLOOKUP(A90,productlist[PRODUCT_ID],productlist[UNDERLYING_ISIN]) -> GB00BP5FTB82
A91: OMEU | B91: =_xlfn.XLOOKUP(A91,'Product List'!$A:$A,'Product List'!$D:$D) -> MSCI Europe Index Options | C91: =_xlfn.XLOOKUP(A91,'Product List'!$A:$A,'Product List'!$F:$F) -> INDEX OPTIONS | D91: =_xlfn.XLOOKUP(A91,'MMPM1-AMM'!E:E,'MMPM1-AMM'!K:K,_xlfn.XLOOKUP(A91,'MMPM1-PMM'!E:E,'MMPM1-PMM'!J:J)) -> MSCI-1 | E91: =_xlfn.XLOOKUP(A91,'MMPM1-AMM'!E:E,'MMPM1-AMM'!Q:Q,_xlfn.XLOOKUP(A91,'MMPM1-PMM'!E:E,'MMPM1-PMM'!P:P)) -> 6 | F91: =SUMIFS(MMPM2!H:H,MMPM2!C:C,U91,MMPM2!E:E,1,MMPM2!G:G,1) -> 5.3 | G91: =SUMIFS(MMPM2!H:H,MMPM2!C:C,U91,MMPM2!E:E,1,MMPM2!G:G,2) -> 53.3 | L91: =SUMIFS(MMPM2!I:I,MMPM2!C:C,U91,MMPM2!E:E,1,MMPM2!G:G,1) -> 0.8 | M91: =SUMIFS(MMPM2!I:I,MMPM2!C:C,U91,MMPM2!E:E,1,MMPM2!G:G,2) -> 0.15 | N91: =SUMIFS(MMPM2!I:I,MMPM2!C:C,U91,MMPM2!E:E,1,MMPM2!G:G,3) -> 8 | R91: Not applicable | S91: No doubling of mistrade range | U91: =IFERROR(_xlfn.XLOOKUP(A91,'MMPM1-PMM'!E:E,'MMPM1-PMM'!J:J),_xlfn.XLOOKUP(A91,'MMPM1-AMM'!E:E,'MMPM1-AMM'!K:K)) -> MSCI-1 | V91: =IFERROR(_xlfn.XLOOKUP(A91,'MMPM1-AMM'!E:E,'MMPM1-AMM'!T:T),_xlfn.XLOOKUP(A91,'MMPM1-PMM'!E:E,'MMPM1-PMM'!S:S)) -> 3 | W91: =IFERROR(_xlfn.XLOOKUP(A91,'MMPM1-AMM'!E:E,'MMPM1-AMM'!U:U),_xlfn.XLOOKUP(A91,'MMPM1-PMM'!E:E,'MMPM1-PMM'!T:T)) -> 6 | Y91: TRUE | AB91: =_xlfn.XLOOKUP(A91,productlist[PRODUCT_ID],productlist[PRODUCT_ISIN]) -> DE000A1RRXH1 | AC91: =_xlfn.XLOOKUP(A91,productlist[PRODUCT_ID],productlist[UNDERLYING_ISIN]) -> GB00BP5FS112
A92: OMEV | B92: =_xlfn.XLOOKUP(A92,'Product List'!$A:$A,'Product List'!$D:$D) -> MSCI Europe Value Index Options | C92: =_xlfn.XLOOKUP(A92,'Product List'!$A:$A,'Product List'!$F:$F) -> INDEX OPTIONS | D92: =_xlfn.XLOOKUP(A92,'MMPM1-AMM'!E:E,'MMPM1-AMM'!K:K,_xlfn.XLOOKUP(A92,'MMPM1-PMM'!E:E,'MMPM1-PMM'!J:J)) -> MSCI-1 | E92: =_xlfn.XLOOKUP(A92,'MMPM1-AMM'!E:E,'MMPM1-AMM'!Q:Q,_xlfn.XLOOKUP(A92,'MMPM1-PMM'!E:E,'MMPM1-PMM'!P:P)) -> 6 | F92: =SUMIFS(MMPM2!H:H,MMPM2!C:C,U92,MMPM2!E:E,1,MMPM2!G:G,1) -> 5.3 | G92: =SUMIFS(MMPM2!H:H,MMPM2!C:C,U92,MMPM2!E:E,1,MMPM2!G:G,2) -> 53.3 | L92: =SUMIFS(MMPM2!I:I,MMPM2!C:C,U92,MMPM2!E:E,1,MMPM2!G:G,1) -> 0.8 | M92: =SUMIFS(MMPM2!I:I,MMPM2!C:C,U92,MMPM2!E:E,1,MMPM2!G:G,2) -> 0.15 | N92: =SUMIFS(MMPM2!I:I,MMPM2!C:C,U92,MMPM2!E:E,1,MMPM2!G:G,3) -> 8 | R92: Not applicable | S92: No doubling of mistrade range | U92: =IFERROR(_xlfn.XLOOKUP(A92,'MMPM1-PMM'!E:E,'MMPM1-PMM'!J:J),_xlfn.XLOOKUP(A92,'MMPM1-AMM'!E:E,'MMPM1-AMM'!K:K)) -> MSCI-1 | V92: =IFERROR(_xlfn.XLOOKUP(A92,'MMPM1-AMM'!E:E,'MMPM1-AMM'!T:T),_xlfn.XLOOKUP(A92,'MMPM1-PMM'!E:E,'MMPM1-PMM'!S:S)) -> 3 | W92: =IFERROR(_xlfn.XLOOKUP(A92,'MMPM1-AMM'!E:E,'MMPM1-AMM'!U:U),_xlfn.XLOOKUP(A92,'MMPM1-PMM'!E:E,'MMPM1-PMM'!T:T)) -> 6 | Y92: TRUE | AB92: =_xlfn.XLOOKUP(A92,productlist[PRODUCT_ID],productlist[PRODUCT_ISIN]) -> DE000A1YDP03 | AC92: =_xlfn.XLOOKUP(A92,productlist[PRODUCT_ID],productlist[UNDERLYING_ISIN]) -> GB00BP5FT961
A93: OMFA | B93: =_xlfn.XLOOKUP(A93,'Product List'!$A:$A,'Product List'!$D:$D) -> MSCI EAFE Index Options | C93: =_xlfn.XLOOKUP(A93,'Product List'!$A:$A,'Product List'!$F:$F) -> INDEX OPTIONS | D93: =_xlfn.XLOOKUP(A93,'MMPM1-AMM'!E:E,'MMPM1-AMM'!K:K,_xlfn.XLOOKUP(A93,'MMPM1-PMM'!E:E,'MMPM1-PMM'!J:J)) -> MSCI-5 | E93: =_xlfn.XLOOKUP(A93,'MMPM1-AMM'!E:E,'MMPM1-AMM'!Q:Q,_xlfn.XLOOKUP(A93,'MMPM1-PMM'!E:E,'MMPM1-PMM'!P:P)) -> 6 | F93: =SUMIFS(MMPM2!H:H,MMPM2!C:C,U93,MMPM2!E:E,1,MMPM2!G:G,1) -> 100 | G93: =SUMIFS(MMPM2!H:H,MMPM2!C:C,U93,MMPM2!E:E,1,MMPM2!G:G,2) -> 1666.7 | L93: =SUMIFS(MMPM2!I:I,MMPM2!C:C,U93,MMPM2!E:E,1,MMPM2!G:G,1) -> 20 | M93: =SUMIFS(MMPM2!I:I,MMPM2!C:C,U93,MMPM2!E:E,1,MMPM2!G:G,2) -> 0.2 | N93: =SUMIFS(MMPM2!I:I,MMPM2!C:C,U93,MMPM2!E:E,1,MMPM2!G:G,3) -> 333 | R93: Not applicable | S93: No doubling of mistrade range | U93: =IFERROR(_xlfn.XLOOKUP(A93,'MMPM1-PMM'!E:E,'MMPM1-PMM'!J:J),_xlfn.XLOOKUP(A93,'MMPM1-AMM'!E:E,'MMPM1-AMM'!K:K)) -> MSCI-5 | V93: =IFERROR(_xlfn.XLOOKUP(A93,'MMPM1-AMM'!E:E,'MMPM1-AMM'!T:T),_xlfn.XLOOKUP(A93,'MMPM1-PMM'!E:E,'MMPM1-PMM'!S:S)) -> 3 | W93: =IFERROR(_xlfn.XLOOKUP(A93,'MMPM1-AMM'!E:E,'MMPM1-AMM'!U:U),_xlfn.XLOOKUP(A93,'MMPM1-PMM'!E:E,'MMPM1-PMM'!T:T)) -> 6 | Y93: TRUE | AB93: =_xlfn.XLOOKUP(A93,productlist[PRODUCT_ID],productlist[PRODUCT_ISIN]) -> DE000A2DB9G5 | AC93: =_xlfn.XLOOKUP(A93,productlist[PRODUCT_ID],productlist[UNDERLYING_ISIN]) -> GB00BP689S37
A94: OMFP | B94: =_xlfn.XLOOKUP(A94,'Product List'!$A:$A,'Product List'!$D:$D) -> MSCI EAFE Price Index Options | C94: =_xlfn.XLOOKUP(A94,'Product List'!$A:$A,'Product List'!$F:$F) -> INDEX OPTIONS | D94: =_xlfn.XLOOKUP(A94,'MMPM1-AMM'!E:E,'MMPM1-AMM'!K:K,_xlfn.XLOOKUP(A94,'MMPM1-PMM'!E:E,'MMPM1-PMM'!J:J)) -> MSCI-5 | E94: =_xlfn.XLOOKUP(A94,'MMPM1-AMM'!E:E,'MMPM1-AMM'!Q:Q,_xlfn.XLOOKUP(A94,'MMPM1-PMM'!E:E,'MMPM1-PMM'!P:P)) -> 6 | F94: =SUMIFS(MMPM2!H:H,MMPM2!C:C,U94,MMPM2!E:E,1,MMPM2!G:G,1) -> 100 | G94: =SUMIFS(MMPM2!H:H,MMPM2!C:C,U94,MMPM2!E:E,1,MMPM2!G:G,2) -> 1666.7 | L94: =SUMIFS(MMPM2!I:I,MMPM2!C:C,U94,MMPM2!E:E,1,MMPM2!G:G,1) -> 20 | M94: =SUMIFS(MMPM2!I:I,MMPM2!C:C,U94,MMPM2!E:E,1,MMPM2!G:G,2) -> 0.2 | N94: =SUMIFS(MMPM2!I:I,MMPM2!C:C,U94,MMPM2!E:E,1,MMPM2!G:G,3) -> 333 | R94: Not applicable | S94: No doubling of mistrade range | U94: =IFERROR(_xlfn.XLOOKUP(A94,'MMPM1-PMM'!E:E,'MMPM1-PMM'!J:J),_xlfn.XLOOKUP(A94,'MMPM1-AMM'!E:E,'MMPM1-AMM'!K:K)) -> MSCI-5 | V94: =IFERROR(_xlfn.XLOOKUP(A94,'MMPM1-AMM'!E:E,'MMPM1-AMM'!T:T),_xlfn.XLOOKUP(A94,'MMPM1-PMM'!E:E,'MMPM1-PMM'!S:S)) -> 3 | W94: =IFERROR(_xlfn.XLOOKUP(A94,'MMPM1-AMM'!E:E,'MMPM1-AMM'!U:U),_xlfn.XLOOKUP(A94,'MMPM1-PMM'!E:E,'MMPM1-PMM'!T:T)) -> 6 | Y94: TRUE | AB94: =_xlfn.XLOOKUP(A94,productlist[PRODUCT_ID],productlist[PRODUCT_ISIN]) -> DE000A2DB9F7 | AC94: =_xlfn.XLOOKUP(A94,productlist[PRODUCT_ID],productlist[UNDERLYING_ISIN]) -> GB00BP689R20
A95: OMJP | B95: =_xlfn.XLOOKUP(A95,'Product List'!$A:$A,'Product List'!$D:$D) -> MSCI Japan Index Options | C95: =_xlfn.XLOOKUP(A95,'Product List'!$A:$A,'Product List'!$F:$F) -> INDEX OPTIONS | D95: =_xlfn.XLOOKUP(A95,'MMPM1-AMM'!E:E,'MMPM1-AMM'!K:K,_xlfn.XLOOKUP(A95,'MMPM1-PMM'!E:E,'MMPM1-PMM'!J:J)) -> MSCI-5 | E95: =_xlfn.XLOOKUP(A95,'MMPM1-AMM'!E:E,'MMPM1-AMM'!Q:Q,_xlfn.XLOOKUP(A95,'MMPM1-PMM'!E:E,'MMPM1-PMM'!P:P)) -> 6 | F95: =SUMIFS(MMPM2!H:H,MMPM2!C:C,U95,MMPM2!E:E,1,MMPM2!G:G,1) -> 100 | G95: =SUMIFS(MMPM2!H:H,MMPM2!C:C,U95,MMPM2!E:E,1,MMPM2!G:G,2) -> 1666.7 | L95: =SUMIFS(MMPM2!I:I,MMPM2!C:C,U95,MMPM2!E:E,1,MMPM2!G:G,1) -> 20 | M95: =SUMIFS(MMPM2!I:I,MMPM2!C:C,U95,MMPM2!E:E,1,MMPM2!G:G,2) -> 0.2 | N95: =SUMIFS(MMPM2!I:I,MMPM2!C:C,U95,MMPM2!E:E,1,MMPM2!G:G,3) -> 333 | R95: Not applicable | S95: No doubling of mistrade range | U95: =IFERROR(_xlfn.XLOOKUP(A95,'MMPM1-PMM'!E:E,'MMPM1-PMM'!J:J),_xlfn.XLOOKUP(A95,'MMPM1-AMM'!E:E,'MMPM1-AMM'!K:K)) -> MSCI-5 | V95: =IFERROR(_xlfn.XLOOKUP(A95,'MMPM1-AMM'!E:E,'MMPM1-AMM'!T:T),_xlfn.XLOOKUP(A95,'MMPM1-PMM'!E:E,'MMPM1-PMM'!S:S)) -> 3 | W95: =IFERROR(_xlfn.XLOOKUP(A95,'MMPM1-AMM'!E:E,'MMPM1-AMM'!U:U),_xlfn.XLOOKUP(A95,'MMPM1-PMM'!E:E,'MMPM1-PMM'!T:T)) -> 6 | Y95: TRUE | AB95: =_xlfn.XLOOKUP(A95,productlist[PRODUCT_ID],productlist[PRODUCT_ISIN]) -> DE000A2DB9H3 | AC95: =_xlfn.XLOOKUP(A95,productlist[PRODUCT_ID],productlist[UNDERLYING_ISIN]) -> GB00BP5FSP53
A96: OMWB | B96: =_xlfn.XLOOKUP(A96,'Product List'!$A:$A,'Product List'!$D:$D) -> MSCI World Index Options | C96: =_xlfn.XLOOKUP(A96,'Product List'!$A:$A,'Product List'!$F:$F) -> INDEX OPTIONS | D96: =_xlfn.XLOOKUP(A96,'MMPM1-AMM'!E:E,'MMPM1-AMM'!K:K,_xlfn.XLOOKUP(A96,'MMPM1-PMM'!E:E,'MMPM1-PMM'!J:J)) -> MSCI-5 | E96: =_xlfn.XLOOKUP(A96,'MMPM1-AMM'!E:E,'MMPM1-AMM'!Q:Q,_xlfn.XLOOKUP(A96,'MMPM1-PMM'!E:E,'MMPM1-PMM'!P:P)) -> 6 | F96: =SUMIFS(MMPM2!H:H,MMPM2!C:C,U96,MMPM2!E:E,1,MMPM2!G:G,1) -> 100 | G96: =SUMIFS(MMPM2!H:H,MMPM2!C:C,U96,MMPM2!E:E,1,MMPM2!G:G,2) -> 1666.7 | L96: =SUMIFS(MMPM2!I:I,MMPM2!C:C,U96,MMPM2!E:E,1,MMPM2!G:G,1) -> 20 | M96: =SUMIFS(MMPM2!I:I,MMPM2!C:C,U96,MMPM2!E:E,1,MMPM2!G:G,2) -> 0.2 | N96: =SUMIFS(MMPM2!I:I,MMPM2!C:C,U96,MMPM2!E:E,1,MMPM2!G:G,3) -> 333 | R96: Not applicable | S96: No doubling of mistrade range | U96: =IFERROR(_xlfn.XLOOKUP(A96,'MMPM1-PMM'!E:E,'MMPM1-PMM'!J:J),_xlfn.XLOOKUP(A96,'MMPM1-AMM'!E:E,'MMPM1-AMM'!K:K)) -> MSCI-5 | V96: =IFERROR(_xlfn.XLOOKUP(A96,'MMPM1-AMM'!E:E,'MMPM1-AMM'!T:T),_xlfn.XLOOKUP(A96,'MMPM1-PMM'!E:E,'MMPM1-PMM'!S:S)) -> 3 | W96: =IFERROR(_xlfn.XLOOKUP(A96,'MMPM1-AMM'!E:E,'MMPM1-AMM'!U:U),_xlfn.XLOOKUP(A96,'MMPM1-PMM'!E:E,'MMPM1-PMM'!T:T)) -> 6 | Y96: TRUE | AB96: =_xlfn.XLOOKUP(A96,productlist[PRODUCT_ID],productlist[PRODUCT_ISIN]) -> DE000A2RPLY3 | AC96: =_xlfn.XLOOKUP(A96,productlist[PRODUCT_ID],productlist[UNDERLYING_ISIN]) -> GB00BP68B985
A97: OMWN | B97: =_xlfn.XLOOKUP(A97,'Product List'!$A:$A,'Product List'!$D:$D) -> MSCI World Index Options | C97: =_xlfn.XLOOKUP(A97,'Product List'!$A:$A,'Product List'!$F:$F) -> INDEX OPTIONS | D97: =_xlfn.XLOOKUP(A97,'MMPM1-AMM'!E:E,'MMPM1-AMM'!K:K,_xlfn.XLOOKUP(A97,'MMPM1-PMM'!E:E,'MMPM1-PMM'!J:J)) -> MSCI-1 | E97: =_xlfn.XLOOKUP(A97,'MMPM1-AMM'!E:E,'MMPM1-AMM'!Q:Q,_xlfn.XLOOKUP(A97,'MMPM1-PMM'!E:E,'MMPM1-PMM'!P:P)) -> 6 | F97: =SUMIFS(MMPM2!H:H,MMPM2!C:C,U97,MMPM2!E:E,1,MMPM2!G:G,1) -> 5.3 | G97: =SUMIFS(MMPM2!H:H,MMPM2!C:C,U97,MMPM2!E:E,1,MMPM2!G:G,2) -> 53.3 | L97: =SUMIFS(MMPM2!I:I,MMPM2!C:C,U97,MMPM2!E:E,1,MMPM2!G:G,1) -> 0.8 | M97: =SUMIFS(MMPM2!I:I,MMPM2!C:C,U97,MMPM2!E:E,1,MMPM2!G:G,2) -> 0.15 | N97: =SUMIFS(MMPM2!I:I,MMPM2!C:C,U97,MMPM2!E:E,1,MMPM2!G:G,3) -> 8 | R97: Not applicable | S97: No doubling of mistrade range | U97: =IFERROR(_xlfn.XLOOKUP(A97,'MMPM1-PMM'!E:E,'MMPM1-PMM'!J:J),_xlfn.XLOOKUP(A97,'MMPM1-AMM'!E:E,'MMPM1-AMM'!K:K)) -> MSCI-1 | V97: =IFERROR(_xlfn.XLOOKUP(A97,'MMPM1-AMM'!E:E,'MMPM1-AMM'!T:T),_xlfn.XLOOKUP(A97,'MMPM1-PMM'!E:E,'MMPM1-PMM'!S:S)) -> 3 | W97: =IFERROR(_xlfn.XLOOKUP(A97,'MMPM1-AMM'!E:E,'MMPM1-AMM'!U:U),_xlfn.XLOOKUP(A97,'MMPM1-PMM'!E:E,'MMPM1-PMM'!T:T)) -> 6 | Y97: TRUE | AB97: =_xlfn.XLOOKUP(A97,productlist[PRODUCT_ID],productlist[PRODUCT_ISIN]) -> DE000A11Q4B8 | AC97: =_xlfn.XLOOKUP(A97,productlist[PRODUCT_ID],productlist[UNDERLYING_ISIN]) -> GB00BP5FTC99
A98: OMWO | B98: =_xlfn.XLOOKUP(A98,'Product List'!$A:$A,'Product List'!$D:$D) -> MSCI World Index Options | C98: =_xlfn.XLOOKUP(A98,'Product List'!$A:$A,'Product List'!$F:$F) -> INDEX OPTIONS | D98: =_xlfn.XLOOKUP(A98,'MMPM1-AMM'!E:E,'MMPM1-AMM'!K:K,_xlfn.XLOOKUP(A98,'MMPM1-PMM'!E:E,'MMPM1-PMM'!J:J)) -> MSCI-6 | E98: =_xlfn.XLOOKUP(A98,'MMPM1-AMM'!E:E,'MMPM1-AMM'!Q:Q,_xlfn.XLOOKUP(A98,'MMPM1-PMM'!E:E,'MMPM1-PMM'!P:P)) -> 6 | F98: =SUMIFS(MMPM2!H:H,MMPM2!C:C,U98,MMPM2!E:E,1,MMPM2!G:G,1) -> 500 | G98: =SUMIFS(MMPM2!H:H,MMPM2!C:C,U98,MMPM2!E:E,1,MMPM2!G:G,2) -> 6250 | L98: =SUMIFS(MMPM2!I:I,MMPM2!C:C,U98,MMPM2!E:E,1,MMPM2!G:G,1) -> 100 | M98: =SUMIFS(MMPM2!I:I,MMPM2!C:C,U98,MMPM2!E:E,1,MMPM2!G:G,2) -> 0.2 | N98: =SUMIFS(MMPM2!I:I,MMPM2!C:C,U98,MMPM2!E:E,1,MMPM2!G:G,3) -> 1250 | R98: Not applicable | S98: No doubling of mistrade range | U98: =IFERROR(_xlfn.XLOOKUP(A98,'MMPM1-PMM'!E:E,'MMPM1-PMM'!J:J),_xlfn.XLOOKUP(A98,'MMPM1-AMM'!E:E,'MMPM1-AMM'!K:K)) -> MSCI-6 | V98: =IFERROR(_xlfn.XLOOKUP(A98,'MMPM1-AMM'!E:E,'MMPM1-AMM'!T:T),_xlfn.XLOOKUP(A98,'MMPM1-PMM'!E:E,'MMPM1-PMM'!S:S)) -> 3 | W98: =IFERROR(_xlfn.XLOOKUP(A98,'MMPM1-AMM'!E:E,'MMPM1-AMM'!U:U),_xlfn.XLOOKUP(A98,'MMPM1-PMM'!E:E,'MMPM1-PMM'!T:T)) -> 6 | Y98: TRUE | AB98: =_xlfn.XLOOKUP(A98,productlist[PRODUCT_ID],productlist[PRODUCT_ISIN]) -> DE000A1RRXK5 | AC98: =_xlfn.XLOOKUP(A98,productlist[PRODUCT_ID],productlist[UNDERLYING_ISIN]) -> GB00BMY0G899
A99: OMWP | B99: =_xlfn.XLOOKUP(A99,'Product List'!$A:$A,'Product List'!$D:$D) -> MSCI World Price Index Options | C99: =_xlfn.XLOOKUP(A99,'Product List'!$A:$A,'Product List'!$F:$F) -> INDEX OPTIONS | D99: =_xlfn.XLOOKUP(A99,'MMPM1-AMM'!E:E,'MMPM1-AMM'!K:K,_xlfn.XLOOKUP(A99,'MMPM1-PMM'!E:E,'MMPM1-PMM'!J:J)) -> MSCI-5 | E99: =_xlfn.XLOOKUP(A99,'MMPM1-AMM'!E:E,'MMPM1-AMM'!Q:Q,_xlfn.XLOOKUP(A99,'MMPM1-PMM'!E:E,'MMPM1-PMM'!P:P)) -> 6 | F99: =SUMIFS(MMPM2!H:H,MMPM2!C:C,U99,MMPM2!E:E,1,MMPM2!G:G,1) -> 100 | G99: =SUMIFS(MMPM2!H:H,MMPM2!C:C,U99,MMPM2!E:E,1,MMPM2!G:G,2) -> 1666.7 | L99: =SUMIFS(MMPM2!I:I,MMPM2!C:C,U99,MMPM2!E:E,1,MMPM2!G:G,1) -> 20 | M99: =SUMIFS(MMPM2!I:I,MMPM2!C:C,U99,MMPM2!E:E,1,MMPM2!G:G,2) -> 0.2 | N99: =SUMIFS(MMPM2!I:I,MMPM2!C:C,U99,MMPM2!E:E,1,MMPM2!G:G,3) -> 333 | R99: Not applicable | S99: No doubling of mistrade range | U99: =IFERROR(_xlfn.XLOOKUP(A99,'MMPM1-PMM'!E:E,'MMPM1-PMM'!J:J),_xlfn.XLOOKUP(A99,'MMPM1-AMM'!E:E,'MMPM1-AMM'!K:K)) -> MSCI-5 | V99: =IFERROR(_xlfn.XLOOKUP(A99,'MMPM1-AMM'!E:E,'MMPM1-AMM'!T:T),_xlfn.XLOOKUP(A99,'MMPM1-PMM'!E:E,'MMPM1-PMM'!S:S)) -> 3 | W99: =IFERROR(_xlfn.XLOOKUP(A99,'MMPM1-AMM'!E:E,'MMPM1-AMM'!U:U),_xlfn.XLOOKUP(A99,'MMPM1-PMM'!E:E,'MMPM1-PMM'!T:T)) -> 6 | Y99: TRUE | AB99: =_xlfn.XLOOKUP(A99,productlist[PRODUCT_ID],productlist[PRODUCT_ISIN]) -> DE000A11Q4A0 | AC99: =_xlfn.XLOOKUP(A99,productlist[PRODUCT_ID],productlist[UNDERLYING_ISIN]) -> GB00BJDQQQ59
A100: OPHA | B100: =_xlfn.XLOOKUP(A100,'Product List'!$A:$A,'Product List'!$D:$D) -> WisdomTree physical Gold Options | C100: =_xlfn.XLOOKUP(A100,'Product List'!$A:$A,'Product List'!$F:$F) -> OPTIONS ON EXCHANGE-TRADED COMMODITIES SECURITIES | D100: =_xlfn.XLOOKUP(A100,'MMPM1-AMM'!E:E,'MMPM1-AMM'!K:K,_xlfn.XLOOKUP(A100,'MMPM1-PMM'!E:E,'MMPM1-PMM'!J:J)) -> CO-ETF2 | E100: =_xlfn.XLOOKUP(A100,'MMPM1-AMM'!E:E,'MMPM1-AMM'!Q:Q,_xlfn.XLOOKUP(A100,'MMPM1-PMM'!E:E,'MMPM1-PMM'!P:P)) -> 6 | F100: =SUMIFS(MMPM2!H:H,MMPM2!C:C,U100,MMPM2!E:E,1,MMPM2!G:G,1) -> 5 | G100: =SUMIFS(MMPM2!H:H,MMPM2!C:C,U100,MMPM2!E:E,1,MMPM2!G:G,2) -> 50 | L100: =SUMIFS(MMPM2!I:I,MMPM2!C:C,U100,MMPM2!E:E,1,MMPM2!G:G,1) -> 0.5 | M100: =SUMIFS(MMPM2!I:I,MMPM2!C:C,U100,MMPM2!E:E,1,MMPM2!G:G,2) -> 0.1 | N100: =SUMIFS(MMPM2!I:I,MMPM2!C:C,U100,MMPM2!E:E,1,MMPM2!G:G,3) -> 5 | R100: Not applicable | S100: No doubling of mistrade range | U100: =IFERROR(_xlfn.XLOOKUP(A100,'MMPM1-PMM'!E:E,'MMPM1-PMM'!J:J),_xlfn.XLOOKUP(A100,'MMPM1-AMM'!E:E,'MMPM1-AMM'!K:K)) -> CO-ETF2 | V100: =IFERROR(_xlfn.XLOOKUP(A100,'MMPM1-AMM'!E:E,'MMPM1-AMM'!T:T),_xlfn.XLOOKUP(A100,'MMPM1-PMM'!E:E,'MMPM1-PMM'!S:S)) -> 3 | W100: =IFERROR(_xlfn.XLOOKUP(A100,'MMPM1-AMM'!E:E,'MMPM1-AMM'!U:U),_xlfn.XLOOKUP(A100,'MMPM1-PMM'!E:E,'MMPM1-PMM'!T:T)) -> 6 | Y100: TRUE | AB100: =_xlfn.XLOOKUP(A100,productlist[PRODUCT_ID],productlist[PRODUCT_ISIN]) -> DE000A1KQSH8 | AC100: =_xlfn.XLOOKUP(A100,productlist[PRODUCT_ID],productlist[UNDERLYING_ISIN]) -> JE00B1VS3770
A101: OQDE | B101: =_xlfn.XLOOKUP(A101,'Product List'!$A:$A,'Product List'!$D:$D) -> iShares USD Corporate Bond UCITS Options [american] | C101: =_xlfn.XLOOKUP(A101,'Product List'!$A:$A,'Product List'!$F:$F) -> EXTF-OPTIONS | D101: =_xlfn.XLOOKUP(A101,'MMPM1-AMM'!E:E,'MMPM1-AMM'!K:K,_xlfn.XLOOKUP(A101,'MMPM1-PMM'!E:E,'MMPM1-PMM'!J:J)) -> FI-ETF | E101: =_xlfn.XLOOKUP(A101,'MMPM1-AMM'!E:E,'MMPM1-AMM'!Q:Q,_xlfn.XLOOKUP(A101,'MMPM1-PMM'!E:E,'MMPM1-PMM'!P:P)) -> 3 | F101: =SUMIFS(MMPM2!H:H,MMPM2!C:C,U101,MMPM2!E:E,1,MMPM2!G:G,1) -> 1.5 | G101: =SUMIFS(MMPM2!H:H,MMPM2!C:C,U101,MMPM2!E:E,1,MMPM2!G:G,2) -> 15 | L101: =SUMIFS(MMPM2!I:I,MMPM2!C:C,U101,MMPM2!E:E,1,MMPM2!G:G,1) -> 0.35 | M101: =SUMIFS(MMPM2!I:I,MMPM2!C:C,U101,MMPM2!E:E,1,MMPM2!G:G,2) -> 0.2 | N101: =SUMIFS(MMPM2!I:I,MMPM2!C:C,U101,MMPM2!E:E,1,MMPM2!G:G,3) -> 3 | R101: Not applicable | S101: No doubling of mistrade range | U101: =IFERROR(_xlfn.XLOOKUP(A101,'MMPM1-PMM'!E:E,'MMPM1-PMM'!J:J),_xlfn.XLOOKUP(A101,'MMPM1-AMM'!E:E,'MMPM1-AMM'!K:K)) -> FI-ETF | V101: =IFERROR(_xlfn.XLOOKUP(A101,'MMPM1-AMM'!E:E,'MMPM1-AMM'!T:T),_xlfn.XLOOKUP(A101,'MMPM1-PMM'!E:E,'MMPM1-PMM'!S:S)) -> 3 | W101: =IFERROR(_xlfn.XLOOKUP(A101,'MMPM1-AMM'!E:E,'MMPM1-AMM'!U:U),_xlfn.XLOOKUP(A101,'MMPM1-PMM'!E:E,'MMPM1-PMM'!T:T)) -> 3 | Y101: TRUE | AB101: =_xlfn.XLOOKUP(A101,productlist[PRODUCT_ID],productlist[PRODUCT_ISIN]) -> DE000A2G9QL0 | AC101: =_xlfn.XLOOKUP(A101,productlist[PRODUCT_ID],productlist[UNDERLYING_ISIN]) -> IE0032895942
A102: OSCE | B102: =_xlfn.XLOOKUP(A102,'Product List'!$A:$A,'Product List'!$D:$D) -> EURO STOXX® Small Index Options | C102: =_xlfn.XLOOKUP(A102,'Product List'!$A:$A,'Product List'!$F:$F) -> INDEX OPTIONS | D102: =_xlfn.XLOOKUP(A102,'MMPM1-AMM'!E:E,'MMPM1-AMM'!K:K,_xlfn.XLOOKUP(A102,'MMPM1-PMM'!E:E,'MMPM1-PMM'!J:J)) -> BB-Size | E102: =_xlfn.XLOOKUP(A102,'MMPM1-AMM'!E:E,'MMPM1-AMM'!Q:Q,_xlfn.XLOOKUP(A102,'MMPM1-PMM'!E:E,'MMPM1-PMM'!P:P)) -> 6 | F102: =SUMIFS(MMPM2!H:H,MMPM2!C:C,U102,MMPM2!E:E,1,MMPM2!G:G,1) -> 5.3 | G102: =SUMIFS(MMPM2!H:H,MMPM2!C:C,U102,MMPM2!E:E,1,MMPM2!G:G,2) -> 53.3 | L102: =SUMIFS(MMPM2!I:I,MMPM2!C:C,U102,MMPM2!E:E,1,MMPM2!G:G,1) -> 0.8 | M102: =SUMIFS(MMPM2!I:I,MMPM2!C:C,U102,MMPM2!E:E,1,MMPM2!G:G,2) -> 0.15 | N102: =SUMIFS(MMPM2!I:I,MMPM2!C:C,U102,MMPM2!E:E,1,MMPM2!G:G,3) -> 8 | R102: Not applicable | S102: No doubling of mistrade range | U102: =IFERROR(_xlfn.XLOOKUP(A102,'MMPM1-PMM'!E:E,'MMPM1-PMM'!J:J),_xlfn.XLOOKUP(A102,'MMPM1-AMM'!E:E,'MMPM1-AMM'!K:K)) -> BB-Size | V102: =IFERROR(_xlfn.XLOOKUP(A102,'MMPM1-AMM'!E:E,'MMPM1-AMM'!T:T),_xlfn.XLOOKUP(A102,'MMPM1-PMM'!E:E,'MMPM1-PMM'!S:S)) -> 3 | W102: =IFERROR(_xlfn.XLOOKUP(A102,'MMPM1-AMM'!E:E,'MMPM1-AMM'!U:U),_xlfn.XLOOKUP(A102,'MMPM1-PMM'!E:E,'MMPM1-PMM'!T:T)) -> 6 | Y102: TRUE | AB102: =_xlfn.XLOOKUP(A102,productlist[PRODUCT_ID],productlist[PRODUCT_ISIN]) -> DE000A1DKQS7 | AC102: =_xlfn.XLOOKUP(A102,productlist[PRODUCT_ID],productlist[UNDERLYING_ISIN]) -> CH0009107456
A103: OSCP | B103: =_xlfn.XLOOKUP(A103,'Product List'!$A:$A,'Product List'!$D:$D) -> STOXX® Europe Small 200 Index Options | C103: =_xlfn.XLOOKUP(A103,'Product List'!$A:$A,'Product List'!$F:$F) -> INDEX OPTIONS | D103: =_xlfn.XLOOKUP(A103,'MMPM1-AMM'!E:E,'MMPM1-AMM'!K:K,_xlfn.XLOOKUP(A103,'MMPM1-PMM'!E:E,'MMPM1-PMM'!J:J)) -> BB-Size | E103: =_xlfn.XLOOKUP(A103,'MMPM1-AMM'!E:E,'MMPM1-AMM'!Q:Q,_xlfn.XLOOKUP(A103,'MMPM1-PMM'!E:E,'MMPM1-PMM'!P:P)) -> 6 | F103: =SUMIFS(MMPM2!H:H,MMPM2!C:C,U103,MMPM2!E:E,1,MMPM2!G:G,1) -> 5.3 | G103: =SUMIFS(MMPM2!H:H,MMPM2!C:C,U103,MMPM2!E:E,1,MMPM2!G:G,2) -> 53.3 | L103: =SUMIFS(MMPM2!I:I,MMPM2!C:C,U103,MMPM2!E:E,1,MMPM2!G:G,1) -> 0.8 | M103: =SUMIFS(MMPM2!I:I,MMPM2!C:C,U103,MMPM2!E:E,1,MMPM2!G:G,2) -> 0.15 | N103: =SUMIFS(MMPM2!I:I,MMPM2!C:C,U103,MMPM2!E:E,1,MMPM2!G:G,3) -> 8 | R103: Not applicable | S103: No doubling of mistrade range | U103: =IFERROR(_xlfn.XLOOKUP(A103,'MMPM1-PMM'!E:E,'MMPM1-PMM'!J:J),_xlfn.XLOOKUP(A103,'MMPM1-AMM'!E:E,'MMPM1-AMM'!K:K)) -> BB-Size | V103: =IFERROR(_xlfn.XLOOKUP(A103,'MMPM1-AMM'!E:E,'MMPM1-AMM'!T:T),_xlfn.XLOOKUP(A103,'MMPM1-PMM'!E:E,'MMPM1-PMM'!S:S)) -> 3 | W103: =IFERROR(_xlfn.XLOOKUP(A103,'MMPM1-AMM'!E:E,'MMPM1-AMM'!U:U),_xlfn.XLOOKUP(A103,'MMPM1-PMM'!E:E,'MMPM1-PMM'!T:T)) -> 6 | Y103: TRUE | AB103: =_xlfn.XLOOKUP(A103,productlist[PRODUCT_ID],productlist[PRODUCT_ISIN]) -> DE000A1DKQW9 | AC103: =_xlfn.XLOOKUP(A103,productlist[PRODUCT_ID],productlist[UNDERLYING_ISIN]) -> CH0009107639
A104: OSDX | B104: =_xlfn.XLOOKUP(A104,'Product List'!$A:$A,'Product List'!$D:$D) -> DAX® 50 ESG Options | C104: =_xlfn.XLOOKUP(A104,'Product List'!$A:$A,'Product List'!$F:$F) -> INDEX OPTIONS | D104: =_xlfn.XLOOKUP(A104,'MMPM1-AMM'!E:E,'MMPM1-AMM'!K:K,_xlfn.XLOOKUP(A104,'MMPM1-PMM'!E:E,'MMPM1-PMM'!J:J)) -> DAX-ESG | E104: =_xlfn.XLOOKUP(A104,'MMPM1-AMM'!E:E,'MMPM1-AMM'!Q:Q,_xlfn.XLOOKUP(A104,'MMPM1-PMM'!E:E,'MMPM1-PMM'!P:P)) -> 6 | F104: =SUMIFS(MMPM2!H:H,MMPM2!C:C,U104,MMPM2!E:E,1,MMPM2!G:G,1) -> 13.3 | G104: =SUMIFS(MMPM2!H:H,MMPM2!C:C,U104,MMPM2!E:E,1,MMPM2!G:G,2) -> 133.3 | L104: =SUMIFS(MMPM2!I:I,MMPM2!C:C,U104,MMPM2!E:E,1,MMPM2!G:G,1) -> 2 | M104: =SUMIFS(MMPM2!I:I,MMPM2!C:C,U104,MMPM2!E:E,1,MMPM2!G:G,2) -> 0.15 | N104: =SUMIFS(MMPM2!I:I,MMPM2!C:C,U104,MMPM2!E:E,1,MMPM2!G:G,3) -> 20 | R104: Not applicable | S104: No doubling of mistrade range | U104: =IFERROR(_xlfn.XLOOKUP(A104,'MMPM1-PMM'!E:E,'MMPM1-PMM'!J:J),_xlfn.XLOOKUP(A104,'MMPM1-AMM'!E:E,'MMPM1-AMM'!K:K)) -> DAX-ESG | V104: =IFERROR(_xlfn.XLOOKUP(A104,'MMPM1-AMM'!E:E,'MMPM1-AMM'!T:T),_xlfn.XLOOKUP(A104,'MMPM1-PMM'!E:E,'MMPM1-PMM'!S:S)) -> 3 | W104: =IFERROR(_xlfn.XLOOKUP(A104,'MMPM1-AMM'!E:E,'MMPM1-AMM'!U:U),_xlfn.XLOOKUP(A104,'MMPM1-PMM'!E:E,'MMPM1-PMM'!T:T)) -> 6 | Y104: TRUE | AB104: =_xlfn.XLOOKUP(A104,productlist[PRODUCT_ID],productlist[PRODUCT_ISIN]) -> DE000A2QDW52 | AC104: =_xlfn.XLOOKUP(A104,productlist[PRODUCT_ID],productlist[UNDERLYING_ISIN]) -> DE000A0S3E04
A105: OSEG | B105: =_xlfn.XLOOKUP(A105,'Product List'!$A:$A,'Product List'!$D:$D) -> STOXX® Europe 600 ESG-X Index Options | C105: =_xlfn.XLOOKUP(A105,'Product List'!$A:$A,'Product List'!$F:$F) -> INDEX OPTIONS | D105: =_xlfn.XLOOKUP(A105,'MMPM1-AMM'!E:E,'MMPM1-AMM'!K:K,_xlfn.XLOOKUP(A105,'MMPM1-PMM'!E:E,'MMPM1-PMM'!J:J)) -> STX-ESG | E105: =_xlfn.XLOOKUP(A105,'MMPM1-AMM'!E:E,'MMPM1-AMM'!Q:Q,_xlfn.XLOOKUP(A105,'MMPM1-PMM'!E:E,'MMPM1-PMM'!P:P)) -> 6 | F105: =SUMIFS(MMPM2!H:H,MMPM2!C:C,U105,MMPM2!E:E,1,MMPM2!G:G,1) -> 5.3 | G105: =SUMIFS(MMPM2!H:H,MMPM2!C:C,U105,MMPM2!E:E,1,MMPM2!G:G,2) -> 53.3 | L105: =SUMIFS(MMPM2!I:I,MMPM2!C:C,U105,MMPM2!E:E,1,MMPM2!G:G,1) -> 0.8 | M105: =SUMIFS(MMPM2!I:I,MMPM2!C:C,U105,MMPM2!E:E,1,MMPM2!G:G,2) -> 0.15 | N105: =SUMIFS(MMPM2!I:I,MMPM2!C:C,U105,MMPM2!E:E,1,MMPM2!G:G,3) -> 8 | R105: =IF(D105="OVS","",IF(V105=3, "Not applicable",W105-1)) -> Not applicable | S105: No doubling of mistrade range | U105: =IFERROR(_xlfn.XLOOKUP(A105,'MMPM1-PMM'!E:E,'MMPM1-PMM'!J:J),_xlfn.XLOOKUP(A105,'MMPM1-AMM'!E:E,'MMPM1-AMM'!K:K)) -> STX-ESG | V105: =IFERROR(_xlfn.XLOOKUP(A105,'MMPM1-AMM'!E:E,'MMPM1-AMM'!T:T),_xlfn.XLOOKUP(A105,'MMPM1-PMM'!E:E,'MMPM1-PMM'!S:S)) -> 3 | W105: =IFERROR(_xlfn.XLOOKUP(A105,'MMPM1-AMM'!E:E,'MMPM1-AMM'!U:U),_xlfn.XLOOKUP(A105,'MMPM1-PMM'!E:E,'MMPM1-PMM'!T:T)) -> 6 | Y105: TRUE | AB105: =_xlfn.XLOOKUP(A105,productlist[PRODUCT_ID],productlist[PRODUCT_ISIN]) -> DE000A2YZPL6 | AC105: =_xlfn.XLOOKUP(A105,productlist[PRODUCT_ID],productlist[UNDERLYING_ISIN]) -> CH0445431064
A106: OSLI | B106: =_xlfn.XLOOKUP(A106,'Product List'!$A:$A,'Product List'!$D:$D) -> SLI Swiss Leader Index® Options | C106: =_xlfn.XLOOKUP(A106,'Product List'!$A:$A,'Product List'!$F:$F) -> INDEX OPTIONS | D106: =_xlfn.XLOOKUP(A106,'MMPM1-AMM'!E:E,'MMPM1-AMM'!K:K,_xlfn.XLOOKUP(A106,'MMPM1-PMM'!E:E,'MMPM1-PMM'!J:J)) -> OSLI | E106: =_xlfn.XLOOKUP(A106,'MMPM1-AMM'!E:E,'MMPM1-AMM'!Q:Q,_xlfn.XLOOKUP(A106,'MMPM1-PMM'!E:E,'MMPM1-PMM'!P:P)) -> 8 | F106: =SUMIFS(MMPM2!H:H,MMPM2!C:C,U106,MMPM2!E:E,1,MMPM2!G:G,1) -> 5.3 | G106: =SUMIFS(MMPM2!H:H,MMPM2!C:C,U106,MMPM2!E:E,1,MMPM2!G:G,2) -> 53.3 | I106: 5.3 | J106: 53.3 | L106: =SUMIFS(MMPM2!I:I,MMPM2!C:C,U106,MMPM2!E:E,1,MMPM2!G:G,1) -> 0.8 | M106: =SUMIFS(MMPM2!I:I,MMPM2!C:C,U106,MMPM2!E:E,1,MMPM2!G:G,2) -> 0.15 | N106: =SUMIFS(MMPM2!I:I,MMPM2!C:C,U106,MMPM2!E:E,1,MMPM2!G:G,3) -> 8 | O106: 1.6 | P106: 0.3 | Q106: 16 | R106: 7 | S106: 7 | U106: =IFERROR(_xlfn.XLOOKUP(A106,'MMPM1-PMM'!E:E,'MMPM1-PMM'!J:J),_xlfn.XLOOKUP(A106,'MMPM1-AMM'!E:E,'MMPM1-AMM'!K:K)) -> OSLI | V106: =IFERROR(_xlfn.XLOOKUP(A106,'MMPM1-AMM'!E:E,'MMPM1-AMM'!T:T),_xlfn.XLOOKUP(A106,'MMPM1-PMM'!E:E,'MMPM1-PMM'!S:S)) -> 6 | W106: =IFERROR(_xlfn.XLOOKUP(A106,'MMPM1-AMM'!E:E,'MMPM1-AMM'!U:U),_xlfn.XLOOKUP(A106,'MMPM1-PMM'!E:E,'MMPM1-PMM'!T:T)) -> 8 | Y106: TRUE | AB106: =_xlfn.XLOOKUP(A106,productlist[PRODUCT_ID],productlist[PRODUCT_ISIN]) -> DE000A0QZD77 | AC106: =_xlfn.XLOOKUP(A106,productlist[PRODUCT_ID],productlist[UNDERLYING_ISIN]) -> CH0030252883 | AE106: 7
A107: OSLS | B107: =_xlfn.XLOOKUP(A107,'Product List'!$A:$A,'Product List'!$D:$D) -> STOXX® Europe ESG Leaders Select 30 Index Options | C107: =_xlfn.XLOOKUP(A107,'Product List'!$A:$A,'Product List'!$F:$F) -> INDEX OPTIONS | D107: =_xlfn.XLOOKUP(A107,'MMPM1-AMM'!E:E,'MMPM1-AMM'!K:K,_xlfn.XLOOKUP(A107,'MMPM1-PMM'!E:E,'MMPM1-PMM'!J:J)) -> OSLS | E107: =_xlfn.XLOOKUP(A107,'MMPM1-AMM'!E:E,'MMPM1-AMM'!Q:Q,_xlfn.XLOOKUP(A107,'MMPM1-PMM'!E:E,'MMPM1-PMM'!P:P)) -> 6 | F107: 5.3 | G107: 53.3 | L107: 1.1 | M107: 0.2 | N107: 10.7 | R107: Not applicable | S107: Not applicable | U107: =IFERROR(_xlfn.XLOOKUP(A107,'MMPM1-PMM'!E:E,'MMPM1-PMM'!J:J),_xlfn.XLOOKUP(A107,'MMPM1-AMM'!E:E,'MMPM1-AMM'!K:K)) -> OSLS | V107: =IFERROR(_xlfn.XLOOKUP(A107,'MMPM1-AMM'!E:E,'MMPM1-AMM'!T:T),_xlfn.XLOOKUP(A107,'MMPM1-PMM'!E:E,'MMPM1-PMM'!S:S)) -> 3 | W107: =IFERROR(_xlfn.XLOOKUP(A107,'MMPM1-AMM'!E:E,'MMPM1-AMM'!U:U),_xlfn.XLOOKUP(A107,'MMPM1-PMM'!E:E,'MMPM1-PMM'!T:T)) -> 6 | Y107: TRUE | AB107: =_xlfn.XLOOKUP(A107,productlist[PRODUCT_ID],productlist[PRODUCT_ISIN]) -> DE000A2YZPK8 | AC107: =_xlfn.XLOOKUP(A107,productlist[PRODUCT_ID],productlist[UNDERLYING_ISIN]) -> CH0298407328
A108: OSMI | B108: =_xlfn.XLOOKUP(A108,'Product List'!$A:$A,'Product List'!$D:$D) -> SMI® Options | C108: =_xlfn.XLOOKUP(A108,'Product List'!$A:$A,'Product List'!$F:$F) -> INDEX OPTIONS | D108: =_xlfn.XLOOKUP(A108,'MMPM1-AMM'!E:E,'MMPM1-AMM'!K:K,_xlfn.XLOOKUP(A108,'MMPM1-PMM'!E:E,'MMPM1-PMM'!J:J)) -> OSMI | E108: =_xlfn.XLOOKUP(A108,'MMPM1-AMM'!E:E,'MMPM1-AMM'!Q:Q,_xlfn.XLOOKUP(A108,'MMPM1-PMM'!E:E,'MMPM1-PMM'!P:P)) -> 10 | F108: =SUMIFS(MMPM2!H:H,MMPM2!C:C,U108,MMPM2!E:E,1,MMPM2!G:G,1) -> 35 | G108: =SUMIFS(MMPM2!H:H,MMPM2!C:C,U108,MMPM2!E:E,1,MMPM2!G:G,2) -> 500 | I108: 35 | J108: 500 | L108: =SUMIFS(MMPM2!I:I,MMPM2!C:C,U108,MMPM2!E:E,1,MMPM2!G:G,1) -> 3.5 | M108: =SUMIFS(MMPM2!I:I,MMPM2!C:C,U108,MMPM2!E:E,1,MMPM2!G:G,2) -> 0.1 | N108: =SUMIFS(MMPM2!I:I,MMPM2!C:C,U108,MMPM2!E:E,1,MMPM2!G:G,3) -> 50 | O108: 7 | P108: 0.2 | Q108: 100 | R108: =AF108 -> 13 | S108: 9 | U108: =IFERROR(_xlfn.XLOOKUP(A108,'MMPM1-PMM'!E:E,'MMPM1-PMM'!J:J),_xlfn.XLOOKUP(A108,'MMPM1-AMM'!E:E,'MMPM1-AMM'!K:K)) -> OSMI | V108: =IFERROR(_xlfn.XLOOKUP(A108,'MMPM1-AMM'!E:E,'MMPM1-AMM'!T:T),_xlfn.XLOOKUP(A108,'MMPM1-PMM'!E:E,'MMPM1-PMM'!S:S)) -> 6 | W108: =IFERROR(_xlfn.XLOOKUP(A108,'MMPM1-AMM'!E:E,'MMPM1-AMM'!U:U),_xlfn.XLOOKUP(A108,'MMPM1-PMM'!E:E,'MMPM1-PMM'!T:T)) -> 10 | Y108: TRUE | AB108: =_xlfn.XLOOKUP(A108,productlist[PRODUCT_ID],productlist[PRODUCT_ISIN]) -> CH0008616382 | AC108: =_xlfn.XLOOKUP(A108,productlist[PRODUCT_ID],productlist[UNDERLYING_ISIN]) -> CH0009980894 | AE108: =W108-1 -> 9 | AF108: =IF(TODAY()<$AH$1,AE108+AG108,IF(TODAY()<$AI$1,AE108+AH108,IF(TODAY()<$AJ$1,AE108+AI108,IF(TODAY()>=$AJ$1,AE108+4)))) -> 13 | AG108: 1 | AH108: 2 | AI108: 3 | AJ108: 4
A109: OSMM | B109: =_xlfn.XLOOKUP(A109,'Product List'!$A:$A,'Product List'!$D:$D) -> SMIM® Options | C109: =_xlfn.XLOOKUP(A109,'Product List'!$A:$A,'Product List'!$F:$F) -> INDEX OPTIONS | D109: =_xlfn.XLOOKUP(A109,'MMPM1-AMM'!E:E,'MMPM1-AMM'!K:K,_xlfn.XLOOKUP(A109,'MMPM1-PMM'!E:E,'MMPM1-PMM'!J:J)) -> OSMM | E109: =_xlfn.XLOOKUP(A109,'MMPM1-AMM'!E:E,'MMPM1-AMM'!Q:Q,_xlfn.XLOOKUP(A109,'MMPM1-PMM'!E:E,'MMPM1-PMM'!P:P)) -> 7 | F109: =SUMIFS(MMPM2!H:H,MMPM2!C:C,U109,MMPM2!E:E,1,MMPM2!G:G,1) -> 5.3 | G109: =SUMIFS(MMPM2!H:H,MMPM2!C:C,U109,MMPM2!E:E,1,MMPM2!G:G,2) -> 53.3 | L109: =SUMIFS(MMPM2!I:I,MMPM2!C:C,U109,MMPM2!E:E,1,MMPM2!G:G,1) -> 0.8 | M109: =SUMIFS(MMPM2!I:I,MMPM2!C:C,U109,MMPM2!E:E,1,MMPM2!G:G,2) -> 0.15 | N109: =SUMIFS(MMPM2!I:I,MMPM2!C:C,U109,MMPM2!E:E,1,MMPM2!G:G,3) -> 8 | R109: =IF(D109="OVS","",IF(V109=3, "Not applicable",W109-1)) -> Not applicable | S109: No doubling of mistrade range | U109: =IFERROR(_xlfn.XLOOKUP(A109,'MMPM1-PMM'!E:E,'MMPM1-PMM'!J:J),_xlfn.XLOOKUP(A109,'MMPM1-AMM'!E:E,'MMPM1-AMM'!K:K)) -> OSMM | V109: =IFERROR(_xlfn.XLOOKUP(A109,'MMPM1-AMM'!E:E,'MMPM1-AMM'!T:T),_xlfn.XLOOKUP(A109,'MMPM1-PMM'!E:E,'MMPM1-PMM'!S:S)) -> 3 | W109: =IFERROR(_xlfn.XLOOKUP(A109,'MMPM1-AMM'!E:E,'MMPM1-AMM'!U:U),_xlfn.XLOOKUP(A109,'MMPM1-PMM'!E:E,'MMPM1-PMM'!T:T)) -> 7 | Y109: TRUE | AB109: =_xlfn.XLOOKUP(A109,productlist[PRODUCT_ID],productlist[PRODUCT_ISIN]) -> DE000A0JZHL8 | AC109: =_xlfn.XLOOKUP(A109,productlist[PRODUCT_ID],productlist[UNDERLYING_ISIN]) -> CH0019399838
A110: OSSX | B110: =_xlfn.XLOOKUP(A110,'Product List'!$A:$A,'Product List'!$D:$D) -> EURO STOXX 50® ESG Index Options | C110: =_xlfn.XLOOKUP(A110,'Product List'!$A:$A,'Product List'!$F:$F) -> INDEX OPTIONS | D110: =_xlfn.XLOOKUP(A110,'MMPM1-AMM'!E:E,'MMPM1-AMM'!K:K,_xlfn.XLOOKUP(A110,'MMPM1-PMM'!E:E,'MMPM1-PMM'!J:J)) -> STX-ESG | E110: =_xlfn.XLOOKUP(A110,'MMPM1-AMM'!E:E,'MMPM1-AMM'!Q:Q,_xlfn.XLOOKUP(A110,'MMPM1-PMM'!E:E,'MMPM1-PMM'!P:P)) -> 6 | F110: =SUMIFS(MMPM2!H:H,MMPM2!C:C,U110,MMPM2!E:E,1,MMPM2!G:G,1) -> 5.3 | G110: =SUMIFS(MMPM2!H:H,MMPM2!C:C,U110,MMPM2!E:E,1,MMPM2!G:G,2) -> 53.3 | L110: =SUMIFS(MMPM2!I:I,MMPM2!C:C,U110,MMPM2!E:E,1,MMPM2!G:G,1) -> 0.8 | M110: =SUMIFS(MMPM2!I:I,MMPM2!C:C,U110,MMPM2!E:E,1,MMPM2!G:G,2) -> 0.15 | N110: =SUMIFS(MMPM2!I:I,MMPM2!C:C,U110,MMPM2!E:E,1,MMPM2!G:G,3) -> 8 | R110: Not applicable | S110: No doubling of mistrade range | U110: =IFERROR(_xlfn.XLOOKUP(A110,'MMPM1-PMM'!E:E,'MMPM1-PMM'!J:J),_xlfn.XLOOKUP(A110,'MMPM1-AMM'!E:E,'MMPM1-AMM'!K:K)) -> STX-ESG | V110: =IFERROR(_xlfn.XLOOKUP(A110,'MMPM1-AMM'!E:E,'MMPM1-AMM'!T:T),_xlfn.XLOOKUP(A110,'MMPM1-PMM'!E:E,'MMPM1-PMM'!S:S)) -> 3 | W110: =IFERROR(_xlfn.XLOOKUP(A110,'MMPM1-AMM'!E:E,'MMPM1-AMM'!U:U),_xlfn.XLOOKUP(A110,'MMPM1-PMM'!E:E,'MMPM1-PMM'!T:T)) -> 6 | Y110: TRUE | AB110: =_xlfn.XLOOKUP(A110,productlist[PRODUCT_ID],productlist[PRODUCT_ISIN]) -> DE000A2QDW37 | AC110: =_xlfn.XLOOKUP(A110,productlist[PRODUCT_ID],productlist[UNDERLYING_ISIN]) -> CH0469557521
A111: OSTA | B111: =_xlfn.XLOOKUP(A111,'Product List'!$A:$A,'Product List'!$D:$D) -> STOXX® Europe 600 Automobiles & Parts Options | C111: =_xlfn.XLOOKUP(A111,'Product List'!$A:$A,'Product List'!$F:$F) -> INDEX OPTIONS | D111: =_xlfn.XLOOKUP(A111,'MMPM1-AMM'!E:E,'MMPM1-AMM'!K:K,_xlfn.XLOOKUP(A111,'MMPM1-PMM'!E:E,'MMPM1-PMM'!J:J)) -> STXSO1 | E111: =_xlfn.XLOOKUP(A111,'MMPM1-AMM'!E:E,'MMPM1-AMM'!Q:Q,_xlfn.XLOOKUP(A111,'MMPM1-PMM'!E:E,'MMPM1-PMM'!P:P)) -> 5 | F111: =SUMIFS(MMPM2!H:H,MMPM2!C:C,U111,MMPM2!E:E,1,MMPM2!G:G,1) -> 8.3 | G111: =SUMIFS(MMPM2!H:H,MMPM2!C:C,U111,MMPM2!E:E,1,MMPM2!G:G,2) -> 53.3 | L111: =SUMIFS(MMPM2!I:I,MMPM2!C:C,U111,MMPM2!E:E,1,MMPM2!G:G,1) -> 0.8 | M111: =SUMIFS(MMPM2!I:I,MMPM2!C:C,U111,MMPM2!E:E,1,MMPM2!G:G,2) -> 0.15 | N111: =SUMIFS(MMPM2!I:I,MMPM2!C:C,U111,MMPM2!E:E,1,MMPM2!G:G,3) -> 8 | R111: Not applicable | S111: =IF(D111="OVS","",IF(V111=3, "No doubling of mistrade range",W111-1)) -> No doubling of mistrade range | U111: =IFERROR(_xlfn.XLOOKUP(A111,'MMPM1-PMM'!E:E,'MMPM1-PMM'!J:J),_xlfn.XLOOKUP(A111,'MMPM1-AMM'!E:E,'MMPM1-AMM'!K:K)) -> STXSO1 | V111: =IFERROR(_xlfn.XLOOKUP(A111,'MMPM1-AMM'!E:E,'MMPM1-AMM'!T:T),_xlfn.XLOOKUP(A111,'MMPM1-PMM'!E:E,'MMPM1-PMM'!S:S)) -> 3 | W111: =IFERROR(_xlfn.XLOOKUP(A111,'MMPM1-AMM'!E:E,'MMPM1-AMM'!U:U),_xlfn.XLOOKUP(A111,'MMPM1-PMM'!E:E,'MMPM1-PMM'!T:T)) -> 5 | Y111: =W111=E111 -> TRUE | AB111: =_xlfn.XLOOKUP(A111,productlist[PRODUCT_ID],productlist[PRODUCT_ISIN]) -> DE000A0DMX65 | AC111: =_xlfn.XLOOKUP(A111,productlist[PRODUCT_ID],productlist[UNDERLYING_ISIN]) -> EU0009658681
A112: OSTB | B112: =_xlfn.XLOOKUP(A112,'Product List'!$A:$A,'Product List'!$D:$D) -> STOXX® Europe 600 Banks Options | C112: =_xlfn.XLOOKUP(A112,'Product List'!$A:$A,'Product List'!$F:$F) -> INDEX OPTIONS | D112: =_xlfn.XLOOKUP(A112,'MMPM1-AMM'!E:E,'MMPM1-AMM'!K:K,_xlfn.XLOOKUP(A112,'MMPM1-PMM'!E:E,'MMPM1-PMM'!J:J)) -> STXSO1 | E112: =_xlfn.XLOOKUP(A112,'MMPM1-AMM'!E:E,'MMPM1-AMM'!Q:Q,_xlfn.XLOOKUP(A112,'MMPM1-PMM'!E:E,'MMPM1-PMM'!P:P)) -> 5 | F112: =SUMIFS(MMPM2!H:H,MMPM2!C:C,U112,MMPM2!E:E,1,MMPM2!G:G,1) -> 8.3 | G112: =SUMIFS(MMPM2!H:H,MMPM2!C:C,U112,MMPM2!E:E,1,MMPM2!G:G,2) -> 53.3 | L112: =SUMIFS(MMPM2!I:I,MMPM2!C:C,U112,MMPM2!E:E,1,MMPM2!G:G,1) -> 0.8 | M112: =SUMIFS(MMPM2!I:I,MMPM2!C:C,U112,MMPM2!E:E,1,MMPM2!G:G,2) -> 0.15 | N112: =SUMIFS(MMPM2!I:I,MMPM2!C:C,U112,MMPM2!E:E,1,MMPM2!G:G,3) -> 8 | R112: Not applicable | S112: No doubling of mistrade range | U112: =IFERROR(_xlfn.XLOOKUP(A112,'MMPM1-PMM'!E:E,'MMPM1-PMM'!J:J),_xlfn.XLOOKUP(A112,'MMPM1-AMM'!E:E,'MMPM1-AMM'!K:K)) -> STXSO1 | V112: =IFERROR(_xlfn.XLOOKUP(A112,'MMPM1-AMM'!E:E,'MMPM1-AMM'!T:T),_xlfn.XLOOKUP(A112,'MMPM1-PMM'!E:E,'MMPM1-PMM'!S:S)) -> 3 | W112: =IFERROR(_xlfn.XLOOKUP(A112,'MMPM1-AMM'!E:E,'MMPM1-AMM'!U:U),_xlfn.XLOOKUP(A112,'MMPM1-PMM'!E:E,'MMPM1-PMM'!T:T)) -> 5 | Y112: TRUE | AB112: =_xlfn.XLOOKUP(A112,productlist[PRODUCT_ID],productlist[PRODUCT_ISIN]) -> DE0007200750 | AC112: =_xlfn.XLOOKUP(A112,productlist[PRODUCT_ID],productlist[UNDERLYING_ISIN]) -> EU0009658806
A113: OSTC | B113: =_xlfn.XLOOKUP(A113,'Product List'!$A:$A,'Product List'!$D:$D) -> STOXX® Europe 600 Chemicals Options | C113: =_xlfn.XLOOKUP(A113,'Product List'!$A:$A,'Product List'!$F:$F) -> INDEX OPTIONS | D113: =_xlfn.XLOOKUP(A113,'MMPM1-AMM'!E:E,'MMPM1-AMM'!K:K,_xlfn.XLOOKUP(A113,'MMPM1-PMM'!E:E,'MMPM1-PMM'!J:J)) -> STXSO1 | E113: =_xlfn.XLOOKUP(A113,'MMPM1-AMM'!E:E,'MMPM1-AMM'!Q:Q,_xlfn.XLOOKUP(A113,'MMPM1-PMM'!E:E,'MMPM1-PMM'!P:P)) -> 5 | F113: =SUMIFS(MMPM2!H:H,MMPM2!C:C,U113,MMPM2!E:E,1,MMPM2!G:G,1) -> 8.3 | G113: =SUMIFS(MMPM2!H:H,MMPM2!C:C,U113,MMPM2!E:E,1,MMPM2!G:G,2) -> 53.3 | L113: =SUMIFS(MMPM2!I:I,MMPM2!C:C,U113,MMPM2!E:E,1,MMPM2!G:G,1) -> 0.8 | M113: =SUMIFS(MMPM2!I:I,MMPM2!C:C,U113,MMPM2!E:E,1,MMPM2!G:G,2) -> 0.15 | N113: =SUMIFS(MMPM2!I:I,MMPM2!C:C,U113,MMPM2!E:E,1,MMPM2!G:G,3) -> 8 | R113: Not applicable | S113: No doubling of mistrade range | U113: =IFERROR(_xlfn.XLOOKUP(A113,'MMPM1-PMM'!E:E,'MMPM1-PMM'!J:J),_xlfn.XLOOKUP(A113,'MMPM1-AMM'!E:E,'MMPM1-AMM'!K:K)) -> STXSO1 | V113: =IFERROR(_xlfn.XLOOKUP(A113,'MMPM1-AMM'!E:E,'MMPM1-AMM'!T:T),_xlfn.XLOOKUP(A113,'MMPM1-PMM'!E:E,'MMPM1-PMM'!S:S)) -> 3 | W113: =IFERROR(_xlfn.XLOOKUP(A113,'MMPM1-AMM'!E:E,'MMPM1-AMM'!U:U),_xlfn.XLOOKUP(A113,'MMPM1-PMM'!E:E,'MMPM1-PMM'!T:T)) -> 5 | Y113: TRUE | AB113: =_xlfn.XLOOKUP(A113,productlist[PRODUCT_ID],productlist[PRODUCT_ISIN]) -> DE000A0DMX73 | AC113: =_xlfn.XLOOKUP(A113,productlist[PRODUCT_ID],productlist[UNDERLYING_ISIN]) -> EU0009658608
A114: OSTE | B114: =_xlfn.XLOOKUP(A114,'Product List'!$A:$A,'Product List'!$D:$D) -> STOXX® Europe 600 Oil & Gas Options | C114: =_xlfn.XLOOKUP(A114,'Product List'!$A:$A,'Product List'!$F:$F) -> INDEX OPTIONS | D114: =_xlfn.XLOOKUP(A114,'MMPM1-AMM'!E:E,'MMPM1-AMM'!K:K,_xlfn.XLOOKUP(A114,'MMPM1-PMM'!E:E,'MMPM1-PMM'!J:J)) -> STXSO1 | E114: =_xlfn.XLOOKUP(A114,'MMPM1-AMM'!E:E,'MMPM1-AMM'!Q:Q,_xlfn.XLOOKUP(A114,'MMPM1-PMM'!E:E,'MMPM1-PMM'!P:P)) -> 5 | F114: =SUMIFS(MMPM2!H:H,MMPM2!C:C,U114,MMPM2!E:E,1,MMPM2!G:G,1) -> 8.3 | G114: =SUMIFS(MMPM2!H:H,MMPM2!C:C,U114,MMPM2!E:E,1,MMPM2!G:G,2) -> 53.3 | L114: =SUMIFS(MMPM2!I:I,MMPM2!C:C,U114,MMPM2!E:E,1,MMPM2!G:G,1) -> 0.8 | M114: =SUMIFS(MMPM2!I:I,MMPM2!C:C,U114,MMPM2!E:E,1,MMPM2!G:G,2) -> 0.15 | N114: =SUMIFS(MMPM2!I:I,MMPM2!C:C,U114,MMPM2!E:E,1,MMPM2!G:G,3) -> 8 | R114: Not applicable | S114: No doubling of mistrade range | U114: =IFERROR(_xlfn.XLOOKUP(A114,'MMPM1-PMM'!E:E,'MMPM1-PMM'!J:J),_xlfn.XLOOKUP(A114,'MMPM1-AMM'!E:E,'MMPM1-AMM'!K:K)) -> STXSO1 | V114: =IFERROR(_xlfn.XLOOKUP(A114,'MMPM1-AMM'!E:E,'MMPM1-AMM'!T:T),_xlfn.XLOOKUP(A114,'MMPM1-PMM'!E:E,'MMPM1-PMM'!S:S)) -> 3 | W114: =IFERROR(_xlfn.XLOOKUP(A114,'MMPM1-AMM'!E:E,'MMPM1-AMM'!U:U),_xlfn.XLOOKUP(A114,'MMPM1-PMM'!E:E,'MMPM1-PMM'!T:T)) -> 5 | Y114: TRUE | AB114: =_xlfn.XLOOKUP(A114,productlist[PRODUCT_ID],productlist[PRODUCT_ISIN]) -> DE000A0AEU61 | AC114: =_xlfn.XLOOKUP(A114,productlist[PRODUCT_ID],productlist[UNDERLYING_ISIN]) -> EU0009658780
A115: OSTF | B115: =_xlfn.XLOOKUP(A115,'Product List'!$A:$A,'Product List'!$D:$D) -> STOXX® Europe 600 Financial Services Options | C115: =_xlfn.XLOOKUP(A115,'Product List'!$A:$A,'Product List'!$F:$F) -> INDEX OPTIONS | D115: =_xlfn.XLOOKUP(A115,'MMPM1-AMM'!E:E,'MMPM1-AMM'!K:K,_xlfn.XLOOKUP(A115,'MMPM1-PMM'!E:E,'MMPM1-PMM'!J:J)) -> STXSO1 | E115: =_xlfn.XLOOKUP(A115,'MMPM1-AMM'!E:E,'MMPM1-AMM'!Q:Q,_xlfn.XLOOKUP(A115,'MMPM1-PMM'!E:E,'MMPM1-PMM'!P:P)) -> 5 | F115: =SUMIFS(MMPM2!H:H,MMPM2!C:C,U115,MMPM2!E:E,1,MMPM2!G:G,1) -> 8.3 | G115: =SUMIFS(MMPM2!H:H,MMPM2!C:C,U115,MMPM2!E:E,1,MMPM2!G:G,2) -> 53.3 | L115: =SUMIFS(MMPM2!I:I,MMPM2!C:C,U115,MMPM2!E:E,1,MMPM2!G:G,1) -> 0.8 | M115: =SUMIFS(MMPM2!I:I,MMPM2!C:C,U115,MMPM2!E:E,1,MMPM2!G:G,2) -> 0.15 | N115: =SUMIFS(MMPM2!I:I,MMPM2!C:C,U115,MMPM2!E:E,1,MMPM2!G:G,3) -> 8 | R115: Not applicable | S115: No doubling of mistrade range | U115: =IFERROR(_xlfn.XLOOKUP(A115,'MMPM1-PMM'!E:E,'MMPM1-PMM'!J:J),_xlfn.XLOOKUP(A115,'MMPM1-AMM'!E:E,'MMPM1-AMM'!K:K)) -> STXSO1 | V115: =IFERROR(_xlfn.XLOOKUP(A115,'MMPM1-AMM'!E:E,'MMPM1-AMM'!T:T),_xlfn.XLOOKUP(A115,'MMPM1-PMM'!E:E,'MMPM1-PMM'!S:S)) -> 3 | W115: =IFERROR(_xlfn.XLOOKUP(A115,'MMPM1-AMM'!E:E,'MMPM1-AMM'!U:U),_xlfn.XLOOKUP(A115,'MMPM1-PMM'!E:E,'MMPM1-PMM'!T:T)) -> 5 | Y115: TRUE | AB115: =_xlfn.XLOOKUP(A115,productlist[PRODUCT_ID],productlist[PRODUCT_ISIN]) -> DE000A0AEU46 | AC115: =_xlfn.XLOOKUP(A115,productlist[PRODUCT_ID],productlist[UNDERLYING_ISIN]) -> EU0009658848
A116: OSTG | B116: =_xlfn.XLOOKUP(A116,'Product List'!$A:$A,'Product List'!$D:$D) -> STOXX® Europe 600 Industrial Goods & Services Options | C116: =_xlfn.XLOOKUP(A116,'Product List'!$A:$A,'Product List'!$F:$F) -> INDEX OPTIONS | D116: =_xlfn.XLOOKUP(A116,'MMPM1-AMM'!E:E,'MMPM1-AMM'!K:K,_xlfn.XLOOKUP(A116,'MMPM1-PMM'!E:E,'MMPM1-PMM'!J:J)) -> STXSO1 | E116: =_xlfn.XLOOKUP(A116,'MMPM1-AMM'!E:E,'MMPM1-AMM'!Q:Q,_xlfn.XLOOKUP(A116,'MMPM1-PMM'!E:E,'MMPM1-PMM'!P:P)) -> 5 | F116: =SUMIFS(MMPM2!H:H,MMPM2!C:C,U116,MMPM2!E:E,1,MMPM2!G:G,1) -> 8.3 | G116: =SUMIFS(MMPM2!H:H,MMPM2!C:C,U116,MMPM2!E:E,1,MMPM2!G:G,2) -> 53.3 | L116: =SUMIFS(MMPM2!I:I,MMPM2!C:C,U116,MMPM2!E:E,1,MMPM2!G:G,1) -> 0.8 | M116: =SUMIFS(MMPM2!I:I,MMPM2!C:C,U116,MMPM2!E:E,1,MMPM2!G:G,2) -> 0.15 | N116: =SUMIFS(MMPM2!I:I,MMPM2!C:C,U116,MMPM2!E:E,1,MMPM2!G:G,3) -> 8 | R116: Not applicable | S116: No doubling of mistrade range | U116: =IFERROR(_xlfn.XLOOKUP(A116,'MMPM1-PMM'!E:E,'MMPM1-PMM'!J:J),_xlfn.XLOOKUP(A116,'MMPM1-AMM'!E:E,'MMPM1-AMM'!K:K)) -> STXSO1 | V116: =IFERROR(_xlfn.XLOOKUP(A116,'MMPM1-AMM'!E:E,'MMPM1-AMM'!T:T),_xlfn.XLOOKUP(A116,'MMPM1-PMM'!E:E,'MMPM1-PMM'!S:S)) -> 3 | W116: =IFERROR(_xlfn.XLOOKUP(A116,'MMPM1-AMM'!E:E,'MMPM1-AMM'!U:U),_xlfn.XLOOKUP(A116,'MMPM1-PMM'!E:E,'MMPM1-PMM'!T:T)) -> 5 | Y116: TRUE | AB116: =_xlfn.XLOOKUP(A116,productlist[PRODUCT_ID],productlist[PRODUCT_ISIN]) -> DE000A0AEU95 | AC116: =_xlfn.XLOOKUP(A116,productlist[PRODUCT_ID],productlist[UNDERLYING_ISIN]) -> EU0009658905
A117: OSTH | B117: =_xlfn.XLOOKUP(A117,'Product List'!$A:$A,'Product List'!$D:$D) -> STOXX® Europe 600 Health Care Options | C117: =_xlfn.XLOOKUP(A117,'Product List'!$A:$A,'Product List'!$F:$F) -> INDEX OPTIONS | D117: =_xlfn.XLOOKUP(A117,'MMPM1-AMM'!E:E,'MMPM1-AMM'!K:K,_xlfn.XLOOKUP(A117,'MMPM1-PMM'!E:E,'MMPM1-PMM'!J:J)) -> STXSO2 | E117: =_xlfn.XLOOKUP(A117,'MMPM1-AMM'!E:E,'MMPM1-AMM'!Q:Q,_xlfn.XLOOKUP(A117,'MMPM1-PMM'!E:E,'MMPM1-PMM'!P:P)) -> 5 | F117: =SUMIFS(MMPM2!H:H,MMPM2!C:C,U117,MMPM2!E:E,1,MMPM2!G:G,1) -> 8.3 | G117: =SUMIFS(MMPM2!H:H,MMPM2!C:C,U117,MMPM2!E:E,1,MMPM2!G:G,2) -> 53.3 | L117: =SUMIFS(MMPM2!I:I,MMPM2!C:C,U117,MMPM2!E:E,1,MMPM2!G:G,1) -> 2.5 | M117: =SUMIFS(MMPM2!I:I,MMPM2!C:C,U117,MMPM2!E:E,1,MMPM2!G:G,2) -> 0.3 | N117: =SUMIFS(MMPM2!I:I,MMPM2!C:C,U117,MMPM2!E:E,1,MMPM2!G:G,3) -> 16.1 | R117: Not applicable | S117: No doubling of mistrade range | U117: =IFERROR(_xlfn.XLOOKUP(A117,'MMPM1-PMM'!E:E,'MMPM1-PMM'!J:J),_xlfn.XLOOKUP(A117,'MMPM1-AMM'!E:E,'MMPM1-AMM'!K:K)) -> STXSO2 | V117: =IFERROR(_xlfn.XLOOKUP(A117,'MMPM1-AMM'!E:E,'MMPM1-AMM'!T:T),_xlfn.XLOOKUP(A117,'MMPM1-PMM'!E:E,'MMPM1-PMM'!S:S)) -> 3 | W117: =IFERROR(_xlfn.XLOOKUP(A117,'MMPM1-AMM'!E:E,'MMPM1-AMM'!U:U),_xlfn.XLOOKUP(A117,'MMPM1-PMM'!E:E,'MMPM1-PMM'!T:T)) -> 4 | Y117: FALSE | AB117: =_xlfn.XLOOKUP(A117,productlist[PRODUCT_ID],productlist[PRODUCT_ISIN]) -> DE0005303614 | AC117: =_xlfn.XLOOKUP(A117,productlist[PRODUCT_ID],productlist[UNDERLYING_ISIN]) -> EU0009658723
A118: OSTI | B118: =_xlfn.XLOOKUP(A118,'Product List'!$A:$A,'Product List'!$D:$D) -> STOXX® Europe 600 Insurance Options | C118: =_xlfn.XLOOKUP(A118,'Product List'!$A:$A,'Product List'!$F:$F) -> INDEX OPTIONS | D118: =_xlfn.XLOOKUP(A118,'MMPM1-AMM'!E:E,'MMPM1-AMM'!K:K,_xlfn.XLOOKUP(A118,'MMPM1-PMM'!E:E,'MMPM1-PMM'!J:J)) -> STXSO2 | E118: =_xlfn.XLOOKUP(A118,'MMPM1-AMM'!E:E,'MMPM1-AMM'!Q:Q,_xlfn.XLOOKUP(A118,'MMPM1-PMM'!E:E,'MMPM1-PMM'!P:P)) -> 5 | F118: =SUMIFS(MMPM2!H:H,MMPM2!C:C,U118,MMPM2!E:E,1,MMPM2!G:G,1) -> 8.3 | G118: =SUMIFS(MMPM2!H:H,MMPM2!C:C,U118,MMPM2!E:E,1,MMPM2!G:G,2) -> 53.3 | L118: =SUMIFS(MMPM2!I:I,MMPM2!C:C,U118,MMPM2!E:E,1,MMPM2!G:G,1) -> 2.5 | M118: =SUMIFS(MMPM2!I:I,MMPM2!C:C,U118,MMPM2!E:E,1,MMPM2!G:G,2) -> 0.3 | N118: =SUMIFS(MMPM2!I:I,MMPM2!C:C,U118,MMPM2!E:E,1,MMPM2!G:G,3) -> 16.1 | R118: Not applicable | S118: No doubling of mistrade range | U118: =IFERROR(_xlfn.XLOOKUP(A118,'MMPM1-PMM'!E:E,'MMPM1-PMM'!J:J),_xlfn.XLOOKUP(A118,'MMPM1-AMM'!E:E,'MMPM1-AMM'!K:K)) -> STXSO2 | V118: =IFERROR(_xlfn.XLOOKUP(A118,'MMPM1-AMM'!E:E,'MMPM1-AMM'!T:T),_xlfn.XLOOKUP(A118,'MMPM1-PMM'!E:E,'MMPM1-PMM'!S:S)) -> 3 | W118: =IFERROR(_xlfn.XLOOKUP(A118,'MMPM1-AMM'!E:E,'MMPM1-AMM'!U:U),_xlfn.XLOOKUP(A118,'MMPM1-PMM'!E:E,'MMPM1-PMM'!T:T)) -> 4 | Y118: FALSE | AB118: =_xlfn.XLOOKUP(A118,productlist[PRODUCT_ID],productlist[PRODUCT_ISIN]) -> DE0002272101 | AC118: =_xlfn.XLOOKUP(A118,productlist[PRODUCT_ID],productlist[UNDERLYING_ISIN]) -> EU0009658822
A119: OSTJ | B119: =_xlfn.XLOOKUP(A119,'Product List'!$A:$A,'Product List'!$D:$D) -> STOXX® Europe 600 Energy Options | C119: =_xlfn.XLOOKUP(A119,'Product List'!$A:$A,'Product List'!$F:$F) -> INDEX OPTIONS | D119: =_xlfn.XLOOKUP(A119,'MMPM1-AMM'!E:E,'MMPM1-AMM'!K:K,_xlfn.XLOOKUP(A119,'MMPM1-PMM'!E:E,'MMPM1-PMM'!J:J)) -> STXSO1 | E119: =_xlfn.XLOOKUP(A119,'MMPM1-AMM'!E:E,'MMPM1-AMM'!Q:Q,_xlfn.XLOOKUP(A119,'MMPM1-PMM'!E:E,'MMPM1-PMM'!P:P)) -> 5 | F119: =SUMIFS(MMPM2!H:H,MMPM2!C:C,U119,MMPM2!E:E,1,MMPM2!G:G,1) -> 8.3 | G119: =SUMIFS(MMPM2!H:H,MMPM2!C:C,U119,MMPM2!E:E,1,MMPM2!G:G,2) -> 53.3 | L119: =SUMIFS(MMPM2!I:I,MMPM2!C:C,U119,MMPM2!E:E,1,MMPM2!G:G,1) -> 0.8 | M119: =SUMIFS(MMPM2!I:I,MMPM2!C:C,U119,MMPM2!E:E,1,MMPM2!G:G,2) -> 0.15 | N119: =SUMIFS(MMPM2!I:I,MMPM2!C:C,U119,MMPM2!E:E,1,MMPM2!G:G,3) -> 8 | R119: Not applicable | S119: No doubling of mistrade range | U119: =IFERROR(_xlfn.XLOOKUP(A119,'MMPM1-PMM'!E:E,'MMPM1-PMM'!J:J),_xlfn.XLOOKUP(A119,'MMPM1-AMM'!E:E,'MMPM1-AMM'!K:K)) -> STXSO1 | V119: =IFERROR(_xlfn.XLOOKUP(A119,'MMPM1-AMM'!E:E,'MMPM1-AMM'!T:T),_xlfn.XLOOKUP(A119,'MMPM1-PMM'!E:E,'MMPM1-PMM'!S:S)) -> 3 | W119: =IFERROR(_xlfn.XLOOKUP(A119,'MMPM1-AMM'!E:E,'MMPM1-AMM'!U:U),_xlfn.XLOOKUP(A119,'MMPM1-PMM'!E:E,'MMPM1-PMM'!T:T)) -> 5 | Y119: TRUE | AB119: =_xlfn.XLOOKUP(A119,productlist[PRODUCT_ID],productlist[PRODUCT_ISIN]) -> DE000A2QBER4 | AC119: =_xlfn.XLOOKUP(A119,productlist[PRODUCT_ID],productlist[UNDERLYING_ISIN]) -> CH0462356517
A120: OSTL | B120: =_xlfn.XLOOKUP(A120,'Product List'!$A:$A,'Product List'!$D:$D) -> STOXX® Europe 600 Real Estate Options | C120: =_xlfn.XLOOKUP(A120,'Product List'!$A:$A,'Product List'!$F:$F) -> INDEX OPTIONS | D120: =_xlfn.XLOOKUP(A120,'MMPM1-AMM'!E:E,'MMPM1-AMM'!K:K,_xlfn.XLOOKUP(A120,'MMPM1-PMM'!E:E,'MMPM1-PMM'!J:J)) -> STXSO1 | E120: =_xlfn.XLOOKUP(A120,'MMPM1-AMM'!E:E,'MMPM1-AMM'!Q:Q,_xlfn.XLOOKUP(A120,'MMPM1-PMM'!E:E,'MMPM1-PMM'!P:P)) -> 5 | F120: =SUMIFS(MMPM2!H:H,MMPM2!C:C,U120,MMPM2!E:E,1,MMPM2!G:G,1) -> 8.3 | G120: =SUMIFS(MMPM2!H:H,MMPM2!C:C,U120,MMPM2!E:E,1,MMPM2!G:G,2) -> 53.3 | L120: =SUMIFS(MMPM2!I:I,MMPM2!C:C,U120,MMPM2!E:E,1,MMPM2!G:G,1) -> 0.8 | M120: =SUMIFS(MMPM2!I:I,MMPM2!C:C,U120,MMPM2!E:E,1,MMPM2!G:G,2) -> 0.15 | N120: =SUMIFS(MMPM2!I:I,MMPM2!C:C,U120,MMPM2!E:E,1,MMPM2!G:G,3) -> 8 | R120: Not applicable | S120: No doubling of mistrade range | U120: =IFERROR(_xlfn.XLOOKUP(A120,'MMPM1-PMM'!E:E,'MMPM1-PMM'!J:J),_xlfn.XLOOKUP(A120,'MMPM1-AMM'!E:E,'MMPM1-AMM'!K:K)) -> STXSO1 | V120: =IFERROR(_xlfn.XLOOKUP(A120,'MMPM1-AMM'!E:E,'MMPM1-AMM'!T:T),_xlfn.XLOOKUP(A120,'MMPM1-PMM'!E:E,'MMPM1-PMM'!S:S)) -> 3 | W120: =IFERROR(_xlfn.XLOOKUP(A120,'MMPM1-AMM'!E:E,'MMPM1-AMM'!U:U),_xlfn.XLOOKUP(A120,'MMPM1-PMM'!E:E,'MMPM1-PMM'!T:T)) -> 5 | Y120: TRUE | AB120: =_xlfn.XLOOKUP(A120,productlist[PRODUCT_ID],productlist[PRODUCT_ISIN]) -> DE000A0V8N69 | AC120: =_xlfn.XLOOKUP(A120,productlist[PRODUCT_ID],productlist[UNDERLYING_ISIN]) -> CH0043274395
A121: OSTM | B121: =_xlfn.XLOOKUP(A121,'Product List'!$A:$A,'Product List'!$D:$D) -> STOXX® Europe 600 Media Options | C121: =_xlfn.XLOOKUP(A121,'Product List'!$A:$A,'Product List'!$F:$F) -> INDEX OPTIONS | D121: =_xlfn.XLOOKUP(A121,'MMPM1-AMM'!E:E,'MMPM1-AMM'!K:K,_xlfn.XLOOKUP(A121,'MMPM1-PMM'!E:E,'MMPM1-PMM'!J:J)) -> STXSO1 | E121: =_xlfn.XLOOKUP(A121,'MMPM1-AMM'!E:E,'MMPM1-AMM'!Q:Q,_xlfn.XLOOKUP(A121,'MMPM1-PMM'!E:E,'MMPM1-PMM'!P:P)) -> 5 | F121: =SUMIFS(MMPM2!H:H,MMPM2!C:C,U121,MMPM2!E:E,1,MMPM2!G:G,1) -> 8.3 | G121: =SUMIFS(MMPM2!H:H,MMPM2!C:C,U121,MMPM2!E:E,1,MMPM2!G:G,2) -> 53.3 | L121: =SUMIFS(MMPM2!I:I,MMPM2!C:C,U121,MMPM2!E:E,1,MMPM2!G:G,1) -> 0.8 | M121: =SUMIFS(MMPM2!I:I,MMPM2!C:C,U121,MMPM2!E:E,1,MMPM2!G:G,2) -> 0.15 | N121: =SUMIFS(MMPM2!I:I,MMPM2!C:C,U121,MMPM2!E:E,1,MMPM2!G:G,3) -> 8 | R121: Not applicable | S121: No doubling of mistrade range | U121: =IFERROR(_xlfn.XLOOKUP(A121,'MMPM1-PMM'!E:E,'MMPM1-PMM'!J:J),_xlfn.XLOOKUP(A121,'MMPM1-AMM'!E:E,'MMPM1-AMM'!K:K)) -> STXSO1 | V121: =IFERROR(_xlfn.XLOOKUP(A121,'MMPM1-AMM'!E:E,'MMPM1-AMM'!T:T),_xlfn.XLOOKUP(A121,'MMPM1-PMM'!E:E,'MMPM1-PMM'!S:S)) -> 3 | W121: =IFERROR(_xlfn.XLOOKUP(A121,'MMPM1-AMM'!E:E,'MMPM1-AMM'!U:U),_xlfn.XLOOKUP(A121,'MMPM1-PMM'!E:E,'MMPM1-PMM'!T:T)) -> 5 | Y121: TRUE | AB121: =_xlfn.XLOOKUP(A121,productlist[PRODUCT_ID],productlist[PRODUCT_ISIN]) -> DE000A0AEU87 | AC121: =_xlfn.XLOOKUP(A121,productlist[PRODUCT_ID],productlist[UNDERLYING_ISIN]) -> EU0009658640
A122: OSTN | B122: =_xlfn.XLOOKUP(A122,'Product List'!$A:$A,'Product List'!$D:$D) -> STOXX® Europe 600 Construction & Materials Options | C122: =_xlfn.XLOOKUP(A122,'Product List'!$A:$A,'Product List'!$F:$F) -> INDEX OPTIONS | D122: =_xlfn.XLOOKUP(A122,'MMPM1-AMM'!E:E,'MMPM1-AMM'!K:K,_xlfn.XLOOKUP(A122,'MMPM1-PMM'!E:E,'MMPM1-PMM'!J:J)) -> STXSO1 | E122: =_xlfn.XLOOKUP(A122,'MMPM1-AMM'!E:E,'MMPM1-AMM'!Q:Q,_xlfn.XLOOKUP(A122,'MMPM1-PMM'!E:E,'MMPM1-PMM'!P:P)) -> 5 | F122: =SUMIFS(MMPM2!H:H,MMPM2!C:C,U122,MMPM2!E:E,1,MMPM2!G:G,1) -> 8.3 | G122: =SUMIFS(MMPM2!H:H,MMPM2!C:C,U122,MMPM2!E:E,1,MMPM2!G:G,2) -> 53.3 | L122: =SUMIFS(MMPM2!I:I,MMPM2!C:C,U122,MMPM2!E:E,1,MMPM2!G:G,1) -> 0.8 | M122: =SUMIFS(MMPM2!I:I,MMPM2!C:C,U122,MMPM2!E:E,1,MMPM2!G:G,2) -> 0.15 | N122: =SUMIFS(MMPM2!I:I,MMPM2!C:C,U122,MMPM2!E:E,1,MMPM2!G:G,3) -> 8 | R122: Not applicable | S122: No doubling of mistrade range | U122: =IFERROR(_xlfn.XLOOKUP(A122,'MMPM1-PMM'!E:E,'MMPM1-PMM'!J:J),_xlfn.XLOOKUP(A122,'MMPM1-AMM'!E:E,'MMPM1-AMM'!K:K)) -> STXSO1 | V122: =IFERROR(_xlfn.XLOOKUP(A122,'MMPM1-AMM'!E:E,'MMPM1-AMM'!T:T),_xlfn.XLOOKUP(A122,'MMPM1-PMM'!E:E,'MMPM1-PMM'!S:S)) -> 3 | W122: =IFERROR(_xlfn.XLOOKUP(A122,'MMPM1-AMM'!E:E,'MMPM1-AMM'!U:U),_xlfn.XLOOKUP(A122,'MMPM1-PMM'!E:E,'MMPM1-PMM'!T:T)) -> 5 | Y122: TRUE | AB122: =_xlfn.XLOOKUP(A122,productlist[PRODUCT_ID],productlist[PRODUCT_ISIN]) -> DE000A0DMX81 | AC122: =_xlfn.XLOOKUP(A122,productlist[PRODUCT_ID],productlist[UNDERLYING_ISIN]) -> EU0009658889
A123: OSTO | B123: =_xlfn.XLOOKUP(A123,'Product List'!$A:$A,'Product List'!$D:$D) -> STOXX® Europe 600 Food & Beverage Options | C123: =_xlfn.XLOOKUP(A123,'Product List'!$A:$A,'Product List'!$F:$F) -> INDEX OPTIONS | D123: =_xlfn.XLOOKUP(A123,'MMPM1-AMM'!E:E,'MMPM1-AMM'!K:K,_xlfn.XLOOKUP(A123,'MMPM1-PMM'!E:E,'MMPM1-PMM'!J:J)) -> STXSO1 | E123: =_xlfn.XLOOKUP(A123,'MMPM1-AMM'!E:E,'MMPM1-AMM'!Q:Q,_xlfn.XLOOKUP(A123,'MMPM1-PMM'!E:E,'MMPM1-PMM'!P:P)) -> 5 | F123: =SUMIFS(MMPM2!H:H,MMPM2!C:C,U123,MMPM2!E:E,1,MMPM2!G:G,1) -> 8.3 | G123: =SUMIFS(MMPM2!H:H,MMPM2!C:C,U123,MMPM2!E:E,1,MMPM2!G:G,2) -> 53.3 | L123: =SUMIFS(MMPM2!I:I,MMPM2!C:C,U123,MMPM2!E:E,1,MMPM2!G:G,1) -> 0.8 | M123: =SUMIFS(MMPM2!I:I,MMPM2!C:C,U123,MMPM2!E:E,1,MMPM2!G:G,2) -> 0.15 | N123: =SUMIFS(MMPM2!I:I,MMPM2!C:C,U123,MMPM2!E:E,1,MMPM2!G:G,3) -> 8 | R123: Not applicable | S123: No doubling of mistrade range | U123: =IFERROR(_xlfn.XLOOKUP(A123,'MMPM1-PMM'!E:E,'MMPM1-PMM'!J:J),_xlfn.XLOOKUP(A123,'MMPM1-AMM'!E:E,'MMPM1-AMM'!K:K)) -> STXSO1 | V123: =IFERROR(_xlfn.XLOOKUP(A123,'MMPM1-AMM'!E:E,'MMPM1-AMM'!T:T),_xlfn.XLOOKUP(A123,'MMPM1-PMM'!E:E,'MMPM1-PMM'!S:S)) -> 3 | W123: =IFERROR(_xlfn.XLOOKUP(A123,'MMPM1-AMM'!E:E,'MMPM1-AMM'!U:U),_xlfn.XLOOKUP(A123,'MMPM1-PMM'!E:E,'MMPM1-PMM'!T:T)) -> 5 | Y123: TRUE | AB123: =_xlfn.XLOOKUP(A123,productlist[PRODUCT_ID],productlist[PRODUCT_ISIN]) -> DE000A0AEU79 | AC123: =_xlfn.XLOOKUP(A123,productlist[PRODUCT_ID],productlist[UNDERLYING_ISIN]) -> EU0009658749
A124: OSTP | B124: =_xlfn.XLOOKUP(A124,'Product List'!$A:$A,'Product List'!$D:$D) -> STOXX® Europe 600 Personal Care, Drug & Grocery Stores Options | C124: =_xlfn.XLOOKUP(A124,'Product List'!$A:$A,'Product List'!$F:$F) -> INDEX OPTIONS | D124: =_xlfn.XLOOKUP(A124,'MMPM1-AMM'!E:E,'MMPM1-AMM'!K:K,_xlfn.XLOOKUP(A124,'MMPM1-PMM'!E:E,'MMPM1-PMM'!J:J)) -> STXSO1 | E124: =_xlfn.XLOOKUP(A124,'MMPM1-AMM'!E:E,'MMPM1-AMM'!Q:Q,_xlfn.XLOOKUP(A124,'MMPM1-PMM'!E:E,'MMPM1-PMM'!P:P)) -> 5 | F124: =SUMIFS(MMPM2!H:H,MMPM2!C:C,U124,MMPM2!E:E,1,MMPM2!G:G,1) -> 8.3 | G124: =SUMIFS(MMPM2!H:H,MMPM2!C:C,U124,MMPM2!E:E,1,MMPM2!G:G,2) -> 53.3 | L124: =SUMIFS(MMPM2!I:I,MMPM2!C:C,U124,MMPM2!E:E,1,MMPM2!G:G,1) -> 0.8 | M124: =SUMIFS(MMPM2!I:I,MMPM2!C:C,U124,MMPM2!E:E,1,MMPM2!G:G,2) -> 0.15 | N124: =SUMIFS(MMPM2!I:I,MMPM2!C:C,U124,MMPM2!E:E,1,MMPM2!G:G,3) -> 8 | R124: Not applicable | S124: No doubling of mistrade range | U124: =IFERROR(_xlfn.XLOOKUP(A124,'MMPM1-PMM'!E:E,'MMPM1-PMM'!J:J),_xlfn.XLOOKUP(A124,'MMPM1-AMM'!E:E,'MMPM1-AMM'!K:K)) -> STXSO1 | V124: =IFERROR(_xlfn.XLOOKUP(A124,'MMPM1-AMM'!E:E,'MMPM1-AMM'!T:T),_xlfn.XLOOKUP(A124,'MMPM1-PMM'!E:E,'MMPM1-PMM'!S:S)) -> 3 | W124: =IFERROR(_xlfn.XLOOKUP(A124,'MMPM1-AMM'!E:E,'MMPM1-AMM'!U:U),_xlfn.XLOOKUP(A124,'MMPM1-PMM'!E:E,'MMPM1-PMM'!T:T)) -> 5 | Y124: TRUE | AB124: =_xlfn.XLOOKUP(A124,productlist[PRODUCT_ID],productlist[PRODUCT_ISIN]) -> DE000A2QBET0 | AC124: =_xlfn.XLOOKUP(A124,productlist[PRODUCT_ID],productlist[UNDERLYING_ISIN]) -> CH0462356970
A125: OSTQ | B125: =_xlfn.XLOOKUP(A125,'Product List'!$A:$A,'Product List'!$D:$D) -> STOXX® Europe 600 Consumer Products & Services Options | C125: =_xlfn.XLOOKUP(A125,'Product List'!$A:$A,'Product List'!$F:$F) -> INDEX OPTIONS | D125: =_xlfn.XLOOKUP(A125,'MMPM1-AMM'!E:E,'MMPM1-AMM'!K:K,_xlfn.XLOOKUP(A125,'MMPM1-PMM'!E:E,'MMPM1-PMM'!J:J)) -> STXSO1 | E125: =_xlfn.XLOOKUP(A125,'MMPM1-AMM'!E:E,'MMPM1-AMM'!Q:Q,_xlfn.XLOOKUP(A125,'MMPM1-PMM'!E:E,'MMPM1-PMM'!P:P)) -> 5 | F125: =SUMIFS(MMPM2!H:H,MMPM2!C:C,U125,MMPM2!E:E,1,MMPM2!G:G,1) -> 8.3 | G125: =SUMIFS(MMPM2!H:H,MMPM2!C:C,U125,MMPM2!E:E,1,MMPM2!G:G,2) -> 53.3 | L125: =SUMIFS(MMPM2!I:I,MMPM2!C:C,U125,MMPM2!E:E,1,MMPM2!G:G,1) -> 0.8 | M125: =SUMIFS(MMPM2!I:I,MMPM2!C:C,U125,MMPM2!E:E,1,MMPM2!G:G,2) -> 0.15 | N125: =SUMIFS(MMPM2!I:I,MMPM2!C:C,U125,MMPM2!E:E,1,MMPM2!G:G,3) -> 8 | R125: Not applicable | S125: No doubling of mistrade range | U125: =IFERROR(_xlfn.XLOOKUP(A125,'MMPM1-PMM'!E:E,'MMPM1-PMM'!J:J),_xlfn.XLOOKUP(A125,'MMPM1-AMM'!E:E,'MMPM1-AMM'!K:K)) -> STXSO1 | V125: =IFERROR(_xlfn.XLOOKUP(A125,'MMPM1-AMM'!E:E,'MMPM1-AMM'!T:T),_xlfn.XLOOKUP(A125,'MMPM1-PMM'!E:E,'MMPM1-PMM'!S:S)) -> 3 | W125: =IFERROR(_xlfn.XLOOKUP(A125,'MMPM1-AMM'!E:E,'MMPM1-AMM'!U:U),_xlfn.XLOOKUP(A125,'MMPM1-PMM'!E:E,'MMPM1-PMM'!T:T)) -> 5 | Y125: TRUE | AB125: =_xlfn.XLOOKUP(A125,productlist[PRODUCT_ID],productlist[PRODUCT_ISIN]) -> DE000A2QBES2 | AC125: =_xlfn.XLOOKUP(A125,productlist[PRODUCT_ID],productlist[UNDERLYING_ISIN]) -> CH0462356335
A126: OSTR | B126: =_xlfn.XLOOKUP(A126,'Product List'!$A:$A,'Product List'!$D:$D) -> STOXX® Europe 600 Retail Options | C126: =_xlfn.XLOOKUP(A126,'Product List'!$A:$A,'Product List'!$F:$F) -> INDEX OPTIONS | D126: =_xlfn.XLOOKUP(A126,'MMPM1-AMM'!E:E,'MMPM1-AMM'!K:K,_xlfn.XLOOKUP(A126,'MMPM1-PMM'!E:E,'MMPM1-PMM'!J:J)) -> STXSO1 | E126: =_xlfn.XLOOKUP(A126,'MMPM1-AMM'!E:E,'MMPM1-AMM'!Q:Q,_xlfn.XLOOKUP(A126,'MMPM1-PMM'!E:E,'MMPM1-PMM'!P:P)) -> 5 | F126: =SUMIFS(MMPM2!H:H,MMPM2!C:C,U126,MMPM2!E:E,1,MMPM2!G:G,1) -> 8.3 | G126: =SUMIFS(MMPM2!H:H,MMPM2!C:C,U126,MMPM2!E:E,1,MMPM2!G:G,2) -> 53.3 | L126: =SUMIFS(MMPM2!I:I,MMPM2!C:C,U126,MMPM2!E:E,1,MMPM2!G:G,1) -> 0.8 | M126: =SUMIFS(MMPM2!I:I,MMPM2!C:C,U126,MMPM2!E:E,1,MMPM2!G:G,2) -> 0.15 | N126: =SUMIFS(MMPM2!I:I,MMPM2!C:C,U126,MMPM2!E:E,1,MMPM2!G:G,3) -> 8 | R126: Not applicable | S126: No doubling of mistrade range | U126: =IFERROR(_xlfn.XLOOKUP(A126,'MMPM1-PMM'!E:E,'MMPM1-PMM'!J:J),_xlfn.XLOOKUP(A126,'MMPM1-AMM'!E:E,'MMPM1-AMM'!K:K)) -> STXSO1 | V126: =IFERROR(_xlfn.XLOOKUP(A126,'MMPM1-AMM'!E:E,'MMPM1-AMM'!T:T),_xlfn.XLOOKUP(A126,'MMPM1-PMM'!E:E,'MMPM1-PMM'!S:S)) -> 3 | W126: =IFERROR(_xlfn.XLOOKUP(A126,'MMPM1-AMM'!E:E,'MMPM1-AMM'!U:U),_xlfn.XLOOKUP(A126,'MMPM1-PMM'!E:E,'MMPM1-PMM'!T:T)) -> 5 | Y126: TRUE | AB126: =_xlfn.XLOOKUP(A126,productlist[PRODUCT_ID],productlist[PRODUCT_ISIN]) -> DE000A0DMX32 | AC126: =_xlfn.XLOOKUP(A126,productlist[PRODUCT_ID],productlist[UNDERLYING_ISIN]) -> CH0019112553
A127: OSTS | B127: =_xlfn.XLOOKUP(A127,'Product List'!$A:$A,'Product List'!$D:$D) -> STOXX® Europe 600 Basic Resources Options | C127: =_xlfn.XLOOKUP(A127,'Product List'!$A:$A,'Product List'!$F:$F) -> INDEX OPTIONS | D127: =_xlfn.XLOOKUP(A127,'MMPM1-AMM'!E:E,'MMPM1-AMM'!K:K,_xlfn.XLOOKUP(A127,'MMPM1-PMM'!E:E,'MMPM1-PMM'!J:J)) -> STXSO1 | E127: =_xlfn.XLOOKUP(A127,'MMPM1-AMM'!E:E,'MMPM1-AMM'!Q:Q,_xlfn.XLOOKUP(A127,'MMPM1-PMM'!E:E,'MMPM1-PMM'!P:P)) -> 5 | F127: =SUMIFS(MMPM2!H:H,MMPM2!C:C,U127,MMPM2!E:E,1,MMPM2!G:G,1) -> 8.3 | G127: =SUMIFS(MMPM2!H:H,MMPM2!C:C,U127,MMPM2!E:E,1,MMPM2!G:G,2) -> 53.3 | L127: =SUMIFS(MMPM2!I:I,MMPM2!C:C,U127,MMPM2!E:E,1,MMPM2!G:G,1) -> 0.8 | M127: =SUMIFS(MMPM2!I:I,MMPM2!C:C,U127,MMPM2!E:E,1,MMPM2!G:G,2) -> 0.15 | N127: =SUMIFS(MMPM2!I:I,MMPM2!C:C,U127,MMPM2!E:E,1,MMPM2!G:G,3) -> 8 | R127: Not applicable | S127: No doubling of mistrade range | U127: =IFERROR(_xlfn.XLOOKUP(A127,'MMPM1-PMM'!E:E,'MMPM1-PMM'!J:J),_xlfn.XLOOKUP(A127,'MMPM1-AMM'!E:E,'MMPM1-AMM'!K:K)) -> STXSO1 | V127: =IFERROR(_xlfn.XLOOKUP(A127,'MMPM1-AMM'!E:E,'MMPM1-AMM'!T:T),_xlfn.XLOOKUP(A127,'MMPM1-PMM'!E:E,'MMPM1-PMM'!S:S)) -> 3 | W127: =IFERROR(_xlfn.XLOOKUP(A127,'MMPM1-AMM'!E:E,'MMPM1-AMM'!U:U),_xlfn.XLOOKUP(A127,'MMPM1-PMM'!E:E,'MMPM1-PMM'!T:T)) -> 5 | Y127: TRUE | AB127: =_xlfn.XLOOKUP(A127,productlist[PRODUCT_ID],productlist[PRODUCT_ISIN]) -> DE000A0AEU53 | AC127: =_xlfn.XLOOKUP(A127,productlist[PRODUCT_ID],productlist[UNDERLYING_ISIN]) -> EU0009658624
A128: OSTT | B128: =_xlfn.XLOOKUP(A128,'Product List'!$A:$A,'Product List'!$D:$D) -> STOXX® Europe 600 Telecommunications Options | C128: =_xlfn.XLOOKUP(A128,'Product List'!$A:$A,'Product List'!$F:$F) -> INDEX OPTIONS | D128: =_xlfn.XLOOKUP(A128,'MMPM1-AMM'!E:E,'MMPM1-AMM'!K:K,_xlfn.XLOOKUP(A128,'MMPM1-PMM'!E:E,'MMPM1-PMM'!J:J)) -> STXSO1 | E128: =_xlfn.XLOOKUP(A128,'MMPM1-AMM'!E:E,'MMPM1-AMM'!Q:Q,_xlfn.XLOOKUP(A128,'MMPM1-PMM'!E:E,'MMPM1-PMM'!P:P)) -> 5 | F128: =SUMIFS(MMPM2!H:H,MMPM2!C:C,U128,MMPM2!E:E,1,MMPM2!G:G,1) -> 8.3 | G128: =SUMIFS(MMPM2!H:H,MMPM2!C:C,U128,MMPM2!E:E,1,MMPM2!G:G,2) -> 53.3 | L128: =SUMIFS(MMPM2!I:I,MMPM2!C:C,U128,MMPM2!E:E,1,MMPM2!G:G,1) -> 0.8 | M128: =SUMIFS(MMPM2!I:I,MMPM2!C:C,U128,MMPM2!E:E,1,MMPM2!G:G,2) -> 0.15 | N128: =SUMIFS(MMPM2!I:I,MMPM2!C:C,U128,MMPM2!E:E,1,MMPM2!G:G,3) -> 8 | R128: Not applicable | S128: No doubling of mistrade range | U128: =IFERROR(_xlfn.XLOOKUP(A128,'MMPM1-PMM'!E:E,'MMPM1-PMM'!J:J),_xlfn.XLOOKUP(A128,'MMPM1-AMM'!E:E,'MMPM1-AMM'!K:K)) -> STXSO1 | V128: =IFERROR(_xlfn.XLOOKUP(A128,'MMPM1-AMM'!E:E,'MMPM1-AMM'!T:T),_xlfn.XLOOKUP(A128,'MMPM1-PMM'!E:E,'MMPM1-PMM'!S:S)) -> 3 | W128: =IFERROR(_xlfn.XLOOKUP(A128,'MMPM1-AMM'!E:E,'MMPM1-AMM'!U:U),_xlfn.XLOOKUP(A128,'MMPM1-PMM'!E:E,'MMPM1-PMM'!T:T)) -> 5 | Y128: TRUE | AB128: =_xlfn.XLOOKUP(A128,productlist[PRODUCT_ID],productlist[PRODUCT_ISIN]) -> DE0007200768 | AC128: =_xlfn.XLOOKUP(A128,productlist[PRODUCT_ID],productlist[UNDERLYING_ISIN]) -> EU0009658947
A129: OSTU | B129: =_xlfn.XLOOKUP(A129,'Product List'!$A:$A,'Product List'!$D:$D) -> STOXX® Europe 600 Utilities Options | C129: =_xlfn.XLOOKUP(A129,'Product List'!$A:$A,'Product List'!$F:$F) -> INDEX OPTIONS | D129: =_xlfn.XLOOKUP(A129,'MMPM1-AMM'!E:E,'MMPM1-AMM'!K:K,_xlfn.XLOOKUP(A129,'MMPM1-PMM'!E:E,'MMPM1-PMM'!J:J)) -> STXSO1 | E129: =_xlfn.XLOOKUP(A129,'MMPM1-AMM'!E:E,'MMPM1-AMM'!Q:Q,_xlfn.XLOOKUP(A129,'MMPM1-PMM'!E:E,'MMPM1-PMM'!P:P)) -> 5 | F129: =SUMIFS(MMPM2!H:H,MMPM2!C:C,U129,MMPM2!E:E,1,MMPM2!G:G,1) -> 8.3 | G129: =SUMIFS(MMPM2!H:H,MMPM2!C:C,U129,MMPM2!E:E,1,MMPM2!G:G,2) -> 53.3 | L129: =SUMIFS(MMPM2!I:I,MMPM2!C:C,U129,MMPM2!E:E,1,MMPM2!G:G,1) -> 0.8 | M129: =SUMIFS(MMPM2!I:I,MMPM2!C:C,U129,MMPM2!E:E,1,MMPM2!G:G,2) -> 0.15 | N129: =SUMIFS(MMPM2!I:I,MMPM2!C:C,U129,MMPM2!E:E,1,MMPM2!G:G,3) -> 8 | R129: Not applicable | S129: No doubling of mistrade range | U129: =IFERROR(_xlfn.XLOOKUP(A129,'MMPM1-PMM'!E:E,'MMPM1-PMM'!J:J),_xlfn.XLOOKUP(A129,'MMPM1-AMM'!E:E,'MMPM1-AMM'!K:K)) -> STXSO1 | V129: =IFERROR(_xlfn.XLOOKUP(A129,'MMPM1-AMM'!E:E,'MMPM1-AMM'!T:T),_xlfn.XLOOKUP(A129,'MMPM1-PMM'!E:E,'MMPM1-PMM'!S:S)) -> 3 | W129: =IFERROR(_xlfn.XLOOKUP(A129,'MMPM1-AMM'!E:E,'MMPM1-AMM'!U:U),_xlfn.XLOOKUP(A129,'MMPM1-PMM'!E:E,'MMPM1-PMM'!T:T)) -> 5 | Y129: TRUE | AB129: =_xlfn.XLOOKUP(A129,productlist[PRODUCT_ID],productlist[PRODUCT_ISIN]) -> DE0002272093 | AC129: =_xlfn.XLOOKUP(A129,productlist[PRODUCT_ID],productlist[UNDERLYING_ISIN]) -> EU0009658962
A130: OSTV | B130: =_xlfn.XLOOKUP(A130,'Product List'!$A:$A,'Product List'!$D:$D) -> STOXX® Europe 600 Travel & Leisure Options | C130: =_xlfn.XLOOKUP(A130,'Product List'!$A:$A,'Product List'!$F:$F) -> INDEX OPTIONS | D130: =_xlfn.XLOOKUP(A130,'MMPM1-AMM'!E:E,'MMPM1-AMM'!K:K,_xlfn.XLOOKUP(A130,'MMPM1-PMM'!E:E,'MMPM1-PMM'!J:J)) -> STXSO1 | E130: =_xlfn.XLOOKUP(A130,'MMPM1-AMM'!E:E,'MMPM1-AMM'!Q:Q,_xlfn.XLOOKUP(A130,'MMPM1-PMM'!E:E,'MMPM1-PMM'!P:P)) -> 5 | F130: =SUMIFS(MMPM2!H:H,MMPM2!C:C,U130,MMPM2!E:E,1,MMPM2!G:G,1) -> 8.3 | G130: =SUMIFS(MMPM2!H:H,MMPM2!C:C,U130,MMPM2!E:E,1,MMPM2!G:G,2) -> 53.3 | L130: =SUMIFS(MMPM2!I:I,MMPM2!C:C,U130,MMPM2!E:E,1,MMPM2!G:G,1) -> 0.8 | M130: =SUMIFS(MMPM2!I:I,MMPM2!C:C,U130,MMPM2!E:E,1,MMPM2!G:G,2) -> 0.15 | N130: =SUMIFS(MMPM2!I:I,MMPM2!C:C,U130,MMPM2!E:E,1,MMPM2!G:G,3) -> 8 | R130: Not applicable | S130: No doubling of mistrade range | U130: =IFERROR(_xlfn.XLOOKUP(A130,'MMPM1-PMM'!E:E,'MMPM1-PMM'!J:J),_xlfn.XLOOKUP(A130,'MMPM1-AMM'!E:E,'MMPM1-AMM'!K:K)) -> STXSO1 | V130: =IFERROR(_xlfn.XLOOKUP(A130,'MMPM1-AMM'!E:E,'MMPM1-AMM'!T:T),_xlfn.XLOOKUP(A130,'MMPM1-PMM'!E:E,'MMPM1-PMM'!S:S)) -> 3 | W130: =IFERROR(_xlfn.XLOOKUP(A130,'MMPM1-AMM'!E:E,'MMPM1-AMM'!U:U),_xlfn.XLOOKUP(A130,'MMPM1-PMM'!E:E,'MMPM1-PMM'!T:T)) -> 5 | Y130: TRUE | AB130: =_xlfn.XLOOKUP(A130,productlist[PRODUCT_ID],productlist[PRODUCT_ISIN]) -> DE000A0DMX40 | AC130: =_xlfn.XLOOKUP(A130,productlist[PRODUCT_ID],productlist[UNDERLYING_ISIN]) -> CH0019112744
A131: OSTW | B131: =_xlfn.XLOOKUP(A131,'Product List'!$A:$A,'Product List'!$D:$D) -> STOXX® Europe 600 Food, Beverage & Tobacco Options | C131: =_xlfn.XLOOKUP(A131,'Product List'!$A:$A,'Product List'!$F:$F) -> INDEX OPTIONS | D131: =_xlfn.XLOOKUP(A131,'MMPM1-AMM'!E:E,'MMPM1-AMM'!K:K,_xlfn.XLOOKUP(A131,'MMPM1-PMM'!E:E,'MMPM1-PMM'!J:J)) -> STXSO1 | E131: =_xlfn.XLOOKUP(A131,'MMPM1-AMM'!E:E,'MMPM1-AMM'!Q:Q,_xlfn.XLOOKUP(A131,'MMPM1-PMM'!E:E,'MMPM1-PMM'!P:P)) -> 5 | F131: =SUMIFS(MMPM2!H:H,MMPM2!C:C,U131,MMPM2!E:E,1,MMPM2!G:G,1) -> 8.3 | G131: =SUMIFS(MMPM2!H:H,MMPM2!C:C,U131,MMPM2!E:E,1,MMPM2!G:G,2) -> 53.3 | L131: =SUMIFS(MMPM2!I:I,MMPM2!C:C,U131,MMPM2!E:E,1,MMPM2!G:G,1) -> 0.8 | M131: =SUMIFS(MMPM2!I:I,MMPM2!C:C,U131,MMPM2!E:E,1,MMPM2!G:G,2) -> 0.15 | N131: =SUMIFS(MMPM2!I:I,MMPM2!C:C,U131,MMPM2!E:E,1,MMPM2!G:G,3) -> 8 | R131: Not applicable | S131: No doubling of mistrade range | U131: =IFERROR(_xlfn.XLOOKUP(A131,'MMPM1-PMM'!E:E,'MMPM1-PMM'!J:J),_xlfn.XLOOKUP(A131,'MMPM1-AMM'!E:E,'MMPM1-AMM'!K:K)) -> STXSO1 | V131: =IFERROR(_xlfn.XLOOKUP(A131,'MMPM1-AMM'!E:E,'MMPM1-AMM'!T:T),_xlfn.XLOOKUP(A131,'MMPM1-PMM'!E:E,'MMPM1-PMM'!S:S)) -> 3 | W131: =IFERROR(_xlfn.XLOOKUP(A131,'MMPM1-AMM'!E:E,'MMPM1-AMM'!U:U),_xlfn.XLOOKUP(A131,'MMPM1-PMM'!E:E,'MMPM1-PMM'!T:T)) -> 5 | Y131: TRUE | AB131: =_xlfn.XLOOKUP(A131,productlist[PRODUCT_ID],productlist[PRODUCT_ISIN]) -> DE000A2QBEQ6 | AC131: =_xlfn.XLOOKUP(A131,productlist[PRODUCT_ID],productlist[UNDERLYING_ISIN]) -> CH0462356897
A132: OSTX | B132: =_xlfn.XLOOKUP(A132,'Product List'!$A:$A,'Product List'!$D:$D) -> STOXX® Europe 50 Index Options | C132: =_xlfn.XLOOKUP(A132,'Product List'!$A:$A,'Product List'!$F:$F) -> INDEX OPTIONS | D132: =_xlfn.XLOOKUP(A132,'MMPM1-AMM'!E:E,'MMPM1-AMM'!K:K,_xlfn.XLOOKUP(A132,'MMPM1-PMM'!E:E,'MMPM1-PMM'!J:J)) -> OSTX | E132: =_xlfn.XLOOKUP(A132,'MMPM1-AMM'!E:E,'MMPM1-AMM'!Q:Q,_xlfn.XLOOKUP(A132,'MMPM1-PMM'!E:E,'MMPM1-PMM'!P:P)) -> 7 | F132: =SUMIFS(MMPM2!H:H,MMPM2!C:C,U132,MMPM2!E:E,1,MMPM2!G:G,1) -> 15 | G132: =SUMIFS(MMPM2!H:H,MMPM2!C:C,U132,MMPM2!E:E,1,MMPM2!G:G,2) -> 187.5 | L132: =SUMIFS(MMPM2!I:I,MMPM2!C:C,U132,MMPM2!E:E,1,MMPM2!G:G,1) -> 3 | M132: =SUMIFS(MMPM2!I:I,MMPM2!C:C,U132,MMPM2!E:E,1,MMPM2!G:G,2) -> 0.2 | N132: =SUMIFS(MMPM2!I:I,MMPM2!C:C,U132,MMPM2!E:E,1,MMPM2!G:G,3) -> 37.5 | R132: Not applicable | S132: No doubling of mistrade range | U132: =IFERROR(_xlfn.XLOOKUP(A132,'MMPM1-PMM'!E:E,'MMPM1-PMM'!J:J),_xlfn.XLOOKUP(A132,'MMPM1-AMM'!E:E,'MMPM1-AMM'!K:K)) -> OSTX | V132: =IFERROR(_xlfn.XLOOKUP(A132,'MMPM1-AMM'!E:E,'MMPM1-AMM'!T:T),_xlfn.XLOOKUP(A132,'MMPM1-PMM'!E:E,'MMPM1-PMM'!S:S)) -> 3 | W132: =IFERROR(_xlfn.XLOOKUP(A132,'MMPM1-AMM'!E:E,'MMPM1-AMM'!U:U),_xlfn.XLOOKUP(A132,'MMPM1-PMM'!E:E,'MMPM1-PMM'!T:T)) -> 7 | Y132: TRUE | AB132: =_xlfn.XLOOKUP(A132,productlist[PRODUCT_ID],productlist[PRODUCT_ISIN]) -> DE0009652370 | AC132: =_xlfn.XLOOKUP(A132,productlist[PRODUCT_ID],productlist[UNDERLYING_ISIN]) -> EU0009658160
A133: OSTY | B133: =_xlfn.XLOOKUP(A133,'Product List'!$A:$A,'Product List'!$D:$D) -> STOXX® Europe 600 Technology Options | C133: =_xlfn.XLOOKUP(A133,'Product List'!$A:$A,'Product List'!$F:$F) -> INDEX OPTIONS | D133: =_xlfn.XLOOKUP(A133,'MMPM1-AMM'!E:E,'MMPM1-AMM'!K:K,_xlfn.XLOOKUP(A133,'MMPM1-PMM'!E:E,'MMPM1-PMM'!J:J)) -> STXSO1 | E133: =_xlfn.XLOOKUP(A133,'MMPM1-AMM'!E:E,'MMPM1-AMM'!Q:Q,_xlfn.XLOOKUP(A133,'MMPM1-PMM'!E:E,'MMPM1-PMM'!P:P)) -> 5 | F133: =SUMIFS(MMPM2!H:H,MMPM2!C:C,U133,MMPM2!E:E,1,MMPM2!G:G,1) -> 8.3 | G133: =SUMIFS(MMPM2!H:H,MMPM2!C:C,U133,MMPM2!E:E,1,MMPM2!G:G,2) -> 53.3 | L133: =SUMIFS(MMPM2!I:I,MMPM2!C:C,U133,MMPM2!E:E,1,MMPM2!G:G,1) -> 0.8 | M133: =SUMIFS(MMPM2!I:I,MMPM2!C:C,U133,MMPM2!E:E,1,MMPM2!G:G,2) -> 0.15 | N133: =SUMIFS(MMPM2!I:I,MMPM2!C:C,U133,MMPM2!E:E,1,MMPM2!G:G,3) -> 8 | R133: Not applicable | S133: No doubling of mistrade range | U133: =IFERROR(_xlfn.XLOOKUP(A133,'MMPM1-PMM'!E:E,'MMPM1-PMM'!J:J),_xlfn.XLOOKUP(A133,'MMPM1-AMM'!E:E,'MMPM1-AMM'!K:K)) -> STXSO1 | V133: =IFERROR(_xlfn.XLOOKUP(A133,'MMPM1-AMM'!E:E,'MMPM1-AMM'!T:T),_xlfn.XLOOKUP(A133,'MMPM1-PMM'!E:E,'MMPM1-PMM'!S:S)) -> 3 | W133: =IFERROR(_xlfn.XLOOKUP(A133,'MMPM1-AMM'!E:E,'MMPM1-AMM'!U:U),_xlfn.XLOOKUP(A133,'MMPM1-PMM'!E:E,'MMPM1-PMM'!T:T)) -> 5 | Y133: TRUE | AB133: =_xlfn.XLOOKUP(A133,productlist[PRODUCT_ID],productlist[PRODUCT_ISIN]) -> DE0007200776 | AC133: =_xlfn.XLOOKUP(A133,productlist[PRODUCT_ID],productlist[UNDERLYING_ISIN]) -> EU0009658921
A134: OSTZ | B134: =_xlfn.XLOOKUP(A134,'Product List'!$A:$A,'Product List'!$D:$D) -> STOXX® Europe 600 Personal & Household Goods Options | C134: =_xlfn.XLOOKUP(A134,'Product List'!$A:$A,'Product List'!$F:$F) -> INDEX OPTIONS | D134: =_xlfn.XLOOKUP(A134,'MMPM1-AMM'!E:E,'MMPM1-AMM'!K:K,_xlfn.XLOOKUP(A134,'MMPM1-PMM'!E:E,'MMPM1-PMM'!J:J)) -> STXSO2 | E134: =_xlfn.XLOOKUP(A134,'MMPM1-AMM'!E:E,'MMPM1-AMM'!Q:Q,_xlfn.XLOOKUP(A134,'MMPM1-PMM'!E:E,'MMPM1-PMM'!P:P)) -> 5 | F134: =SUMIFS(MMPM2!H:H,MMPM2!C:C,U134,MMPM2!E:E,1,MMPM2!G:G,1) -> 8.3 | G134: =SUMIFS(MMPM2!H:H,MMPM2!C:C,U134,MMPM2!E:E,1,MMPM2!G:G,2) -> 53.3 | L134: =SUMIFS(MMPM2!I:I,MMPM2!C:C,U134,MMPM2!E:E,1,MMPM2!G:G,1) -> 2.5 | M134: =SUMIFS(MMPM2!I:I,MMPM2!C:C,U134,MMPM2!E:E,1,MMPM2!G:G,2) -> 0.3 | N134: =SUMIFS(MMPM2!I:I,MMPM2!C:C,U134,MMPM2!E:E,1,MMPM2!G:G,3) -> 16.1 | R134: Not applicable | S134: No doubling of mistrade range | U134: =IFERROR(_xlfn.XLOOKUP(A134,'MMPM1-PMM'!E:E,'MMPM1-PMM'!J:J),_xlfn.XLOOKUP(A134,'MMPM1-AMM'!E:E,'MMPM1-AMM'!K:K)) -> STXSO2 | V134: =IFERROR(_xlfn.XLOOKUP(A134,'MMPM1-AMM'!E:E,'MMPM1-AMM'!T:T),_xlfn.XLOOKUP(A134,'MMPM1-PMM'!E:E,'MMPM1-PMM'!S:S)) -> 3 | W134: =IFERROR(_xlfn.XLOOKUP(A134,'MMPM1-AMM'!E:E,'MMPM1-AMM'!U:U),_xlfn.XLOOKUP(A134,'MMPM1-PMM'!E:E,'MMPM1-PMM'!T:T)) -> 4 | Y134: FALSE | AB134: =_xlfn.XLOOKUP(A134,productlist[PRODUCT_ID],productlist[PRODUCT_ISIN]) -> DE000A0DMX57 | AC134: =_xlfn.XLOOKUP(A134,productlist[PRODUCT_ID],productlist[UNDERLYING_ISIN]) -> CH0019112330
A135: OTDX | B135: =_xlfn.XLOOKUP(A135,'Product List'!$A:$A,'Product List'!$D:$D) -> TecDAX® Options | C135: =_xlfn.XLOOKUP(A135,'Product List'!$A:$A,'Product List'!$F:$F) -> INDEX OPTIONS | D135: =_xlfn.XLOOKUP(A135,'MMPM1-AMM'!E:E,'MMPM1-AMM'!K:K,_xlfn.XLOOKUP(A135,'MMPM1-PMM'!E:E,'MMPM1-PMM'!J:J)) -> OTDX | E135: =_xlfn.XLOOKUP(A135,'MMPM1-AMM'!E:E,'MMPM1-AMM'!Q:Q,_xlfn.XLOOKUP(A135,'MMPM1-PMM'!E:E,'MMPM1-PMM'!P:P)) -> 7 | F135: =SUMIFS(MMPM2!H:H,MMPM2!C:C,U135,MMPM2!E:E,1,MMPM2!G:G,1) -> 13.3 | G135: =SUMIFS(MMPM2!H:H,MMPM2!C:C,U135,MMPM2!E:E,1,MMPM2!G:G,2) -> 133.3 | L135: =SUMIFS(MMPM2!I:I,MMPM2!C:C,U135,MMPM2!E:E,1,MMPM2!G:G,1) -> 2 | M135: =SUMIFS(MMPM2!I:I,MMPM2!C:C,U135,MMPM2!E:E,1,MMPM2!G:G,2) -> 0.15 | N135: =SUMIFS(MMPM2!I:I,MMPM2!C:C,U135,MMPM2!E:E,1,MMPM2!G:G,3) -> 20 | R135: Not applicable | S135: No doubling of mistrade range | U135: =IFERROR(_xlfn.XLOOKUP(A135,'MMPM1-PMM'!E:E,'MMPM1-PMM'!J:J),_xlfn.XLOOKUP(A135,'MMPM1-AMM'!E:E,'MMPM1-AMM'!K:K)) -> OTDX | V135: =IFERROR(_xlfn.XLOOKUP(A135,'MMPM1-AMM'!E:E,'MMPM1-AMM'!T:T),_xlfn.XLOOKUP(A135,'MMPM1-PMM'!E:E,'MMPM1-PMM'!S:S)) -> 3 | W135: =IFERROR(_xlfn.XLOOKUP(A135,'MMPM1-AMM'!E:E,'MMPM1-AMM'!U:U),_xlfn.XLOOKUP(A135,'MMPM1-PMM'!E:E,'MMPM1-PMM'!T:T)) -> 7 | Y135: TRUE | AB135: =_xlfn.XLOOKUP(A135,productlist[PRODUCT_ID],productlist[PRODUCT_ISIN]) -> DE0002270352 | AC135: =_xlfn.XLOOKUP(A135,productlist[PRODUCT_ID],productlist[UNDERLYING_ISIN]) -> DE0007203275
A136: OVS2 | B136: =_xlfn.XLOOKUP(A136,'Product List'!$A:$A,'Product List'!$D:$D) -> Options on VSTOXX® Futures | C136: =_xlfn.XLOOKUP(A136,'Product List'!$A:$A,'Product List'!$F:$F) -> VOLATILITY INDEX OPTIONS | D136: =_xlfn.XLOOKUP(A136,'MMPM1-AMM'!E:E,'MMPM1-AMM'!K:K,_xlfn.XLOOKUP(A136,'MMPM1-PMM'!E:E,'MMPM1-PMM'!J:J)) -> OVS | E136: =_xlfn.XLOOKUP(A136,'MMPM1-AMM'!E:E,'MMPM1-AMM'!Q:Q,_xlfn.XLOOKUP(A136,'MMPM1-PMM'!E:E,'MMPM1-PMM'!P:P)) -> 6 | F136: =SUMIFS(MMPM2!H:H,MMPM2!C:C,U136,MMPM2!E:E,1,MMPM2!G:G,1) -> 2 | G136: =SUMIFS(MMPM2!H:H,MMPM2!C:C,U136,MMPM2!E:E,1,MMPM2!G:G,2) -> 20 | I136: 2 | J136: 20 | L136: =SUMIFS(MMPM2!I:I,MMPM2!C:C,U136,MMPM2!E:E,1,MMPM2!G:G,1) -> 0.15 | M136: =SUMIFS(MMPM2!I:I,MMPM2!C:C,U136,MMPM2!E:E,1,MMPM2!G:G,2) -> 0.08 | N136: =SUMIFS(MMPM2!I:I,MMPM2!C:C,U136,MMPM2!E:E,1,MMPM2!G:G,3) -> 1.5 | O136: 0.4 | P136: 0.2 | Q136: 4 | U136: =IFERROR(_xlfn.XLOOKUP(A136,'MMPM1-PMM'!E:E,'MMPM1-PMM'!J:J),_xlfn.XLOOKUP(A136,'MMPM1-AMM'!E:E,'MMPM1-AMM'!K:K)) -> OVS | V136: =IFERROR(_xlfn.XLOOKUP(A136,'MMPM1-AMM'!E:E,'MMPM1-AMM'!T:T),_xlfn.XLOOKUP(A136,'MMPM1-PMM'!E:E,'MMPM1-PMM'!S:S)) -> 9 | W136: =IFERROR(_xlfn.XLOOKUP(A136,'MMPM1-AMM'!E:E,'MMPM1-AMM'!U:U),_xlfn.XLOOKUP(A136,'MMPM1-PMM'!E:E,'MMPM1-PMM'!T:T)) -> 6 | Y136: TRUE | AB136: =_xlfn.XLOOKUP(A136,productlist[PRODUCT_ID],productlist[PRODUCT_ISIN]) -> DE000A2BM405 | AC136: =_xlfn.XLOOKUP(A136,productlist[PRODUCT_ID],productlist[UNDERLYING_ISIN]) -> 
A137: OXGL | B137: =_xlfn.XLOOKUP(A137,'Product List'!$A:$A,'Product List'!$D:$D) -> Xetra-Gold® Options | C137: =_xlfn.XLOOKUP(A137,'Product List'!$A:$A,'Product List'!$F:$F) -> OPTION ON XETRA-GOLD | D137: =_xlfn.XLOOKUP(A137,'MMPM1-AMM'!E:E,'MMPM1-AMM'!K:K,_xlfn.XLOOKUP(A137,'MMPM1-PMM'!E:E,'MMPM1-PMM'!J:J)) -> CO-ETF1 | E137: =_xlfn.XLOOKUP(A137,'MMPM1-AMM'!E:E,'MMPM1-AMM'!Q:Q,_xlfn.XLOOKUP(A137,'MMPM1-PMM'!E:E,'MMPM1-PMM'!P:P)) -> 6 | F137: =SUMIFS(MMPM2!H:H,MMPM2!C:C,U137,MMPM2!E:E,1,MMPM2!G:G,1) -> 2 | G137: =SUMIFS(MMPM2!H:H,MMPM2!C:C,U137,MMPM2!E:E,1,MMPM2!G:G,2) -> 20 | L137: =SUMIFS(MMPM2!I:I,MMPM2!C:C,U137,MMPM2!E:E,1,MMPM2!G:G,1) -> 0.2 | M137: =SUMIFS(MMPM2!I:I,MMPM2!C:C,U137,MMPM2!E:E,1,MMPM2!G:G,2) -> 0.1 | N137: =SUMIFS(MMPM2!I:I,MMPM2!C:C,U137,MMPM2!E:E,1,MMPM2!G:G,3) -> 2 | R137: =IF(D137="OVS","",IF(V137=3, "Not applicable",W137-1)) -> Not applicable | S137: No doubling of mistrade range | U137: =IFERROR(_xlfn.XLOOKUP(A137,'MMPM1-PMM'!E:E,'MMPM1-PMM'!J:J),_xlfn.XLOOKUP(A137,'MMPM1-AMM'!E:E,'MMPM1-AMM'!K:K)) -> CO-ETF1 | V137: =IFERROR(_xlfn.XLOOKUP(A137,'MMPM1-AMM'!E:E,'MMPM1-AMM'!T:T),_xlfn.XLOOKUP(A137,'MMPM1-PMM'!E:E,'MMPM1-PMM'!S:S)) -> 3 | W137: =IFERROR(_xlfn.XLOOKUP(A137,'MMPM1-AMM'!E:E,'MMPM1-AMM'!U:U),_xlfn.XLOOKUP(A137,'MMPM1-PMM'!E:E,'MMPM1-PMM'!T:T)) -> 6 | Y137: TRUE | AB137: =_xlfn.XLOOKUP(A137,productlist[PRODUCT_ID],productlist[PRODUCT_ISIN]) -> DE000A1EY8W7 | AC137: =_xlfn.XLOOKUP(A137,productlist[PRODUCT_ID],productlist[UNDERLYING_ISIN]) -> DE000A0S9GB0
A138: OXXE | B138: =_xlfn.XLOOKUP(A138,'Product List'!$A:$A,'Product List'!$D:$D) -> EURO STOXX® Index Options | C138: =_xlfn.XLOOKUP(A138,'Product List'!$A:$A,'Product List'!$F:$F) -> INDEX OPTIONS | D138: =_xlfn.XLOOKUP(A138,'MMPM1-AMM'!E:E,'MMPM1-AMM'!K:K,_xlfn.XLOOKUP(A138,'MMPM1-PMM'!E:E,'MMPM1-PMM'!J:J)) -> BB-Size | E138: =_xlfn.XLOOKUP(A138,'MMPM1-AMM'!E:E,'MMPM1-AMM'!Q:Q,_xlfn.XLOOKUP(A138,'MMPM1-PMM'!E:E,'MMPM1-PMM'!P:P)) -> 6 | F138: =SUMIFS(MMPM2!H:H,MMPM2!C:C,U138,MMPM2!E:E,1,MMPM2!G:G,1) -> 5.3 | G138: =SUMIFS(MMPM2!H:H,MMPM2!C:C,U138,MMPM2!E:E,1,MMPM2!G:G,2) -> 53.3 | L138: =SUMIFS(MMPM2!I:I,MMPM2!C:C,U138,MMPM2!E:E,1,MMPM2!G:G,1) -> 0.8 | M138: =SUMIFS(MMPM2!I:I,MMPM2!C:C,U138,MMPM2!E:E,1,MMPM2!G:G,2) -> 0.15 | N138: =SUMIFS(MMPM2!I:I,MMPM2!C:C,U138,MMPM2!E:E,1,MMPM2!G:G,3) -> 8 | R138: =IF(D138="OVS","",IF(V138=3, "Not applicable",W138-1)) -> Not applicable | S138: No doubling of mistrade range | U138: =IFERROR(_xlfn.XLOOKUP(A138,'MMPM1-PMM'!E:E,'MMPM1-PMM'!J:J),_xlfn.XLOOKUP(A138,'MMPM1-AMM'!E:E,'MMPM1-AMM'!K:K)) -> BB-Size | V138: =IFERROR(_xlfn.XLOOKUP(A138,'MMPM1-AMM'!E:E,'MMPM1-AMM'!T:T),_xlfn.XLOOKUP(A138,'MMPM1-PMM'!E:E,'MMPM1-PMM'!S:S)) -> 3 | W138: =IFERROR(_xlfn.XLOOKUP(A138,'MMPM1-AMM'!E:E,'MMPM1-AMM'!U:U),_xlfn.XLOOKUP(A138,'MMPM1-PMM'!E:E,'MMPM1-PMM'!T:T)) -> 6 | Y138: TRUE | AB138: =_xlfn.XLOOKUP(A138,productlist[PRODUCT_ID],productlist[PRODUCT_ISIN]) -> DE000A1DKQP3 | AC138: =_xlfn.XLOOKUP(A138,productlist[PRODUCT_ID],productlist[UNDERLYING_ISIN]) -> EU0009658186
A139: OXXP | B139: =_xlfn.XLOOKUP(A139,'Product List'!$A:$A,'Product List'!$D:$D) -> STOXX® Europe 600 Index Options | C139: =_xlfn.XLOOKUP(A139,'Product List'!$A:$A,'Product List'!$F:$F) -> INDEX OPTIONS | D139: =_xlfn.XLOOKUP(A139,'MMPM1-AMM'!E:E,'MMPM1-AMM'!K:K,_xlfn.XLOOKUP(A139,'MMPM1-PMM'!E:E,'MMPM1-PMM'!J:J)) -> OXXP | E139: =_xlfn.XLOOKUP(A139,'MMPM1-AMM'!E:E,'MMPM1-AMM'!Q:Q,_xlfn.XLOOKUP(A139,'MMPM1-PMM'!E:E,'MMPM1-PMM'!P:P)) -> 6 | F139: =SUMIFS(MMPM2!H:H,MMPM2!C:C,U139,MMPM2!E:E,1,MMPM2!G:G,1) -> 5.3 | G139: =SUMIFS(MMPM2!H:H,MMPM2!C:C,U139,MMPM2!E:E,1,MMPM2!G:G,2) -> 53.3 | L139: =SUMIFS(MMPM2!I:I,MMPM2!C:C,U139,MMPM2!E:E,1,MMPM2!G:G,1) -> 0.8 | M139: =SUMIFS(MMPM2!I:I,MMPM2!C:C,U139,MMPM2!E:E,1,MMPM2!G:G,2) -> 0.15 | N139: =SUMIFS(MMPM2!I:I,MMPM2!C:C,U139,MMPM2!E:E,1,MMPM2!G:G,3) -> 8 | R139: Not applicable | S139: No doubling of mistrade range | U139: =IFERROR(_xlfn.XLOOKUP(A139,'MMPM1-PMM'!E:E,'MMPM1-PMM'!J:J),_xlfn.XLOOKUP(A139,'MMPM1-AMM'!E:E,'MMPM1-AMM'!K:K)) -> OXXP | V139: =IFERROR(_xlfn.XLOOKUP(A139,'MMPM1-AMM'!E:E,'MMPM1-AMM'!T:T),_xlfn.XLOOKUP(A139,'MMPM1-PMM'!E:E,'MMPM1-PMM'!S:S)) -> 3 | W139: =IFERROR(_xlfn.XLOOKUP(A139,'MMPM1-AMM'!E:E,'MMPM1-AMM'!U:U),_xlfn.XLOOKUP(A139,'MMPM1-PMM'!E:E,'MMPM1-PMM'!T:T)) -> 6 | Y139: TRUE | AB139: =_xlfn.XLOOKUP(A139,productlist[PRODUCT_ID],productlist[PRODUCT_ISIN]) -> DE000A1DKQT5 | AC139: =_xlfn.XLOOKUP(A139,productlist[PRODUCT_ID],productlist[UNDERLYING_ISIN]) -> EU0009658202
A140: OXXS | B140: =_xlfn.XLOOKUP(A140,'Product List'!$A:$A,'Product List'!$D:$D) -> STOXX® Europe Select 50 Index Options | C140: =_xlfn.XLOOKUP(A140,'Product List'!$A:$A,'Product List'!$F:$F) -> INDEX OPTIONS | D140: =_xlfn.XLOOKUP(A140,'MMPM1-AMM'!E:E,'MMPM1-AMM'!K:K,_xlfn.XLOOKUP(A140,'MMPM1-PMM'!E:E,'MMPM1-PMM'!J:J)) -> OXXS | E140: =_xlfn.XLOOKUP(A140,'MMPM1-AMM'!E:E,'MMPM1-AMM'!Q:Q,_xlfn.XLOOKUP(A140,'MMPM1-PMM'!E:E,'MMPM1-PMM'!P:P)) -> 6 | F140: =SUMIFS(MMPM2!H:H,MMPM2!C:C,U140,MMPM2!E:E,1,MMPM2!G:G,1) -> 5.3 | G140: =SUMIFS(MMPM2!H:H,MMPM2!C:C,U140,MMPM2!E:E,1,MMPM2!G:G,2) -> 53.3 | L140: =SUMIFS(MMPM2!I:I,MMPM2!C:C,U140,MMPM2!E:E,1,MMPM2!G:G,1) -> 1.1 | M140: =SUMIFS(MMPM2!I:I,MMPM2!C:C,U140,MMPM2!E:E,1,MMPM2!G:G,2) -> 0.2 | N140: =SUMIFS(MMPM2!I:I,MMPM2!C:C,U140,MMPM2!E:E,1,MMPM2!G:G,3) -> 10.7 | R140: Not applicable | S140: No doubling of mistrade range | U140: =IFERROR(_xlfn.XLOOKUP(A140,'MMPM1-PMM'!E:E,'MMPM1-PMM'!J:J),_xlfn.XLOOKUP(A140,'MMPM1-AMM'!E:E,'MMPM1-AMM'!K:K)) -> OXXS | V140: =IFERROR(_xlfn.XLOOKUP(A140,'MMPM1-AMM'!E:E,'MMPM1-AMM'!T:T),_xlfn.XLOOKUP(A140,'MMPM1-PMM'!E:E,'MMPM1-PMM'!S:S)) -> 3 | W140: =IFERROR(_xlfn.XLOOKUP(A140,'MMPM1-AMM'!E:E,'MMPM1-AMM'!U:U),_xlfn.XLOOKUP(A140,'MMPM1-PMM'!E:E,'MMPM1-PMM'!T:T)) -> 6 | Y140: TRUE | AB140: =_xlfn.XLOOKUP(A140,productlist[PRODUCT_ID],productlist[PRODUCT_ISIN]) -> DE000A2RPDK9 | AC140: =_xlfn.XLOOKUP(A140,productlist[PRODUCT_ID],productlist[UNDERLYING_ISIN]) -> CH0298406999
A141: XMT | B141: =_xlfn.XLOOKUP(A141,'Product List'!$A:$A,'Product List'!$D:$D) -> iShares SMI® (CH) Options | C141: =_xlfn.XLOOKUP(A141,'Product List'!$A:$A,'Product List'!$F:$F) -> EXTF-OPTIONS | D141: =_xlfn.XLOOKUP(A141,'MMPM1-AMM'!E:E,'MMPM1-AMM'!K:K,_xlfn.XLOOKUP(A141,'MMPM1-PMM'!E:E,'MMPM1-PMM'!J:J)) -> ETF2 | E141: =_xlfn.XLOOKUP(A141,'MMPM1-AMM'!E:E,'MMPM1-AMM'!Q:Q,_xlfn.XLOOKUP(A141,'MMPM1-PMM'!E:E,'MMPM1-PMM'!P:P)) -> 6 | F141: =SUMIFS(MMPM2!H:H,MMPM2!C:C,U141,MMPM2!E:E,1,MMPM2!G:G,1) -> 1.5 | G141: =SUMIFS(MMPM2!H:H,MMPM2!C:C,U141,MMPM2!E:E,1,MMPM2!G:G,2) -> 15 | L141: =SUMIFS(MMPM2!I:I,MMPM2!C:C,U141,MMPM2!E:E,1,MMPM2!G:G,1) -> 0.25 | M141: =SUMIFS(MMPM2!I:I,MMPM2!C:C,U141,MMPM2!E:E,1,MMPM2!G:G,2) -> 0.15 | N141: =SUMIFS(MMPM2!I:I,MMPM2!C:C,U141,MMPM2!E:E,1,MMPM2!G:G,3) -> 2.25 | R141: Not applicable | S141: No doubling of mistrade range | U141: =IFERROR(_xlfn.XLOOKUP(A141,'MMPM1-PMM'!E:E,'MMPM1-PMM'!J:J),_xlfn.XLOOKUP(A141,'MMPM1-AMM'!E:E,'MMPM1-AMM'!K:K)) -> ETF2 | V141: =IFERROR(_xlfn.XLOOKUP(A141,'MMPM1-AMM'!E:E,'MMPM1-AMM'!T:T),_xlfn.XLOOKUP(A141,'MMPM1-PMM'!E:E,'MMPM1-PMM'!S:S)) -> 3 | W141: =IFERROR(_xlfn.XLOOKUP(A141,'MMPM1-AMM'!E:E,'MMPM1-AMM'!U:U),_xlfn.XLOOKUP(A141,'MMPM1-PMM'!E:E,'MMPM1-PMM'!T:T)) -> 6 | Y141: TRUE | AB141: =_xlfn.XLOOKUP(A141,productlist[PRODUCT_ID],productlist[PRODUCT_ISIN]) -> CH0008899764 | AC141: =_xlfn.XLOOKUP(A141,productlist[PRODUCT_ID],productlist[UNDERLYING_ISIN]) -> CH0008899764
A142: OSMX | B142: =_xlfn.XLOOKUP(A142,'Product List'!$A:$A,'Product List'!$D:$D) -> Mini-MDAX® Options | C142: =_xlfn.XLOOKUP(A142,'Product List'!$A:$A,'Product List'!$F:$F) -> INDEX OPTIONS | D142: =_xlfn.XLOOKUP(A142,'MMPM1-AMM'!E:E,'MMPM1-AMM'!K:K,_xlfn.XLOOKUP(A142,'MMPM1-PMM'!E:E,'MMPM1-PMM'!J:J)) -> O2MX | E142: =_xlfn.XLOOKUP(A142,'MMPM1-AMM'!E:E,'MMPM1-AMM'!Q:Q,_xlfn.XLOOKUP(A142,'MMPM1-PMM'!E:E,'MMPM1-PMM'!P:P)) -> 7 | F142: =SUMIFS(MMPM2!H:H,MMPM2!C:C,U142,MMPM2!E:E,1,MMPM2!G:G,1) -> 66.6 | G142: =SUMIFS(MMPM2!H:H,MMPM2!C:C,U142,MMPM2!E:E,1,MMPM2!G:G,2) -> 666.6 | L142: =SUMIFS(MMPM2!I:I,MMPM2!C:C,U142,MMPM2!E:E,1,MMPM2!G:G,1) -> 10 | M142: =SUMIFS(MMPM2!I:I,MMPM2!C:C,U142,MMPM2!E:E,1,MMPM2!G:G,2) -> 0.15 | N142: =SUMIFS(MMPM2!I:I,MMPM2!C:C,U142,MMPM2!E:E,1,MMPM2!G:G,3) -> 100 | R142: Not applicable | S142: No doubling of mistrade range | U142: =IFERROR(_xlfn.XLOOKUP(A142,'MMPM1-PMM'!E:E,'MMPM1-PMM'!J:J),_xlfn.XLOOKUP(A142,'MMPM1-AMM'!E:E,'MMPM1-AMM'!K:K)) -> O2MX | V142: =IFERROR(_xlfn.XLOOKUP(A142,'MMPM1-AMM'!E:E,'MMPM1-AMM'!T:T),_xlfn.XLOOKUP(A142,'MMPM1-PMM'!E:E,'MMPM1-PMM'!S:S)) -> 3 | W142: =IFERROR(_xlfn.XLOOKUP(A142,'MMPM1-AMM'!E:E,'MMPM1-AMM'!U:U),_xlfn.XLOOKUP(A142,'MMPM1-PMM'!E:E,'MMPM1-PMM'!T:T)) -> 7 | Y142: TRUE | AB142: =_xlfn.XLOOKUP(A142,productlist[PRODUCT_ID],productlist[PRODUCT_ISIN]) -> DE000A2L0RP1 | AC142: =_xlfn.XLOOKUP(A142,productlist[PRODUCT_ID],productlist[UNDERLYING_ISIN]) -> DE0008467416
A143: OMCH | B143: =_xlfn.XLOOKUP(A143,'Product List'!$A:$A,'Product List'!$D:$D) -> MSCI China Index Options | C143: =_xlfn.XLOOKUP(A143,'Product List'!$A:$A,'Product List'!$F:$F) -> INDEX OPTIONS | D143: =_xlfn.XLOOKUP(A143,'MMPM1-AMM'!E:E,'MMPM1-AMM'!K:K,_xlfn.XLOOKUP(A143,'MMPM1-PMM'!E:E,'MMPM1-PMM'!J:J)) -> MSCI-4 | E143: =_xlfn.XLOOKUP(A143,'MMPM1-AMM'!E:E,'MMPM1-AMM'!Q:Q,_xlfn.XLOOKUP(A143,'MMPM1-PMM'!E:E,'MMPM1-PMM'!P:P)) -> 6 | F143: =SUMIFS(MMPM2!H:H,MMPM2!C:C,U143,MMPM2!E:E,1,MMPM2!G:G,1) -> 15 | G143: =SUMIFS(MMPM2!H:H,MMPM2!C:C,U143,MMPM2!E:E,1,MMPM2!G:G,2) -> 187.5 | L143: =SUMIFS(MMPM2!I:I,MMPM2!C:C,U143,MMPM2!E:E,1,MMPM2!G:G,1) -> 3 | M143: =SUMIFS(MMPM2!I:I,MMPM2!C:C,U143,MMPM2!E:E,1,MMPM2!G:G,2) -> 0.2 | N143: =SUMIFS(MMPM2!I:I,MMPM2!C:C,U143,MMPM2!E:E,1,MMPM2!G:G,3) -> 37.5 | R143: Not applicable | S143: =IF(D143="OVS","",IF(V143=3, "No doubling of mistrade range",W143-1)) -> No doubling of mistrade range | U143: =IFERROR(_xlfn.XLOOKUP(A143,'MMPM1-PMM'!E:E,'MMPM1-PMM'!J:J),_xlfn.XLOOKUP(A143,'MMPM1-AMM'!E:E,'MMPM1-AMM'!K:K)) -> MSCI-4 | V143: =IFERROR(_xlfn.XLOOKUP(A143,'MMPM1-AMM'!E:E,'MMPM1-AMM'!T:T),_xlfn.XLOOKUP(A143,'MMPM1-PMM'!E:E,'MMPM1-PMM'!S:S)) -> 3 | W143: =IFERROR(_xlfn.XLOOKUP(A143,'MMPM1-AMM'!E:E,'MMPM1-AMM'!U:U),_xlfn.XLOOKUP(A143,'MMPM1-PMM'!E:E,'MMPM1-PMM'!T:T)) -> 6 | Y143: =W143=E143 -> TRUE | AB143: =_xlfn.XLOOKUP(A143,productlist[PRODUCT_ID],productlist[PRODUCT_ISIN]) -> DE000A3DCW16 | AC143: =_xlfn.XLOOKUP(A143,productlist[PRODUCT_ID],productlist[UNDERLYING_ISIN]) -> GB00BN7DFX04
A144: OMSA | B144: =_xlfn.XLOOKUP(A144,'Product List'!$A:$A,'Product List'!$D:$D) -> MSCI Saudi Arabia Index Options | C144: =_xlfn.XLOOKUP(A144,'Product List'!$A:$A,'Product List'!$F:$F) -> INDEX OPTIONS | D144: =_xlfn.XLOOKUP(A144,'MMPM1-AMM'!E:E,'MMPM1-AMM'!K:K,_xlfn.XLOOKUP(A144,'MMPM1-PMM'!E:E,'MMPM1-PMM'!J:J)) -> MSCI-3 | E144: =_xlfn.XLOOKUP(A144,'MMPM1-AMM'!E:E,'MMPM1-AMM'!Q:Q,_xlfn.XLOOKUP(A144,'MMPM1-PMM'!E:E,'MMPM1-PMM'!P:P)) -> 6 | F144: =SUMIFS(MMPM2!H:H,MMPM2!C:C,U144,MMPM2!E:E,1,MMPM2!G:G,1) -> 40 | G144: =SUMIFS(MMPM2!H:H,MMPM2!C:C,U144,MMPM2!E:E,1,MMPM2!G:G,2) -> 400 | L144: =SUMIFS(MMPM2!I:I,MMPM2!C:C,U144,MMPM2!E:E,1,MMPM2!G:G,1) -> 8 | M144: =SUMIFS(MMPM2!I:I,MMPM2!C:C,U144,MMPM2!E:E,1,MMPM2!G:G,2) -> 0.2 | N144: =SUMIFS(MMPM2!I:I,MMPM2!C:C,U144,MMPM2!E:E,1,MMPM2!G:G,3) -> 80 | R144: Not applicable | S144: No doubling of mistrade range | U144: =IFERROR(_xlfn.XLOOKUP(A144,'MMPM1-PMM'!E:E,'MMPM1-PMM'!J:J),_xlfn.XLOOKUP(A144,'MMPM1-AMM'!E:E,'MMPM1-AMM'!K:K)) -> MSCI-3 | V144: =IFERROR(_xlfn.XLOOKUP(A144,'MMPM1-AMM'!E:E,'MMPM1-AMM'!T:T),_xlfn.XLOOKUP(A144,'MMPM1-PMM'!E:E,'MMPM1-PMM'!S:S)) -> 3 | W144: =IFERROR(_xlfn.XLOOKUP(A144,'MMPM1-AMM'!E:E,'MMPM1-AMM'!U:U),_xlfn.XLOOKUP(A144,'MMPM1-PMM'!E:E,'MMPM1-PMM'!T:T)) -> 6 | Y144: =W144=E144 -> TRUE | AB144: =_xlfn.XLOOKUP(A144,productlist[PRODUCT_ID],productlist[PRODUCT_ISIN]) -> DE000A3DCW24 | AC144: =_xlfn.XLOOKUP(A144,productlist[PRODUCT_ID],productlist[UNDERLYING_ISIN]) -> GB00BP68BQ52
A145: OKW1 | B145: =_xlfn.XLOOKUP(A145,'Product List'!$A:$A,'Product List'!$D:$D) -> Eurex Daily Futures on KOSPI 200 1st Weekly Options | C145: =_xlfn.XLOOKUP(A145,'Product List'!$A:$A,'Product List'!$F:$F) -> KOSPI-OPTIONS | D145: =_xlfn.XLOOKUP(A145,'MMPM1-AMM'!E:E,'MMPM1-AMM'!K:K,_xlfn.XLOOKUP(A145,'MMPM1-PMM'!E:E,'MMPM1-PMM'!J:J)) -> Kospi-WE1 | E145: =_xlfn.XLOOKUP(A145,'MMPM1-AMM'!E:E,'MMPM1-AMM'!Q:Q,_xlfn.XLOOKUP(A145,'MMPM1-PMM'!E:E,'MMPM1-PMM'!P:P)) -> 1 | F145: =SUMIFS(MMPM2!H:H,MMPM2!C:C,U145,MMPM2!E:E,1,MMPM2!G:G,1) -> 1.5 | G145: =SUMIFS(MMPM2!H:H,MMPM2!C:C,U145,MMPM2!E:E,1,MMPM2!G:G,2) -> 20 | L145: =SUMIFS(MMPM2!I:I,MMPM2!C:C,U145,MMPM2!E:E,1,MMPM2!G:G,1) -> 0.15 | M145: =SUMIFS(MMPM2!I:I,MMPM2!C:C,U145,MMPM2!E:E,1,MMPM2!G:G,2) -> 0.1 | N145: =SUMIFS(MMPM2!I:I,MMPM2!C:C,U145,MMPM2!E:E,1,MMPM2!G:G,3) -> 2 | R145: =IF(D145="OVS","",IF(V145=3, "Not applicable",W145-1)) -> Not applicable | S145: No doubling of mistrade range | U145: =IFERROR(_xlfn.XLOOKUP(A145,'MMPM1-PMM'!E:E,'MMPM1-PMM'!J:J),_xlfn.XLOOKUP(A145,'MMPM1-AMM'!E:E,'MMPM1-AMM'!K:K)) -> Kospi-WE1 | V145: =IFERROR(_xlfn.XLOOKUP(A145,'MMPM1-AMM'!E:E,'MMPM1-AMM'!T:T),_xlfn.XLOOKUP(A145,'MMPM1-PMM'!E:E,'MMPM1-PMM'!S:S)) -> 3 | W145: =IFERROR(_xlfn.XLOOKUP(A145,'MMPM1-AMM'!E:E,'MMPM1-AMM'!U:U),_xlfn.XLOOKUP(A145,'MMPM1-PMM'!E:E,'MMPM1-PMM'!T:T)) -> 1 | AB145: =_xlfn.XLOOKUP(A145,productlist[PRODUCT_ID],productlist[PRODUCT_ISIN]) -> DE000A3DCWM1 | AC145: =_xlfn.XLOOKUP(A145,productlist[PRODUCT_ID],productlist[UNDERLYING_ISIN]) -> XC000A3DC7X0
A146: OKW3 | B146: =_xlfn.XLOOKUP(A146,'Product List'!$A:$A,'Product List'!$D:$D) -> Eurex Daily Futures on KOSPI 200 3rd Weekly Options | C146: =_xlfn.XLOOKUP(A146,'Product List'!$A:$A,'Product List'!$F:$F) -> KOSPI-OPTIONS | D146: =_xlfn.XLOOKUP(A146,'MMPM1-AMM'!E:E,'MMPM1-AMM'!K:K,_xlfn.XLOOKUP(A146,'MMPM1-PMM'!E:E,'MMPM1-PMM'!J:J)) -> Kospi-WE1 | E146: =_xlfn.XLOOKUP(A146,'MMPM1-AMM'!E:E,'MMPM1-AMM'!Q:Q,_xlfn.XLOOKUP(A146,'MMPM1-PMM'!E:E,'MMPM1-PMM'!P:P)) -> 1 | F146: =SUMIFS(MMPM2!H:H,MMPM2!C:C,U146,MMPM2!E:E,1,MMPM2!G:G,1) -> 1.5 | G146: =SUMIFS(MMPM2!H:H,MMPM2!C:C,U146,MMPM2!E:E,1,MMPM2!G:G,2) -> 20 | L146: =SUMIFS(MMPM2!I:I,MMPM2!C:C,U146,MMPM2!E:E,1,MMPM2!G:G,1) -> 0.15 | M146: =SUMIFS(MMPM2!I:I,MMPM2!C:C,U146,MMPM2!E:E,1,MMPM2!G:G,2) -> 0.1 | N146: =SUMIFS(MMPM2!I:I,MMPM2!C:C,U146,MMPM2!E:E,1,MMPM2!G:G,3) -> 2 | R146: Not applicable | S146: No doubling of mistrade range | U146: =IFERROR(_xlfn.XLOOKUP(A146,'MMPM1-PMM'!E:E,'MMPM1-PMM'!J:J),_xlfn.XLOOKUP(A146,'MMPM1-AMM'!E:E,'MMPM1-AMM'!K:K)) -> Kospi-WE1 | V146: =IFERROR(_xlfn.XLOOKUP(A146,'MMPM1-AMM'!E:E,'MMPM1-AMM'!T:T),_xlfn.XLOOKUP(A146,'MMPM1-PMM'!E:E,'MMPM1-PMM'!S:S)) -> 3 | W146: =IFERROR(_xlfn.XLOOKUP(A146,'MMPM1-AMM'!E:E,'MMPM1-AMM'!U:U),_xlfn.XLOOKUP(A146,'MMPM1-PMM'!E:E,'MMPM1-PMM'!T:T)) -> 1 | AB146: =_xlfn.XLOOKUP(A146,productlist[PRODUCT_ID],productlist[PRODUCT_ISIN]) -> DE000A3DCWN9 | AC146: =_xlfn.XLOOKUP(A146,productlist[PRODUCT_ID],productlist[UNDERLYING_ISIN]) -> XC000A3DC7Y8
A147: OKW4 | B147: =_xlfn.XLOOKUP(A147,'Product List'!$A:$A,'Product List'!$D:$D) -> Eurex Daily Futures on KOSPI 200 4th Weekly Options | C147: =_xlfn.XLOOKUP(A147,'Product List'!$A:$A,'Product List'!$F:$F) -> KOSPI-OPTIONS | D147: =_xlfn.XLOOKUP(A147,'MMPM1-AMM'!E:E,'MMPM1-AMM'!K:K,_xlfn.XLOOKUP(A147,'MMPM1-PMM'!E:E,'MMPM1-PMM'!J:J)) -> Kospi-WE1 | E147: =_xlfn.XLOOKUP(A147,'MMPM1-AMM'!E:E,'MMPM1-AMM'!Q:Q,_xlfn.XLOOKUP(A147,'MMPM1-PMM'!E:E,'MMPM1-PMM'!P:P)) -> 1 | F147: =SUMIFS(MMPM2!H:H,MMPM2!C:C,U147,MMPM2!E:E,1,MMPM2!G:G,1) -> 1.5 | G147: =SUMIFS(MMPM2!H:H,MMPM2!C:C,U147,MMPM2!E:E,1,MMPM2!G:G,2) -> 20 | L147: =SUMIFS(MMPM2!I:I,MMPM2!C:C,U147,MMPM2!E:E,1,MMPM2!G:G,1) -> 0.15 | M147: =SUMIFS(MMPM2!I:I,MMPM2!C:C,U147,MMPM2!E:E,1,MMPM2!G:G,2) -> 0.1 | N147: =SUMIFS(MMPM2!I:I,MMPM2!C:C,U147,MMPM2!E:E,1,MMPM2!G:G,3) -> 2 | R147: Not applicable | S147: No doubling of mistrade range | U147: =IFERROR(_xlfn.XLOOKUP(A147,'MMPM1-PMM'!E:E,'MMPM1-PMM'!J:J),_xlfn.XLOOKUP(A147,'MMPM1-AMM'!E:E,'MMPM1-AMM'!K:K)) -> Kospi-WE1 | V147: =IFERROR(_xlfn.XLOOKUP(A147,'MMPM1-AMM'!E:E,'MMPM1-AMM'!T:T),_xlfn.XLOOKUP(A147,'MMPM1-PMM'!E:E,'MMPM1-PMM'!S:S)) -> 3 | W147: =IFERROR(_xlfn.XLOOKUP(A147,'MMPM1-AMM'!E:E,'MMPM1-AMM'!U:U),_xlfn.XLOOKUP(A147,'MMPM1-PMM'!E:E,'MMPM1-PMM'!T:T)) -> 1 | AB147: =_xlfn.XLOOKUP(A147,productlist[PRODUCT_ID],productlist[PRODUCT_ISIN]) -> DE000A3DCWP4 | AC147: =_xlfn.XLOOKUP(A147,productlist[PRODUCT_ID],productlist[UNDERLYING_ISIN]) -> XC000A3DC7Z5
A148: OKW5 | B148: =_xlfn.XLOOKUP(A148,'Product List'!$A:$A,'Product List'!$D:$D) -> Eurex Daily Futures on KOSPI 200 5th Weekly Options | C148: =_xlfn.XLOOKUP(A148,'Product List'!$A:$A,'Product List'!$F:$F) -> KOSPI-OPTIONS | D148: =_xlfn.XLOOKUP(A148,'MMPM1-AMM'!E:E,'MMPM1-AMM'!K:K,_xlfn.XLOOKUP(A148,'MMPM1-PMM'!E:E,'MMPM1-PMM'!J:J)) -> Kospi-WE1 | E148: =_xlfn.XLOOKUP(A148,'MMPM1-AMM'!E:E,'MMPM1-AMM'!Q:Q,_xlfn.XLOOKUP(A148,'MMPM1-PMM'!E:E,'MMPM1-PMM'!P:P)) -> 1 | F148: =SUMIFS(MMPM2!H:H,MMPM2!C:C,U148,MMPM2!E:E,1,MMPM2!G:G,1) -> 1.5 | G148: =SUMIFS(MMPM2!H:H,MMPM2!C:C,U148,MMPM2!E:E,1,MMPM2!G:G,2) -> 20 | L148: =SUMIFS(MMPM2!I:I,MMPM2!C:C,U148,MMPM2!E:E,1,MMPM2!G:G,1) -> 0.15 | M148: =SUMIFS(MMPM2!I:I,MMPM2!C:C,U148,MMPM2!E:E,1,MMPM2!G:G,2) -> 0.1 | N148: =SUMIFS(MMPM2!I:I,MMPM2!C:C,U148,MMPM2!E:E,1,MMPM2!G:G,3) -> 2 | R148: Not applicable | S148: No doubling of mistrade range | U148: =IFERROR(_xlfn.XLOOKUP(A148,'MMPM1-PMM'!E:E,'MMPM1-PMM'!J:J),_xlfn.XLOOKUP(A148,'MMPM1-AMM'!E:E,'MMPM1-AMM'!K:K)) -> Kospi-WE1 | V148: =IFERROR(_xlfn.XLOOKUP(A148,'MMPM1-AMM'!E:E,'MMPM1-AMM'!T:T),_xlfn.XLOOKUP(A148,'MMPM1-PMM'!E:E,'MMPM1-PMM'!S:S)) -> 3 | W148: =IFERROR(_xlfn.XLOOKUP(A148,'MMPM1-AMM'!E:E,'MMPM1-AMM'!U:U),_xlfn.XLOOKUP(A148,'MMPM1-PMM'!E:E,'MMPM1-PMM'!T:T)) -> 1 | AB148: =_xlfn.XLOOKUP(A148,productlist[PRODUCT_ID],productlist[PRODUCT_ISIN]) -> DE000A3DCWQ2 | AC148: =_xlfn.XLOOKUP(A148,productlist[PRODUCT_ID],productlist[UNDERLYING_ISIN]) -> XC000A3DC8L3
A149: EEDM | B149: =_xlfn.XLOOKUP(A149,'Product List'!$A:$A,'Product List'!$D:$D) -> iShares MSCI Emerging Markets ESG Enhanced UCITS Options | C149: =_xlfn.XLOOKUP(A149,'Product List'!$A:$A,'Product List'!$F:$F) -> EXTF-OPTIONS | D149: =_xlfn.XLOOKUP(A149,'MMPM1-AMM'!E:E,'MMPM1-AMM'!K:K,_xlfn.XLOOKUP(A149,'MMPM1-PMM'!E:E,'MMPM1-PMM'!J:J)) -> ETF6 | E149: =_xlfn.XLOOKUP(A149,'MMPM1-AMM'!E:E,'MMPM1-AMM'!Q:Q,_xlfn.XLOOKUP(A149,'MMPM1-PMM'!E:E,'MMPM1-PMM'!P:P)) -> 6 | F149: =SUMIFS(MMPM2!H:H,MMPM2!C:C,U149,MMPM2!E:E,1,MMPM2!G:G,1) -> 1 | G149: =SUMIFS(MMPM2!H:H,MMPM2!C:C,U149,MMPM2!E:E,1,MMPM2!G:G,2) -> 5 | L149: =SUMIFS(MMPM2!I:I,MMPM2!C:C,U149,MMPM2!E:E,1,MMPM2!G:G,1) -> 0.2 | M149: =SUMIFS(MMPM2!I:I,MMPM2!C:C,U149,MMPM2!E:E,1,MMPM2!G:G,2) -> 0.2 | N149: =SUMIFS(MMPM2!I:I,MMPM2!C:C,U149,MMPM2!E:E,1,MMPM2!G:G,3) -> 1 | R149: Not applicable | S149: No doubling of mistrade range | U149: =IFERROR(_xlfn.XLOOKUP(A149,'MMPM1-PMM'!E:E,'MMPM1-PMM'!J:J),_xlfn.XLOOKUP(A149,'MMPM1-AMM'!E:E,'MMPM1-AMM'!K:K)) -> ETF6 | V149: =IFERROR(_xlfn.XLOOKUP(A149,'MMPM1-AMM'!E:E,'MMPM1-AMM'!T:T),_xlfn.XLOOKUP(A149,'MMPM1-PMM'!E:E,'MMPM1-PMM'!S:S)) -> 3 | W149: =IFERROR(_xlfn.XLOOKUP(A149,'MMPM1-AMM'!E:E,'MMPM1-AMM'!U:U),_xlfn.XLOOKUP(A149,'MMPM1-PMM'!E:E,'MMPM1-PMM'!T:T)) -> 6 | Y149: =W149=E149 -> TRUE | AB149: =_xlfn.XLOOKUP(A149,productlist[PRODUCT_ID],productlist[PRODUCT_ISIN]) -> IE00BHZPJ122 | AC149: =_xlfn.XLOOKUP(A149,productlist[PRODUCT_ID],productlist[UNDERLYING_ISIN]) -> IE00BHZPJ122
A150: EEDS | B150: =_xlfn.XLOOKUP(A150,'Product List'!$A:$A,'Product List'!$D:$D) -> iShares MSCI USA ESG Enhanced UCITS Options | C150: =_xlfn.XLOOKUP(A150,'Product List'!$A:$A,'Product List'!$F:$F) -> EXTF-OPTIONS | D150: =_xlfn.XLOOKUP(A150,'MMPM1-AMM'!E:E,'MMPM1-AMM'!K:K,_xlfn.XLOOKUP(A150,'MMPM1-PMM'!E:E,'MMPM1-PMM'!J:J)) -> ETF1 | E150: =_xlfn.XLOOKUP(A150,'MMPM1-AMM'!E:E,'MMPM1-AMM'!Q:Q,_xlfn.XLOOKUP(A150,'MMPM1-PMM'!E:E,'MMPM1-PMM'!P:P)) -> 6 | F150: =SUMIFS(MMPM2!H:H,MMPM2!C:C,U150,MMPM2!E:E,1,MMPM2!G:G,1) -> 1 | G150: =SUMIFS(MMPM2!H:H,MMPM2!C:C,U150,MMPM2!E:E,1,MMPM2!G:G,2) -> 5 | L150: =SUMIFS(MMPM2!I:I,MMPM2!C:C,U150,MMPM2!E:E,1,MMPM2!G:G,1) -> 0.15 | M150: =SUMIFS(MMPM2!I:I,MMPM2!C:C,U150,MMPM2!E:E,1,MMPM2!G:G,2) -> 0.15 | N150: =SUMIFS(MMPM2!I:I,MMPM2!C:C,U150,MMPM2!E:E,1,MMPM2!G:G,3) -> 0.75 | R150: Not applicable | S150: No doubling of mistrade range | U150: =IFERROR(_xlfn.XLOOKUP(A150,'MMPM1-PMM'!E:E,'MMPM1-PMM'!J:J),_xlfn.XLOOKUP(A150,'MMPM1-AMM'!E:E,'MMPM1-AMM'!K:K)) -> ETF1 | V150: =IFERROR(_xlfn.XLOOKUP(A150,'MMPM1-AMM'!E:E,'MMPM1-AMM'!T:T),_xlfn.XLOOKUP(A150,'MMPM1-PMM'!E:E,'MMPM1-PMM'!S:S)) -> 3 | W150: =IFERROR(_xlfn.XLOOKUP(A150,'MMPM1-AMM'!E:E,'MMPM1-AMM'!U:U),_xlfn.XLOOKUP(A150,'MMPM1-PMM'!E:E,'MMPM1-PMM'!T:T)) -> 6 | Y150: =W150=E150 -> TRUE | AB150: =_xlfn.XLOOKUP(A150,productlist[PRODUCT_ID],productlist[PRODUCT_ISIN]) -> IE00BHZPJ890 | AC150: =_xlfn.XLOOKUP(A150,productlist[PRODUCT_ID],productlist[UNDERLYING_ISIN]) -> IE00BHZPJ890
A151: EEWD | B151: =_xlfn.XLOOKUP(A151,'Product List'!$A:$A,'Product List'!$D:$D) -> iShares MSCI World ESG Enhanced UCITS Options | C151: =_xlfn.XLOOKUP(A151,'Product List'!$A:$A,'Product List'!$F:$F) -> EXTF-OPTIONS | D151: =_xlfn.XLOOKUP(A151,'MMPM1-AMM'!E:E,'MMPM1-AMM'!K:K,_xlfn.XLOOKUP(A151,'MMPM1-PMM'!E:E,'MMPM1-PMM'!J:J)) -> ETF1 | E151: =_xlfn.XLOOKUP(A151,'MMPM1-AMM'!E:E,'MMPM1-AMM'!Q:Q,_xlfn.XLOOKUP(A151,'MMPM1-PMM'!E:E,'MMPM1-PMM'!P:P)) -> 6 | F151: =SUMIFS(MMPM2!H:H,MMPM2!C:C,U151,MMPM2!E:E,1,MMPM2!G:G,1) -> 1 | G151: =SUMIFS(MMPM2!H:H,MMPM2!C:C,U151,MMPM2!E:E,1,MMPM2!G:G,2) -> 5 | L151: =SUMIFS(MMPM2!I:I,MMPM2!C:C,U151,MMPM2!E:E,1,MMPM2!G:G,1) -> 0.15 | M151: =SUMIFS(MMPM2!I:I,MMPM2!C:C,U151,MMPM2!E:E,1,MMPM2!G:G,2) -> 0.15 | N151: =SUMIFS(MMPM2!I:I,MMPM2!C:C,U151,MMPM2!E:E,1,MMPM2!G:G,3) -> 0.75 | R151: Not applicable | S151: No doubling of mistrade range | U151: =IFERROR(_xlfn.XLOOKUP(A151,'MMPM1-PMM'!E:E,'MMPM1-PMM'!J:J),_xlfn.XLOOKUP(A151,'MMPM1-AMM'!E:E,'MMPM1-AMM'!K:K)) -> ETF1 | V151: =IFERROR(_xlfn.XLOOKUP(A151,'MMPM1-AMM'!E:E,'MMPM1-AMM'!T:T),_xlfn.XLOOKUP(A151,'MMPM1-PMM'!E:E,'MMPM1-PMM'!S:S)) -> 3 | W151: =IFERROR(_xlfn.XLOOKUP(A151,'MMPM1-AMM'!E:E,'MMPM1-AMM'!U:U),_xlfn.XLOOKUP(A151,'MMPM1-PMM'!E:E,'MMPM1-PMM'!T:T)) -> 6 | Y151: =W151=E151 -> TRUE | AB151: =_xlfn.XLOOKUP(A151,productlist[PRODUCT_ID],productlist[PRODUCT_ISIN]) -> IE00BG11HV38 | AC151: =_xlfn.XLOOKUP(A151,productlist[PRODUCT_ID],productlist[UNDERLYING_ISIN]) -> IE00BG11HV38
A152: EMNU | B152: =_xlfn.XLOOKUP(A152,'Product List'!$A:$A,'Product List'!$D:$D) -> iShares MSCI Europe ESG Enhanced UCITS Options | C152: =_xlfn.XLOOKUP(A152,'Product List'!$A:$A,'Product List'!$F:$F) -> EXTF-OPTIONS | D152: =_xlfn.XLOOKUP(A152,'MMPM1-AMM'!E:E,'MMPM1-AMM'!K:K,_xlfn.XLOOKUP(A152,'MMPM1-PMM'!E:E,'MMPM1-PMM'!J:J)) -> ETF1 | E152: =_xlfn.XLOOKUP(A152,'MMPM1-AMM'!E:E,'MMPM1-AMM'!Q:Q,_xlfn.XLOOKUP(A152,'MMPM1-PMM'!E:E,'MMPM1-PMM'!P:P)) -> 6 | F152: =SUMIFS(MMPM2!H:H,MMPM2!C:C,U152,MMPM2!E:E,1,MMPM2!G:G,1) -> 1 | G152: =SUMIFS(MMPM2!H:H,MMPM2!C:C,U152,MMPM2!E:E,1,MMPM2!G:G,2) -> 5 | L152: =SUMIFS(MMPM2!I:I,MMPM2!C:C,U152,MMPM2!E:E,1,MMPM2!G:G,1) -> 0.15 | M152: =SUMIFS(MMPM2!I:I,MMPM2!C:C,U152,MMPM2!E:E,1,MMPM2!G:G,2) -> 0.15 | N152: =SUMIFS(MMPM2!I:I,MMPM2!C:C,U152,MMPM2!E:E,1,MMPM2!G:G,3) -> 0.75 | R152: Not applicable | S152: No doubling of mistrade range | U152: =IFERROR(_xlfn.XLOOKUP(A152,'MMPM1-PMM'!E:E,'MMPM1-PMM'!J:J),_xlfn.XLOOKUP(A152,'MMPM1-AMM'!E:E,'MMPM1-AMM'!K:K)) -> ETF1 | V152: =IFERROR(_xlfn.XLOOKUP(A152,'MMPM1-AMM'!E:E,'MMPM1-AMM'!T:T),_xlfn.XLOOKUP(A152,'MMPM1-PMM'!E:E,'MMPM1-PMM'!S:S)) -> 3 | W152: =IFERROR(_xlfn.XLOOKUP(A152,'MMPM1-AMM'!E:E,'MMPM1-AMM'!U:U),_xlfn.XLOOKUP(A152,'MMPM1-PMM'!E:E,'MMPM1-PMM'!T:T)) -> 6 | Y152: =W152=E152 -> TRUE | AB152: =_xlfn.XLOOKUP(A152,productlist[PRODUCT_ID],productlist[PRODUCT_ISIN]) -> IE00BHZPJ676 | AC152: =_xlfn.XLOOKUP(A152,productlist[PRODUCT_ID],productlist[UNDERLYING_ISIN]) -> IE00BHZPJ676
A153: OEBD | B153: =_xlfn.XLOOKUP(A153,'Product List'!$A:$A,'Product List'!$D:$D) -> EURO STOXX® Banks Index Dividend Options | C153: =_xlfn.XLOOKUP(A153,'Product List'!$A:$A,'Product List'!$F:$F) -> INDEX DIVIDEND OPTIONS | D153: =_xlfn.XLOOKUP(A153,'MMPM1-AMM'!E:E,'MMPM1-AMM'!K:K,_xlfn.XLOOKUP(A153,'MMPM1-PMM'!E:E,'MMPM1-PMM'!J:J)) -> OEBD | E153: =_xlfn.XLOOKUP(A153,'MMPM1-AMM'!E:E,'MMPM1-AMM'!Q:Q,_xlfn.XLOOKUP(A153,'MMPM1-PMM'!E:E,'MMPM1-PMM'!P:P)) -> 3 | F153: =SUMIFS(MMPM2!H:H,MMPM2!C:C,U153,MMPM2!E:E,1,MMPM2!G:G,1) -> 0.3 | G153: =SUMIFS(MMPM2!H:H,MMPM2!C:C,U153,MMPM2!E:E,1,MMPM2!G:G,2) -> 1 | I153: 0.3 | J153: 1 | L153: =SUMIFS(MMPM2!I:I,MMPM2!C:C,U153,MMPM2!E:E,1,MMPM2!G:G,1) -> 0.1 | M153: =SUMIFS(MMPM2!I:I,MMPM2!C:C,U153,MMPM2!E:E,1,MMPM2!G:G,2) -> 0.5 | N153: =SUMIFS(MMPM2!I:I,MMPM2!C:C,U153,MMPM2!E:E,1,MMPM2!G:G,3) -> 0.5 | O153: 0.15 | P153: 0.6 | Q153: 0.5 | R153: =AF153 -> 0 | S153: 2 | U153: =IFERROR(_xlfn.XLOOKUP(A153,'MMPM1-PMM'!E:E,'MMPM1-PMM'!J:J),_xlfn.XLOOKUP(A153,'MMPM1-AMM'!E:E,'MMPM1-AMM'!K:K)) -> OEBD | V153: =IFERROR(_xlfn.XLOOKUP(A153,'MMPM1-AMM'!E:E,'MMPM1-AMM'!T:T),_xlfn.XLOOKUP(A153,'MMPM1-PMM'!E:E,'MMPM1-PMM'!S:S)) -> 6 | W153: =IFERROR(_xlfn.XLOOKUP(A153,'MMPM1-AMM'!E:E,'MMPM1-AMM'!U:U),_xlfn.XLOOKUP(A153,'MMPM1-PMM'!E:E,'MMPM1-PMM'!T:T)) -> 3 | Y153: =W153=E153 -> TRUE | AB153: =_xlfn.XLOOKUP(A153,productlist[PRODUCT_ID],productlist[PRODUCT_ISIN]) -> DE000A3DL3Z5 | AC153: =_xlfn.XLOOKUP(A153,productlist[PRODUCT_ID],productlist[UNDERLYING_ISIN]) ->  | AE153: 3
A154: OMSM | B154: =_xlfn.XLOOKUP(A154,'Product List'!$A:$A,'Product List'!$D:$D) -> MSCI Emerging Markets ESG Screened Index Options | C154: =_xlfn.XLOOKUP(A154,'Product List'!$A:$A,'Product List'!$F:$F) -> INDEX OPTIONS | D154: =_xlfn.XLOOKUP(A154,'MMPM1-AMM'!E:E,'MMPM1-AMM'!K:K,_xlfn.XLOOKUP(A154,'MMPM1-PMM'!E:E,'MMPM1-PMM'!J:J)) -> MSCI-3 | E154: =_xlfn.XLOOKUP(A154,'MMPM1-AMM'!E:E,'MMPM1-AMM'!Q:Q,_xlfn.XLOOKUP(A154,'MMPM1-PMM'!E:E,'MMPM1-PMM'!P:P)) -> 6 | F154: =SUMIFS(MMPM2!H:H,MMPM2!C:C,U154,MMPM2!E:E,1,MMPM2!G:G,1) -> 40 | G154: =SUMIFS(MMPM2!H:H,MMPM2!C:C,U154,MMPM2!E:E,1,MMPM2!G:G,2) -> 400 | L154: =SUMIFS(MMPM2!I:I,MMPM2!C:C,U154,MMPM2!E:E,1,MMPM2!G:G,1) -> 8 | M154: =SUMIFS(MMPM2!I:I,MMPM2!C:C,U154,MMPM2!E:E,1,MMPM2!G:G,2) -> 0.2 | N154: =SUMIFS(MMPM2!I:I,MMPM2!C:C,U154,MMPM2!E:E,1,MMPM2!G:G,3) -> 80 | R154: Not applicable | S154: =IF(D154="OVS","",IF(V154=3, "No doubling of mistrade range",W154-1)) -> No doubling of mistrade range | U154: =IFERROR(_xlfn.XLOOKUP(A154,'MMPM1-PMM'!E:E,'MMPM1-PMM'!J:J),_xlfn.XLOOKUP(A154,'MMPM1-AMM'!E:E,'MMPM1-AMM'!K:K)) -> MSCI-3 | V154: =IFERROR(_xlfn.XLOOKUP(A154,'MMPM1-AMM'!E:E,'MMPM1-AMM'!T:T),_xlfn.XLOOKUP(A154,'MMPM1-PMM'!E:E,'MMPM1-PMM'!S:S)) -> 3 | W154: =IFERROR(_xlfn.XLOOKUP(A154,'MMPM1-AMM'!E:E,'MMPM1-AMM'!U:U),_xlfn.XLOOKUP(A154,'MMPM1-PMM'!E:E,'MMPM1-PMM'!T:T)) -> 6 | Y154: =W154=E154 -> TRUE | AB154: =_xlfn.XLOOKUP(A154,productlist[PRODUCT_ID],productlist[PRODUCT_ISIN]) -> DE000A3DXFB5 | AC154: =_xlfn.XLOOKUP(A154,productlist[PRODUCT_ID],productlist[UNDERLYING_ISIN]) -> GB00BP68BV06
A155: OMSS | B155: =_xlfn.XLOOKUP(A155,'Product List'!$A:$A,'Product List'!$D:$D) -> MSCI Emerging Markets Asia ESG Screened Index Options | C155: =_xlfn.XLOOKUP(A155,'Product List'!$A:$A,'Product List'!$F:$F) -> INDEX OPTIONS | D155: =_xlfn.XLOOKUP(A155,'MMPM1-AMM'!E:E,'MMPM1-AMM'!K:K,_xlfn.XLOOKUP(A155,'MMPM1-PMM'!E:E,'MMPM1-PMM'!J:J)) -> MSCI-3 | E155: =_xlfn.XLOOKUP(A155,'MMPM1-AMM'!E:E,'MMPM1-AMM'!Q:Q,_xlfn.XLOOKUP(A155,'MMPM1-PMM'!E:E,'MMPM1-PMM'!P:P)) -> 6 | F155: =SUMIFS(MMPM2!H:H,MMPM2!C:C,U155,MMPM2!E:E,1,MMPM2!G:G,1) -> 40 | G155: =SUMIFS(MMPM2!H:H,MMPM2!C:C,U155,MMPM2!E:E,1,MMPM2!G:G,2) -> 400 | L155: =SUMIFS(MMPM2!I:I,MMPM2!C:C,U155,MMPM2!E:E,1,MMPM2!G:G,1) -> 8 | M155: =SUMIFS(MMPM2!I:I,MMPM2!C:C,U155,MMPM2!E:E,1,MMPM2!G:G,2) -> 0.2 | N155: =SUMIFS(MMPM2!I:I,MMPM2!C:C,U155,MMPM2!E:E,1,MMPM2!G:G,3) -> 80 | R155: Not applicable | S155: No doubling of mistrade range | U155: =IFERROR(_xlfn.XLOOKUP(A155,'MMPM1-PMM'!E:E,'MMPM1-PMM'!J:J),_xlfn.XLOOKUP(A155,'MMPM1-AMM'!E:E,'MMPM1-AMM'!K:K)) -> MSCI-3 | V155: =IFERROR(_xlfn.XLOOKUP(A155,'MMPM1-AMM'!E:E,'MMPM1-AMM'!T:T),_xlfn.XLOOKUP(A155,'MMPM1-PMM'!E:E,'MMPM1-PMM'!S:S)) -> 3 | W155: =IFERROR(_xlfn.XLOOKUP(A155,'MMPM1-AMM'!E:E,'MMPM1-AMM'!U:U),_xlfn.XLOOKUP(A155,'MMPM1-PMM'!E:E,'MMPM1-PMM'!T:T)) -> 6 | Y155: TRUE | AB155: =_xlfn.XLOOKUP(A155,productlist[PRODUCT_ID],productlist[PRODUCT_ISIN]) -> DE000A3DXFA7 | AC155: =_xlfn.XLOOKUP(A155,productlist[PRODUCT_ID],productlist[UNDERLYING_ISIN]) -> GB00BN7DFW96
A156: OMSU | B156: =_xlfn.XLOOKUP(A156,'Product List'!$A:$A,'Product List'!$D:$D) -> MSCI USA ESG Screened Index Options | C156: =_xlfn.XLOOKUP(A156,'Product List'!$A:$A,'Product List'!$F:$F) -> INDEX OPTIONS | D156: =_xlfn.XLOOKUP(A156,'MMPM1-AMM'!E:E,'MMPM1-AMM'!K:K,_xlfn.XLOOKUP(A156,'MMPM1-PMM'!E:E,'MMPM1-PMM'!J:J)) -> MSCI-3 | E156: =_xlfn.XLOOKUP(A156,'MMPM1-AMM'!E:E,'MMPM1-AMM'!Q:Q,_xlfn.XLOOKUP(A156,'MMPM1-PMM'!E:E,'MMPM1-PMM'!P:P)) -> 6 | F156: =SUMIFS(MMPM2!H:H,MMPM2!C:C,U156,MMPM2!E:E,1,MMPM2!G:G,1) -> 40 | G156: =SUMIFS(MMPM2!H:H,MMPM2!C:C,U156,MMPM2!E:E,1,MMPM2!G:G,2) -> 400 | L156: =SUMIFS(MMPM2!I:I,MMPM2!C:C,U156,MMPM2!E:E,1,MMPM2!G:G,1) -> 8 | M156: =SUMIFS(MMPM2!I:I,MMPM2!C:C,U156,MMPM2!E:E,1,MMPM2!G:G,2) -> 0.2 | N156: =SUMIFS(MMPM2!I:I,MMPM2!C:C,U156,MMPM2!E:E,1,MMPM2!G:G,3) -> 80 | R156: Not applicable | S156: No doubling of mistrade range | U156: =IFERROR(_xlfn.XLOOKUP(A156,'MMPM1-PMM'!E:E,'MMPM1-PMM'!J:J),_xlfn.XLOOKUP(A156,'MMPM1-AMM'!E:E,'MMPM1-AMM'!K:K)) -> MSCI-3 | V156: =IFERROR(_xlfn.XLOOKUP(A156,'MMPM1-AMM'!E:E,'MMPM1-AMM'!T:T),_xlfn.XLOOKUP(A156,'MMPM1-PMM'!E:E,'MMPM1-PMM'!S:S)) -> 3 | W156: =IFERROR(_xlfn.XLOOKUP(A156,'MMPM1-AMM'!E:E,'MMPM1-AMM'!U:U),_xlfn.XLOOKUP(A156,'MMPM1-PMM'!E:E,'MMPM1-PMM'!T:T)) -> 6 | Y156: TRUE | AB156: =_xlfn.XLOOKUP(A156,productlist[PRODUCT_ID],productlist[PRODUCT_ISIN]) -> DE000A3DXF87 | AC156: =_xlfn.XLOOKUP(A156,productlist[PRODUCT_ID],productlist[UNDERLYING_ISIN]) -> GB00BP68BS76
A157: OMSW | B157: =_xlfn.XLOOKUP(A157,'Product List'!$A:$A,'Product List'!$D:$D) -> MSCI World ESG Screened Index Options | C157: =_xlfn.XLOOKUP(A157,'Product List'!$A:$A,'Product List'!$F:$F) -> INDEX OPTIONS | D157: =_xlfn.XLOOKUP(A157,'MMPM1-AMM'!E:E,'MMPM1-AMM'!K:K,_xlfn.XLOOKUP(A157,'MMPM1-PMM'!E:E,'MMPM1-PMM'!J:J)) -> MSCI-3 | E157: =_xlfn.XLOOKUP(A157,'MMPM1-AMM'!E:E,'MMPM1-AMM'!Q:Q,_xlfn.XLOOKUP(A157,'MMPM1-PMM'!E:E,'MMPM1-PMM'!P:P)) -> 6 | F157: =SUMIFS(MMPM2!H:H,MMPM2!C:C,U157,MMPM2!E:E,1,MMPM2!G:G,1) -> 40 | G157: =SUMIFS(MMPM2!H:H,MMPM2!C:C,U157,MMPM2!E:E,1,MMPM2!G:G,2) -> 400 | L157: =SUMIFS(MMPM2!I:I,MMPM2!C:C,U157,MMPM2!E:E,1,MMPM2!G:G,1) -> 8 | M157: =SUMIFS(MMPM2!I:I,MMPM2!C:C,U157,MMPM2!E:E,1,MMPM2!G:G,2) -> 0.2 | N157: =SUMIFS(MMPM2!I:I,MMPM2!C:C,U157,MMPM2!E:E,1,MMPM2!G:G,3) -> 80 | R157: Not applicable | S157: No doubling of mistrade range | U157: =IFERROR(_xlfn.XLOOKUP(A157,'MMPM1-PMM'!E:E,'MMPM1-PMM'!J:J),_xlfn.XLOOKUP(A157,'MMPM1-AMM'!E:E,'MMPM1-AMM'!K:K)) -> MSCI-3 | V157: =IFERROR(_xlfn.XLOOKUP(A157,'MMPM1-AMM'!E:E,'MMPM1-AMM'!T:T),_xlfn.XLOOKUP(A157,'MMPM1-PMM'!E:E,'MMPM1-PMM'!S:S)) -> 3 | W157: =IFERROR(_xlfn.XLOOKUP(A157,'MMPM1-AMM'!E:E,'MMPM1-AMM'!U:U),_xlfn.XLOOKUP(A157,'MMPM1-PMM'!E:E,'MMPM1-PMM'!T:T)) -> 6 | Y157: TRUE | AB157: =_xlfn.XLOOKUP(A157,productlist[PRODUCT_ID],productlist[PRODUCT_ISIN]) -> DE000A3DXF95 | AC157: =_xlfn.XLOOKUP(A157,productlist[PRODUCT_ID],productlist[UNDERLYING_ISIN]) -> GB00BP68BT83
A158: ODXS | B158: =_xlfn.XLOOKUP(A158,'Product List'!$A:$A,'Product List'!$D:$D) -> Micro-DAX® Options | C158: =_xlfn.XLOOKUP(A158,'Product List'!$A:$A,'Product List'!$F:$F) -> INDEX OPTIONS | D158: =_xlfn.XLOOKUP(A158,'MMPM1-AMM'!E:E,'MMPM1-AMM'!K:K,_xlfn.XLOOKUP(A158,'MMPM1-PMM'!E:E,'MMPM1-PMM'!J:J)) -> ODXS | E158: =_xlfn.XLOOKUP(A158,'MMPM1-AMM'!E:E,'MMPM1-AMM'!Q:Q,_xlfn.XLOOKUP(A158,'MMPM1-PMM'!E:E,'MMPM1-PMM'!P:P)) -> 6 | F158: =SUMIFS(MMPM2!H:H,MMPM2!C:C,U158,MMPM2!E:E,1,MMPM2!G:G,1) -> 25 | G158: =SUMIFS(MMPM2!H:H,MMPM2!C:C,U158,MMPM2!E:E,1,MMPM2!G:G,2) -> 300 | L158: =SUMIFS(MMPM2!I:I,MMPM2!C:C,U158,MMPM2!E:E,1,MMPM2!G:G,1) -> 2 | M158: =SUMIFS(MMPM2!I:I,MMPM2!C:C,U158,MMPM2!E:E,1,MMPM2!G:G,2) -> 0.08 | N158: =SUMIFS(MMPM2!I:I,MMPM2!C:C,U158,MMPM2!E:E,1,MMPM2!G:G,3) -> 24 | R158: =IF(D158="OVS","",IF(V158=3, "Not applicable",W158-1)) -> Not applicable | S158: =IF(D158="OVS","",IF(V158=3, "No doubling of mistrade range",W158-1)) -> No doubling of mistrade range | U158: =IFERROR(_xlfn.XLOOKUP(A158,'MMPM1-PMM'!E:E,'MMPM1-PMM'!J:J),_xlfn.XLOOKUP(A158,'MMPM1-AMM'!E:E,'MMPM1-AMM'!K:K)) -> ODXS | V158: =IFERROR(_xlfn.XLOOKUP(A158,'MMPM1-AMM'!E:E,'MMPM1-AMM'!T:T),_xlfn.XLOOKUP(A158,'MMPM1-PMM'!E:E,'MMPM1-PMM'!S:S)) -> 3 | W158: =IFERROR(_xlfn.XLOOKUP(A158,'MMPM1-AMM'!E:E,'MMPM1-AMM'!U:U),_xlfn.XLOOKUP(A158,'MMPM1-PMM'!E:E,'MMPM1-PMM'!T:T)) -> 6 | Y158: TRUE | AB158: =_xlfn.XLOOKUP(A158,productlist[PRODUCT_ID],productlist[PRODUCT_ISIN]) -> DE000A3DX109 | AC158: =_xlfn.XLOOKUP(A158,productlist[PRODUCT_ID],productlist[UNDERLYING_ISIN]) -> DE0008469008
A159: CNYA | B159: =_xlfn.XLOOKUP(A159,'Product List'!$A:$A,'Product List'!$D:$D) -> iShares MSCI China A UCITS ETF Options | C159: =_xlfn.XLOOKUP(A159,'Product List'!$A:$A,'Product List'!$F:$F) -> EXTF-OPTIONS | D159: =_xlfn.XLOOKUP(A159,'MMPM1-AMM'!E:E,'MMPM1-AMM'!K:K,_xlfn.XLOOKUP(A159,'MMPM1-PMM'!E:E,'MMPM1-PMM'!J:J)) -> ETF1 | E159: =_xlfn.XLOOKUP(A159,'MMPM1-AMM'!E:E,'MMPM1-AMM'!Q:Q,_xlfn.XLOOKUP(A159,'MMPM1-PMM'!E:E,'MMPM1-PMM'!P:P)) -> 6 | F159: =SUMIFS(MMPM2!H:H,MMPM2!C:C,U159,MMPM2!E:E,1,MMPM2!G:G,1) -> 1 | G159: =SUMIFS(MMPM2!H:H,MMPM2!C:C,U159,MMPM2!E:E,1,MMPM2!G:G,2) -> 5 | L159: =SUMIFS(MMPM2!I:I,MMPM2!C:C,U159,MMPM2!E:E,1,MMPM2!G:G,1) -> 0.15 | M159: =SUMIFS(MMPM2!I:I,MMPM2!C:C,U159,MMPM2!E:E,1,MMPM2!G:G,2) -> 0.15 | N159: =SUMIFS(MMPM2!I:I,MMPM2!C:C,U159,MMPM2!E:E,1,MMPM2!G:G,3) -> 0.75 | R159: Not applicable | S159: No doubling of mistrade range | U159: =IFERROR(_xlfn.XLOOKUP(A159,'MMPM1-PMM'!E:E,'MMPM1-PMM'!J:J),_xlfn.XLOOKUP(A159,'MMPM1-AMM'!E:E,'MMPM1-AMM'!K:K)) -> ETF1 | V159: =IFERROR(_xlfn.XLOOKUP(A159,'MMPM1-AMM'!E:E,'MMPM1-AMM'!T:T),_xlfn.XLOOKUP(A159,'MMPM1-PMM'!E:E,'MMPM1-PMM'!S:S)) -> 3 | W159: =IFERROR(_xlfn.XLOOKUP(A159,'MMPM1-AMM'!E:E,'MMPM1-AMM'!U:U),_xlfn.XLOOKUP(A159,'MMPM1-PMM'!E:E,'MMPM1-PMM'!T:T)) -> 6 | Y159: TRUE | AB159: =_xlfn.XLOOKUP(A159,productlist[PRODUCT_ID],productlist[PRODUCT_ISIN]) -> IE00BQT3WG13 | AC159: =_xlfn.XLOOKUP(A159,productlist[PRODUCT_ID],productlist[UNDERLYING_ISIN]) -> IE00BQT3WG13
A160: EXSB | B160: =_xlfn.XLOOKUP(A160,'Product List'!$A:$A,'Product List'!$D:$D) -> iShares DivDAX UCITS ETF Options | C160: =_xlfn.XLOOKUP(A160,'Product List'!$A:$A,'Product List'!$F:$F) -> EXTF-OPTIONS | D160: =_xlfn.XLOOKUP(A160,'MMPM1-AMM'!E:E,'MMPM1-AMM'!K:K,_xlfn.XLOOKUP(A160,'MMPM1-PMM'!E:E,'MMPM1-PMM'!J:J)) -> ETF1 | E160: =_xlfn.XLOOKUP(A160,'MMPM1-AMM'!E:E,'MMPM1-AMM'!Q:Q,_xlfn.XLOOKUP(A160,'MMPM1-PMM'!E:E,'MMPM1-PMM'!P:P)) -> 6 | F160: =SUMIFS(MMPM2!H:H,MMPM2!C:C,U160,MMPM2!E:E,1,MMPM2!G:G,1) -> 1 | G160: =SUMIFS(MMPM2!H:H,MMPM2!C:C,U160,MMPM2!E:E,1,MMPM2!G:G,2) -> 5 | L160: =SUMIFS(MMPM2!I:I,MMPM2!C:C,U160,MMPM2!E:E,1,MMPM2!G:G,1) -> 0.15 | M160: =SUMIFS(MMPM2!I:I,MMPM2!C:C,U160,MMPM2!E:E,1,MMPM2!G:G,2) -> 0.15 | N160: =SUMIFS(MMPM2!I:I,MMPM2!C:C,U160,MMPM2!E:E,1,MMPM2!G:G,3) -> 0.75 | R160: Not applicable | S160: No doubling of mistrade range | U160: =IFERROR(_xlfn.XLOOKUP(A160,'MMPM1-PMM'!E:E,'MMPM1-PMM'!J:J),_xlfn.XLOOKUP(A160,'MMPM1-AMM'!E:E,'MMPM1-AMM'!K:K)) -> ETF1 | V160: =IFERROR(_xlfn.XLOOKUP(A160,'MMPM1-AMM'!E:E,'MMPM1-AMM'!T:T),_xlfn.XLOOKUP(A160,'MMPM1-PMM'!E:E,'MMPM1-PMM'!S:S)) -> 3 | W160: =IFERROR(_xlfn.XLOOKUP(A160,'MMPM1-AMM'!E:E,'MMPM1-AMM'!U:U),_xlfn.XLOOKUP(A160,'MMPM1-PMM'!E:E,'MMPM1-PMM'!T:T)) -> 6 | Y160: TRUE | AB160: =_xlfn.XLOOKUP(A160,productlist[PRODUCT_ID],productlist[PRODUCT_ISIN]) -> DE0002635273 | AC160: =_xlfn.XLOOKUP(A160,productlist[PRODUCT_ID],productlist[UNDERLYING_ISIN]) -> DE0002635273
A161: IDFX | B161: =_xlfn.XLOOKUP(A161,'Product List'!$A:$A,'Product List'!$D:$D) -> iShares China Large Cap UCITS ETF Options | C161: =_xlfn.XLOOKUP(A161,'Product List'!$A:$A,'Product List'!$F:$F) -> EXTF-OPTIONS | D161: =_xlfn.XLOOKUP(A161,'MMPM1-AMM'!E:E,'MMPM1-AMM'!K:K,_xlfn.XLOOKUP(A161,'MMPM1-PMM'!E:E,'MMPM1-PMM'!J:J)) -> ETF2 | E161: =_xlfn.XLOOKUP(A161,'MMPM1-AMM'!E:E,'MMPM1-AMM'!Q:Q,_xlfn.XLOOKUP(A161,'MMPM1-PMM'!E:E,'MMPM1-PMM'!P:P)) -> 6 | F161: =SUMIFS(MMPM2!H:H,MMPM2!C:C,U161,MMPM2!E:E,1,MMPM2!G:G,1) -> 1.5 | G161: =SUMIFS(MMPM2!H:H,MMPM2!C:C,U161,MMPM2!E:E,1,MMPM2!G:G,2) -> 15 | L161: =SUMIFS(MMPM2!I:I,MMPM2!C:C,U161,MMPM2!E:E,1,MMPM2!G:G,1) -> 0.25 | M161: =SUMIFS(MMPM2!I:I,MMPM2!C:C,U161,MMPM2!E:E,1,MMPM2!G:G,2) -> 0.15 | N161: =SUMIFS(MMPM2!I:I,MMPM2!C:C,U161,MMPM2!E:E,1,MMPM2!G:G,3) -> 2.25 | R161: Not applicable | S161: No doubling of mistrade range | U161: =IFERROR(_xlfn.XLOOKUP(A161,'MMPM1-PMM'!E:E,'MMPM1-PMM'!J:J),_xlfn.XLOOKUP(A161,'MMPM1-AMM'!E:E,'MMPM1-AMM'!K:K)) -> ETF2 | V161: =IFERROR(_xlfn.XLOOKUP(A161,'MMPM1-AMM'!E:E,'MMPM1-AMM'!T:T),_xlfn.XLOOKUP(A161,'MMPM1-PMM'!E:E,'MMPM1-PMM'!S:S)) -> 3 | W161: =IFERROR(_xlfn.XLOOKUP(A161,'MMPM1-AMM'!E:E,'MMPM1-AMM'!U:U),_xlfn.XLOOKUP(A161,'MMPM1-PMM'!E:E,'MMPM1-PMM'!T:T)) -> 6 | Y161: TRUE | AB161: =_xlfn.XLOOKUP(A161,productlist[PRODUCT_ID],productlist[PRODUCT_ISIN]) -> IE00B02KXK85 | AC161: =_xlfn.XLOOKUP(A161,productlist[PRODUCT_ID],productlist[UNDERLYING_ISIN]) -> IE00B02KXK85
A162: OKM1 | B162: =_xlfn.XLOOKUP(A162,'Product List'!$A:$A,'Product List'!$D:$D) -> Eurex Daily Futures on KOSPI 200 1st Monday Weekly Options | C162: =_xlfn.XLOOKUP(A162,'Product List'!$A:$A,'Product List'!$F:$F) -> KOSPI-OPTIONS | D162: =_xlfn.XLOOKUP(A162,'MMPM1-AMM'!E:E,'MMPM1-AMM'!K:K,_xlfn.XLOOKUP(A162,'MMPM1-PMM'!E:E,'MMPM1-PMM'!J:J)) -> Kospi-WE1 | E162: =_xlfn.XLOOKUP(A162,'MMPM1-AMM'!E:E,'MMPM1-AMM'!Q:Q,_xlfn.XLOOKUP(A162,'MMPM1-PMM'!E:E,'MMPM1-PMM'!P:P)) -> 1 | F162: =SUMIFS(MMPM2!H:H,MMPM2!C:C,U162,MMPM2!E:E,1,MMPM2!G:G,1) -> 1.5 | G162: =SUMIFS(MMPM2!H:H,MMPM2!C:C,U162,MMPM2!E:E,1,MMPM2!G:G,2) -> 20 | L162: =SUMIFS(MMPM2!I:I,MMPM2!C:C,U162,MMPM2!E:E,1,MMPM2!G:G,1) -> 0.15 | M162: =SUMIFS(MMPM2!I:I,MMPM2!C:C,U162,MMPM2!E:E,1,MMPM2!G:G,2) -> 0.1 | N162: =SUMIFS(MMPM2!I:I,MMPM2!C:C,U162,MMPM2!E:E,1,MMPM2!G:G,3) -> 2 | R162: Not applicable | S162: No doubling of mistrade range | U162: =IFERROR(_xlfn.XLOOKUP(A162,'MMPM1-PMM'!E:E,'MMPM1-PMM'!J:J),_xlfn.XLOOKUP(A162,'MMPM1-AMM'!E:E,'MMPM1-AMM'!K:K)) -> Kospi-WE1 | V162: =IFERROR(_xlfn.XLOOKUP(A162,'MMPM1-AMM'!E:E,'MMPM1-AMM'!T:T),_xlfn.XLOOKUP(A162,'MMPM1-PMM'!E:E,'MMPM1-PMM'!S:S)) -> 3 | W162: =IFERROR(_xlfn.XLOOKUP(A162,'MMPM1-AMM'!E:E,'MMPM1-AMM'!U:U),_xlfn.XLOOKUP(A162,'MMPM1-PMM'!E:E,'MMPM1-PMM'!T:T)) -> 1 | Y162: TRUE | AB162: =_xlfn.XLOOKUP(A162,productlist[PRODUCT_ID],productlist[PRODUCT_ISIN]) -> DE000A3EEJ02 | AC162: =_xlfn.XLOOKUP(A162,productlist[PRODUCT_ID],productlist[UNDERLYING_ISIN]) -> XC000A3EG716
A163: OKM2 | B163: =_xlfn.XLOOKUP(A163,'Product List'!$A:$A,'Product List'!$D:$D) -> Eurex Daily Futures on KOSPI 200 2nd Monday Weekly Options | C163: =_xlfn.XLOOKUP(A163,'Product List'!$A:$A,'Product List'!$F:$F) -> KOSPI-OPTIONS | D163: =_xlfn.XLOOKUP(A163,'MMPM1-AMM'!E:E,'MMPM1-AMM'!K:K,_xlfn.XLOOKUP(A163,'MMPM1-PMM'!E:E,'MMPM1-PMM'!J:J)) -> Kospi-WE1 | E163: =_xlfn.XLOOKUP(A163,'MMPM1-AMM'!E:E,'MMPM1-AMM'!Q:Q,_xlfn.XLOOKUP(A163,'MMPM1-PMM'!E:E,'MMPM1-PMM'!P:P)) -> 1 | F163: =SUMIFS(MMPM2!H:H,MMPM2!C:C,U163,MMPM2!E:E,1,MMPM2!G:G,1) -> 1.5 | G163: =SUMIFS(MMPM2!H:H,MMPM2!C:C,U163,MMPM2!E:E,1,MMPM2!G:G,2) -> 20 | L163: =SUMIFS(MMPM2!I:I,MMPM2!C:C,U163,MMPM2!E:E,1,MMPM2!G:G,1) -> 0.15 | M163: =SUMIFS(MMPM2!I:I,MMPM2!C:C,U163,MMPM2!E:E,1,MMPM2!G:G,2) -> 0.1 | N163: =SUMIFS(MMPM2!I:I,MMPM2!C:C,U163,MMPM2!E:E,1,MMPM2!G:G,3) -> 2 | R163: Not applicable | S163: No doubling of mistrade range | U163: =IFERROR(_xlfn.XLOOKUP(A163,'MMPM1-PMM'!E:E,'MMPM1-PMM'!J:J),_xlfn.XLOOKUP(A163,'MMPM1-AMM'!E:E,'MMPM1-AMM'!K:K)) -> Kospi-WE1 | V163: =IFERROR(_xlfn.XLOOKUP(A163,'MMPM1-AMM'!E:E,'MMPM1-AMM'!T:T),_xlfn.XLOOKUP(A163,'MMPM1-PMM'!E:E,'MMPM1-PMM'!S:S)) -> 3 | W163: =IFERROR(_xlfn.XLOOKUP(A163,'MMPM1-AMM'!E:E,'MMPM1-AMM'!U:U),_xlfn.XLOOKUP(A163,'MMPM1-PMM'!E:E,'MMPM1-PMM'!T:T)) -> 1 | Y163: TRUE | AB163: =_xlfn.XLOOKUP(A163,productlist[PRODUCT_ID],productlist[PRODUCT_ISIN]) -> DE000A3EEJ10 | AC163: =_xlfn.XLOOKUP(A163,productlist[PRODUCT_ID],productlist[UNDERLYING_ISIN]) -> XC000A3EG724
A164: OKM3 | B164: =_xlfn.XLOOKUP(A164,'Product List'!$A:$A,'Product List'!$D:$D) -> Eurex Daily Futures on KOSPI 200 3rd Monday Weekly Options | C164: =_xlfn.XLOOKUP(A164,'Product List'!$A:$A,'Product List'!$F:$F) -> KOSPI-OPTIONS | D164: =_xlfn.XLOOKUP(A164,'MMPM1-AMM'!E:E,'MMPM1-AMM'!K:K,_xlfn.XLOOKUP(A164,'MMPM1-PMM'!E:E,'MMPM1-PMM'!J:J)) -> Kospi-WE1 | E164: =_xlfn.XLOOKUP(A164,'MMPM1-AMM'!E:E,'MMPM1-AMM'!Q:Q,_xlfn.XLOOKUP(A164,'MMPM1-PMM'!E:E,'MMPM1-PMM'!P:P)) -> 1 | F164: =SUMIFS(MMPM2!H:H,MMPM2!C:C,U164,MMPM2!E:E,1,MMPM2!G:G,1) -> 1.5 | G164: =SUMIFS(MMPM2!H:H,MMPM2!C:C,U164,MMPM2!E:E,1,MMPM2!G:G,2) -> 20 | L164: =SUMIFS(MMPM2!I:I,MMPM2!C:C,U164,MMPM2!E:E,1,MMPM2!G:G,1) -> 0.15 | M164: =SUMIFS(MMPM2!I:I,MMPM2!C:C,U164,MMPM2!E:E,1,MMPM2!G:G,2) -> 0.1 | N164: =SUMIFS(MMPM2!I:I,MMPM2!C:C,U164,MMPM2!E:E,1,MMPM2!G:G,3) -> 2 | R164: Not applicable | S164: No doubling of mistrade range | U164: =IFERROR(_xlfn.XLOOKUP(A164,'MMPM1-PMM'!E:E,'MMPM1-PMM'!J:J),_xlfn.XLOOKUP(A164,'MMPM1-AMM'!E:E,'MMPM1-AMM'!K:K)) -> Kospi-WE1 | V164: =IFERROR(_xlfn.XLOOKUP(A164,'MMPM1-AMM'!E:E,'MMPM1-AMM'!T:T),_xlfn.XLOOKUP(A164,'MMPM1-PMM'!E:E,'MMPM1-PMM'!S:S)) -> 3 | W164: =IFERROR(_xlfn.XLOOKUP(A164,'MMPM1-AMM'!E:E,'MMPM1-AMM'!U:U),_xlfn.XLOOKUP(A164,'MMPM1-PMM'!E:E,'MMPM1-PMM'!T:T)) -> 1 | Y164: TRUE | AB164: =_xlfn.XLOOKUP(A164,productlist[PRODUCT_ID],productlist[PRODUCT_ISIN]) -> DE000A3EEJ28 | AC164: =_xlfn.XLOOKUP(A164,productlist[PRODUCT_ID],productlist[UNDERLYING_ISIN]) -> XC000A3EG732
A165: OKM4 | B165: =_xlfn.XLOOKUP(A165,'Product List'!$A:$A,'Product List'!$D:$D) -> Eurex Daily Futures on KOSPI 200 4th Monday Weekly Options | C165: =_xlfn.XLOOKUP(A165,'Product List'!$A:$A,'Product List'!$F:$F) -> KOSPI-OPTIONS | D165: =_xlfn.XLOOKUP(A165,'MMPM1-AMM'!E:E,'MMPM1-AMM'!K:K,_xlfn.XLOOKUP(A165,'MMPM1-PMM'!E:E,'MMPM1-PMM'!J:J)) -> Kospi-WE1 | E165: =_xlfn.XLOOKUP(A165,'MMPM1-AMM'!E:E,'MMPM1-AMM'!Q:Q,_xlfn.XLOOKUP(A165,'MMPM1-PMM'!E:E,'MMPM1-PMM'!P:P)) -> 1 | F165: =SUMIFS(MMPM2!H:H,MMPM2!C:C,U165,MMPM2!E:E,1,MMPM2!G:G,1) -> 1.5 | G165: =SUMIFS(MMPM2!H:H,MMPM2!C:C,U165,MMPM2!E:E,1,MMPM2!G:G,2) -> 20 | L165: =SUMIFS(MMPM2!I:I,MMPM2!C:C,U165,MMPM2!E:E,1,MMPM2!G:G,1) -> 0.15 | M165: =SUMIFS(MMPM2!I:I,MMPM2!C:C,U165,MMPM2!E:E,1,MMPM2!G:G,2) -> 0.1 | N165: =SUMIFS(MMPM2!I:I,MMPM2!C:C,U165,MMPM2!E:E,1,MMPM2!G:G,3) -> 2 | R165: Not applicable | S165: No doubling of mistrade range | U165: =IFERROR(_xlfn.XLOOKUP(A165,'MMPM1-PMM'!E:E,'MMPM1-PMM'!J:J),_xlfn.XLOOKUP(A165,'MMPM1-AMM'!E:E,'MMPM1-AMM'!K:K)) -> Kospi-WE1 | V165: =IFERROR(_xlfn.XLOOKUP(A165,'MMPM1-AMM'!E:E,'MMPM1-AMM'!T:T),_xlfn.XLOOKUP(A165,'MMPM1-PMM'!E:E,'MMPM1-PMM'!S:S)) -> 3 | W165: =IFERROR(_xlfn.XLOOKUP(A165,'MMPM1-AMM'!E:E,'MMPM1-AMM'!U:U),_xlfn.XLOOKUP(A165,'MMPM1-PMM'!E:E,'MMPM1-PMM'!T:T)) -> 1 | Y165: TRUE | AB165: =_xlfn.XLOOKUP(A165,productlist[PRODUCT_ID],productlist[PRODUCT_ISIN]) -> DE000A3EEJ36 | AC165: =_xlfn.XLOOKUP(A165,productlist[PRODUCT_ID],productlist[UNDERLYING_ISIN]) -> XC000A3EG740
A166: OKM5 | B166: =_xlfn.XLOOKUP(A166,'Product List'!$A:$A,'Product List'!$D:$D) -> Eurex Daily Futures on KOSPI 200 5th Monday Weekly Options | C166: =_xlfn.XLOOKUP(A166,'Product List'!$A:$A,'Product List'!$F:$F) -> KOSPI-OPTIONS | D166: =_xlfn.XLOOKUP(A166,'MMPM1-AMM'!E:E,'MMPM1-AMM'!K:K,_xlfn.XLOOKUP(A166,'MMPM1-PMM'!E:E,'MMPM1-PMM'!J:J)) -> Kospi-WE1 | E166: =_xlfn.XLOOKUP(A166,'MMPM1-AMM'!E:E,'MMPM1-AMM'!Q:Q,_xlfn.XLOOKUP(A166,'MMPM1-PMM'!E:E,'MMPM1-PMM'!P:P)) -> 1 | F166: =SUMIFS(MMPM2!H:H,MMPM2!C:C,U166,MMPM2!E:E,1,MMPM2!G:G,1) -> 1.5 | G166: =SUMIFS(MMPM2!H:H,MMPM2!C:C,U166,MMPM2!E:E,1,MMPM2!G:G,2) -> 20 | L166: =SUMIFS(MMPM2!I:I,MMPM2!C:C,U166,MMPM2!E:E,1,MMPM2!G:G,1) -> 0.15 | M166: =SUMIFS(MMPM2!I:I,MMPM2!C:C,U166,MMPM2!E:E,1,MMPM2!G:G,2) -> 0.1 | N166: =SUMIFS(MMPM2!I:I,MMPM2!C:C,U166,MMPM2!E:E,1,MMPM2!G:G,3) -> 2 | R166: Not applicable | S166: No doubling of mistrade range | U166: =IFERROR(_xlfn.XLOOKUP(A166,'MMPM1-PMM'!E:E,'MMPM1-PMM'!J:J),_xlfn.XLOOKUP(A166,'MMPM1-AMM'!E:E,'MMPM1-AMM'!K:K)) -> Kospi-WE1 | V166: =IFERROR(_xlfn.XLOOKUP(A166,'MMPM1-AMM'!E:E,'MMPM1-AMM'!T:T),_xlfn.XLOOKUP(A166,'MMPM1-PMM'!E:E,'MMPM1-PMM'!S:S)) -> 3 | W166: =IFERROR(_xlfn.XLOOKUP(A166,'MMPM1-AMM'!E:E,'MMPM1-AMM'!U:U),_xlfn.XLOOKUP(A166,'MMPM1-PMM'!E:E,'MMPM1-PMM'!T:T)) -> 1 | Y166: TRUE | AB166: =_xlfn.XLOOKUP(A166,productlist[PRODUCT_ID],productlist[PRODUCT_ISIN]) -> DE000A3EEJ44 | AC166: =_xlfn.XLOOKUP(A166,productlist[PRODUCT_ID],productlist[UNDERLYING_ISIN]) -> XC000A3EG757
A167: OEXP | B167: =_xlfn.XLOOKUP(A167,'Product List'!$A:$A,'Product List'!$D:$D) -> EURO STOXX 50® End-of-Day Index Options | C167: =_xlfn.XLOOKUP(A167,'Product List'!$A:$A,'Product List'!$F:$F) -> INDEX OPTIONS | D167: =_xlfn.XLOOKUP(A167,'MMPM1-AMM'!E:E,'MMPM1-AMM'!K:K,_xlfn.XLOOKUP(A167,'MMPM1-PMM'!E:E,'MMPM1-PMM'!J:J)) -> OEXP | E167: =_xlfn.XLOOKUP(A167,'MMPM1-AMM'!E:E,'MMPM1-AMM'!Q:Q,_xlfn.XLOOKUP(A167,'MMPM1-PMM'!E:E,'MMPM1-PMM'!P:P)) -> 1 | F167: 15 | G167: 225 | L167: 1.2 | M167: 0.08 | N167: 18 | R167: Not applicable | S167: =IF(D167="OVS","",IF(V167=3, "No doubling of mistrade range",W167-1)) -> No doubling of mistrade range | U167: =IFERROR(_xlfn.XLOOKUP(A167,'MMPM1-PMM'!E:E,'MMPM1-PMM'!J:J),_xlfn.XLOOKUP(A167,'MMPM1-AMM'!E:E,'MMPM1-AMM'!K:K)) -> OEXP | V167: =IFERROR(_xlfn.XLOOKUP(A167,'MMPM1-AMM'!E:E,'MMPM1-AMM'!T:T),_xlfn.XLOOKUP(A167,'MMPM1-PMM'!E:E,'MMPM1-PMM'!S:S)) -> 3 | W167: =IFERROR(_xlfn.XLOOKUP(A167,'MMPM1-AMM'!E:E,'MMPM1-AMM'!U:U),_xlfn.XLOOKUP(A167,'MMPM1-PMM'!E:E,'MMPM1-PMM'!T:T)) -> 2 | Y167: =W167=E167 -> FALSE | AB167: =_xlfn.XLOOKUP(A167,productlist[PRODUCT_ID],productlist[PRODUCT_ISIN]) -> DE000A3EDH05 | AC167: =_xlfn.XLOOKUP(A167,productlist[PRODUCT_ID],productlist[UNDERLYING_ISIN]) -> EU0009658145
A168: ODBT | B168: =_xlfn.XLOOKUP(A168,'Product List'!$A:$A,'Product List'!$D:$D) -> iShares USD Treasury Bond 1-3yr UCITS Options | C168: =_xlfn.XLOOKUP(A168,'Product List'!$A:$A,'Product List'!$F:$F) -> EXTF-OPTIONS | D168: =_xlfn.XLOOKUP(A168,'MMPM1-AMM'!E:E,'MMPM1-AMM'!K:K,_xlfn.XLOOKUP(A168,'MMPM1-PMM'!E:E,'MMPM1-PMM'!J:J)) -> FI-ETF | E168: =_xlfn.XLOOKUP(A168,'MMPM1-AMM'!E:E,'MMPM1-AMM'!Q:Q,_xlfn.XLOOKUP(A168,'MMPM1-PMM'!E:E,'MMPM1-PMM'!P:P)) -> 3 | F168: 1.5 | G168: 15 | L168: 0.45 | M168: 0.3 | N168: 4.5 | R168: Not applicable | S168: No doubling of mistrade range | U168: =IFERROR(_xlfn.XLOOKUP(A168,'MMPM1-PMM'!E:E,'MMPM1-PMM'!J:J),_xlfn.XLOOKUP(A168,'MMPM1-AMM'!E:E,'MMPM1-AMM'!K:K)) -> FI-ETF | V168: =IFERROR(_xlfn.XLOOKUP(A168,'MMPM1-AMM'!E:E,'MMPM1-AMM'!T:T),_xlfn.XLOOKUP(A168,'MMPM1-PMM'!E:E,'MMPM1-PMM'!S:S)) -> 3 | W168: =IFERROR(_xlfn.XLOOKUP(A168,'MMPM1-AMM'!E:E,'MMPM1-AMM'!U:U),_xlfn.XLOOKUP(A168,'MMPM1-PMM'!E:E,'MMPM1-PMM'!T:T)) -> 3 | Y168: TRUE | AB168: =_xlfn.XLOOKUP(A168,productlist[PRODUCT_ID],productlist[PRODUCT_ISIN]) -> DE000A3ENS18 | AC168: =_xlfn.XLOOKUP(A168,productlist[PRODUCT_ID],productlist[UNDERLYING_ISIN]) -> IE00B14X4S71
A169: ODTM | B169: =_xlfn.XLOOKUP(A169,'Product List'!$A:$A,'Product List'!$D:$D) -> iShares USD Treasury Bond 7-10yr UCITS Options | C169: =_xlfn.XLOOKUP(A169,'Product List'!$A:$A,'Product List'!$F:$F) -> EXTF-OPTIONS | D169: =_xlfn.XLOOKUP(A169,'MMPM1-AMM'!E:E,'MMPM1-AMM'!K:K,_xlfn.XLOOKUP(A169,'MMPM1-PMM'!E:E,'MMPM1-PMM'!J:J)) -> FI-ETF | E169: =_xlfn.XLOOKUP(A169,'MMPM1-AMM'!E:E,'MMPM1-AMM'!Q:Q,_xlfn.XLOOKUP(A169,'MMPM1-PMM'!E:E,'MMPM1-PMM'!P:P)) -> 3 | F169: 1.5 | G169: 15 | L169: 0.45 | M169: 0.3 | N169: 4.5 | R169: Not applicable | S169: No doubling of mistrade range | U169: =IFERROR(_xlfn.XLOOKUP(A169,'MMPM1-PMM'!E:E,'MMPM1-PMM'!J:J),_xlfn.XLOOKUP(A169,'MMPM1-AMM'!E:E,'MMPM1-AMM'!K:K)) -> FI-ETF | V169: =IFERROR(_xlfn.XLOOKUP(A169,'MMPM1-AMM'!E:E,'MMPM1-AMM'!T:T),_xlfn.XLOOKUP(A169,'MMPM1-PMM'!E:E,'MMPM1-PMM'!S:S)) -> 3 | W169: =IFERROR(_xlfn.XLOOKUP(A169,'MMPM1-AMM'!E:E,'MMPM1-AMM'!U:U),_xlfn.XLOOKUP(A169,'MMPM1-PMM'!E:E,'MMPM1-PMM'!T:T)) -> 3 | Y169: TRUE | AB169: =_xlfn.XLOOKUP(A169,productlist[PRODUCT_ID],productlist[PRODUCT_ISIN]) -> DE000A3ENS00 | AC169: =_xlfn.XLOOKUP(A169,productlist[PRODUCT_ID],productlist[UNDERLYING_ISIN]) -> IE00B1FZS798
A170: OBTE | B170: =_xlfn.XLOOKUP(A170,'Product List'!$A:$A,'Product List'!$D:$D) -> Options on FTSE Bitcoin Index Futures [EUR] | C170: =_xlfn.XLOOKUP(A170,'Product List'!$A:$A,'Product List'!$F:$F) -> CRYPTO OPTIONS | D170: =_xlfn.XLOOKUP(A170,'MMPM1-AMM'!E:E,'MMPM1-AMM'!K:K,_xlfn.XLOOKUP(A170,'MMPM1-PMM'!E:E,'MMPM1-PMM'!J:J)) -> OBTX | E170: =_xlfn.XLOOKUP(A170,'MMPM1-AMM'!E:E,'MMPM1-AMM'!Q:Q,_xlfn.XLOOKUP(A170,'MMPM1-PMM'!E:E,'MMPM1-PMM'!P:P)) -> 5 | F170: 500 | G170: 5000 | L170: 100 | M170: 0.2 | N170: 1000 | R170: Not applicable | S170: 4 | U170: =IFERROR(_xlfn.XLOOKUP(A170,'MMPM1-PMM'!E:E,'MMPM1-PMM'!J:J),_xlfn.XLOOKUP(A170,'MMPM1-AMM'!E:E,'MMPM1-AMM'!K:K)) -> OBTX | V170: =IFERROR(_xlfn.XLOOKUP(A170,'MMPM1-AMM'!E:E,'MMPM1-AMM'!T:T),_xlfn.XLOOKUP(A170,'MMPM1-PMM'!E:E,'MMPM1-PMM'!S:S)) -> 6 | W170: =IFERROR(_xlfn.XLOOKUP(A170,'MMPM1-AMM'!E:E,'MMPM1-AMM'!U:U),_xlfn.XLOOKUP(A170,'MMPM1-PMM'!E:E,'MMPM1-PMM'!T:T)) -> 5 | Y170: TRUE | AB170: =_xlfn.XLOOKUP(A170,productlist[PRODUCT_ID],productlist[PRODUCT_ISIN]) -> DE000A3EV4A3 | AC170: =_xlfn.XLOOKUP(A170,productlist[PRODUCT_ID],productlist[UNDERLYING_ISIN]) -> 
A171: OBTU | B171: =_xlfn.XLOOKUP(A171,'Product List'!$A:$A,'Product List'!$D:$D) -> Options on FTSE Bitcoin Index Futures [USD] | C171: =_xlfn.XLOOKUP(A171,'Product List'!$A:$A,'Product List'!$F:$F) -> CRYPTO OPTIONS | D171: =_xlfn.XLOOKUP(A171,'MMPM1-AMM'!E:E,'MMPM1-AMM'!K:K,_xlfn.XLOOKUP(A171,'MMPM1-PMM'!E:E,'MMPM1-PMM'!J:J)) -> OBTX | E171: =_xlfn.XLOOKUP(A171,'MMPM1-AMM'!E:E,'MMPM1-AMM'!Q:Q,_xlfn.XLOOKUP(A171,'MMPM1-PMM'!E:E,'MMPM1-PMM'!P:P)) -> 5 | F171: 500 | G171: 5000 | L171: 100 | M171: 0.2 | N171: 1000 | R171: Not applicable | S171: 4 | U171: =IFERROR(_xlfn.XLOOKUP(A171,'MMPM1-PMM'!E:E,'MMPM1-PMM'!J:J),_xlfn.XLOOKUP(A171,'MMPM1-AMM'!E:E,'MMPM1-AMM'!K:K)) -> OBTX | V171: =IFERROR(_xlfn.XLOOKUP(A171,'MMPM1-AMM'!E:E,'MMPM1-AMM'!T:T),_xlfn.XLOOKUP(A171,'MMPM1-PMM'!E:E,'MMPM1-PMM'!S:S)) -> 6 | W171: =IFERROR(_xlfn.XLOOKUP(A171,'MMPM1-AMM'!E:E,'MMPM1-AMM'!U:U),_xlfn.XLOOKUP(A171,'MMPM1-PMM'!E:E,'MMPM1-PMM'!T:T)) -> 5 | Y171: TRUE | AB171: =_xlfn.XLOOKUP(A171,productlist[PRODUCT_ID],productlist[PRODUCT_ISIN]) -> DE000A3EV4B1 | AC171: =_xlfn.XLOOKUP(A171,productlist[PRODUCT_ID],productlist[UNDERLYING_ISIN]) -> 
A172: ODAP | B172: DAX® Index EoD Options | C172: INDEX OPTIONS | D172: =_xlfn.XLOOKUP(A172,'MMPM1-AMM'!E:E,'MMPM1-AMM'!K:K,_xlfn.XLOOKUP(A172,'MMPM1-PMM'!E:E,'MMPM1-PMM'!J:J)) -> ODAP | E172: 1 | F172: 50 | G172: 120 | I172: =IFERROR(_xlfn.XLOOKUP(A172,'MMPM1-PMM'!E:E,'MMPM1-PMM'!J:J),_xlfn.XLOOKUP(A172,'MMPM1-AMM'!E:E,'MMPM1-AMM'!K:K)) -> ODAP | J172: =IFERROR(_xlfn.XLOOKUP(A172,'MMPM1-AMM'!E:E,'MMPM1-AMM'!T:T),_xlfn.XLOOKUP(A172,'MMPM1-PMM'!E:E,'MMPM1-PMM'!S:S)) -> 3 | K172: =IFERROR(_xlfn.XLOOKUP(A172,'MMPM1-AMM'!E:E,'MMPM1-AMM'!U:U),_xlfn.XLOOKUP(A172,'MMPM1-PMM'!E:E,'MMPM1-PMM'!T:T)) -> 2 | L172: 4 | M172: 0.1 | N172: 12 | P172: =_xlfn.XLOOKUP(A172,productlist[PRODUCT_ID],productlist[PRODUCT_ISIN]) -> DE000A3EWF12 | Q172: =_xlfn.XLOOKUP(A172,productlist[PRODUCT_ID],productlist[UNDERLYING_ISIN]) -> DE0008469008 | R172: Not applicable | S172: No doubling of mistrade range | U172: =IFERROR(_xlfn.XLOOKUP(A172,'MMPM1-PMM'!E:E,'MMPM1-PMM'!J:J),_xlfn.XLOOKUP(A172,'MMPM1-AMM'!E:E,'MMPM1-AMM'!K:K)) -> ODAP | V172: =IFERROR(_xlfn.XLOOKUP(A172,'MMPM1-AMM'!E:E,'MMPM1-AMM'!T:T),_xlfn.XLOOKUP(A172,'MMPM1-PMM'!E:E,'MMPM1-PMM'!S:S)) -> 3 | W172: =IFERROR(_xlfn.XLOOKUP(A172,'MMPM1-AMM'!E:E,'MMPM1-AMM'!U:U),_xlfn.XLOOKUP(A172,'MMPM1-PMM'!E:E,'MMPM1-PMM'!T:T)) -> 2 | Y172: FALSE | AB172: =_xlfn.XLOOKUP(A172,productlist[PRODUCT_ID],productlist[PRODUCT_ISIN]) -> DE000A3EWF12 | AC172: =_xlfn.XLOOKUP(A172,productlist[PRODUCT_ID],productlist[UNDERLYING_ISIN]) -> DE0008469008
A173: OED5 | B173: =_xlfn.XLOOKUP(A173,'Product List'!$A:$A,'Product List'!$D:$D) -> Five-Year Mid Curve Options on EURO STOXX 50® Index Dividend Futures | C173: =_xlfn.XLOOKUP(A173,'Product List'!$A:$A,'Product List'!$F:$F) -> INDEX DIVIDEND OPTIONS | D173: =_xlfn.XLOOKUP(A173,'MMPM1-AMM'!E:E,'MMPM1-AMM'!K:K,_xlfn.XLOOKUP(A173,'MMPM1-PMM'!E:E,'MMPM1-PMM'!J:J)) -> OED | E173: =_xlfn.XLOOKUP(A173,'MMPM1-AMM'!E:E,'MMPM1-AMM'!Q:Q,_xlfn.XLOOKUP(A173,'MMPM1-PMM'!E:E,'MMPM1-PMM'!P:P)) -> 4 | F173: =SUMIFS(MMPM2!H:H,MMPM2!C:C,U173,MMPM2!E:E,1,MMPM2!G:G,1) -> 3.99 | G173: =SUMIFS(MMPM2!H:H,MMPM2!C:C,U173,MMPM2!E:E,1,MMPM2!G:G,2) -> 19.99 | L173: =SUMIFS(MMPM2!I:I,MMPM2!C:C,U173,MMPM2!E:E,1,MMPM2!G:G,1) -> 2.4 | M173: =SUMIFS(MMPM2!I:I,MMPM2!C:C,U173,MMPM2!E:E,1,MMPM2!G:G,2) -> 0.6 | N173: =SUMIFS(MMPM2!I:I,MMPM2!C:C,U173,MMPM2!E:E,1,MMPM2!G:G,3) -> 10 | R173: =IF(D173="OVS","",IF(V173=3, "Not applicable",W173-1)) -> Not applicable | S173: No doubling of mistrade range | U173: =IFERROR(_xlfn.XLOOKUP(A173,'MMPM1-PMM'!E:E,'MMPM1-PMM'!J:J),_xlfn.XLOOKUP(A173,'MMPM1-AMM'!E:E,'MMPM1-AMM'!K:K)) -> OED | V173: =IFERROR(_xlfn.XLOOKUP(A173,'MMPM1-AMM'!E:E,'MMPM1-AMM'!T:T),_xlfn.XLOOKUP(A173,'MMPM1-PMM'!E:E,'MMPM1-PMM'!S:S)) -> 3 | W173: =IFERROR(_xlfn.XLOOKUP(A173,'MMPM1-AMM'!E:E,'MMPM1-AMM'!U:U),_xlfn.XLOOKUP(A173,'MMPM1-PMM'!E:E,'MMPM1-PMM'!T:T)) -> 5 | Y173: FALSE | AB173: =_xlfn.XLOOKUP(A173,productlist[PRODUCT_ID],productlist[PRODUCT_ISIN]) -> DE000A3EXN45 | AC173: =_xlfn.XLOOKUP(A173,productlist[PRODUCT_ID],productlist[UNDERLYING_ISIN]) -> 
A174: OED4 | B174: =_xlfn.XLOOKUP(A174,'Product List'!$A:$A,'Product List'!$D:$D) -> Four-Year Mid Curve Options on EURO STOXX 50® Index Dividend Futures | C174: =_xlfn.XLOOKUP(A174,'Product List'!$A:$A,'Product List'!$F:$F) -> INDEX DIVIDEND OPTIONS | D174: =_xlfn.XLOOKUP(A174,'MMPM1-AMM'!E:E,'MMPM1-AMM'!K:K,_xlfn.XLOOKUP(A174,'MMPM1-PMM'!E:E,'MMPM1-PMM'!J:J)) -> OED | E174: =_xlfn.XLOOKUP(A174,'MMPM1-AMM'!E:E,'MMPM1-AMM'!Q:Q,_xlfn.XLOOKUP(A174,'MMPM1-PMM'!E:E,'MMPM1-PMM'!P:P)) -> 4 | F174: =SUMIFS(MMPM2!H:H,MMPM2!C:C,U174,MMPM2!E:E,1,MMPM2!G:G,1) -> 3.99 | G174: =SUMIFS(MMPM2!H:H,MMPM2!C:C,U174,MMPM2!E:E,1,MMPM2!G:G,2) -> 19.99 | L174: =SUMIFS(MMPM2!I:I,MMPM2!C:C,U174,MMPM2!E:E,1,MMPM2!G:G,1) -> 2.4 | M174: =SUMIFS(MMPM2!I:I,MMPM2!C:C,U174,MMPM2!E:E,1,MMPM2!G:G,2) -> 0.6 | N174: =SUMIFS(MMPM2!I:I,MMPM2!C:C,U174,MMPM2!E:E,1,MMPM2!G:G,3) -> 10 | R174: =IF(D174="OVS","",IF(V174=3, "Not applicable",W174-1)) -> Not applicable | S174: =IF(D174="OVS","",IF(V174=3, "No doubling of mistrade range",W174-1)) -> No doubling of mistrade range | U174: =IFERROR(_xlfn.XLOOKUP(A174,'MMPM1-PMM'!E:E,'MMPM1-PMM'!J:J),_xlfn.XLOOKUP(A174,'MMPM1-AMM'!E:E,'MMPM1-AMM'!K:K)) -> OED | V174: =IFERROR(_xlfn.XLOOKUP(A174,'MMPM1-AMM'!E:E,'MMPM1-AMM'!T:T),_xlfn.XLOOKUP(A174,'MMPM1-PMM'!E:E,'MMPM1-PMM'!S:S)) -> 3 | W174: =IFERROR(_xlfn.XLOOKUP(A174,'MMPM1-AMM'!E:E,'MMPM1-AMM'!U:U),_xlfn.XLOOKUP(A174,'MMPM1-PMM'!E:E,'MMPM1-PMM'!T:T)) -> 5 | Y174: =W174=E174 -> FALSE | AB174: =_xlfn.XLOOKUP(A174,productlist[PRODUCT_ID],productlist[PRODUCT_ISIN]) -> DE000A3EXN37 | AC174: =_xlfn.XLOOKUP(A174,productlist[PRODUCT_ID],productlist[UNDERLYING_ISIN]) -> 
A175: OED1 | B175: =_xlfn.XLOOKUP(A175,'Product List'!$A:$A,'Product List'!$D:$D) -> One-Year Mid Curve Options on EURO STOXX 50® Index Dividend Futures | C175: =_xlfn.XLOOKUP(A175,'Product List'!$A:$A,'Product List'!$F:$F) -> INDEX DIVIDEND OPTIONS | D175: =_xlfn.XLOOKUP(A175,'MMPM1-AMM'!E:E,'MMPM1-AMM'!K:K,_xlfn.XLOOKUP(A175,'MMPM1-PMM'!E:E,'MMPM1-PMM'!J:J)) -> OED | E175: =_xlfn.XLOOKUP(A175,'MMPM1-AMM'!E:E,'MMPM1-AMM'!Q:Q,_xlfn.XLOOKUP(A175,'MMPM1-PMM'!E:E,'MMPM1-PMM'!P:P)) -> 4 | F175: =SUMIFS(MMPM2!H:H,MMPM2!C:C,U175,MMPM2!E:E,1,MMPM2!G:G,1) -> 3.99 | G175: =SUMIFS(MMPM2!H:H,MMPM2!C:C,U175,MMPM2!E:E,1,MMPM2!G:G,2) -> 19.99 | L175: =SUMIFS(MMPM2!I:I,MMPM2!C:C,U175,MMPM2!E:E,1,MMPM2!G:G,1) -> 2.4 | M175: =SUMIFS(MMPM2!I:I,MMPM2!C:C,U175,MMPM2!E:E,1,MMPM2!G:G,2) -> 0.6 | N175: =SUMIFS(MMPM2!I:I,MMPM2!C:C,U175,MMPM2!E:E,1,MMPM2!G:G,3) -> 10 | R175: =IF(D175="OVS","",IF(V175=3, "Not applicable",W175-1)) -> Not applicable | S175: =IF(D175="OVS","",IF(V175=3, "No doubling of mistrade range",W175-1)) -> No doubling of mistrade range | U175: =IFERROR(_xlfn.XLOOKUP(A175,'MMPM1-PMM'!E:E,'MMPM1-PMM'!J:J),_xlfn.XLOOKUP(A175,'MMPM1-AMM'!E:E,'MMPM1-AMM'!K:K)) -> OED | V175: =IFERROR(_xlfn.XLOOKUP(A175,'MMPM1-AMM'!E:E,'MMPM1-AMM'!T:T),_xlfn.XLOOKUP(A175,'MMPM1-PMM'!E:E,'MMPM1-PMM'!S:S)) -> 3 | W175: =IFERROR(_xlfn.XLOOKUP(A175,'MMPM1-AMM'!E:E,'MMPM1-AMM'!U:U),_xlfn.XLOOKUP(A175,'MMPM1-PMM'!E:E,'MMPM1-PMM'!T:T)) -> 5 | Y175: =W175=E175 -> FALSE | AB175: =_xlfn.XLOOKUP(A175,productlist[PRODUCT_ID],productlist[PRODUCT_ISIN]) -> DE000A3EXN03 | AC175: =_xlfn.XLOOKUP(A175,productlist[PRODUCT_ID],productlist[UNDERLYING_ISIN]) -> 
A176: OED3 | B176: =_xlfn.XLOOKUP(A176,'Product List'!$A:$A,'Product List'!$D:$D) -> Three-Year Mid Curve Options on EURO STOXX 50® Index Dividend Futures | C176: =_xlfn.XLOOKUP(A176,'Product List'!$A:$A,'Product List'!$F:$F) -> INDEX DIVIDEND OPTIONS | D176: =_xlfn.XLOOKUP(A176,'MMPM1-AMM'!E:E,'MMPM1-AMM'!K:K,_xlfn.XLOOKUP(A176,'MMPM1-PMM'!E:E,'MMPM1-PMM'!J:J)) -> OED | E176: =_xlfn.XLOOKUP(A176,'MMPM1-AMM'!E:E,'MMPM1-AMM'!Q:Q,_xlfn.XLOOKUP(A176,'MMPM1-PMM'!E:E,'MMPM1-PMM'!P:P)) -> 4 | F176: =SUMIFS(MMPM2!H:H,MMPM2!C:C,U176,MMPM2!E:E,1,MMPM2!G:G,1) -> 3.99 | G176: =SUMIFS(MMPM2!H:H,MMPM2!C:C,U176,MMPM2!E:E,1,MMPM2!G:G,2) -> 19.99 | L176: =SUMIFS(MMPM2!I:I,MMPM2!C:C,U176,MMPM2!E:E,1,MMPM2!G:G,1) -> 2.4 | M176: =SUMIFS(MMPM2!I:I,MMPM2!C:C,U176,MMPM2!E:E,1,MMPM2!G:G,2) -> 0.6 | N176: =SUMIFS(MMPM2!I:I,MMPM2!C:C,U176,MMPM2!E:E,1,MMPM2!G:G,3) -> 10 | R176: =IF(D176="OVS","",IF(V176=3, "Not applicable",W176-1)) -> Not applicable | S176: =IF(D176="OVS","",IF(V176=3, "No doubling of mistrade range",W176-1)) -> No doubling of mistrade range | U176: =IFERROR(_xlfn.XLOOKUP(A176,'MMPM1-PMM'!E:E,'MMPM1-PMM'!J:J),_xlfn.XLOOKUP(A176,'MMPM1-AMM'!E:E,'MMPM1-AMM'!K:K)) -> OED | V176: =IFERROR(_xlfn.XLOOKUP(A176,'MMPM1-AMM'!E:E,'MMPM1-AMM'!T:T),_xlfn.XLOOKUP(A176,'MMPM1-PMM'!E:E,'MMPM1-PMM'!S:S)) -> 3 | W176: =IFERROR(_xlfn.XLOOKUP(A176,'MMPM1-AMM'!E:E,'MMPM1-AMM'!U:U),_xlfn.XLOOKUP(A176,'MMPM1-PMM'!E:E,'MMPM1-PMM'!T:T)) -> 5 | Y176: =W176=E176 -> FALSE | AB176: =_xlfn.XLOOKUP(A176,productlist[PRODUCT_ID],productlist[PRODUCT_ISIN]) -> DE000A3EXN29 | AC176: =_xlfn.XLOOKUP(A176,productlist[PRODUCT_ID],productlist[UNDERLYING_ISIN]) -> 
A177: OED2 | B177: =_xlfn.XLOOKUP(A177,'Product List'!$A:$A,'Product List'!$D:$D) -> Two-Year Mid Curve Options on EURO STOXX 50® Index Dividend Futures | C177: =_xlfn.XLOOKUP(A177,'Product List'!$A:$A,'Product List'!$F:$F) -> INDEX DIVIDEND OPTIONS | D177: =_xlfn.XLOOKUP(A177,'MMPM1-AMM'!E:E,'MMPM1-AMM'!K:K,_xlfn.XLOOKUP(A177,'MMPM1-PMM'!E:E,'MMPM1-PMM'!J:J)) -> OED | E177: =_xlfn.XLOOKUP(A177,'MMPM1-AMM'!E:E,'MMPM1-AMM'!Q:Q,_xlfn.XLOOKUP(A177,'MMPM1-PMM'!E:E,'MMPM1-PMM'!P:P)) -> 4 | F177: =SUMIFS(MMPM2!H:H,MMPM2!C:C,U177,MMPM2!E:E,1,MMPM2!G:G,1) -> 3.99 | G177: =SUMIFS(MMPM2!H:H,MMPM2!C:C,U177,MMPM2!E:E,1,MMPM2!G:G,2) -> 19.99 | L177: =SUMIFS(MMPM2!I:I,MMPM2!C:C,U177,MMPM2!E:E,1,MMPM2!G:G,1) -> 2.4 | M177: =SUMIFS(MMPM2!I:I,MMPM2!C:C,U177,MMPM2!E:E,1,MMPM2!G:G,2) -> 0.6 | N177: =SUMIFS(MMPM2!I:I,MMPM2!C:C,U177,MMPM2!E:E,1,MMPM2!G:G,3) -> 10 | R177: =IF(D177="OVS","",IF(V177=3, "Not applicable",W177-1)) -> Not applicable | S177: =IF(D177="OVS","",IF(V177=3, "No doubling of mistrade range",W177-1)) -> No doubling of mistrade range | U177: =IFERROR(_xlfn.XLOOKUP(A177,'MMPM1-PMM'!E:E,'MMPM1-PMM'!J:J),_xlfn.XLOOKUP(A177,'MMPM1-AMM'!E:E,'MMPM1-AMM'!K:K)) -> OED | V177: =IFERROR(_xlfn.XLOOKUP(A177,'MMPM1-AMM'!E:E,'MMPM1-AMM'!T:T),_xlfn.XLOOKUP(A177,'MMPM1-PMM'!E:E,'MMPM1-PMM'!S:S)) -> 3 | W177: =IFERROR(_xlfn.XLOOKUP(A177,'MMPM1-AMM'!E:E,'MMPM1-AMM'!U:U),_xlfn.XLOOKUP(A177,'MMPM1-PMM'!E:E,'MMPM1-PMM'!T:T)) -> 5 | Y177: =W177=E177 -> FALSE | AB177: =_xlfn.XLOOKUP(A177,productlist[PRODUCT_ID],productlist[PRODUCT_ISIN]) -> DE000A3EXN11 | AC177: =_xlfn.XLOOKUP(A177,productlist[PRODUCT_ID],productlist[UNDERLYING_ISIN]) -> 
P178: =_xlfn.XLOOKUP(A178,productlist[PRODUCT_ID],productlist[PRODUCT_ISIN]) ->  | Q178: =_xlfn.XLOOKUP(A178,productlist[PRODUCT_ID],productlist[UNDERLYING_ISIN]) -> 
P179: =_xlfn.XLOOKUP(A179,productlist[PRODUCT_ID],productlist[PRODUCT_ISIN]) ->  | Q179: =_xlfn.XLOOKUP(A179,productlist[PRODUCT_ID],productlist[UNDERLYING_ISIN]) -> 
P180: =_xlfn.XLOOKUP(A180,productlist[PRODUCT_ID],productlist[PRODUCT_ISIN]) ->  | Q180: =_xlfn.XLOOKUP(A180,productlist[PRODUCT_ID],productlist[UNDERLYING_ISIN]) -> 
P181: =_xlfn.XLOOKUP(A181,productlist[PRODUCT_ID],productlist[PRODUCT_ISIN]) ->  | Q181: =_xlfn.XLOOKUP(A181,productlist[PRODUCT_ID],productlist[UNDERLYING_ISIN]) -> 
P182: =_xlfn.XLOOKUP(A182,productlist[PRODUCT_ID],productlist[PRODUCT_ISIN]) ->  | Q182: =_xlfn.XLOOKUP(A182,productlist[PRODUCT_ID],productlist[UNDERLYING_ISIN]) -> 
P183: =_xlfn.XLOOKUP(A183,productlist[PRODUCT_ID],productlist[PRODUCT_ISIN]) ->  | Q183: =_xlfn.XLOOKUP(A183,productlist[PRODUCT_ID],productlist[UNDERLYING_ISIN]) -> 
P184: =_xlfn.XLOOKUP(A184,productlist[PRODUCT_ID],productlist[PRODUCT_ISIN]) ->  | Q184: =_xlfn.XLOOKUP(A184,productlist[PRODUCT_ID],productlist[UNDERLYING_ISIN]) -> 
P185: =_xlfn.XLOOKUP(A185,productlist[PRODUCT_ID],productlist[PRODUCT_ISIN]) ->  | Q185: =_xlfn.XLOOKUP(A185,productlist[PRODUCT_ID],productlist[UNDERLYING_ISIN]) -> 
P186: =_xlfn.XLOOKUP(A186,productlist[PRODUCT_ID],productlist[PRODUCT_ISIN]) ->  | Q186: =_xlfn.XLOOKUP(A186,productlist[PRODUCT_ID],productlist[UNDERLYING_ISIN]) -> 
P187: =_xlfn.XLOOKUP(A187,productlist[PRODUCT_ID],productlist[PRODUCT_ISIN]) ->  | Q187: =_xlfn.XLOOKUP(A187,productlist[PRODUCT_ID],productlist[UNDERLYING_ISIN]) -> 
P188: =_xlfn.XLOOKUP(A188,productlist[PRODUCT_ID],productlist[PRODUCT_ISIN]) ->  | Q188: =_xlfn.XLOOKUP(A188,productlist[PRODUCT_ID],productlist[UNDERLYING_ISIN]) -> 
P189: =_xlfn.XLOOKUP(A189,productlist[PRODUCT_ID],productlist[PRODUCT_ISIN]) ->  | Q189: =_xlfn.XLOOKUP(A189,productlist[PRODUCT_ID],productlist[UNDERLYING_ISIN]) -> 
P190: =_xlfn.XLOOKUP(A190,productlist[PRODUCT_ID],productlist[PRODUCT_ISIN]) ->  | Q190: =_xlfn.XLOOKUP(A190,productlist[PRODUCT_ID],productlist[UNDERLYING_ISIN]) -> 
P191: =_xlfn.XLOOKUP(A191,productlist[PRODUCT_ID],productlist[PRODUCT_ISIN]) ->  | Q191: =_xlfn.XLOOKUP(A191,productlist[PRODUCT_ID],productlist[UNDERLYING_ISIN]) -> 
P192: =_xlfn.XLOOKUP(A192,productlist[PRODUCT_ID],productlist[PRODUCT_ISIN]) ->  | Q192: =_xlfn.XLOOKUP(A192,productlist[PRODUCT_ID],productlist[UNDERLYING_ISIN]) -> 
P193: =_xlfn.XLOOKUP(A193,productlist[PRODUCT_ID],productlist[PRODUCT_ISIN]) ->  | Q193: =_xlfn.XLOOKUP(A193,productlist[PRODUCT_ID],productlist[UNDERLYING_ISIN]) -> 
P194: =_xlfn.XLOOKUP(A194,productlist[PRODUCT_ID],productlist[PRODUCT_ISIN]) ->  | Q194: =_xlfn.XLOOKUP(A194,productlist[PRODUCT_ID],productlist[UNDERLYING_ISIN]) -> 
P195: =_xlfn.XLOOKUP(A195,productlist[PRODUCT_ID],productlist[PRODUCT_ISIN]) ->  | Q195: =_xlfn.XLOOKUP(A195,productlist[PRODUCT_ID],productlist[UNDERLYING_ISIN]) -> 
P196: =_xlfn.XLOOKUP(A196,productlist[PRODUCT_ID],productlist[PRODUCT_ISIN]) ->  | Q196: =_xlfn.XLOOKUP(A196,productlist[PRODUCT_ID],productlist[UNDERLYING_ISIN]) -> 
P197: =_xlfn.XLOOKUP(A197,productlist[PRODUCT_ID],productlist[PRODUCT_ISIN]) ->  | Q197: =_xlfn.XLOOKUP(A197,productlist[PRODUCT_ID],productlist[UNDERLYING_ISIN]) -> 
P198: =_xlfn.XLOOKUP(A198,productlist[PRODUCT_ID],productlist[PRODUCT_ISIN]) ->  | Q198: =_xlfn.XLOOKUP(A198,productlist[PRODUCT_ID],productlist[UNDERLYING_ISIN]) -> 
P199: =_xlfn.XLOOKUP(A199,productlist[PRODUCT_ID],productlist[PRODUCT_ISIN]) ->  | Q199: =_xlfn.XLOOKUP(A199,productlist[PRODUCT_ID],productlist[UNDERLYING_ISIN]) -> 
P200: =_xlfn.XLOOKUP(A200,productlist[PRODUCT_ID],productlist[PRODUCT_ISIN]) ->  | Q200: =_xlfn.XLOOKUP(A200,productlist[PRODUCT_ID],productlist[UNDERLYING_ISIN]) -> 
... 108 more rows

Sheet Fixed Income (hidden)
A1: Product ID | B1: Product Name
A2: OGB1 | B2: 1st Friday Weekly Options on Euro-Bund Futures | D2: Mistrade Range in points
C3: Reference prices up to | D3: 1st and 2nd expiration Weekly Option | E3: 5 exchange days before expiration
C4: 0 - 0.09 | D4: 0.05 | E4: 0.09
C5: 0.1 - 0.29 | D5: 0.06 | E5: 0.09
C6: 0.3 - 1.00 | D6: 0.09 | E6: 0.12
C7: > 1.00 | D7: 0.12 | E7: 0.12
C9: For the transactions in option contracts accomplished during a Stressed Market period, the mistrade ranges reduplicate.
A10: OGB2 | B10: 2nd Friday Weekly Options on Euro-Bund Futures | D10: Mistrade Range in points
C11: Reference prices up to | D11: 1st and 2nd expiration Weekly Option | E11: 5 exchange days before expiration
C12: 0 - 0.09 | D12: 0.05 | E12: 0.09
C13: 0.1 - 0.29 | D13: 0.06 | E13: 0.09
C14: 0.3 - 1.00 | D14: 0.09 | E14: 0.12
C15: > 1.00 | D15: 0.12 | E15: 0.12
C17: For the transactions in option contracts accomplished during a Stressed Market period, the mistrade ranges reduplicate.
A18: OGB3 | B18: 3rd Friday Weekly Options on Euro-Bund Futures | D18: Mistrade Range in points
C19: Reference prices up to | D19: 1st and 2nd expiration Weekly Option | E19: 5 exchange days before expiration
C20: 0 - 0.09 | D20: 0.05 | E20: 0.09
C21: 0.1 - 0.29 | D21: 0.06 | E21: 0.09
C22: 0.3 - 1.00 | D22: 0.09 | E22: 0.12
C23: > 1.00 | D23: 0.12 | E23: 0.12
C25: For the transactions in option contracts accomplished during a Stressed Market period, the mistrade ranges reduplicate.
A26: OGB4 | B26: 4th Friday Weekly Options on Euro-Bund Futures | D26: Mistrade Range in points
C27: Reference prices up to | D27: 1st and 2nd expiration Weekly Option | E27: 5 exchange days before expiration
C28: 0 - 0.09 | D28: 0.05 | E28: 0.09
C29: 0.1 - 0.29 | D29: 0.06 | E29: 0.09
C30: 0.3 - 1.00 | D30: 0.09 | E30: 0.12
C31: > 1.00 | D31: 0.12 | E31: 0.12
C33: For the transactions in option contracts accomplished during a Stressed Market period, the mistrade ranges reduplicate.
A34: OGB5 | B34: 5th Friday Weekly Options on Euro-Bund Futures | D34: Mistrade Range in points
C35: Reference prices up to | D35: 1st and 2nd expiration Weekly Option | E35: 5 exchange days before expiration
C36: 0 - 0.09 | D36: 0.05 | E36: 0.09
C37: 0.1 - 0.29 | D37: 0.06 | E37: 0.09
C38: 0.3 - 1.00 | D38: 0.09 | E38: 0.12
C39: > 1.00 | D39: 0.12 | E39: 0.12
C41: For the transactions in option contracts accomplished during a Stressed Market period, the mistrade ranges reduplicate.
A42: OGBM | B42: Options on Euro-Bobl Futures | D42: Mistrade Range in points
C43: Reference prices up to | D43: 1. expiration month | E43: 2. expiration month | F43: 3. - 4. expiration month | G43: 5 exchange days before expiration
C44: 0 - 0.09 | D44: 0.03 | E44: 0.06 | F44: 0.09 | G44: 0.06
C45: 0.1 - 0.29 | D45: 0.04 | E45: 0.08 | F45: 0.13 | G45: 0.06
C46: 0.3 - 1.00 | D46: 0.06 | E46: 0.13 | F46: 0.19 | G46: 0.08
C47: > 1.00 | D47: 0.08 | E47: 0.17 | F47: 0.25 | G47: 0.08
C49: For the transactions in option contracts accomplished during a Stressed Market period, the mistrade ranges reduplicate.
A50: OBTP | B50: Options on Euro-BTP Futures | D50: Mistrade Range in points
C51: Reference prices up to | D51: 1. expiration month | E51: 2. - 4. expiration month | F51: 5 exchange days before expiration
C52: 0.2 | D52: 0.3 | E52: 0.42 | F52: 0.42
C53: 0.5 | D53: 0.36 | E53: 0.54 | F53: 0.54
C54: 1 | D54: 0.54 | E54: 0.66 | F54: 0.66
C55: 2 | D55: 0.6 | E55: 0.9 | F55: 0.9
C56: > 2.00 | D56: 0.66 | E56: 1.05 | F56: 1.05
C58: For the transactions in option contracts accomplished during a Stressed Market period, the mistrade ranges reduplicate.
A59: OGBX | B59: Options on Euro-Buxl Futures | D59: Mistrade Range in points
C60: Reference prices up to | D60: 1. expiration month | E60: 2. - 4. expiration month | F60: 5 exchange days before expiration
C61: 0.2 | D61: 0.15 | E61: 0.25 | F61: 0.25
C62: 0.5 | D62: 0.2 | E62: 0.3 | F62: 0.3
C63: 1 | D63: 0.3 | E63: 0.45 | F63: 0.45
C64: 2 | D64: 0.6 | E64: 0.9 | F64: 0.9
C65: >2.00 | D65: 0.9 | E65: 1.35 | F65: 1.35
C66: For the transactions in option contracts accomplished during a Stressed Market period, the mistrade ranges reduplicate.
A67: OGBL | B67: Options on Euro-Bund Futures | D67: Mistrade Range in points
C68: Reference prices up to | D68: 1. expiration month | E68: 2. expiration month | F68: 3. - 4. expiration month | G68: 5 exchange days before expiration
C69: 0 - 0.09 | D69: 0.03 | E69: 0.06 | F69: 0.09 | G69: 0.06
C70: 0.1 - 0.29 | D70: 0.04 | E70: 0.08 | F70: 0.13 | G70: 0.06
C71: 0.3 - 1.00 | D71: 0.06 | E71: 0.13 | F71: 0.19 | G71: 0.08
C72: > 1.00 | D72: 0.08 | E72: 0.17 | F72: 0.25 | G72: 0.08
B75: Sub-monthly Options on Euro-Bund Futures | D75: Mistrade Range in points
C76: Reference prices up to | D76: 1st and 2nd expiration Weekly Option | E76: 5 exchange days before expiration
C77: 0 - 0.09 | D77: 0.05 | E77: 0.09
C78: 0.1 - 0.29 | D78: 0.06 | E78: 0.09
C79: 0.3 - 1.00 | D79: 0.09 | E79: 0.12
C80: > 1.00 | D80: 0.12 | E80: 0.12
C84: For the transactions in option contracts accomplished during a Stressed Market period, the mistrade ranges reduplicate.
A85: OOAT | B85: Options on Euro-OAT Futures | D85: Mistrade Range in points
C86: Reference price up to | D86: 1. expiration month | E86: 2. - 4. expiration month | F86: 5 exchange days before expiration
C87: 0.2 | D87: 0.1 | E87: 0.14 | F87: 0.14
C88: 0.5 | D88: 0.12 | E88: 0.18 | F88: 0.18
C89: 1 | D89: 0.18 | E89: 0.22 | F89: 0.22
C90: 2 | D90: 0.2 | E90: 0.3 | F90: 0.3
C91: > 2.00 | D91: 0.22 | E91: 0.35 | F91: 0.35
C93: For the transactions in option contracts accomplished during a Stressed Market period, the mistrade ranges reduplicate.
A94: OGBS | B94: Options on Euro-Schatz Futures | D94: Mistrade Range in points
C95: Reference prices up to | D95: 1. expiration month | E95: 2. expiration month | F95: 3. - 4. expiration month | G95: 5 exchange days before expiration
C96: 0 - 0.09 | D96: 0.03 | E96: 0.06 | F96: 0.09 | G96: 0.06
C97: 0.1 - 0.29 | D97: 0.04 | E97: 0.08 | F97: 0.13 | G97: 0.06
C98: 0.3 - 1.00 | D98: 0.06 | E98: 0.13 | F98: 0.19 | G98: 0.08
C99: > 1.00 | D99: 0.08 | E99: 0.17 | F99: 0.25 | G99: 0.08
C101: For the transactions in option contracts accomplished during a Stressed Market period, the mistrade ranges reduplicate.
A102: OEU3 | B102: Options on Three-Month EURIBOR Futures | C102: Reference prices up to | D102: Mistrade Range | E102: Mistrade Range | F102: Mistrade Range
D103: (first three expiration months, in points) | E103: (all other quarterly expiration months, in points) | F103: (five exchange days prior to expiration, in points)
C104: 0.09 | D104: 0.02 | E104: 0.03 | F104: 0.03
C105: 0.29 | D105: 0.02 | E105: 0.04 | F105: 0.03
C106: 1 | D106: 0.03 | E106: 0.06 | F106: 0.04
C107: 999.99 | D107: 0.04 | E107: 0.08 | F107: 0.04
C109: For the transactions in option contracts accomplished during a Stressed Market period, the mistrade ranges reduplicate.
A110: OEM1 | B110: =_xlfn.XLOOKUP(A110,'Product List'!A:A,'Product List'!D:D) -> One-Year Mid Curve Options on Three-Month EURIBOR Futures | C110: Reference prices up to | D110: Mistrade Range | E110: Mistrade Range | F110: Mistrade Range
D111: (first three expiration months, in points) | E111: (all other quarterly expiration months, in points) | F111: (five exchange days prior to expiration, in points)
C112: 0.09 | D112: 0.03 | E112: 0.06 | F112: 0.06
C113: 0.29 | D113: 0.04 | E113: 0.08 | F113: 0.06
C114: 1 | D114: 0.06 | E114: 0.12 | F114: 0.08
C115: 999.99 | D115: 0.08 | E115: 0.16 | F115: 0.08
C117: For the transactions in option contracts accomplished during a Stressed Market period, the mistrade ranges reduplicate.
A118: OEM2 | B118: =_xlfn.XLOOKUP(A118,'Product List'!A:A,'Product List'!D:D) -> Two-Year Mid Curve Options on Three-Month EURIBOR Futures | C118: Reference prices up to | D118: Mistrade Range | E118: Mistrade Range | F118: Mistrade Range
D119: (first three expiration months, in points) | E119: (all other quarterly expiration months, in points) | F119: (five exchange days prior to expiration, in points)
C120: 0.09 | D120: 0.03 | E120: 0.06 | F120: 0.06
C121: 0.29 | D121: 0.04 | E121: 0.08 | F121: 0.06
C122: 1 | D122: 0.06 | E122: 0.12 | F122: 0.08
C123: 999.99 | D123: 0.08 | E123: 0.16 | F123: 0.08
C125: For the transactions in option contracts accomplished during a Stressed Market period, the mistrade ranges reduplicate.
A126: OEM3 | B126: =_xlfn.XLOOKUP(A126,'Product List'!A:A,'Product List'!D:D) -> Three-Year Mid Curve Options on Three-Month EURIBOR Futures | C126: Reference prices up to | D126: Mistrade Range | E126: Mistrade Range | F126: Mistrade Range
D127: (first three expiration months, in points) | E127: (all other quarterly expiration months, in points) | F127: (five exchange days prior to expiration, in points)
C128: 0.09 | D128: 0.03 | E128: 0.06 | F128: 0.06
C129: 0.29 | D129: 0.04 | E129: 0.08 | F129: 0.06
C130: 1 | D130: 0.06 | E130: 0.12 | F130: 0.08
C131: 999.99 | D131: 0.08 | E131: 0.16 | F131: 0.08
C133: For the transactions in option contracts accomplished during a Stressed Market period, the mistrade ranges reduplicate.
A134: OEM4 | B134: =_xlfn.XLOOKUP(A134,'Product List'!A:A,'Product List'!D:D) -> Four-Year Mid Curve Options on Three-Month EURIBOR Futures | C134: Reference prices up to | D134: Mistrade Range | E134: Mistrade Range | F134: Mistrade Range
D135: (first three expiration months, in points) | E135: (all other quarterly expiration months, in points) | F135: (five exchange days prior to expiration, in points)
C136: 0.09 | D136: 0.03 | E136: 0.06 | F136: 0.06
C137: 0.29 | D137: 0.04 | E137: 0.08 | F137: 0.06
C138: 1 | D138: 0.06 | E138: 0.12 | F138: 0.08
C139: 999.99 | D139: 0.08 | E139: 0.16 | F139: 0.08
C141: For the transactions in option contracts accomplished during a Stressed Market period, the mistrade ranges reduplicate.

Sheet SSDF_PD (hidden)
A1: Product | B1: Name | G1: 1st expiry | H1: 2nd expiry | I1: >=3rd expiry | K1: Spread Class Code | L1: First - | M1: Second - | N1: third - | O1: fourth - | P1: ISIN | Q1: Product Group
A2: C2EC | B2: =_xlfn.XLOOKUP(A2,'Product List'!A:A,'Product List'!D:D) -> CECONOMY Dividend Futures | G2: 0.4 | H2: 0.45 | I2: 0.55 | K2: =_xlfn.XLOOKUP(A2,productlist[PRODUCT_ID],productlist[Spread Class Code]) ->  | L2: =FIND("-",_xlfn.XLOOKUP(A2,'Product List'!A:A,'Product List'!E:E)) ->  | M2: =FIND("-",_xlfn.XLOOKUP(A2,'Product List'!A:A,'Product List'!E:E),L2+1) ->  | N2: =FIND("-",_xlfn.XLOOKUP(A2,'Product List'!A:A,'Product List'!E:E),M2+1) ->  | O2: =FIND("-",_xlfn.XLOOKUP(A2,'Product List'!A:A,'Product List'!E:E),N2+2) ->  | P2: =_xlfn.XLOOKUP(A2,'Product List'!A:A,'Product List'!H:H) -> DE000A2GGDS4 | Q2: =_xlfn.XLOOKUP(A2,'Product List'!A:A,'Product List'!F:F) -> SINGLE STOCK DIVIDEND FUTURES
A3: T2KA | B3: =_xlfn.XLOOKUP(A3,'Product List'!A:A,'Product List'!D:D) -> ThyssenKrupp Dividend Futures | G3: 0.4 | H3: 0.45 | I3: 0.55 | K3: =_xlfn.XLOOKUP(A3,productlist[PRODUCT_ID],productlist[Spread Class Code]) ->  | L3: =FIND("-",_xlfn.XLOOKUP(A3,'Product List'!A:A,'Product List'!E:E)) ->  | M3: =FIND("-",_xlfn.XLOOKUP(A3,'Product List'!A:A,'Product List'!E:E),L3+1) ->  | N3: =FIND("-",_xlfn.XLOOKUP(A3,'Product List'!A:A,'Product List'!E:E),M3+1) ->  | O3: =FIND("-",_xlfn.XLOOKUP(A3,'Product List'!A:A,'Product List'!E:E),N3+2) ->  | P3: =_xlfn.XLOOKUP(A3,'Product List'!A:A,'Product List'!I:I) -> XC000A1XQ164 | Q3: =_xlfn.XLOOKUP(A3,'Product List'!A:A,'Product List'!F:F) -> SINGLE STOCK DIVIDEND FUTURES
A4: B2X7 | B4: =_xlfn.XLOOKUP(A4,'Product List'!A:A,'Product List'!D:D) -> Proximus Dividend Futures | G4: 0.4 | H4: 0.45 | I4: 0.55 | K4: =_xlfn.XLOOKUP(A4,productlist[PRODUCT_ID],productlist[Spread Class Code]) ->  | L4: =FIND("-",_xlfn.XLOOKUP(A4,'Product List'!A:A,'Product List'!E:E)) ->  | M4: =FIND("-",_xlfn.XLOOKUP(A4,'Product List'!A:A,'Product List'!E:E),L4+1) ->  | N4: =FIND("-",_xlfn.XLOOKUP(A4,'Product List'!A:A,'Product List'!E:E),M4+1) ->  | O4: =FIND("-",_xlfn.XLOOKUP(A4,'Product List'!A:A,'Product List'!E:E),N4+2) ->  | P4: =_xlfn.XLOOKUP(A4,'Product List'!A:A,'Product List'!I:I) -> XC000A3CLMY2 | Q4: =_xlfn.XLOOKUP(A4,'Product List'!A:A,'Product List'!F:F) -> SINGLE STOCK DIVIDEND FUTURES
A5: E2AI | B5: =_xlfn.XLOOKUP(A5,'Product List'!A:A,'Product List'!D:D) -> Groupe Bruxelles Lambert Dividend Futures | G5: 0.4 | H5: 0.45 | I5: 0.55 | K5: =_xlfn.XLOOKUP(A5,productlist[PRODUCT_ID],productlist[Spread Class Code]) ->  | L5: =FIND("-",_xlfn.XLOOKUP(A5,'Product List'!A:A,'Product List'!E:E)) ->  | M5: =FIND("-",_xlfn.XLOOKUP(A5,'Product List'!A:A,'Product List'!E:E),L5+1) ->  | N5: =FIND("-",_xlfn.XLOOKUP(A5,'Product List'!A:A,'Product List'!E:E),M5+1) ->  | O5: =FIND("-",_xlfn.XLOOKUP(A5,'Product List'!A:A,'Product List'!E:E),N5+2) ->  | P5: =_xlfn.XLOOKUP(A5,'Product List'!A:A,'Product List'!I:I) -> XC000A3CLMW6 | Q5: =_xlfn.XLOOKUP(A5,'Product List'!A:A,'Product List'!F:F) -> SINGLE STOCK DIVIDEND FUTURES
A6: S3IE | B6: =_xlfn.XLOOKUP(A6,'Product List'!A:A,'Product List'!D:D) -> Siemens Dividend Futures | G6: 0.2 | H6: 0.2 | I6: 0.3 | K6: =_xlfn.XLOOKUP(A6,productlist[PRODUCT_ID],productlist[Spread Class Code]) ->  | L6: =FIND("-",_xlfn.XLOOKUP(A6,'Product List'!A:A,'Product List'!E:E)) ->  | M6: =FIND("-",_xlfn.XLOOKUP(A6,'Product List'!A:A,'Product List'!E:E),L6+1) ->  | N6: =FIND("-",_xlfn.XLOOKUP(A6,'Product List'!A:A,'Product List'!E:E),M6+1) ->  | O6: =FIND("-",_xlfn.XLOOKUP(A6,'Product List'!A:A,'Product List'!E:E),N6+2) ->  | P6: =_xlfn.XLOOKUP(A6,'Product List'!A:A,'Product List'!I:I) -> DE000A2QC941 | Q6: =_xlfn.XLOOKUP(A6,'Product List'!A:A,'Product List'!F:F) -> SINGLE STOCK DIVIDEND FUTURES
A7: U2NC | B7: =_xlfn.XLOOKUP(A7,'Product List'!A:A,'Product List'!D:D) -> UCB Dividend Futures | G7: 0.4 | H7: 0.45 | I7: 0.55 | K7: =_xlfn.XLOOKUP(A7,productlist[PRODUCT_ID],productlist[Spread Class Code]) ->  | L7: =FIND("-",_xlfn.XLOOKUP(A7,'Product List'!A:A,'Product List'!E:E)) ->  | M7: =FIND("-",_xlfn.XLOOKUP(A7,'Product List'!A:A,'Product List'!E:E),L7+1) ->  | N7: =FIND("-",_xlfn.XLOOKUP(A7,'Product List'!A:A,'Product List'!E:E),M7+1) ->  | O7: =FIND("-",_xlfn.XLOOKUP(A7,'Product List'!A:A,'Product List'!E:E),N7+2) ->  | P7: =_xlfn.XLOOKUP(A7,'Product List'!A:A,'Product List'!I:I) -> XC000A3CLMX4 | Q7: =_xlfn.XLOOKUP(A7,'Product List'!A:A,'Product List'!F:F) -> SINGLE STOCK DIVIDEND FUTURES
A8: B2AS | B8: =_xlfn.XLOOKUP(A8,'Product List'!A:A,'Product List'!D:D) -> BASF Dividend Futures | G8: 0.3 | H8: 0.3 | I8: 0.4 | K8: =_xlfn.XLOOKUP(A8,productlist[PRODUCT_ID],productlist[Spread Class Code]) -> SSDF-30-30-40-Q | L8: =FIND("-",_xlfn.XLOOKUP(A8,'Product List'!A:A,'Product List'!E:E)) -> 5 | M8: =FIND("-",_xlfn.XLOOKUP(A8,'Product List'!A:A,'Product List'!E:E),L8+1) -> 8 | N8: =FIND("-",_xlfn.XLOOKUP(A8,'Product List'!A:A,'Product List'!E:E),M8+1) -> 11 | O8: =FIND("-",_xlfn.XLOOKUP(A8,'Product List'!A:A,'Product List'!E:E),N8+2) -> 14 | P8: =_xlfn.XLOOKUP(A8,'Product List'!A:A,'Product List'!I:I) -> XC000A1CRLA5 | Q8: =_xlfn.XLOOKUP(A8,'Product List'!A:A,'Product List'!F:F) -> SINGLE STOCK DIVIDEND FUTURES
A9: A2XA | B9: =_xlfn.XLOOKUP(A9,'Product List'!A:A,'Product List'!D:D) -> AXA Dividend Futures | G9: 0.3 | H9: 0.3 | I9: 0.4 | K9: =_xlfn.XLOOKUP(A9,productlist[PRODUCT_ID],productlist[Spread Class Code]) -> SSDF-30-30-40-Q | L9: =FIND("-",_xlfn.XLOOKUP(A9,'Product List'!A:A,'Product List'!E:E)) -> 5 | M9: =FIND("-",_xlfn.XLOOKUP(A9,'Product List'!A:A,'Product List'!E:E),L9+1) -> 8 | N9: =FIND("-",_xlfn.XLOOKUP(A9,'Product List'!A:A,'Product List'!E:E),M9+1) -> 11 | O9: =FIND("-",_xlfn.XLOOKUP(A9,'Product List'!A:A,'Product List'!E:E),N9+2) -> 14 | P9: =_xlfn.XLOOKUP(A9,'Product List'!A:A,'Product List'!I:I) -> XC000A1CRK63 | Q9: =_xlfn.XLOOKUP(A9,'Product List'!A:A,'Product List'!F:F) -> SINGLE STOCK DIVIDEND FUTURES
A10: I3XD | B10: =_xlfn.XLOOKUP(A10,'Product List'!A:A,'Product List'!D:D) -> Inditex Dividend Futures | G10: 0.4 | H10: 0.45 | I10: 0.55 | K10: =_xlfn.XLOOKUP(A10,productlist[PRODUCT_ID],productlist[Spread Class Code]) ->  | L10: =FIND("-",_xlfn.XLOOKUP(A10,'Product List'!A:A,'Product List'!E:E)) ->  | M10: =FIND("-",_xlfn.XLOOKUP(A10,'Product List'!A:A,'Product List'!E:E),L10+1) ->  | N10: =FIND("-",_xlfn.XLOOKUP(A10,'Product List'!A:A,'Product List'!E:E),M10+1) ->  | O10: =FIND("-",_xlfn.XLOOKUP(A10,'Product List'!A:A,'Product List'!E:E),N10+2) ->  | P10: =_xlfn.XLOOKUP(A10,'Product List'!A:A,'Product List'!I:I) -> XC000A1L19Z4 | Q10: =_xlfn.XLOOKUP(A10,'Product List'!A:A,'Product List'!F:F) -> SINGLE STOCK DIVIDEND FUTURES
A11: U2EI | B11: =_xlfn.XLOOKUP(A11,'Product List'!A:A,'Product List'!D:D) -> Terna Dividend Futures | G11: 0.4 | H11: 0.45 | I11: 0.55 | K11: =_xlfn.XLOOKUP(A11,productlist[PRODUCT_ID],productlist[Spread Class Code]) -> SSDF-40-45-55-Q | L11: =FIND("-",_xlfn.XLOOKUP(A11,'Product List'!A:A,'Product List'!E:E)) -> 5 | M11: =FIND("-",_xlfn.XLOOKUP(A11,'Product List'!A:A,'Product List'!E:E),L11+1) -> 8 | N11: =FIND("-",_xlfn.XLOOKUP(A11,'Product List'!A:A,'Product List'!E:E),M11+1) -> 11 | O11: =FIND("-",_xlfn.XLOOKUP(A11,'Product List'!A:A,'Product List'!E:E),N11+2) -> 14 | P11: =_xlfn.XLOOKUP(A11,'Product List'!A:A,'Product List'!I:I) -> XC000A13RNA3 | Q11: =_xlfn.XLOOKUP(A11,'Product List'!A:A,'Product List'!F:F) -> SINGLE STOCK DIVIDEND FUTURES
A12: S5RE | B12: =_xlfn.XLOOKUP(A12,'Product List'!A:A,'Product List'!D:D) -> Swiss Re Dividend Futures | G12: 0.4 | H12: 0.45 | I12: 0.55 | K12: =_xlfn.XLOOKUP(A12,productlist[PRODUCT_ID],productlist[Spread Class Code]) -> SSDF-40-45-55-Q | L12: =FIND("-",_xlfn.XLOOKUP(A12,'Product List'!A:A,'Product List'!E:E)) -> 5 | M12: =FIND("-",_xlfn.XLOOKUP(A12,'Product List'!A:A,'Product List'!E:E),L12+1) -> 8 | N12: =FIND("-",_xlfn.XLOOKUP(A12,'Product List'!A:A,'Product List'!E:E),M12+1) -> 11 | O12: =FIND("-",_xlfn.XLOOKUP(A12,'Product List'!A:A,'Product List'!E:E),N12+2) -> 14 | P12: =_xlfn.XLOOKUP(A12,'Product List'!A:A,'Product List'!I:I) -> XC000A1HTZW4 | Q12: =_xlfn.XLOOKUP(A12,'Product List'!A:A,'Product List'!F:F) -> SINGLE STOCK DIVIDEND FUTURES
A13: Z2UR | B13: =_xlfn.XLOOKUP(A13,'Product List'!A:A,'Product List'!D:D) -> Zurich Financial Services Dividend Futures | G13: 0.4 | H13: 0.45 | I13: 0.55 | K13: =_xlfn.XLOOKUP(A13,productlist[PRODUCT_ID],productlist[Spread Class Code]) -> SSDF-40-45-55-Q | L13: =FIND("-",_xlfn.XLOOKUP(A13,'Product List'!A:A,'Product List'!E:E)) -> 5 | M13: =FIND("-",_xlfn.XLOOKUP(A13,'Product List'!A:A,'Product List'!E:E),L13+1) -> 8 | N13: =FIND("-",_xlfn.XLOOKUP(A13,'Product List'!A:A,'Product List'!E:E),M13+1) -> 11 | O13: =FIND("-",_xlfn.XLOOKUP(A13,'Product List'!A:A,'Product List'!E:E),N13+2) -> 14 | P13: =_xlfn.XLOOKUP(A13,'Product List'!A:A,'Product List'!I:I) -> XC000A1HTZU8 | Q13: =_xlfn.XLOOKUP(A13,'Product List'!A:A,'Product List'!F:F) -> SINGLE STOCK DIVIDEND FUTURES
A14: O2CI | B14: =_xlfn.XLOOKUP(A14,'Product List'!A:A,'Product List'!D:D) -> ACS Actividades de Construcción y Servicios Dividend Futures | G14: 0.4 | H14: 0.45 | I14: 0.55 | K14: =_xlfn.XLOOKUP(A14,productlist[PRODUCT_ID],productlist[Spread Class Code]) -> SSDF-40-45-55-Q | L14: =FIND("-",_xlfn.XLOOKUP(A14,'Product List'!A:A,'Product List'!E:E)) -> 5 | M14: =FIND("-",_xlfn.XLOOKUP(A14,'Product List'!A:A,'Product List'!E:E),L14+1) -> 8 | N14: =FIND("-",_xlfn.XLOOKUP(A14,'Product List'!A:A,'Product List'!E:E),M14+1) -> 11 | O14: =FIND("-",_xlfn.XLOOKUP(A14,'Product List'!A:A,'Product List'!E:E),N14+2) -> 14 | P14: =_xlfn.XLOOKUP(A14,'Product List'!A:A,'Product List'!I:I) -> XC000A2X2GR0 | Q14: =_xlfn.XLOOKUP(A14,'Product List'!A:A,'Product List'!F:F) -> SINGLE STOCK DIVIDEND FUTURES
A15: A2BB | B15: =_xlfn.XLOOKUP(A15,'Product List'!A:A,'Product List'!D:D) -> ABB-Accelleron Basket Dividend Futures | G15: 0.4 | H15: 0.45 | I15: 0.55 | K15: =_xlfn.XLOOKUP(A15,productlist[PRODUCT_ID],productlist[Spread Class Code]) -> SSDF-40-45-55-Q | L15: =FIND("-",_xlfn.XLOOKUP(A15,'Product List'!A:A,'Product List'!E:E)) -> 5 | M15: =FIND("-",_xlfn.XLOOKUP(A15,'Product List'!A:A,'Product List'!E:E),L15+1) -> 8 | N15: =FIND("-",_xlfn.XLOOKUP(A15,'Product List'!A:A,'Product List'!E:E),M15+1) -> 11 | O15: =FIND("-",_xlfn.XLOOKUP(A15,'Product List'!A:A,'Product List'!E:E),N15+2) -> 14 | P15: =_xlfn.XLOOKUP(A15,'Product List'!A:A,'Product List'!I:I) -> DE000A30A2E1 | Q15: =_xlfn.XLOOKUP(A15,'Product List'!A:A,'Product List'!F:F) -> SINGLE STOCK DIVIDEND FUTURES
A16: H3OL | B16: =_xlfn.XLOOKUP(A16,'Product List'!A:A,'Product List'!D:D) -> Holcim Dividend Futures | G16: 0.4 | H16: 0.45 | I16: 0.55 | K16: =_xlfn.XLOOKUP(A16,productlist[PRODUCT_ID],productlist[Spread Class Code]) -> SSDF-40-45-55-Q | L16: =FIND("-",_xlfn.XLOOKUP(A16,'Product List'!A:A,'Product List'!E:E)) -> 5 | M16: =FIND("-",_xlfn.XLOOKUP(A16,'Product List'!A:A,'Product List'!E:E),L16+1) -> 8 | N16: =FIND("-",_xlfn.XLOOKUP(A16,'Product List'!A:A,'Product List'!E:E),M16+1) -> 11 | O16: =FIND("-",_xlfn.XLOOKUP(A16,'Product List'!A:A,'Product List'!E:E),N16+2) -> 14 | P16: =_xlfn.XLOOKUP(A16,'Product List'!A:A,'Product List'!I:I) -> XC000A13RMR9 | Q16: =_xlfn.XLOOKUP(A16,'Product List'!A:A,'Product List'!F:F) -> SINGLE STOCK DIVIDEND FUTURES
A17: S2LH | B17: =_xlfn.XLOOKUP(A17,'Product List'!A:A,'Product List'!D:D) -> Swiss Life Holding Dividend Futures | G17: 0.4 | H17: 0.45 | I17: 0.55 | K17: =_xlfn.XLOOKUP(A17,productlist[PRODUCT_ID],productlist[Spread Class Code]) -> SSDF-40-45-55-Q | L17: =FIND("-",_xlfn.XLOOKUP(A17,'Product List'!A:A,'Product List'!E:E)) -> 5 | M17: =FIND("-",_xlfn.XLOOKUP(A17,'Product List'!A:A,'Product List'!E:E),L17+1) -> 8 | N17: =FIND("-",_xlfn.XLOOKUP(A17,'Product List'!A:A,'Product List'!E:E),M17+1) -> 11 | O17: =FIND("-",_xlfn.XLOOKUP(A17,'Product List'!A:A,'Product List'!E:E),N17+2) -> 14 | P17: =_xlfn.XLOOKUP(A17,'Product List'!A:A,'Product List'!I:I) -> XC000A2X2GH1 | Q17: =_xlfn.XLOOKUP(A17,'Product List'!A:A,'Product List'!F:F) -> SINGLE STOCK DIVIDEND FUTURES
A18: B2A | B18: =_xlfn.XLOOKUP(A18,'Product List'!A:A,'Product List'!D:D) -> BAE Systems Dividend Futures | G18: 0.4 | H18: 0.45 | I18: 0.55 | K18: =_xlfn.XLOOKUP(A18,productlist[PRODUCT_ID],productlist[Spread Class Code]) -> SSDF-40-45-55 | L18: =FIND("-",_xlfn.XLOOKUP(A18,'Product List'!A:A,'Product List'!E:E)) -> 5 | M18: =FIND("-",_xlfn.XLOOKUP(A18,'Product List'!A:A,'Product List'!E:E),L18+1) -> 8 | N18: =FIND("-",_xlfn.XLOOKUP(A18,'Product List'!A:A,'Product List'!E:E),M18+1) -> 11 | O18: =FIND("-",_xlfn.XLOOKUP(A18,'Product List'!A:A,'Product List'!E:E),N18+2) ->  | P18: =_xlfn.XLOOKUP(A18,'Product List'!A:A,'Product List'!I:I) -> XC000A13RMH0 | Q18: =_xlfn.XLOOKUP(A18,'Product List'!A:A,'Product List'!F:F) -> SINGLE STOCK DIVIDEND FUTURES
A19: C2NA | B19: =_xlfn.XLOOKUP(A19,'Product List'!A:A,'Product List'!D:D) -> Centrica Dividend Futures | G19: 0.4 | H19: 0.45 | I19: 0.55 | K19: =_xlfn.XLOOKUP(A19,productlist[PRODUCT_ID],productlist[Spread Class Code]) -> SSDF-40-45-55 | L19: =FIND("-",_xlfn.XLOOKUP(A19,'Product List'!A:A,'Product List'!E:E)) -> 5 | M19: =FIND("-",_xlfn.XLOOKUP(A19,'Product List'!A:A,'Product List'!E:E),L19+1) -> 8 | N19: =FIND("-",_xlfn.XLOOKUP(A19,'Product List'!A:A,'Product List'!E:E),M19+1) -> 11 | O19: =FIND("-",_xlfn.XLOOKUP(A19,'Product List'!A:A,'Product List'!E:E),N19+2) ->  | P19: =_xlfn.XLOOKUP(A19,'Product List'!A:A,'Product List'!I:I) -> XC000A13RML2 | Q19: =_xlfn.XLOOKUP(A19,'Product List'!A:A,'Product List'!F:F) -> SINGLE STOCK DIVIDEND FUTURES
A20: S2GM | B20: =_xlfn.XLOOKUP(A20,'Product List'!A:A,'Product List'!D:D) -> STMicroelectronics Dividend Futures | G20: 0.4 | H20: 0.45 | I20: 0.55 | K20: =_xlfn.XLOOKUP(A20,productlist[PRODUCT_ID],productlist[Spread Class Code]) -> SSDF-40-45-55 | L20: =FIND("-",_xlfn.XLOOKUP(A20,'Product List'!A:A,'Product List'!E:E)) -> 5 | M20: =FIND("-",_xlfn.XLOOKUP(A20,'Product List'!A:A,'Product List'!E:E),L20+1) -> 8 | N20: =FIND("-",_xlfn.XLOOKUP(A20,'Product List'!A:A,'Product List'!E:E),M20+1) -> 11 | O20: =FIND("-",_xlfn.XLOOKUP(A20,'Product List'!A:A,'Product List'!E:E),N20+2) ->  | P20: =_xlfn.XLOOKUP(A20,'Product List'!A:A,'Product List'!I:I) -> XC000A2X2GE8 | Q20: =_xlfn.XLOOKUP(A20,'Product List'!A:A,'Product List'!F:F) -> SINGLE STOCK DIVIDEND FUTURES
A21: A2ZN | B21: =_xlfn.XLOOKUP(A21,'Product List'!A:A,'Product List'!D:D) -> AstraZeneca Dividend Futures | G21: 0.4 | H21: 0.45 | I21: 0.55 | K21: =_xlfn.XLOOKUP(A21,productlist[PRODUCT_ID],productlist[Spread Class Code]) -> SSDF-40-45-55 | L21: =FIND("-",_xlfn.XLOOKUP(A21,'Product List'!A:A,'Product List'!E:E)) -> 5 | M21: =FIND("-",_xlfn.XLOOKUP(A21,'Product List'!A:A,'Product List'!E:E),L21+1) -> 8 | N21: =FIND("-",_xlfn.XLOOKUP(A21,'Product List'!A:A,'Product List'!E:E),M21+1) -> 11 | O21: =FIND("-",_xlfn.XLOOKUP(A21,'Product List'!A:A,'Product List'!E:E),N21+2) ->  | P21: =_xlfn.XLOOKUP(A21,'Product List'!A:A,'Product List'!I:I) -> XC000A1KD0X7 | Q21: =_xlfn.XLOOKUP(A21,'Product List'!A:A,'Product List'!F:F) -> SINGLE STOCK DIVIDEND FUTURES
A22: B2P | B22: =_xlfn.XLOOKUP(A22,'Product List'!A:A,'Product List'!D:D) -> BP Dividend Futures | G22: 0.4 | H22: 0.45 | I22: 0.55 | K22: =_xlfn.XLOOKUP(A22,productlist[PRODUCT_ID],productlist[Spread Class Code]) -> SSDF-40-45-55 | L22: =FIND("-",_xlfn.XLOOKUP(A22,'Product List'!A:A,'Product List'!E:E)) -> 5 | M22: =FIND("-",_xlfn.XLOOKUP(A22,'Product List'!A:A,'Product List'!E:E),L22+1) -> 8 | N22: =FIND("-",_xlfn.XLOOKUP(A22,'Product List'!A:A,'Product List'!E:E),M22+1) -> 11 | O22: =FIND("-",_xlfn.XLOOKUP(A22,'Product List'!A:A,'Product List'!E:E),N22+2) ->  | P22: =_xlfn.XLOOKUP(A22,'Product List'!A:A,'Product List'!I:I) -> XC000A1KD011 | Q22: =_xlfn.XLOOKUP(A22,'Product List'!A:A,'Product List'!F:F) -> SINGLE STOCK DIVIDEND FUTURES
A23: B2T | B23: =_xlfn.XLOOKUP(A23,'Product List'!A:A,'Product List'!D:D) -> BT Group Dividend Futures | G23: 0.4 | H23: 0.45 | I23: 0.55 | K23: =_xlfn.XLOOKUP(A23,productlist[PRODUCT_ID],productlist[Spread Class Code]) -> SSDF-40-45-55 | L23: =FIND("-",_xlfn.XLOOKUP(A23,'Product List'!A:A,'Product List'!E:E)) -> 5 | M23: =FIND("-",_xlfn.XLOOKUP(A23,'Product List'!A:A,'Product List'!E:E),L23+1) -> 8 | N23: =FIND("-",_xlfn.XLOOKUP(A23,'Product List'!A:A,'Product List'!E:E),M23+1) -> 11 | O23: =FIND("-",_xlfn.XLOOKUP(A23,'Product List'!A:A,'Product List'!E:E),N23+2) ->  | P23: =_xlfn.XLOOKUP(A23,'Product List'!A:A,'Product List'!I:I) -> XC000A1KD052 | Q23: =_xlfn.XLOOKUP(A23,'Product List'!A:A,'Product List'!F:F) -> SINGLE STOCK DIVIDEND FUTURES
A24: B3AR | B24: =_xlfn.XLOOKUP(A24,'Product List'!A:A,'Product List'!D:D) -> Barclays Dividend Futures | G24: 0.4 | H24: 0.45 | I24: 0.55 | K24: =_xlfn.XLOOKUP(A24,productlist[PRODUCT_ID],productlist[Spread Class Code]) -> SSDF-40-45-55 | L24: =FIND("-",_xlfn.XLOOKUP(A24,'Product List'!A:A,'Product List'!E:E)) -> 5 | M24: =FIND("-",_xlfn.XLOOKUP(A24,'Product List'!A:A,'Product List'!E:E),L24+1) -> 8 | N24: =FIND("-",_xlfn.XLOOKUP(A24,'Product List'!A:A,'Product List'!E:E),M24+1) -> 11 | O24: =FIND("-",_xlfn.XLOOKUP(A24,'Product List'!A:A,'Product List'!E:E),N24+2) ->  | P24: =_xlfn.XLOOKUP(A24,'Product List'!A:A,'Product List'!I:I) -> XC000A1KD037 | Q24: =_xlfn.XLOOKUP(A24,'Product List'!A:A,'Product List'!F:F) -> SINGLE STOCK DIVIDEND FUTURES
A25: C2CL | B25: =_xlfn.XLOOKUP(A25,'Product List'!A:A,'Product List'!D:D) -> Carnival Dividend Futures | G25: 0.4 | H25: 0.45 | I25: 0.55 | K25: =_xlfn.XLOOKUP(A25,productlist[PRODUCT_ID],productlist[Spread Class Code]) -> SSDF-40-45-55 | L25: =FIND("-",_xlfn.XLOOKUP(A25,'Product List'!A:A,'Product List'!E:E)) -> 5 | M25: =FIND("-",_xlfn.XLOOKUP(A25,'Product List'!A:A,'Product List'!E:E),L25+1) -> 8 | N25: =FIND("-",_xlfn.XLOOKUP(A25,'Product List'!A:A,'Product List'!E:E),M25+1) -> 11 | O25: =FIND("-",_xlfn.XLOOKUP(A25,'Product List'!A:A,'Product List'!E:E),N25+2) ->  | P25: =_xlfn.XLOOKUP(A25,'Product List'!A:A,'Product List'!I:I) -> XC000A2X2G50 | Q25: =_xlfn.XLOOKUP(A25,'Product List'!A:A,'Product List'!F:F) -> SINGLE STOCK DIVIDEND FUTURES
A26: D2GE | B26: =_xlfn.XLOOKUP(A26,'Product List'!A:A,'Product List'!D:D) -> Diageo Dividend Futures | G26: 0.4 | H26: 0.45 | I26: 0.55 | K26: =_xlfn.XLOOKUP(A26,productlist[PRODUCT_ID],productlist[Spread Class Code]) -> SSDF-40-45-55 | L26: =FIND("-",_xlfn.XLOOKUP(A26,'Product List'!A:A,'Product List'!E:E)) -> 5 | M26: =FIND("-",_xlfn.XLOOKUP(A26,'Product List'!A:A,'Product List'!E:E),L26+1) -> 8 | N26: =FIND("-",_xlfn.XLOOKUP(A26,'Product List'!A:A,'Product List'!E:E),M26+1) -> 11 | O26: =FIND("-",_xlfn.XLOOKUP(A26,'Product List'!A:A,'Product List'!E:E),N26+2) ->  | P26: =_xlfn.XLOOKUP(A26,'Product List'!A:A,'Product List'!I:I) -> XC000A1KD0Z2 | Q26: =_xlfn.XLOOKUP(A26,'Product List'!A:A,'Product List'!F:F) -> SINGLE STOCK DIVIDEND FUTURES
A27: G2EC | B27: =_xlfn.XLOOKUP(A27,'Product List'!A:A,'Product List'!D:D) -> General Electric Dividend Futures | G27: 0.4 | H27: 0.45 | I27: 0.55 | K27: =_xlfn.XLOOKUP(A27,productlist[PRODUCT_ID],productlist[Spread Class Code]) -> SSDF-40-45-55 | L27: =FIND("-",_xlfn.XLOOKUP(A27,'Product List'!A:A,'Product List'!E:E)) -> 5 | M27: =FIND("-",_xlfn.XLOOKUP(A27,'Product List'!A:A,'Product List'!E:E),L27+1) -> 8 | N27: =FIND("-",_xlfn.XLOOKUP(A27,'Product List'!A:A,'Product List'!E:E),M27+1) -> 11 | O27: =FIND("-",_xlfn.XLOOKUP(A27,'Product List'!A:A,'Product List'!E:E),N27+2) ->  | P27: =_xlfn.XLOOKUP(A27,'Product List'!A:A,'Product List'!I:I) -> XC000A11Q9G8 | Q27: =_xlfn.XLOOKUP(A27,'Product List'!A:A,'Product List'!F:F) -> SINGLE STOCK DIVIDEND FUTURES
A28: G4SK | B28: =_xlfn.XLOOKUP(A28,'Product List'!A:A,'Product List'!D:D) -> GSK Haleon Basket Dividend Futures | G28: 0.4 | H28: 0.45 | I28: 0.55 | K28: =_xlfn.XLOOKUP(A28,productlist[PRODUCT_ID],productlist[Spread Class Code]) ->  | L28: =FIND("-",_xlfn.XLOOKUP(A28,'Product List'!A:A,'Product List'!E:E)) ->  | M28: =FIND("-",_xlfn.XLOOKUP(A28,'Product List'!A:A,'Product List'!E:E),L28+1) ->  | N28: =FIND("-",_xlfn.XLOOKUP(A28,'Product List'!A:A,'Product List'!E:E),M28+1) ->  | O28: =FIND("-",_xlfn.XLOOKUP(A28,'Product List'!A:A,'Product List'!E:E),N28+2) ->  | P28: =_xlfn.XLOOKUP(A28,'Product List'!A:A,'Product List'!I:I) -> DE000A3DQCD2 | Q28: =_xlfn.XLOOKUP(A28,'Product List'!A:A,'Product List'!F:F) -> SINGLE STOCK DIVIDEND FUTURES
A29: I2NT | B29: =_xlfn.XLOOKUP(A29,'Product List'!A:A,'Product List'!D:D) -> Intel Dividend Futures | G29: 0.4 | H29: 0.45 | I29: 0.55 | K29: =_xlfn.XLOOKUP(A29,productlist[PRODUCT_ID],productlist[Spread Class Code]) -> SSDF-40-45-55 | L29: =FIND("-",_xlfn.XLOOKUP(A29,'Product List'!A:A,'Product List'!E:E)) -> 5 | M29: =FIND("-",_xlfn.XLOOKUP(A29,'Product List'!A:A,'Product List'!E:E),L29+1) -> 8 | N29: =FIND("-",_xlfn.XLOOKUP(A29,'Product List'!A:A,'Product List'!E:E),M29+1) -> 11 | O29: =FIND("-",_xlfn.XLOOKUP(A29,'Product List'!A:A,'Product List'!E:E),N29+2) ->  | P29: =_xlfn.XLOOKUP(A29,'Product List'!A:A,'Product List'!I:I) -> XC000A11Q9J2 | Q29: =_xlfn.XLOOKUP(A29,'Product List'!A:A,'Product List'!F:F) -> SINGLE STOCK DIVIDEND FUTURES
A30: K2OF | B30: =_xlfn.XLOOKUP(A30,'Product List'!A:A,'Product List'!D:D) -> The Coca-Cola Company Dividend Futures | G30: 0.4 | H30: 0.45 | I30: 0.55 | K30: =_xlfn.XLOOKUP(A30,productlist[PRODUCT_ID],productlist[Spread Class Code]) -> SSDF-40-45-55 | L30: =FIND("-",_xlfn.XLOOKUP(A30,'Product List'!A:A,'Product List'!E:E)) -> 5 | M30: =FIND("-",_xlfn.XLOOKUP(A30,'Product List'!A:A,'Product List'!E:E),L30+1) -> 8 | N30: =FIND("-",_xlfn.XLOOKUP(A30,'Product List'!A:A,'Product List'!E:E),M30+1) -> 11 | O30: =FIND("-",_xlfn.XLOOKUP(A30,'Product List'!A:A,'Product List'!E:E),N30+2) ->  | P30: =_xlfn.XLOOKUP(A30,'Product List'!A:A,'Product List'!I:I) -> XC000A11Q9F0 | Q30: =_xlfn.XLOOKUP(A30,'Product List'!A:A,'Product List'!F:F) -> SINGLE STOCK DIVIDEND FUTURES
A31: P2RU | B31: =_xlfn.XLOOKUP(A31,'Product List'!A:A,'Product List'!D:D) -> Prudential Dividend Futures (GBX) | G31: 0.4 | H31: 0.45 | I31: 0.55 | K31: =_xlfn.XLOOKUP(A31,productlist[PRODUCT_ID],productlist[Spread Class Code]) ->  | L31: =FIND("-",_xlfn.XLOOKUP(A31,'Product List'!A:A,'Product List'!E:E)) ->  | M31: =FIND("-",_xlfn.XLOOKUP(A31,'Product List'!A:A,'Product List'!E:E),L31+1) ->  | N31: =FIND("-",_xlfn.XLOOKUP(A31,'Product List'!A:A,'Product List'!E:E),M31+1) ->  | O31: =FIND("-",_xlfn.XLOOKUP(A31,'Product List'!A:A,'Product List'!E:E),N31+2) ->  | P31: =_xlfn.XLOOKUP(A31,'Product List'!A:A,'Product List'!I:I) -> XC000A2X2G27 | Q31: =_xlfn.XLOOKUP(A31,'Product List'!A:A,'Product List'!F:F) -> SINGLE STOCK DIVIDEND FUTURES
A32: R2BE | B32: =_xlfn.XLOOKUP(A32,'Product List'!A:A,'Product List'!D:D) -> Reckitt Benckiser Dividend Futures | G32: 0.4 | H32: 0.45 | I32: 0.55 | K32: =_xlfn.XLOOKUP(A32,productlist[PRODUCT_ID],productlist[Spread Class Code]) -> SSDF-40-45-55 | L32: =FIND("-",_xlfn.XLOOKUP(A32,'Product List'!A:A,'Product List'!E:E)) -> 5 | M32: =FIND("-",_xlfn.XLOOKUP(A32,'Product List'!A:A,'Product List'!E:E),L32+1) -> 8 | N32: =FIND("-",_xlfn.XLOOKUP(A32,'Product List'!A:A,'Product List'!E:E),M32+1) -> 11 | O32: =FIND("-",_xlfn.XLOOKUP(A32,'Product List'!A:A,'Product List'!E:E),N32+2) ->  | P32: =_xlfn.XLOOKUP(A32,'Product List'!A:A,'Product List'!I:I) -> XC000A2X2G01 | Q32: =_xlfn.XLOOKUP(A32,'Product List'!A:A,'Product List'!F:F) -> SINGLE STOCK DIVIDEND FUTURES
A33: R2EL | B33: =_xlfn.XLOOKUP(A33,'Product List'!A:A,'Product List'!D:D) -> RELX Dividend Futures | G33: 0.4 | H33: 0.45 | I33: 0.55 | K33: =_xlfn.XLOOKUP(A33,productlist[PRODUCT_ID],productlist[Spread Class Code]) -> SSDF-40-45-55 | L33: =FIND("-",_xlfn.XLOOKUP(A33,'Product List'!A:A,'Product List'!E:E)) -> 5 | M33: =FIND("-",_xlfn.XLOOKUP(A33,'Product List'!A:A,'Product List'!E:E),L33+1) -> 8 | N33: =FIND("-",_xlfn.XLOOKUP(A33,'Product List'!A:A,'Product List'!E:E),M33+1) -> 11 | O33: =FIND("-",_xlfn.XLOOKUP(A33,'Product List'!A:A,'Product List'!E:E),N33+2) ->  | P33: =_xlfn.XLOOKUP(A33,'Product List'!A:A,'Product List'!I:I) -> XC000A2X2G35 | Q33: =_xlfn.XLOOKUP(A33,'Product List'!A:A,'Product List'!F:F) -> SINGLE STOCK DIVIDEND FUTURES
A34: T2SC | B34: =_xlfn.XLOOKUP(A34,'Product List'!A:A,'Product List'!D:D) -> Tesco Dividend Futures | G34: 0.4 | H34: 0.45 | I34: 0.55 | K34: =_xlfn.XLOOKUP(A34,productlist[PRODUCT_ID],productlist[Spread Class Code]) -> SSDF-40-45-55 | L34: =FIND("-",_xlfn.XLOOKUP(A34,'Product List'!A:A,'Product List'!E:E)) -> 5 | M34: =FIND("-",_xlfn.XLOOKUP(A34,'Product List'!A:A,'Product List'!E:E),L34+1) -> 8 | N34: =FIND("-",_xlfn.XLOOKUP(A34,'Product List'!A:A,'Product List'!E:E),M34+1) -> 11 | O34: =FIND("-",_xlfn.XLOOKUP(A34,'Product List'!A:A,'Product List'!E:E),N34+2) ->  | P34: =_xlfn.XLOOKUP(A34,'Product List'!A:A,'Product List'!I:I) -> XC000A1KD045 | Q34: =_xlfn.XLOOKUP(A34,'Product List'!A:A,'Product List'!F:F) -> SINGLE STOCK DIVIDEND FUTURES
A35: W2MT | B35: =_xlfn.XLOOKUP(A35,'Product List'!A:A,'Product List'!D:D) -> Walmart Dividend Futures | G35: 0.4 | H35: 0.45 | I35: 0.55 | K35: =_xlfn.XLOOKUP(A35,productlist[PRODUCT_ID],productlist[Spread Class Code]) -> SSDF-40-45-55 | L35: =FIND("-",_xlfn.XLOOKUP(A35,'Product List'!A:A,'Product List'!E:E)) -> 5 | M35: =FIND("-",_xlfn.XLOOKUP(A35,'Product List'!A:A,'Product List'!E:E),L35+1) -> 8 | N35: =FIND("-",_xlfn.XLOOKUP(A35,'Product List'!A:A,'Product List'!E:E),M35+1) -> 11 | O35: =FIND("-",_xlfn.XLOOKUP(A35,'Product List'!A:A,'Product List'!E:E),N35+2) ->  | P35: =_xlfn.XLOOKUP(A35,'Product List'!A:A,'Product List'!I:I) -> XC000A11Q9T1 | Q35: =_xlfn.XLOOKUP(A35,'Product List'!A:A,'Product List'!F:F) -> SINGLE STOCK DIVIDEND FUTURES
